Workbook

Sheet ŞABLON (32 6 BİST İNDİRİMSİ (2) (hidden)
B2: FAALİYET TÜRLERİ İTİBARİYLE HASILATLAR VE TOPLAM İÇİNDEKİ ORANLARI | C2: =IFERROR(C4/C4,0) -> 1 | D2: =IFERROR(D4/C4,0) -> 0.202914298 | E2: =IFERROR(E4/C4,0) -> 1.409212079 | F2: =IFERROR(F4/C4,0) -> -0.6121263773
C3: Toplam Hasılat | D3: İhracat faaliyeti | E3: İmalat faaliyeti | F3: Diğer faaliyetler
B4: A-BRÜT SATIŞLAR (60) | C4: =D4+E4+F4 -> 32870601.36 | D4: =SUM(D5:D7) -> 6669915 | E4: =SUM(E5:E7) -> 46321648.49 | F4: -20120962.13
B5: 1-Yurtiçi Satışlar (600) | C5: =D5+E5+F5 -> 46321648.49 | E5: 46321648.49
B6: 2-Yurtdışı Satışlar (601) | C6: =D6+E6+F6 -> 6669915 | D6: 6669915
B7: 3-Diğer Gelirler (602) | C7: =D7+E7+F7 -> -20120962.13 | F7: -20120962.13
B8: B-SATIŞ İNDİRİMLERİ(-) (61) | C8: =SUM(C9:C11) -> 0 | D8: =SUM(D9:D11) -> 0 | E8: =SUM(E9:E11) -> 0 | F8: 0
B9: 1-Satıştan İadeler (-) (610) | C9: =SUM(D9:F9) -> 0
B10: 2- Satış İskontoları (-) (611) | C10: =SUM(D10:F10) -> 0
B11: 3-Diğer İndirimler (-) (612) | C11: 0
B12: C-NET SATIŞLAR | C12: =C4-C8 -> 32870601.36 | D12: =D4-D8 -> 6669915 | E12: =E4-E8 -> 46321648.49 | F12: -20120962.13
B13: D-SATIŞLARIN MALİYETİ (-) (62) | C13: =SUM(C14:C17) -> 0 | D13: =SUM(D14:D17) -> 0 | E13: =SUM(E14:E17) -> 0 | F13: =SUM(F14:F17) -> 0
B14: 1-Satılan Mamuller Maliyeti ( 620) | C14: =SUM(D14:F14) -> 0
B15: 2-Satılan Ticari Mal Maliyeti (621) | C15: =SUM(D15:F15) -> 0
B16: 3-Satılan Hizmet Maliyeti (622) | C16: 0
B17: 4-Diğer Satışların Maliyeti (623) | C17: 0
B18: BRÜT SATIŞ KARI / ZARARI | C18: =C12-C13 -> 32870601.36 | D18: =D12-D13 -> 6669915 | E18: =E12-E13 -> 46321648.49 | F18: -20120962.13
B19: E-FAALİYET GİDERLERİ (-) (63) | C19: =SUM(C20:C24) -> 0 | D19: =SUM(D20:D24) -> 0 | E19: =SUM(E20:E24) -> 0 | F19: 0
B20: 1-Araştırma ve Geliştirme Giderleri(-) (630) | C20: =SUM(D20:F20) -> 0
B21: 2-Pazarlama, Satış ve Dağıtım Giderleri(-) (631) | C21: =SUM(D21:F21) -> 0
B22: 3-Genel Yönetim Giderleri(-) (632) | C22: =SUM(D22:F22) -> 0
B23: MÜŞTEREK GENEL GİDERLER (DAĞITIM-HASILAT PAYINA GÖRE) | D23: =C23*D2 -> 0 | E23: =C23*E2 -> 0 | F23: =C23*F2 -> 0
B24: MÜŞTEREK GENEL GİDER GİBİ DAĞITIMA TABİ TUTULACAK AMORTİSMAN GİDERLERİ (DAĞITIM-HASILAT PAYINA GÖRE) | D24: =C24*D2 -> 0 | E24: =C24*E2 -> 0 | F24: =C24*F2 -> 0
B25: FAALİYET KARI / ZARARI | C25: =C18-C19 -> 32870601.36 | D25: =D18-D19 -> 6669915 | E25: =E18-E19 -> 46321648.49 | F25: -20120962.13
B26: F-DİĞER FAALİYETLERDEN OLAĞAN GELİR VE KARLAR (64) | C26: =SUM(C27:C35) -> 0 | D26: =SUM(D27:D35) -> 0 | E26: =SUM(E27:E35) -> 0 | F26: =SUM(F27:F35) -> 0
B27: 1- İŞTİRAKLERDEN TEMETTÜ GELİRLERİ (640) | C27: =SUM(D27:F27) -> 0
B28: 2- BAĞLI ORTAKLIKLARDAN TEMETTÜ GELİRLERİ (641) | C28: =SUM(D28:F28) -> 0
B29: 3- FAİZ GELİRLERİ (642) (ihracat ve imalat kaynaklı alacağın tahsiline kadar olan süreçte oluşan) | C29: 0
B30: 4- KOMİSYON GELİRLERİ (643) | C30: 0
B31: 5- KONUSU OLMAYAN KARŞILIKLAR (644) | C31: 0
B32: 6- MENKUL KIYMET SATIŞ KARLARI (645) | C32: 0
B33: 7- KAMBİYO KARLARI (646) (ihracat ve imalat kaynaklı alacağın tahsiline kadar olan süreçte oluşan) | C33: 0
B34: 8- REESKONT FAİZ GELİRLERİ (647) | C34: 0
B35: 9- FAALİYETLE İLGİLİ DİĞER GELİR VE KARLAR (649) | C35: 0
B36: ARA TOPLAM | C36: =C25+C26 -> 32870601.36 | D36: =D25+D26 -> 6669915 | E36: =E25+E26 -> 46321648.49 | F36: =F25+F26 -> -20120962.13
B37: G-DİĞER FAALİYETLERDEN OLAĞAN GİDER VE ZARARLAR(-) (65) | C37: =SUM(C38:C43) -> 0 | D37: =SUM(D38:D43) -> 0 | E37: =SUM(E38:E43) -> 0 | F37: 0
B38: 1- KOMİSYON GİDERLERİ (653) | C38: =SUM(D38:F38) -> 0
B39: 2- KARŞILIK GİDERLERİ (654) | C39: =SUM(D39:F39) -> 0
B40: 3- MENKUL KIYMET SATIŞ ZARARLARI (655) | C40: 0
B41: 4- KAMBİYO ZARARLARI (656) (ihracat ve imalat kaynaklı alacağın tahsiline kadar olan süreçte oluşan) | C41: 0
B42: 5- REESKONT FAİZ GİDERLERİ (657) | C42: 0
B43: 6- DİĞER OLAĞAN GİDER VE ZARARLAR (659) | C43: =SUM(D43:F43) -> 0
B44: ARA TOPLAM | C44: =C36-C37 -> 32870601.36 | D44: =D36-D37 -> 6669915 | E44: =E36-E37 -> 46321648.49 | F44: -20120962.13
B45: H-FİNANSMAN GİDERLERİ(-) (66) | C45: =SUM(C46:C49) -> 0 | D45: =SUM(D46:D49) -> 0 | E45: =SUM(E46:E49) -> 0 | F45: =SUM(F46:F49) -> 0
B46: 1- KISA VADELİ BORÇLANMA GİDERLERİ (-) | C46: =SUM(D46:F46) -> 0
B47: 2- UZUN VADELİ BORÇLANMA GİDERLERİ (-) | C47: =SUM(D47:F47) -> 0
B48: 1- KISA VADELİ BORÇLANMA GİDERLERİ (-) (DAĞITIM) | D48: =C48*D2 -> 0 | E48: =C48*E2 -> 0 | F48: =C48*F2 -> 0
B49: 2- UZUN VADELİ BORÇLANMA GİDERLERİ (-) (DAĞITIM) | D49: =C49*D2 -> 0 | E49: =C49*E2 -> 0 | F49: =C49*F2 -> 0
B50: ARA TOPLAM | C50: =C44-C45 -> 32870601.36 | D50: =D44-D45 -> 6669915 | E50: =E44-E45 -> 46321648.49 | F50: =F44-F45 -> -20120962.13
B51: I-OLAĞANDIŞI GELİR VE KÂRLAR (67) | C51: =SUM(D51:F51) -> 0 | D51: =SUM(D52:D53) -> 0 | E51: =SUM(E52:E53) -> 0 | F51: =SUM(F52:F53) -> 0
B52: 1- ÖNCEKİ DÖNEM GELİR VE KARLARI (671) | C52: =SUM(D52:F52) -> 0
B53: 2-DİĞER OLAĞAN DIŞI GELİR VE KARLAR (679) | C53: =SUM(D53:F53) -> 0
B54: ARA TOPLAM | C54: =SUM(D54:F54) -> 32870601.36 | D54: =D50+D51 -> 6669915 | E54: =E50+E51 -> 46321648.49 | F54: -20120962.13
B55: J-OLAĞANDIŞI GİDER VE ZARARLAR(-) (68) | C55: =SUM(C56:C58) -> 0 | D55: =SUM(D56:D58) -> 0 | E55: =SUM(E56:E58) -> 0 | F55: 0
B56: 1-Çalışmayan Kısım Gider ve Zararları(-) (680) | C56: =SUM(D56:F56) -> 0
B57: 2-Önceki Dönem Gider ve Zararları(-) (681) | C57: =SUM(D57:F57) -> 0
B58: 3-Diğer Olağan Dışı Gider ve Zararlar(-) (689) | C58: 0
B59: DÖNEM KÂRI VEYA ZARARI (TİCARİ BİLANÇO KARI ZARARI ) | C59: =C54-C55 -> 32870601.36 | D59: =D54-D55 -> 6669915 | E59: =E54-E55 -> 46321648.49 | F59: -20120962.13
B60: İHRACAT, İMALAT VE DİĞER FAALİYETLERDEN ELDE EDİLEN KAZANCIN TOPLAM TİCARİ KAZANÇ İÇİNDEKİ PAYLARI (Kazançlar arasında Öncelik İhracat Kazancına Verilmiştir. İhrcat Kazancından arta kalan Ticari Kazanç İmalat ve Diğer Faaliyetlere Sayılmıştır.) | D60: =IF(D59>=$C$59,1, IF(D59<=0,0, IF(AND(D59>0,D59<$C$59),D59/$C$59))) -> 0.202914298 | E60: =IF(E59>=$C$59,1, IF(E59<=0,0, IF(AND(E59>0,E59<$C$59),E59/$C$59))) -> 1 | F60: =IF(F59>=$C$59,1, IF(F59<=0,0, IF(AND(F59>0,F59<$C$59),F59/$C$59))) -> 0
D61: =D60/(D60+E60+F60) -> 0.1686855816 | E61: =E60/(D60+E60+F60) -> 0.8313144184 | F61: =F60/(D60+E60+F60) -> 0
B63: KKEG + | C63: 16204572.36
B64: KABUL EDİLMEYEN GELİRLER -
B65: ZARAR OLSA DAHİ İNDİRİLECEK İSTİSNALAR - | C65: =C66+C67+C68 -> 0
B66: Hizmet İhracatı Faaliyetinden (KVK 10-1/ğ) Elde Edilen Kazançlardan İstisna Edilenlerin Toplamı
B67: İmalat Faaliyetinden Elde Edilen Kazançlardan İstisna Edilenlerin Toplamı
B68: Diğer Faaliyetlerden Elde Edilen Kazançlardan İstisna Edilenlerin Toplamı
B69: GEÇMİŞ YIL ZARARLARI -
B70: İNDİRİMLER - | D70: AZAMİ YAZILABİLECEK İNDİRİMLER TUTARI | E70: =C59+C63-C64-C65-C69 -> 49075173.72
B72: 1 PUAN İNDİRİM UYGULANACAK TUTARIN HESABINDA İSTİSNA KAZANÇLAR DÜŞÜLDÜKTEN SONRA BULUNAN TİCARİ KAZANÇ TUTARI İLE İHRACAT,İMALAT VE DİĞER KAZANÇLARIN TUTARI | C72: TİCARİ KAZANÇ TAN İhracat ve İmalat Kazancından İstisna Olan Tutarlar Düşüldükten Sonra Kalan Tutarı | D72: İhracat Faaliyetinden Elde Edilen Kazançtan İstisna Olan Kısım Düşüldükten Sonra Bulunan Tutarı | E72: Üretim Faaliyetinden Elde Edilen Kazançtan İstisna Olan Kısım Düşüldükten Sonra Bulunan Tutarı | F72: Diğer Faaliyetinden Elde Edilen Kazanç
C73: =IF(C59-C66-C67<=0,0,C59-C66-C67) -> 32870601.36 | D73: =IF($D$59-C66<=0,0,MIN($D$59-C66,$C$73*D61)) -> 5544796.509 | E73: =IF($E$59-C67<=0,0,MIN($E$59-C67,$C$73*E61)) -> 27325804.85 | F73: =IF(C73-D73-E73<=0,0,C73-D73-E73) -> 0
B74: MATRAH DAĞITIM PAYLARI | D74: =IFERROR(IF(D73/C73<=0,0,D73/C73),0) -> 0.1686855816 | E74: =IFERROR(IF(E73/C73<=0,0,E73/C73),0) -> 0.8313144184 | F74: =IFERROR(F73/C73,0) -> 0
B75: İHRACAT, İMALAT VE DİĞER FAALİYETLERDEN ELDE EDİLEN KAZANCIN TOPLAM TİCARİ KAZANÇ İÇİNDEKİ PAYLARI | D75: =IFERROR(IF(AND(D73+E73>C73, F73<=0),1,(D73+E73)/C73),0) -> 1 | F75: =IFERROR(IF(F73<=0,0,F73/C73),0) -> 0
B76: NEGATİF VE % 100 DEN BÜYÜKLÜK KONTROLÜ SONRASINDAKİ PAYLARI | D76: =IFERROR(IF(D75<=0,0,IF(D75>1,1,D75)),0) -> 1 | F76: =IFERROR(IF(F75<=0,0,IF(F75>1,1,F75)),0) -> 0
B78: SAFİ KURUM KAZANCI (KURUMLAR VERGİSİ MATRAHI) | C78: =C59+C63-C64-C65-C69-C70 -> 49075173.72 | D78: =IF(C78<0, "ZARAR","KAR") -> KAR
B80: 2022 YILI 3. DÖNEM İNDİRİMLİ KURUMLAR VERGİSİ HESAPLAMA TABLOSU
C81: 1. TEŞVİK BELGESİ | D81: 2. TEŞVİK BELGESİ | E81: 3. TEŞVİK BELGESİ | F81: 4. TEŞVİK BELGESİ | G81: 5. TEŞVİK BELGESİ
B82: Vergi İndirim Oranı (VİO)
B83: KV MATRAHI (Safi Kurum Kazancı) | C83: =C78 -> 49075173.72
B84: 32/A Uygulanacak K.V. Matrahı (HER BİR TEŞVİK BELGESİ KAPSAMINDA YARARLANILABİLECEK YATIRIMA KATKI TUTARININ MATRAHI BU HÜCRELERE YAZILMALIDIR) | H84: =IF(SUM(C84:G84)>C78,"32/A İNDİRİMİ UYGULANACAK KAZANÇ, SAFİ KURUM KAZANCINDAN FAZLADIR",SUM(C84:G84)) -> 0
B85: 32/A UYGULANMAYACAK K.V. Matrahı | C85: =IF(C83-(C84+D84+E84+F84+G84)<0,0,C83-(C84+D84+E84+F84+G84)) -> 49075173.72
B86: MATRAH TOPLAMI | C86: =IF((C84+D84+E84+F84+G84+C85)>C78,C78,(C84+D84+E84+F84+G84+C85)) -> 49075173.72
B88: SAFİ KURUM KAZANCININ KV VERGİ ORANLARI İTİBARİYLE DAĞILIMI | C88: TOPLAM SAFİ KAZANÇ | D88: İhracat Kazancı Payı | E88: Üretim Kazancı Payı | F88: Diğer Faaliyet Kazancı Payı
C90: =C78 -> 49075173.72 | D90: =IF(AND(AND($D$59>0,($D$59+$E$59)>=$C$59,D59>=C66),$C$90>=MAX(D59,D73)), MIN(MAX(IF(D59<=C90,D59,IF(D73<=C90,D73)),$C$90*D74)), IF(OR(D59<=0,D73<=0),0, MIN( MAX( MAX( IF(D59<=C90,D59), IF(D73<=C90,D73) ), MIN($C$90*D74,D59,D73)),$C$90))) -> 8278274.222 | E90: =MIN( IF(AND(AND($E$59>0,($D$59+$E$59)>=$C$59,E59>=C67),$C$90>=MAX(E59,E73)), MIN(MAX(IF(E59<=C90,E59,IF(E73<=C90,E73)),$C$90*E74)), IF(OR(E59<=0,E73<=0),0, MIN( MAX( MAX( IF(E59<=C90,E59), IF(E73<=C90,E73) ), MIN($C$90*E74,E59,E73)),$C$90))),C90-D90) -> 40796899.5 | F90: =C90-D90-E90 -> 0
B91: SAFİ KURUM KAZANCININ DAĞILIMI ORANSAL DAĞILIMI | C91: =C90 -> 49075173.72 | D91: =D90/C90 -> 0.1686855816 | E91: =E90/C90 -> 0.8313144184 | F91: =F90/C90 -> 0
B92: SAFİ KURUM KAZANCININ DAĞILIMI TUTARSAL | C92: =C91 -> 49075173.72 | D92: =D90 -> 8278274.222 | E92: =E90 -> 40796899.5 | F92: =F90 -> 0
B93: SAFİ KURUM KAZANCI DAĞILIMI | C93: =C92 -> 49075173.72 | D93: =IFERROR(IF(D92/C92>=1,1,D92/C92),0) -> 0.1686855816 | E93: =IFERROR(IF(E92/C92>=1,1,E92/C92),0) -> 0.8313144184 | F93: =IFERROR(IF(F92/C92>=1,1,F92/C92),0) -> 0 | H93: KV ORANI
B94: 1 PUAN VE 32/A İNDİRİMİ OLMASAYDI HESAPLANAN KV TUTARI | C94: =C93*$H$94 -> 12268793.43 | D94: =D92*$H$94 -> 2069568.556 | E94: =E92*$H$94 -> 10199224.87 | F94: =F92*$H$94 -> 0 | H94: 0.25
B95: 32/ A UYGULANAN MATRAH | C95: =C84+D84+E84+F84+G84 -> 0 | D95: =D107+D112+D117+D122+D127 -> 0 | E95: =D106+D111+D116+D121+D126 -> 0 | F95: =D105+D110+D115+D120+D125 -> 0
B96: 32/A UYGULANACAK MATRAH ÜZERİNDEN ÖDENECEK KV TUTARI | C96: =J108+J113+J118+J123+J128 -> 0 | D96: =J107+J112+J117+J122+J127 -> 0 | E96: =J106+J111+J116+J121+J126 -> 0 | F96: =J105+J110+J115+J120+J125 -> 0
B97: 32/A UYGULANMAYAN MATRAH | C97: =IF(C85<=0,0,C85) -> 49075173.72 | D97: =D132 -> 8278274.222 | E97: =D131 -> 40796899.5 | F97: =D130 -> 0
B98: 32/A UYGULANMAYAN MATRAH ÜZERİNDEN ÖDENECEK KV TUTARI | C98: =L130 -> 11446910.72 | D98: =J132 -> 1655654.844 | E98: =J131 -> 9791255.879 | F98: =J130 -> 0
B99: TOPLAM ÖDENECEK KV | C99: =C96+C98 -> 11446910.72 | D99: =J132+J107 -> 1655654.844 | E99: =J131+J106 -> 9791255.879 | F99: =J130+J105 -> 0
B100: TOPLAM AVANTAJ (YARARLANILAN 1 PUAN İNDİRİMİ + 32/A İNDİRİMİ TUTARI ) | C100: =C94-C99 -> 821882.7061 | D100: =D101+D102 -> 413913.7111 | E100: =E101+E102 -> 407968.995 | F100: =F101+F102 -> 0
B101: YARARLANILAN 1 - 5 PUAN İNDİRİMİ TUTARI | C101: =F133+F128+F123+F118+F113+F108 -> 821882.7061 | D101: =F132+F107+F112+F117+F122+F127 -> 413913.7111 | E101: =F131+F106+F111+F116+F121+F126 -> 407968.995 | F101: =F130+F105+F110+F115+F120+F125 -> 0
B102: YARLANILAN 32/A İNDİRİMİ TUTARI | C102: =K108+K113+K118+K123+K128+K133 -> 0 | D102: =K107+K112+K122+K127+K132 -> 0 | E102: =K106+K111+K116+K121+K126+K131 -> 0 | F102: =K105++K110+K115+K120+K125+K130 -> 0
B104: 32/A UYGULANABİLECEK MATRAH (1.TEŞVİK BELGESİ) | C104: =C84 -> 0 | D104: KV MATRAHI | E104: 1 - 5 PUAN İNDİRİM OLMASAYDI HESAPLANAN KV TUTARI | F104: 1 -5 Puan İndirim Tutarı | G104: 1 - 5 Puan İndirim Sonrasında Hesaplanan KV Tutarı | H104: 32/A İndirimi Olmasaydı Ödenecek KV Tutarı | I104: 1 -5 Puan İndirim ve 32/A VİO Uygulandıktan Sonra Tatbik Edilecek KV Oranı | J104: 1 -5 Puan İndirim ve 32/A İndirimi Uygulandıktan Sonra Ödenecek KV Tutarı | K104: Yararlanılan Yatırıma Katkı Tutarı (32/A İnd. KV Nedeniyle Vazgeçilen Vergi Tutarı) | L104: Ödenecek KV Tutarı
B105: GENEL ORANA TABİ KISIM (DİĞER FAALİYETLER) | C105: =F93 -> 0 | D105: =C104*C105 -> 0 | E105: =D105*$H$94 -> 0 | F105: 0 | G105: =E105-F105 -> 0 | H105: =G105 -> 0 | I105: =($H$94)-(($H$94)*$C$82) -> 0.25 | J105: =I105*D105 -> 0 | K105: =G105-J105 -> 0 | L105: =J108 -> 0
B106: 1 PUAN İNDİRİMLİ ORANA TABİ KISIM (İMALAT) | C106: =E93 -> 0.8313144184 | D106: =C104*C106 -> 0 | E106: =D106*$H$94 -> 0 | F106: =D106/100 -> 0 | G106: =E106-F106 -> 0 | H106: =G106 -> 0 | I106: =($H$94-0.01)-(($H$94-0.01)*$C$82) -> 0.24 | J106: =I106*D106 -> 0 | K106: =G106-J106 -> 0
B107: 5 PUAN İNDİRİMLİ ORANA TABİ KISIM ( İHRACAT) | C107: =D93 -> 0.1686855816 | D107: =C104*C107 -> 0 | E107: =D107*$H$94 -> 0 | F107: =D107/20 -> 0 | G107: =E107-F107 -> 0 | H107: 0 | I107: =($H$94-0.05)-(($H$94-0.05)*C82) -> 0.2 | J107: 0 | K107: =G107-J107 -> 0
B108: TOPLAM | C108: =SUM(C105:C107) -> 1 | D108: =SUM(D105:D107) -> 0 | E108: 0 | F108: =SUM(F105:F107) -> 0 | G108: =SUM(G105:G107) -> 0 | H108: =SUM(H105:H107) -> 0 | J108: 0 | K108: 0
B109: 32/A UYGULANABİLECEK MATRAH (2.TEŞVİK BELGESİ) | C109: =D84 -> 0 | D109: KV MATRAHI | E109: 1 - 5 PUAN İNDİRİM OLMASAYDI HESAPLANAN KV TUTARI | F109: 1 -5 Puan İndirim Tutarı | G109: 1 -5 Puan İndirim Sonrasında Hesaplanan KV Tutarı | H109: 32/A İndirimi Olmasaydı Ödenecek KV Tutarı | I109: 1 - 5 Puan İndirim ve 32/A VİO Uygulandıktan Sonra Tatbik Edilecek KV Oranı | J109: 1-5 Puan İndirim ve 32/A İndirimi Uygulandıktan Sonra Ödenecek KV Tutarı | K109: Yararlanılan Yatırıma Katkı Tutarı (32/A İnd. KV Nedeniyle Vazgeçilen Vergi Tutarı) | L109: Ödenecek KV Tutarı
B110: GENEL ORANA TABİ KISIM (DİĞER FAALİYETLER) | C110: =F93 -> 0 | D110: =C109*C110 -> 0 | E110: =D110*$H$94 -> 0 | F110: 0 | G110: =E110-F110 -> 0 | H110: =G110 -> 0 | I110: =($H$94)-(($H$94)*D82) -> 0.25 | J110: =I110*D110 -> 0 | K110: =G110-J110 -> 0 | L110: =J113 -> 0
B111: 1 PUAN İNDİRİMLİ ORANA TABİ KISIM (İMALAT) | C111: =E93 -> 0.8313144184 | D111: =C109*C111 -> 0 | E111: =D111*$H$94 -> 0 | F111: =D111/100 -> 0 | G111: =E111-F111 -> 0 | H111: =G111 -> 0 | I111: =($H$94-0.01)-(($H$94-0.01)*D82) -> 0.24 | J111: =I111*D111 -> 0 | K111: =G111-J111 -> 0
B112: 5 PUAN İNDİRİMLİ ORANA TABİ KISIM ( İHRACAT) | C112: =D93 -> 0.1686855816 | D112: =C109*C112 -> 0 | E112: =D112*$H$94 -> 0 | F112: =D112/20 -> 0 | G112: =E112-F112 -> 0 | H112: 0 | I112: =($H$94-0.05)-(($H$94-0.05)*D82) -> 0.2 | J112: 0 | K112: =G112-J112 -> 0
B113: TOPLAM | C113: =SUM(C110:C112) -> 1 | D113: 0 | E113: 0 | F113: =SUM(F110:F112) -> 0 | G113: =SUM(G110:G112) -> 0 | H113: =SUM(H110:H112) -> 0 | J113: =SUM(J110:J112) -> 0 | K113: 0
B114: 32/A UYGULANABİLECEK MATRAH (3.TEŞVİK BELGESİ) | C114: =E84 -> 0 | D114: KV MATRAHI | E114: 1 - 5 PUAN İNDİRİM OLMASAYDI HESAPLANAN KV TUTARI | F114: 1-5 Puan İndirim Tutarı | G114: 1 - 5 Puan İndirim Sonrasında Hesaplanan KV Tutarı | H114: 32/A İndirimi Olmasaydı Ödenecek KV Tutarı | I114: 1 - 5 Puan İndirim ve 32/A VİO Uygulandıktan Sonra Tatbik Edilecek KV Oranı | J114: 1 -5 Puan İndirim ve 32/A İndirimi Uygulandıktan Sonra Ödenecek KV Tutarı | K114: Yararlanılan Yatırıma Katkı Tutarı (32/A İnd. KV Nedeniyle Vazgeçilen Vergi Tutarı) | L114: Ödenecek KV Tutarı
B115: GENEL ORANA TABİ KISIM (DİĞER FAALİYETLER) | C115: =F93 -> 0 | D115: =C114*C115 -> 0 | E115: =D115*$H$94 -> 0 | F115: 0 | G115: =E115-F115 -> 0 | H115: =G115 -> 0 | I115: =($H$94)-(($H$94)*E82) -> 0.25 | J115: =I115*D115 -> 0 | K115: =G115-J115 -> 0 | L115: =J118 -> 0
B116: 1 PUAN İNDİRİMLİ ORANA TABİ KISIM (İMALAT) | C116: =E93 -> 0.8313144184 | D116: =C114*C116 -> 0 | E116: =D116*$H$94 -> 0 | F116: =D116/100 -> 0 | G116: =E116-F116 -> 0 | H116: =G116 -> 0 | I116: =($H$94-0.01)-(($H$94-0.01)*E82) -> 0.24 | J116: =I116*D116 -> 0 | K116: =G116-J116 -> 0
B117: 5 PUAN İNDİRİMLİ ORANA TABİ KISIM ( İHRACAT) | C117: =D93 -> 0.1686855816 | D117: =C114*C117 -> 0 | E117: =D117*$H$94 -> 0 | F117: =D117/20 -> 0 | G117: =E117-F117 -> 0 | H117: 0 | I117: =($H$94-0.05)-(($H$94-0.05)*E82) -> 0.2 | J117: 0 | K117: =G117-J117 -> 0
B118: TOPLAM | C118: =SUM(C115:C117) -> 1 | D118: 0 | E118: 0 | F118: =SUM(F115:F117) -> 0 | G118: =SUM(G115:G117) -> 0 | H118: =SUM(H115:H117) -> 0 | J118: =SUM(J115:J117) -> 0 | K118: 0
B119: 32/A UYGULANABİLECEK MATRAH (4. TEŞVİK BELGESİ) | C119: =F84 -> 0 | D119: KV MATRAHI | E119: 1 - 5 PUAN İNDİRİM OLMASAYDI HESAPLANAN KV TUTARI | F119: 1-5 Puan İndirim Tutarı | G119: 1 -5 Puan İndirim Sonrasında Hesaplanan KV Tutarı | H119: 32/A İndirimi Olmasaydı Ödenecek KV Tutarı | I119: 1- 5 Puan İndirim ve 32/A VİO Uygulandıktan Sonra Tatbik Edilecek KV Oranı | J119: 1-5 Puan İndirim ve 32/A İndirimi Uygulandıktan Sonra Ödenecek KV Tutarı | K119: Yararlanılan Yatırıma Katkı Tutarı (32/A İnd. KV Nedeniyle Vazgeçilen Vergi Tutarı) | L119: Ödenecek KV Tutarı
B120: GENEL ORANA TABİ KISIM (DİĞER FAALİYETLER) | C120: =F93 -> 0 | D120: =C119*C120 -> 0 | E120: =D120*$H$94 -> 0 | F120: 0 | G120: =E120-F120 -> 0 | H120: =G120 -> 0 | I120: =($H$94)-(($H$94)*F82) -> 0.25 | J120: =I120*D120 -> 0 | K120: =G120-J120 -> 0 | L120: =J123 -> 0
B121: 1 PUAN İNDİRİMLİ ORANA TABİ KISIM (İMALAT) | C121: =E93 -> 0.8313144184 | D121: =C119*C121 -> 0 | E121: =D121*$H$94 -> 0 | F121: =D121/100 -> 0 | G121: =E121-F121 -> 0 | H121: =G121 -> 0 | I121: =($H$94-0.01)-(($H$94-0.01)*F82) -> 0.24 | J121: =I121*D121 -> 0 | K121: =G121-J121 -> 0
B122: 5 PUAN İNDİRİMLİ ORANA TABİ KISIM ( İHRACAT) | C122: =D93 -> 0.1686855816 | D122: =C119*C122 -> 0 | E122: =D122*$H$94 -> 0 | F122: =D122/20 -> 0 | G122: =E122-F122 -> 0 | H122: 0 | I122: =($H$94-0.05)-(($H$94-0.05)*F82) -> 0.2 | J122: 0 | K122: =G122-J122 -> 0
B123: TOPLAM | C123: =SUM(C120:C122) -> 1 | D123: 0 | E123: 0 | F123: =SUM(F120:F122) -> 0 | G123: =SUM(G120:G122) -> 0 | H123: =SUM(H120:H122) -> 0 | J123: =SUM(J120:J122) -> 0 | K123: 0
B124: 32/A UYGULANABİLECEK MATRAH (5.TEŞVİK BELGESİ) | C124: =G84 -> 0 | D124: KV MATRAHI | E124: 1 - 5 PUAN İNDİRİM OLMASAYDI HESAPLANAN KV TUTARI | F124: 1-5 Puan İndirim Tutarı | G124: 1 - 5 Puan İndirim Sonrasında Hesaplanan KV Tutarı | H124: 32/A İndirimi Olmasaydı Ödenecek KV Tutarı | I124: 1 -5 Puan İndirim ve 32/A VİO Uygulandıktan Sonra Tatbik Edilecek KV Oranı | J124: 1 - 5 Puan İndirim ve 32/A İndirimi Uygulandıktan Sonra Ödenecek KV Tutarı | K124: Yararlanılan Yatırıma Katkı Tutarı (32/A İnd. KV Nedeniyle Vazgeçilen Vergi Tutarı) | L124: Ödenecek KV Tutarı
B125: GENEL ORANA TABİ KISIM (DİĞER FAALİYETLER) | C125: =F93 -> 0 | D125: =C124*C125 -> 0 | E125: =D125*$H$94 -> 0 | F125: 0 | G125: =E125-F125 -> 0 | H125: =G125 -> 0 | I125: =($H$94)-(($H$94)*G82) -> 0.25 | J125: =I125*D125 -> 0 | K125: =G125-J125 -> 0 | L125: =J128 -> 0
B126: 1 PUAN İNDİRİMLİ ORANA TABİ KISIM (İMALAT) | C126: =E93 -> 0.8313144184 | D126: =C124*C126 -> 0 | E126: =D126*$H$94 -> 0 | F126: =D126/100 -> 0 | G126: =E126-F126 -> 0 | H126: =G126 -> 0 | I126: =($H$94-0.01)-(($H$94-0.01)*G82) -> 0.24 | J126: =I126*D126 -> 0 | K126: =G126-J126 -> 0
B127: 5 PUAN İNDİRİMLİ ORANA TABİ KISIM ( İHRACAT) | C127: =D93 -> 0.1686855816 | D127: =C124*C127 -> 0 | E127: =D127*$H$94 -> 0 | F127: =D127/20 -> 0 | G127: =E127-F127 -> 0 | H127: 0 | I127: =($H$94-0.05)-(($H$94-0.05)*G82) -> 0.2 | J127: 0 | K127: =G127-J127 -> 0
B128: TOPLAM | C128: =SUM(C125:C127) -> 1 | D128: 0 | E128: 0 | F128: =SUM(F125:F127) -> 0 | G128: =SUM(G125:G127) -> 0 | H128: =SUM(H125:H127) -> 0 | J128: =SUM(J125:J127) -> 0 | K128: 0
B129: 32/A UYGULANAMAYACAK MATRAH | C129: =IF(C85<=0,0,C85) -> 49075173.72 | D129: KV MATRAHI | E129: 1-5 PUAN İNDİRİM OLMASAYDI HESAPLANAN KV TUTARI | F129: 1-5 Puan İndirim Tutarı | G129: 1 -5 Puan İndirim Sonrasında Hesaplanan KV Tutarı | H129: 32/A İNDİRİMİ UYGULANMAZ | J129: 1 Puan İndirim ve 32/A İndirimi Uygulandıktan Sonra Ödenecek KV Tutarı | K129: Yararlanılan Yatırıma Katkı Tutarı (32/A İnd. KV Nedeniyle Vazgeçilen Vergi Tutarı) | L129: Ödenecek KV Tutarı
B130: GENEL ORANA TABİ KISIM (DİĞER FAALİYETLER) | C130: =F93 -> 0 | D130: =C129*C130 -> 0 | E130: =D130*$H$94 -> 0 | F130: 0 | G130: =E130-F130 -> 0 | J130: =G130 -> 0 | K130: =G130-J130 -> 0 | L130: =J133 -> 11446910.72
B131: 1 PUAN İNDİRİMLİ ORANA TABİ KISIM (İMALAT) | C131: =E93 -> 0.8313144184 | D131: =C131*C129 -> 40796899.5 | E131: =D131*$H$94 -> 10199224.87 | F131: =D131/100 -> 407968.995 | G131: =E131-F131 -> 9791255.879 | J131: =G131 -> 9791255.879 | K131: =G131-J131 -> 0
B132: 5 PUAN İNDİRİMLİ ORANA TABİ KISIM ( İHRACAT) | C132: =D93 -> 0.1686855816 | D132: =C132*C129 -> 8278274.222 | E132: =D132*$H$94 -> 2069568.556 | F132: =D132/20 -> 413913.7111 | G132: =E132-F132 -> 1655654.844 | J132: 1655654.844 | K132: 0
B133: TOPLAM | C133: =SUM(C130:C132) -> 1 | D133: =SUM(D130:D132) -> 49075173.72 | E133: 12268793.43 | F133: =SUM(F130:F132) -> 821882.7061 | G133: =SUM(G130:G132) -> 11446910.72 | J133: 11446910.72 | K133: 0
B134: TOPLAM KV MATRAHI VE ÖDENMESİ GEREKEN KV | C134: =C104+C129+C109+C114+C119+C124 -> 49075173.72 | D134: =D108+D133+D113+D118+D123+D128 -> 49075173.72 | E134: =E108+E133+E113+E118+E123+E128 -> 12268793.43 | F134: =F108+F133+F113+F118+F123+F128 -> 821882.7061 | G134: =G108+G133+G113+G118+G123+G128 -> 11446910.72 | J134: =J108+J133+J113+J118+J123+J128 -> 11446910.72 | K134: =K133+K108+K113+K118+K123+K128 -> 0 | L134: =L105+L130+L110+L115+L120+L125 -> 11446910.72
B136: GEÇİCİ VERGİ BEYANNMESİNDE MATRAH BİLDİRİMİ BÖLÜMÜNDE DOLDURULACAK KISIMLAR VE TUTARLARI
B137: 32 A Madde Kapsamında İndirimli Kurumlar Vergisine (Geçici Vergiye) Tabi Matrah | C137: =C104+C109+C114+C119+C124 -> 0 | D137: =E108+E113+E118+E123+E128 -> 0 | E137: 1-5 Puan Olmasaydı Hesaplan KV Tutarı
D138: =G108+G113+G118+G123++G128 -> 0 | E138: 1 -5 Puan İndirim Sonrasında Ödenecek KV Tutarı (32 A olmasaydı hesaplanacak Vergi)
D139: =K108+K113+K118+K123+K128 -> 0 | E139: 32/A İndirimi ile Vazgeçilen Vergi
B140: 32 A Madde Kapsamında İndirimli Kurumlar Vergisi(Geçici Vergi) Oranı | C140: =IFERROR(D140/C137,0) -> 0 | D140: =L105+L110+L115+L120+L125 -> 0 | E140: 32/A ya Tabi Matrah Üzerinden Ödenecek KV
B141: 32/7 Madde Kapsamında İndirimli Kurumlar Vergisine (Geçici Vergiye) Tabi Matrah (İhracat) | C141: =D132 -> 8278274.222 | D141: =E132 -> 2069568.556 | E141: 5 Puan Olmasaydı Hesaplan KV Tutarı
D142: =F132 -> 413913.7111 | E142: 5 Puan İndirimin Vergi Etkisi
B143: 32/7 Madde Kapsamında İndirimli Kurumlar Vergisi (Geçici Vergi) Oranı | C143: =IFERROR(D143/C141,0) -> 0.2 | D143: =G132 -> 1655654.844 | E143: 5 Puan İndirim Sonrasında Ödenecek KV Tutarı (İhracat)
B144: 32/8 Madde Kapsamında İndirimli Kurumlar Vergisine (Geçici Vergiye) Tabi Matrah (Üretim) | C144: =D131 -> 40796899.5 | D144: =E131 -> 10199224.87 | E144: 1 Puan Olmasaydı Hesaplan KV Tutarı
D145: =F131 -> 407968.995 | E145: 1 Puan İndirimin Vergi Etkisi
B146: 32/8 Madde Kapsamında İndirimli Kurumlar Vergisi (Geçici Vergi) Oranı | C146: =IFERROR(D146/C144,0) -> 0.24 | D146: =G131 -> 9791255.879 | E146: 1 Puan İndirim Sonrasında Ödenecek KV Tutarı (Üretim)
B147: Genel Orana Tabi Matrah (Diğer) | C147: =D130 -> 0 | D147: =J130 -> 0 | E147: Diğer Faalilyetlerden Elde Edilen Kazanç
C148: =IFERROR(D147/C147,0) -> 0
B149: MATRAHLAR TOPLAMI | C149: =C137+C144+C141+C147 -> 49075173.72 | D149: =D140+D146+D143+D147 -> 11446910.72

Sheet ŞABLON (32 6 BİST İNDİRİMSİZ)
B2: FAALİYET TÜRLERİ İTİBARİYLE HASILATLAR VE TOPLAM İÇİNDEKİ ORANLARI | C2: =IFERROR(C4/C4,0) -> 0 | D2: =IFERROR(D4/C4,0) -> 0 | E2: =IFERROR(E4/C4,0) -> 0 | F2: =IFERROR(F4/C4,0) -> 0
C3: Toplam Hasılat | D3: İhracat faaliyeti | E3: İmalat faaliyeti | F3: Diğer faaliyetler
B4: A-BRÜT SATIŞLAR (60) | C4: =D4+E4+F4 -> 0 | D4: =SUM(D5:D7) -> 0 | E4: =SUM(E5:E7) -> 0 | F4: 0
B5: 1-Yurtiçi Satışlar (600) | C5: =D5+E5+F5 -> 0
B6: 2-Yurtdışı Satışlar (601) | C6: =D6+E6+F6 -> 0
B7: 3-Diğer Gelirler (602) | C7: =D7+E7+F7 -> 0
B8: B-SATIŞ İNDİRİMLERİ(-) (61) | C8: =SUM(C9:C11) -> 0 | D8: =SUM(D9:D11) -> 0 | E8: =SUM(E9:E11) -> 0 | F8: 0
B9: 1-Satıştan İadeler (-) (610) | C9: =SUM(D9:F9) -> 0
B10: 2- Satış İskontoları (-) (611) | C10: =SUM(D10:F10) -> 0
B11: 3-Diğer İndirimler (-) (612) | C11: 0
B12: C-NET SATIŞLAR | C12: =C4-C8 -> 0 | D12: =D4-D8 -> 0 | E12: =E4-E8 -> 0 | F12: 0
B13: D-SATIŞLARIN MALİYETİ (-) (62) | C13: =SUM(C14:C17) -> 0 | D13: =SUM(D14:D17) -> 0 | E13: =SUM(E14:E17) -> 0 | F13: =SUM(F14:F17) -> 0
B14: 1-Satılan Mamuller Maliyeti ( 620) | C14: =SUM(D14:F14) -> 0
B15: 2-Satılan Ticari Mal Maliyeti (621) | C15: =SUM(D15:F15) -> 0
B16: 3-Satılan Hizmet Maliyeti (622) | C16: 0
B17: 4-Diğer Satışların Maliyeti (623) | C17: 0
B18: BRÜT SATIŞ KARI / ZARARI | C18: =C12-C13 -> 0 | D18: =D12-D13 -> 0 | E18: =E12-E13 -> 0 | F18: 0
B19: E-FAALİYET GİDERLERİ (-) (63) | C19: =SUM(C20:C24) -> 0 | D19: =SUM(D20:D24) -> 0 | E19: =SUM(E20:E24) -> 0 | F19: 0
B20: 1-Araştırma ve Geliştirme Giderleri(-) (630) | C20: =SUM(D20:F20) -> 0
B21: 2-Pazarlama, Satış ve Dağıtım Giderleri(-) (631) | C21: =SUM(D21:F21) -> 0
B22: 3-Genel Yönetim Giderleri(-) (632) | C22: =SUM(D22:F22) -> 0
B23: MÜŞTEREK GENEL GİDERLER (DAĞITIM-HASILAT PAYINA GÖRE) | D23: =C23*D2 -> 0 | E23: =C23*E2 -> 0 | F23: =C23*F2 -> 0
B24: MÜŞTEREK GENEL GİDER GİBİ DAĞITIMA TABİ TUTULACAK AMORTİSMAN GİDERLERİ (DAĞITIM-HASILAT PAYINA GÖRE) | D24: =C24*D2 -> 0 | E24: =C24*E2 -> 0 | F24: =C24*F2 -> 0
B25: FAALİYET KARI / ZARARI | C25: =C18-C19 -> 0 | D25: =D18-D19 -> 0 | E25: =E18-E19 -> 0 | F25: 0
B26: F-DİĞER FAALİYETLERDEN OLAĞAN GELİR VE KARLAR (64) | C26: =SUM(C27:C35) -> 0 | D26: =SUM(D27:D35) -> 0 | E26: =SUM(E27:E35) -> 0 | F26: =SUM(F27:F35) -> 0
B27: 1- İŞTİRAKLERDEN TEMETTÜ GELİRLERİ (640) | C27: =SUM(D27:F27) -> 0
B28: 2- BAĞLI ORTAKLIKLARDAN TEMETTÜ GELİRLERİ (641) | C28: =SUM(D28:F28) -> 0
B29: 3- FAİZ GELİRLERİ (642) (ihracat ve imalat kaynaklı alacağın tahsiline kadar olan süreçte oluşan) | C29: 0
B30: 4- KOMİSYON GELİRLERİ (643) | C30: 0
B31: 5- KONUSU OLMAYAN KARŞILIKLAR (644) | C31: 0
B32: 6- MENKUL KIYMET SATIŞ KARLARI (645) | C32: 0
B33: 7- KAMBİYO KARLARI (646) (ihracat ve imalat kaynaklı alacağın tahsiline kadar olan süreçte oluşan) | C33: 0
B34: 8- REESKONT FAİZ GELİRLERİ (647) | C34: 0
B35: 9- FAALİYETLE İLGİLİ DİĞER GELİR VE KARLAR (649) | C35: 0
B36: ARA TOPLAM | C36: =C25+C26 -> 0 | D36: =D25+D26 -> 0 | E36: =E25+E26 -> 0 | F36: =F25+F26 -> 0
B37: G-DİĞER FAALİYETLERDEN OLAĞAN GİDER VE ZARARLAR(-) (65) | C37: =SUM(C38:C43) -> 0 | D37: =SUM(D38:D43) -> 0 | E37: =SUM(E38:E43) -> 0 | F37: 0
B38: 1- KOMİSYON GİDERLERİ (653) | C38: =SUM(D38:F38) -> 0
B39: 2- KARŞILIK GİDERLERİ (654) | C39: =SUM(D39:F39) -> 0
B40: 3- MENKUL KIYMET SATIŞ ZARARLARI (655) | C40: 0
B41: 4- KAMBİYO ZARARLARI (656) (ihracat ve imalat kaynaklı alacağın tahsiline kadar olan süreçte oluşan) | C41: 0
B42: 5- REESKONT FAİZ GİDERLERİ (657) | C42: 0
B43: 6- DİĞER OLAĞAN GİDER VE ZARARLAR (659) | C43: =SUM(D43:F43) -> 0
B44: ARA TOPLAM | C44: =C36-C37 -> 0 | D44: =D36-D37 -> 0 | E44: =E36-E37 -> 0 | F44: 0
B45: H-FİNANSMAN GİDERLERİ(-) (66) | C45: =SUM(C46:C49) -> 0 | D45: =SUM(D46:D49) -> 0 | E45: =SUM(E46:E49) -> 0 | F45: =SUM(F46:F49) -> 0
B46: 1- KISA VADELİ BORÇLANMA GİDERLERİ (-) | C46: =SUM(D46:F46) -> 0
B47: 2- UZUN VADELİ BORÇLANMA GİDERLERİ (-) | C47: =SUM(D47:F47) -> 0
B48: 1- KISA VADELİ BORÇLANMA GİDERLERİ (-) (DAĞITIM) | D48: =C48*D2 -> 0 | E48: =C48*E2 -> 0 | F48: =C48*F2 -> 0
B49: 2- UZUN VADELİ BORÇLANMA GİDERLERİ (-) (DAĞITIM) | D49: =C49*D2 -> 0 | E49: =C49*E2 -> 0 | F49: =C49*F2 -> 0
B50: ARA TOPLAM | C50: =C44-C45 -> 0 | D50: =D44-D45 -> 0 | E50: =E44-E45 -> 0 | F50: =F44-F45 -> 0
B51: I-OLAĞANDIŞI GELİR VE KÂRLAR (67) | C51: =SUM(D51:F51) -> 0 | D51: =SUM(D52:D53) -> 0 | E51: =SUM(E52:E53) -> 0 | F51: =SUM(F52:F53) -> 0
B52: 1- ÖNCEKİ DÖNEM GELİR VE KARLARI (671) | C52: =SUM(D52:F52) -> 0
B53: 2-DİĞER OLAĞAN DIŞI GELİR VE KARLAR (679) | C53: =SUM(D53:F53) -> 0
B54: ARA TOPLAM | C54: =SUM(D54:F54) -> 0 | D54: =D50+D51 -> 0 | E54: =E50+E51 -> 0 | F54: 0
B55: J-OLAĞANDIŞI GİDER VE ZARARLAR(-) (68) | C55: =SUM(C56:C58) -> 0 | D55: =SUM(D56:D58) -> 0 | E55: =SUM(E56:E58) -> 0 | F55: 0
B56: 1-Çalışmayan Kısım Gider ve Zararları(-) (680) | C56: =SUM(D56:F56) -> 0
B57: 2-Önceki Dönem Gider ve Zararları(-) (681) | C57: =SUM(D57:F57) -> 0
B58: 3-Diğer Olağan Dışı Gider ve Zararlar(-) (689) | C58: 0
B59: DÖNEM KÂRI VEYA ZARARI (TİCARİ BİLANÇO KARI ZARARI ) | C59: =C54-C55 -> 0 | D59: =D54-D55 -> 0 | E59: =E54-E55 -> 0 | F59: 0
B60: İHRACAT, İMALAT VE DİĞER FAALİYETLERDEN ELDE EDİLEN KAZANCIN TOPLAM TİCARİ KAZANÇ İÇİNDEKİ PAYLARI | D60: =IF(D59>=$C$59,1, IF(D59<=0,0, IF(AND(D59>0,D59<$C$59),D59/$C$59))) -> 1 | E60: =IF(E59>=$C$59,1, IF(E59<=0,0, IF(AND(E59>0,E59<$C$59),E59/$C$59))) -> 1 | F60: =IF(F59>=$C$59,1, IF(F59<=0,0, IF(AND(F59>0,F59<$C$59),F59/$C$59))) -> 1
B61: TOPLAM İÇİNDEKİ PAYI | D61: =D60/(D60+E60+F60) -> 0.3333333333 | E61: =E60/(D60+E60+F60) -> 0.3333333333 | F61: =F60/(D60+E60+F60) -> 0.3333333333
B63: KKEG +
B64: KABUL EDİLMEYEN GELİRLER -
B65: ZARAR OLSA DAHİ İNDİRİLECEK İSTİSNALAR - | C65: =C66+C67+C68 -> 0
B66: Hizmet İhracatı Faaliyetinden (KVK 10-1/ğ) Elde Edilen Kazançlardan İstisna Edilenlerin Toplamı
B67: İmalat Faaliyetinden Elde Edilen Kazançlardan İstisna Edilenlerin Toplamı
B68: Diğer Faaliyetlerden Elde Edilen Kazançlardan İstisna Edilenlerin Toplamı
B69: GEÇMİŞ YIL ZARARLARI -
B70: İNDİRİMLER - | D70: AZAMİ YAZILABİLECEK İNDİRİMLER TUTARI | E70: =C59+C63-C64-C65-C69 -> 0
B72: 1 PUAN İNDİRİM UYGULANACAK TUTARIN HESABINDA İSTİSNA KAZANÇLAR DÜŞÜLDÜKTEN SONRA BULUNAN TİCARİ KAZANÇ TUTARI İLE İHRACAT,İMALAT VE DİĞER KAZANÇLARIN TUTARI | C72: TİCARİ KAZANÇ TAN İhracat ve İmalat Kazancından İstisna Olan Tutarlar Düşüldükten Sonra Kalan Tutarı | D72: İhracat Faaliyetinden Elde Edilen Kazançtan İstisna Olan Kısım Düşüldükten Sonra Bulunan Tutarı | E72: Üretim Faaliyetinden Elde Edilen Kazançtan İstisna Olan Kısım Düşüldükten Sonra Bulunan Tutarı | F72: Diğer Faaliyetinden Elde Edilen Kazanç
C73: =IF(C59-C66-C67<=0,0,C59-C66-C67) -> 0 | D73: =IF($D$59-C66<=0,0,MIN($D$59-C66,$C$73*D61)) -> 0 | E73: =IF($E$59-C67<=0,0,MIN($E$59-C67,$C$73*E61)) -> 0 | F73: =IF(C73-D73-E73<=0,0,C73-D73-E73) -> 0
B74: MATRAH DAĞITIM PAYLARI | D74: =IFERROR(IF(D73/C73<=0,0,D73/C73),0) -> 0 | E74: =IFERROR(IF(E73/C73<=0,0,E73/C73),0) -> 0 | F74: =IFERROR(F73/C73,0) -> 0
B75: İHRACAT, İMALAT VE DİĞER FAALİYETLERDEN ELDE EDİLEN KAZANCIN TOPLAM TİCARİ KAZANÇ İÇİNDEKİ PAYLARI | D75: =IFERROR(IF(AND(D73+E73>C73, F73<=0),1,(D73+E73)/C73),0) -> 0 | F75: =IFERROR(IF(F73<=0,0,F73/C73),0) -> 0
B76: NEGATİF VE % 100 DEN BÜYÜKLÜK KONTROLÜ SONRASINDAKİ PAYLARI | D76: =IFERROR(IF(D75<=0,0,IF(D75>1,1,D75)),0) -> 0 | F76: =IFERROR(IF(F75<=0,0,IF(F75>1,1,F75)),0) -> 0
B78: SAFİ KURUM KAZANCI (KURUMLAR VERGİSİ MATRAHI) | C78: =C59+C63-C64-C65-C69-C70 -> 0 | D78: =IF(C78<0, "ZARAR","KAR") -> KAR
B80: 2022 YILI 3. DÖNEM İNDİRİMLİ KURUMLAR VERGİSİ HESAPLAMA TABLOSU
C81: 1. TEŞVİK BELGESİ | D81: 2. TEŞVİK BELGESİ | E81: 3. TEŞVİK BELGESİ | F81: 4. TEŞVİK BELGESİ | G81: 5. TEŞVİK BELGESİ
B82: Vergi İndirim Oranı (VİO)
B83: KV MATRAHI (Safi Kurum Kazancı) | C83: =C78 -> 0
B84: 32/A Uygulanacak K.V. Matrahı (HER BİR TEŞVİK BELGESİ KAPSAMINDA YARARLANILABİLECEK YATIRIMA KATKI TUTARININ MATRAHI BU HÜCRELERE YAZILMALIDIR) | H84: =IF(SUM(C84:G84)>C78,"32/A İNDİRİMİ UYGULANACAK KAZANÇ, SAFİ KURUM KAZANCINDAN FAZLADIR",SUM(C84:G84)) -> 0
B85: 32/A UYGULANMAYACAK K.V. Matrahı | C85: =IF(C83-(C84+D84+E84+F84+G84)<0,0,C83-(C84+D84+E84+F84+G84)) -> 0
B86: MATRAH TOPLAMI | C86: =IF((C84+D84+E84+F84+G84+C85)>C78,C78,(C84+D84+E84+F84+G84+C85)) -> 0
B88: SAFİ KURUM KAZANCININ KV VERGİ ORANLARI İTİBARİYLE DAĞILIMI | C88: TOPLAM SAFİ KAZANÇ | D88: İhracat Kazancı Payı | E88: Üretim Kazancı Payı | F88: Diğer Faaliyet Kazancı Payı
C90: =C78 -> 0 | D90: =IF(AND(AND($D$59>0,($D$59+$E$59)>=$C$59,D59>=C66),$C$90>=MAX(D59,D73)), MIN(MAX(IF(D59<=C90,D59,IF(D73<=C90,D73)),$C$90*D74)), IF(OR(D59<=0,D73<=0),0, MIN( MAX( MAX( IF(D59<=C90,D59), IF(D73<=C90,D73) ), MIN($C$90*D74,D59,D73)),$C$90))) -> 0 | E90: =MIN( IF(AND(AND($E$59>0,($D$59+$E$59)>=$C$59,E59>=C67),$C$90>=MAX(E59,E73)), MIN(MAX(IF(E59<=C90,E59,IF(E73<=C90,E73)),$C$90*E74)), IF(OR(E59<=0,E73<=0),0, MIN( MAX( MAX( IF(E59<=C90,E59), IF(E73<=C90,E73) ), MIN($C$90*E74,E59,E73)),$C$90))),C90-D90) -> 0 | F90: =C90-D90-E90 -> 0
B91: SAFİ KURUM KAZANCININ DAĞILIMI ORANSAL DAĞILIMI | C91: =C90 -> 0 | D91: =IFERROR(D90/C90,0) -> 0 | E91: =IFERROR(E90/D90,0) -> 0 | F91: =IFERROR(F90/E90,0) -> 0
B92: SAFİ KURUM KAZANCININ DAĞILIMI TUTARSAL | C92: =C91 -> 0 | D92: =D90 -> 0 | E92: =E90 -> 0 | F92: =F90 -> 0
B93: SAFİ KURUM KAZANCI DAĞILIMI | C93: =C92 -> 0 | D93: =IFERROR(IF(D92/C92>=1,1,D92/C92),0) -> 0 | E93: =IFERROR(IF(E92/C92>=1,1,E92/C92),0) -> 0 | F93: =IFERROR(IF(F92/C92>=1,1,F92/C92),0) -> 0 | H93: KV ORANI
B94: 1 PUAN VE 32/A İNDİRİMİ OLMASAYDI HESAPLANAN KV TUTARI | C94: =C93*$H$94 -> 0 | D94: =D92*$H$94 -> 0 | E94: =E92*$H$94 -> 0 | F94: =F92*$H$94 -> 0 | H94: 0.25
B95: 32/ A UYGULANAN MATRAH | C95: =C84+D84+E84+F84+G84 -> 0 | D95: =D107+D112+D117+D122+D127 -> 0 | E95: =D106+D111+D116+D121+D126 -> 0 | F95: =D105+D110+D115+D120+D125 -> 0
B96: 32/A UYGULANACAK MATRAH ÜZERİNDEN ÖDENECEK KV TUTARI | C96: =J108+J113+J118+J123+J128 -> 0 | D96: =J107+J112+J117+J122+J127 -> 0 | E96: =J106+J111+J116+J121+J126 -> 0 | F96: =J105+J110+J115+J120+J125 -> 0
B97: 32/A UYGULANMAYAN MATRAH | C97: =IF(C85<=0,0,C85) -> 0 | D97: =D132 -> 0 | E97: =D131 -> 0 | F97: =D130 -> 0
B98: 32/A UYGULANMAYAN MATRAH ÜZERİNDEN ÖDENECEK KV TUTARI | C98: =L130 -> 0 | D98: =J132 -> 0 | E98: =J131 -> 0 | F98: =J130 -> 0
B99: TOPLAM ÖDENECEK KV | C99: =C96+C98 -> 0 | D99: =J132+J107 -> 0 | E99: =J131+J106 -> 0 | F99: =J130+J105 -> 0
B100: TOPLAM AVANTAJ (YARARLANILAN 1 PUAN İNDİRİMİ + 32/A İNDİRİMİ TUTARI ) | C100: =C94-C99 -> 0 | D100: =D101+D102 -> 0 | E100: =E101+E102 -> 0 | F100: =F101+F102 -> 0
B101: YARARLANILAN 1 - 5 PUAN İNDİRİMİ TUTARI | C101: =F133+F128+F123+F118+F113+F108 -> 0 | D101: =F132+F107+F112+F117+F122+F127 -> 0 | E101: =F131+F106+F111+F116+F121+F126 -> 0 | F101: =F130+F105+F110+F115+F120+F125 -> 0
B102: YARLANILAN 32/A İNDİRİMİ TUTARI | C102: =K108+K113+K118+K123+K128+K133 -> 0 | D102: =K107+K112+K122+K127+K132 -> 0 | E102: =K106+K111+K116+K121+K126+K131 -> 0 | F102: =K105++K110+K115+K120+K125+K130 -> 0
B104: 32/A UYGULANABİLECEK MATRAH (1.TEŞVİK BELGESİ) | C104: =C84 -> 0 | D104: KV MATRAHI | E104: 1 - 5 PUAN İNDİRİM OLMASAYDI HESAPLANAN KV TUTARI | F104: 1 -5 Puan İndirim Tutarı | G104: 1 - 5 Puan İndirim Sonrasında Hesaplanan KV Tutarı | H104: 32/A İndirimi Olmasaydı Ödenecek KV Tutarı | I104: 1 -5 Puan İndirim ve 32/A VİO Uygulandıktan Sonra Tatbik Edilecek KV Oranı | J104: 1 -5 Puan İndirim ve 32/A İndirimi Uygulandıktan Sonra Ödenecek KV Tutarı | K104: Yararlanılan Yatırıma Katkı Tutarı (32/A İnd. KV Nedeniyle Vazgeçilen Vergi Tutarı) | L104: Ödenecek KV Tutarı
B105: GENEL ORANA TABİ KISIM (DİĞER FAALİYETLER) | C105: =F93 -> 0 | D105: =C104*C105 -> 0 | E105: =D105*$H$94 -> 0 | F105: 0 | G105: =E105-F105 -> 0 | H105: =G105 -> 0 | I105: =($H$94)-(($H$94)*$C$82) -> 0.25 | J105: =I105*D105 -> 0 | K105: =G105-J105 -> 0 | L105: =J108 -> 0
B106: 1 PUAN İNDİRİMLİ ORANA TABİ KISIM (İMALAT) | C106: =E93 -> 0 | D106: =C104*C106 -> 0 | E106: =D106*$H$94 -> 0 | F106: =D106/100 -> 0 | G106: =E106-F106 -> 0 | H106: =G106 -> 0 | I106: =($H$94-0.01)-(($H$94-0.01)*$C$82) -> 0.24 | J106: =I106*D106 -> 0 | K106: =G106-J106 -> 0
B107: 5 PUAN İNDİRİMLİ ORANA TABİ KISIM ( İHRACAT) | C107: =D93 -> 0 | D107: =C104*C107 -> 0 | E107: =D107*$H$94 -> 0 | F107: =D107/20 -> 0 | G107: =E107-F107 -> 0 | H107: 0 | I107: =($H$94-0.05)-(($H$94-0.05)*C82) -> 0.2 | J107: 0 | K107: =G107-J107 -> 0
B108: TOPLAM | C108: =SUM(C105:C107) -> 0 | D108: =SUM(D105:D107) -> 0 | E108: 0 | F108: =SUM(F105:F107) -> 0 | G108: =SUM(G105:G107) -> 0 | H108: =SUM(H105:H107) -> 0 | J108: 0 | K108: 0
B109: 32/A UYGULANABİLECEK MATRAH (2.TEŞVİK BELGESİ) | C109: =D84 -> 0 | D109: KV MATRAHI | E109: 1 - 5 PUAN İNDİRİM OLMASAYDI HESAPLANAN KV TUTARI | F109: 1 -5 Puan İndirim Tutarı | G109: 1 -5 Puan İndirim Sonrasında Hesaplanan KV Tutarı | H109: 32/A İndirimi Olmasaydı Ödenecek KV Tutarı | I109: 1 - 5 Puan İndirim ve 32/A VİO Uygulandıktan Sonra Tatbik Edilecek KV Oranı | J109: 1-5 Puan İndirim ve 32/A İndirimi Uygulandıktan Sonra Ödenecek KV Tutarı | K109: Yararlanılan Yatırıma Katkı Tutarı (32/A İnd. KV Nedeniyle Vazgeçilen Vergi Tutarı) | L109: Ödenecek KV Tutarı
B110: GENEL ORANA TABİ KISIM (DİĞER FAALİYETLER) | C110: =F93 -> 0 | D110: =C109*C110 -> 0 | E110: =D110*$H$94 -> 0 | F110: 0 | G110: =E110-F110 -> 0 | H110: =G110 -> 0 | I110: =($H$94)-(($H$94)*D82) -> 0.25 | J110: =I110*D110 -> 0 | K110: =G110-J110 -> 0 | L110: =J113 -> 0
B111: 1 PUAN İNDİRİMLİ ORANA TABİ KISIM (İMALAT) | C111: =E93 -> 0 | D111: =C109*C111 -> 0 | E111: =D111*$H$94 -> 0 | F111: =D111/100 -> 0 | G111: =E111-F111 -> 0 | H111: =G111 -> 0 | I111: =($H$94-0.01)-(($H$94-0.01)*D82) -> 0.24 | J111: =I111*D111 -> 0 | K111: =G111-J111 -> 0
B112: 5 PUAN İNDİRİMLİ ORANA TABİ KISIM ( İHRACAT) | C112: =D93 -> 0 | D112: =C109*C112 -> 0 | E112: =D112*$H$94 -> 0 | F112: =D112/20 -> 0 | G112: =E112-F112 -> 0 | H112: 0 | I112: =($H$94-0.05)-(($H$94-0.05)*D82) -> 0.2 | J112: 0 | K112: =G112-J112 -> 0
B113: TOPLAM | C113: =SUM(C110:C112) -> 0 | D113: 0 | E113: 0 | F113: =SUM(F110:F112) -> 0 | G113: =SUM(G110:G112) -> 0 | H113: =SUM(H110:H112) -> 0 | J113: =SUM(J110:J112) -> 0 | K113: 0
B114: 32/A UYGULANABİLECEK MATRAH (3.TEŞVİK BELGESİ) | C114: =E84 -> 0 | D114: KV MATRAHI | E114: 1 - 5 PUAN İNDİRİM OLMASAYDI HESAPLANAN KV TUTARI | F114: 1-5 Puan İndirim Tutarı | G114: 1 - 5 Puan İndirim Sonrasında Hesaplanan KV Tutarı | H114: 32/A İndirimi Olmasaydı Ödenecek KV Tutarı | I114: 1 - 5 Puan İndirim ve 32/A VİO Uygulandıktan Sonra Tatbik Edilecek KV Oranı | J114: 1 -5 Puan İndirim ve 32/A İndirimi Uygulandıktan Sonra Ödenecek KV Tutarı | K114: Yararlanılan Yatırıma Katkı Tutarı (32/A İnd. KV Nedeniyle Vazgeçilen Vergi Tutarı) | L114: Ödenecek KV Tutarı
B115: GENEL ORANA TABİ KISIM (DİĞER FAALİYETLER) | C115: =F93 -> 0 | D115: =C114*C115 -> 0 | E115: =D115*$H$94 -> 0 | F115: 0 | G115: =E115-F115 -> 0 | H115: =G115 -> 0 | I115: =($H$94)-(($H$94)*E82) -> 0.25 | J115: =I115*D115 -> 0 | K115: =G115-J115 -> 0 | L115: =J118 -> 0
B116: 1 PUAN İNDİRİMLİ ORANA TABİ KISIM (İMALAT) | C116: =E93 -> 0 | D116: =C114*C116 -> 0 | E116: =D116*$H$94 -> 0 | F116: =D116/100 -> 0 | G116: =E116-F116 -> 0 | H116: =G116 -> 0 | I116: =($H$94-0.01)-(($H$94-0.01)*E82) -> 0.24 | J116: =I116*D116 -> 0 | K116: =G116-J116 -> 0
B117: 5 PUAN İNDİRİMLİ ORANA TABİ KISIM ( İHRACAT) | C117: =D93 -> 0 | D117: =C114*C117 -> 0 | E117: =D117*$H$94 -> 0 | F117: =D117/20 -> 0 | G117: =E117-F117 -> 0 | H117: 0 | I117: =($H$94-0.05)-(($H$94-0.05)*E82) -> 0.2 | J117: 0 | K117: =G117-J117 -> 0
B118: TOPLAM | C118: =SUM(C115:C117) -> 0 | D118: 0 | E118: 0 | F118: =SUM(F115:F117) -> 0 | G118: =SUM(G115:G117) -> 0 | H118: =SUM(H115:H117) -> 0 | J118: =SUM(J115:J117) -> 0 | K118: 0
B119: 32/A UYGULANABİLECEK MATRAH (4. TEŞVİK BELGESİ) | C119: =F84 -> 0 | D119: KV MATRAHI | E119: 1 - 5 PUAN İNDİRİM OLMASAYDI HESAPLANAN KV TUTARI | F119: 1-5 Puan İndirim Tutarı | G119: 1 -5 Puan İndirim Sonrasında Hesaplanan KV Tutarı | H119: 32/A İndirimi Olmasaydı Ödenecek KV Tutarı | I119: 1- 5 Puan İndirim ve 32/A VİO Uygulandıktan Sonra Tatbik Edilecek KV Oranı | J119: 1-5 Puan İndirim ve 32/A İndirimi Uygulandıktan Sonra Ödenecek KV Tutarı | K119: Yararlanılan Yatırıma Katkı Tutarı (32/A İnd. KV Nedeniyle Vazgeçilen Vergi Tutarı) | L119: Ödenecek KV Tutarı
B120: GENEL ORANA TABİ KISIM (DİĞER FAALİYETLER) | C120: =F93 -> 0 | D120: =C119*C120 -> 0 | E120: =D120*$H$94 -> 0 | F120: 0 | G120: =E120-F120 -> 0 | H120: =G120 -> 0 | I120: =($H$94)-(($H$94)*F82) -> 0.25 | J120: =I120*D120 -> 0 | K120: =G120-J120 -> 0 | L120: =J123 -> 0
B121: 1 PUAN İNDİRİMLİ ORANA TABİ KISIM (İMALAT) | C121: =E93 -> 0 | D121: =C119*C121 -> 0 | E121: =D121*$H$94 -> 0 | F121: =D121/100 -> 0 | G121: =E121-F121 -> 0 | H121: =G121 -> 0 | I121: =($H$94-0.01)-(($H$94-0.01)*F82) -> 0.24 | J121: =I121*D121 -> 0 | K121: =G121-J121 -> 0
B122: 5 PUAN İNDİRİMLİ ORANA TABİ KISIM ( İHRACAT) | C122: =D93 -> 0 | D122: =C119*C122 -> 0 | E122: =D122*$H$94 -> 0 | F122: =D122/20 -> 0 | G122: =E122-F122 -> 0 | H122: 0 | I122: =($H$94-0.05)-(($H$94-0.05)*F82) -> 0.2 | J122: 0 | K122: =G122-J122 -> 0
B123: TOPLAM | C123: =SUM(C120:C122) -> 0 | D123: 0 | E123: 0 | F123: =SUM(F120:F122) -> 0 | G123: =SUM(G120:G122) -> 0 | H123: =SUM(H120:H122) -> 0 | J123: =SUM(J120:J122) -> 0 | K123: 0
B124: 32/A UYGULANABİLECEK MATRAH (5.TEŞVİK BELGESİ) | C124: =G84 -> 0 | D124: KV MATRAHI | E124: 1 - 5 PUAN İNDİRİM OLMASAYDI HESAPLANAN KV TUTARI | F124: 1-5 Puan İndirim Tutarı | G124: 1 - 5 Puan İndirim Sonrasında Hesaplanan KV Tutarı | H124: 32/A İndirimi Olmasaydı Ödenecek KV Tutarı | I124: 1 -5 Puan İndirim ve 32/A VİO Uygulandıktan Sonra Tatbik Edilecek KV Oranı | J124: 1 - 5 Puan İndirim ve 32/A İndirimi Uygulandıktan Sonra Ödenecek KV Tutarı | K124: Yararlanılan Yatırıma Katkı Tutarı (32/A İnd. KV Nedeniyle Vazgeçilen Vergi Tutarı) | L124: Ödenecek KV Tutarı
B125: GENEL ORANA TABİ KISIM (DİĞER FAALİYETLER) | C125: =F93 -> 0 | D125: =C124*C125 -> 0 | E125: =D125*$H$94 -> 0 | F125: 0 | G125: =E125-F125 -> 0 | H125: =G125 -> 0 | I125: =($H$94)-(($H$94)*G82) -> 0.25 | J125: =I125*D125 -> 0 | K125: =G125-J125 -> 0 | L125: =J128 -> 0
B126: 1 PUAN İNDİRİMLİ ORANA TABİ KISIM (İMALAT) | C126: =E93 -> 0 | D126: =C124*C126 -> 0 | E126: =D126*$H$94 -> 0 | F126: =D126/100 -> 0 | G126: =E126-F126 -> 0 | H126: =G126 -> 0 | I126: =($H$94-0.01)-(($H$94-0.01)*G82) -> 0.24 | J126: =I126*D126 -> 0 | K126: =G126-J126 -> 0
B127: 5 PUAN İNDİRİMLİ ORANA TABİ KISIM ( İHRACAT) | C127: =D93 -> 0 | D127: =C124*C127 -> 0 | E127: =D127*$H$94 -> 0 | F127: =D127/20 -> 0 | G127: =E127-F127 -> 0 | H127: 0 | I127: =($H$94-0.05)-(($H$94-0.05)*G82) -> 0.2 | J127: 0 | K127: =G127-J127 -> 0
B128: TOPLAM | C128: =SUM(C125:C127) -> 0 | D128: 0 | E128: 0 | F128: =SUM(F125:F127) -> 0 | G128: =SUM(G125:G127) -> 0 | H128: =SUM(H125:H127) -> 0 | J128: =SUM(J125:J127) -> 0 | K128: 0
B129: 32/A UYGULANAMAYACAK MATRAH | C129: =IF(C85<=0,0,C85) -> 0 | D129: KV MATRAHI | E129: 1-5 PUAN İNDİRİM OLMASAYDI HESAPLANAN KV TUTARI | F129: 1-5 Puan İndirim Tutarı | G129: 1 -5 Puan İndirim Sonrasında Hesaplanan KV Tutarı | H129: 32/A İNDİRİMİ UYGULANMAZ | J129: 1 Puan İndirim ve 32/A İndirimi Uygulandıktan Sonra Ödenecek KV Tutarı | K129: Yararlanılan Yatırıma Katkı Tutarı (32/A İnd. KV Nedeniyle Vazgeçilen Vergi Tutarı) | L129: Ödenecek KV Tutarı
B130: GENEL ORANA TABİ KISIM (DİĞER FAALİYETLER) | C130: =F93 -> 0 | D130: =C129*C130 -> 0 | E130: =D130*$H$94 -> 0 | F130: 0 | G130: =E130-F130 -> 0 | J130: =G130 -> 0 | K130: =G130-J130 -> 0 | L130: =J133 -> 0
B131: 1 PUAN İNDİRİMLİ ORANA TABİ KISIM (İMALAT) | C131: =E93 -> 0 | D131: =C131*C129 -> 0 | E131: =D131*$H$94 -> 0 | F131: =D131/100 -> 0 | G131: =E131-F131 -> 0 | J131: =G131 -> 0 | K131: =G131-J131 -> 0
B132: 5 PUAN İNDİRİMLİ ORANA TABİ KISIM ( İHRACAT) | C132: =D93 -> 0 | D132: =C132*C129 -> 0 | E132: =D132*$H$94 -> 0 | F132: =D132/20 -> 0 | G132: =E132-F132 -> 0 | J132: 0 | K132: 0
B133: TOPLAM | C133: =SUM(C130:C132) -> 0 | D133: =SUM(D130:D132) -> 0 | E133: 0 | F133: =SUM(F130:F132) -> 0 | G133: =SUM(G130:G132) -> 0 | J133: 0 | K133: 0
B134: TOPLAM KV MATRAHI VE ÖDENMESİ GEREKEN KV | C134: =C104+C129+C109+C114+C119+C124 -> 0 | D134: =D108+D133+D113+D118+D123+D128 -> 0 | E134: =E108+E133+E113+E118+E123+E128 -> 0 | F134: =F108+F133+F113+F118+F123+F128 -> 0 | G134: =G108+G133+G113+G118+G123+G128 -> 0 | J134: =J108+J133+J113+J118+J123+J128 -> 0 | K134: =K133+K108+K113+K118+K123+K128 -> 0 | L134: =L105+L130+L110+L115+L120+L125 -> 0
B136: GEÇİCİ VERGİ BEYANNMESİNDE MATRAH BİLDİRİMİ BÖLÜMÜNDE DOLDURULACAK KISIMLAR VE TUTARLARI
B137: 32 A Madde Kapsamında İndirimli Kurumlar Vergisine (Geçici Vergiye) Tabi Matrah | C137: =C104+C109+C114+C119+C124 -> 0 | D137: =E108+E113+E118+E123+E128 -> 0 | E137: 1-5 Puan Olmasaydı Hesaplan KV Tutarı
D138: =G108+G113+G118+G123++G128 -> 0 | E138: 1 -5 Puan İndirim Sonrasında Ödenecek KV Tutarı (32 A olmasaydı hesaplanacak Vergi)
D139: =K108+K113+K118+K123+K128 -> 0 | E139: 32/A İndirimi ile Vazgeçilen Vergi
B140: 32 A Madde Kapsamında İndirimli Kurumlar Vergisi(Geçici Vergi) Oranı | C140: =IFERROR(D140/C137,0) -> 0 | D140: =L105+L110+L115+L120+L125 -> 0 | E140: 32/A ya Tabi Matrah Üzerinden Ödenecek KV
B141: 32/7 Madde Kapsamında İndirimli Kurumlar Vergisine (Geçici Vergiye) Tabi Matrah (İhracat) | C141: =D132 -> 0 | D141: =E132 -> 0 | E141: 5 Puan Olmasaydı Hesaplan KV Tutarı
D142: =F132 -> 0 | E142: 5 Puan İndirimin Vergi Etkisi
B143: 32/7 Madde Kapsamında İndirimli Kurumlar Vergisi (Geçici Vergi) Oranı | C143: =IFERROR(D143/C141,0) -> 0 | D143: =G132 -> 0 | E143: 5 Puan İndirim Sonrasında Ödenecek KV Tutarı (İhracat)
B144: 32/8 Madde Kapsamında İndirimli Kurumlar Vergisine (Geçici Vergiye) Tabi Matrah (Üretim) | C144: =D131 -> 0 | D144: =E131 -> 0 | E144: 1 Puan Olmasaydı Hesaplan KV Tutarı
D145: =F131 -> 0 | E145: 1 Puan İndirimin Vergi Etkisi
B146: 32/8 Madde Kapsamında İndirimli Kurumlar Vergisi (Geçici Vergi) Oranı | C146: =IFERROR(D146/C144,0) -> 0 | D146: =G131 -> 0 | E146: 1 Puan İndirim Sonrasında Ödenecek KV Tutarı (Üretim)
B147: Genel Orana Tabi Matrah (Diğer) | C147: =D130 -> 0 | D147: =J130 -> 0 | E147: Diğer Faalilyetlerden Elde Edilen Kazanç
C148: =IFERROR(D147/C147,0) -> 0
B149: MATRAHLAR TOPLAMI | C149: =C137+C144+C141+C147 -> 0 | D149: =D140+D146+D143+D147 -> 0

Sheet BİST (32 6 İNDİRİMLİ)
B2: FAALİYET TÜRLERİ İTİBARİYLE HASILATLAR VE TOPLAM İÇİNDEKİ ORANLARI | C2: =IFERROR(C4/C4,0) -> 0 | D2: =IFERROR(D4/C4,0) -> 0 | E2: =IFERROR(E4/C4,0) -> 0 | F2: =IFERROR(F4/C4,0) -> 0
C3: Toplam Hasılat | D3: İhracat faaliyeti | E3: İmalat faaliyeti | F3: Diğer faaliyetler
B4: A-BRÜT SATIŞLAR (60) | C4: =D4+E4+F4 -> 0 | D4: =SUM(D5:D7) -> 0 | E4: =SUM(E5:E7) -> 0 | F4: 0
B5: 1-Yurtiçi Satışlar (600) | C5: =D5+E5+F5 -> 0
B6: 2-Yurtdışı Satışlar (601) | C6: =D6+E6+F6 -> 0
B7: 3-Diğer Gelirler (602) | C7: =D7+E7+F7 -> 0
B8: B-SATIŞ İNDİRİMLERİ(-) (61) | C8: =SUM(C9:C11) -> 0 | D8: =SUM(D9:D11) -> 0 | E8: =SUM(E9:E11) -> 0 | F8: 0
B9: 1-Satıştan İadeler (-) (610) | C9: =SUM(D9:F9) -> 0
B10: 2- Satış İskontoları (-) (611) | C10: =SUM(D10:F10) -> 0
B11: 3-Diğer İndirimler (-) (612) | C11: 0
B12: C-NET SATIŞLAR | C12: =C4-C8 -> 0 | D12: =D4-D8 -> 0 | E12: =E4-E8 -> 0 | F12: 0
B13: D-SATIŞLARIN MALİYETİ (-) (62) | C13: =SUM(C14:C17) -> 0 | D13: =SUM(D14:D17) -> 0 | E13: =SUM(E14:E17) -> 0 | F13: =SUM(F14:F17) -> 0
B14: 1-Satılan Mamuller Maliyeti ( 620) | C14: =SUM(D14:F14) -> 0
B15: 2-Satılan Ticari Mal Maliyeti (621) | C15: =SUM(D15:F15) -> 0
B16: 3-Satılan Hizmet Maliyeti (622) | C16: 0
B17: 4-Diğer Satışların Maliyeti (623) | C17: 0
B18: BRÜT SATIŞ KARI / ZARARI | C18: =C12-C13 -> 0 | D18: =D12-D13 -> 0 | E18: =E12-E13 -> 0 | F18: 0
B19: E-FAALİYET GİDERLERİ (-) (63) | C19: =SUM(C20:C24) -> 0 | D19: =SUM(D20:D24) -> 0 | E19: =SUM(E20:E24) -> 0 | F19: 0
B20: 1-Araştırma ve Geliştirme Giderleri(-) (630) | C20: =SUM(D20:F20) -> 0
B21: 2-Pazarlama, Satış ve Dağıtım Giderleri(-) (631) | C21: =SUM(D21:F21) -> 0
B22: 3-Genel Yönetim Giderleri(-) (632) | C22: =SUM(D22:F22) -> 0
B23: MÜŞTEREK GENEL GİDERLER (DAĞITIM-HASILAT PAYINA GÖRE) | D23: =C23*D2 -> 0 | E23: =C23*E2 -> 0 | F23: =C23*F2 -> 0
B24: MÜŞTEREK GENEL GİDER GİBİ DAĞITIMA TABİ TUTULACAK AMORTİSMAN GİDERLERİ (DAĞITIM-HASILAT PAYINA GÖRE) | D24: =C24*D2 -> 0 | E24: =C24*E2 -> 0 | F24: =C24*F2 -> 0
B25: FAALİYET KARI / ZARARI | C25: =C18-C19 -> 0 | D25: =D18-D19 -> 0 | E25: =E18-E19 -> 0 | F25: 0
B26: F-DİĞER FAALİYETLERDEN OLAĞAN GELİR VE KARLAR (64) | C26: =SUM(C27:C35) -> 0 | D26: =SUM(D27:D35) -> 0 | E26: =SUM(E27:E35) -> 0 | F26: =SUM(F27:F35) -> 0
B27: 1- İŞTİRAKLERDEN TEMETTÜ GELİRLERİ (640) | C27: =SUM(D27:F27) -> 0
B28: 2- BAĞLI ORTAKLIKLARDAN TEMETTÜ GELİRLERİ (641) | C28: =SUM(D28:F28) -> 0
B29: 3- FAİZ GELİRLERİ (642) (ihracat ve imalat kaynaklı alacağın tahsiline kadar olan süreçte oluşan) | C29: 0
B30: 4- KOMİSYON GELİRLERİ (643) | C30: 0
B31: 5- KONUSU OLMAYAN KARŞILIKLAR (644) | C31: 0
B32: 6- MENKUL KIYMET SATIŞ KARLARI (645) | C32: 0
B33: 7- KAMBİYO KARLARI (646) (ihracat ve imalat kaynaklı alacağın tahsiline kadar olan süreçte oluşan) | C33: 0
B34: 8- REESKONT FAİZ GELİRLERİ (647) | C34: 0
B35: 9- FAALİYETLE İLGİLİ DİĞER GELİR VE KARLAR (649) | C35: 0
B36: ARA TOPLAM | C36: =C25+C26 -> 0 | D36: =D25+D26 -> 0 | E36: =E25+E26 -> 0 | F36: =F25+F26 -> 0
B37: G-DİĞER FAALİYETLERDEN OLAĞAN GİDER VE ZARARLAR(-) (65) | C37: =SUM(C38:C43) -> 0 | D37: =SUM(D38:D43) -> 0 | E37: =SUM(E38:E43) -> 0 | F37: 0
B38: 1- KOMİSYON GİDERLERİ (653) | C38: =SUM(D38:F38) -> 0
B39: 2- KARŞILIK GİDERLERİ (654) | C39: =SUM(D39:F39) -> 0
B40: 3- MENKUL KIYMET SATIŞ ZARARLARI (655) | C40: 0
B41: 4- KAMBİYO ZARARLARI (656) (ihracat ve imalat kaynaklı alacağın tahsiline kadar olan süreçte oluşan) | C41: 0
B42: 5- REESKONT FAİZ GİDERLERİ (657) | C42: 0
B43: 6- DİĞER OLAĞAN GİDER VE ZARARLAR (659) | C43: =SUM(D43:F43) -> 0
B44: ARA TOPLAM | C44: =C36-C37 -> 0 | D44: =D36-D37 -> 0 | E44: =E36-E37 -> 0 | F44: 0
B45: H-FİNANSMAN GİDERLERİ(-) (66) | C45: =SUM(C46:C49) -> 0 | D45: =SUM(D46:D49) -> 0 | E45: =SUM(E46:E49) -> 0 | F45: =SUM(F46:F49) -> 0
B46: 1- KISA VADELİ BORÇLANMA GİDERLERİ (-) | C46: =SUM(D46:F46) -> 0
B47: 2- UZUN VADELİ BORÇLANMA GİDERLERİ (-) | C47: =SUM(D47:F47) -> 0
B48: 1- KISA VADELİ BORÇLANMA GİDERLERİ (-) (DAĞITIM) | D48: =C48*D2 -> 0 | E48: =C48*E2 -> 0 | F48: =C48*F2 -> 0
B49: 2- UZUN VADELİ BORÇLANMA GİDERLERİ (-) (DAĞITIM) | D49: =C49*D2 -> 0 | E49: =C49*E2 -> 0 | F49: =C49*F2 -> 0
B50: ARA TOPLAM | C50: =C44-C45 -> 0 | D50: =D44-D45 -> 0 | E50: =E44-E45 -> 0 | F50: =F44-F45 -> 0
B51: I-OLAĞANDIŞI GELİR VE KÂRLAR (67) | C51: =SUM(D51:F51) -> 0 | D51: =SUM(D52:D53) -> 0 | E51: =SUM(E52:E53) -> 0 | F51: =SUM(F52:F53) -> 0
B52: 1- ÖNCEKİ DÖNEM GELİR VE KARLARI (671) | C52: =SUM(D52:F52) -> 0
B53: 2-DİĞER OLAĞAN DIŞI GELİR VE KARLAR (679) | C53: =SUM(D53:F53) -> 0
B54: ARA TOPLAM | C54: =SUM(D54:F54) -> 0 | D54: =D50+D51 -> 0 | E54: =E50+E51 -> 0 | F54: 0
B55: J-OLAĞANDIŞI GİDER VE ZARARLAR(-) (68) | C55: =SUM(C56:C58) -> 0 | D55: =SUM(D56:D58) -> 0 | E55: =SUM(E56:E58) -> 0 | F55: 0
B56: 1-Çalışmayan Kısım Gider ve Zararları(-) (680) | C56: =SUM(D56:F56) -> 0
B57: 2-Önceki Dönem Gider ve Zararları(-) (681) | C57: =SUM(D57:F57) -> 0
B58: 3-Diğer Olağan Dışı Gider ve Zararlar(-) (689) | C58: 0
B59: DÖNEM KÂRI VEYA ZARARI (TİCARİ BİLANÇO KARI ZARARI ) | C59: =C54-C55 -> 0 | D59: =D54-D55 -> 0 | E59: =E54-E55 -> 0 | F59: 0
B60: İHRACAT, İMALAT VE DİĞER FAALİYETLERDEN ELDE EDİLEN KAZANCIN TOPLAM TİCARİ KAZANÇ İÇİNDEKİ PAYLARI | D60: =IF(D59>=$C$59,1, IF(D59<=0,0, IF(AND(D59>0,D59<$C$59),D59/$C$59))) -> 1 | E60: =IF(E59>=$C$59,1, IF(E59<=0,0, IF(AND(E59>0,E59<$C$59),E59/$C$59))) -> 1 | F60: =IF(F59>=$C$59,1, IF(F59<=0,0, IF(AND(F59>0,F59<$C$59),F59/$C$59))) -> 1
B61: TOPLAM İÇİNDEKİ PAYI | D61: =D60/(D60+E60+F60) -> 0.3333333333 | E61: =E60/(D60+E60+F60) -> 0.3333333333 | F61: =F60/(D60+E60+F60) -> 0.3333333333
B63: KKEG +
B64: KABUL EDİLMEYEN GELİRLER -
B65: ZARAR OLSA DAHİ İNDİRİLECEK İSTİSNALAR - | C65: =C66+C67+C68 -> 0
B66: Hizmet İhracatı Faaliyetinden (KVK 10-1/ğ) Elde Edilen Kazançlardan İstisna Edilenlerin Toplamı
B67: İmalat Faaliyetinden Elde Edilen Kazançlardan İstisna Edilenlerin Toplamı
B68: Diğer Faaliyetlerden Elde Edilen Kazançlardan İstisna Edilenlerin Toplamı
B69: GEÇMİŞ YIL ZARARLARI -
B70: İNDİRİMLER - | D70: AZAMİ YAZILABİLECEK İNDİRİMLER TUTARI | E70: =C59+C63-C64-C65-C69 -> 0
B72: 1 PUAN İNDİRİM UYGULANACAK TUTARIN HESABINDA İSTİSNA KAZANÇLAR DÜŞÜLDÜKTEN SONRA BULUNAN TİCARİ KAZANÇ TUTARI İLE İHRACAT,İMALAT VE DİĞER KAZANÇLARIN TUTARI | C72: TİCARİ KAZANÇ TAN İhracat ve İmalat Kazancından İstisna Olan Tutarlar Düşüldükten Sonra Kalan Tutarı | D72: İhracat Faaliyetinden Elde Edilen Kazançtan İstisna Olan Kısım Düşüldükten Sonra Bulunan Tutarı | E72: Üretim Faaliyetinden Elde Edilen Kazançtan İstisna Olan Kısım Düşüldükten Sonra Bulunan Tutarı | F72: Diğer Faaliyetinden Elde Edilen Kazanç
C73: =IF(C59-C66-C67<=0,0,C59-C66-C67) -> 0 | D73: =IF($D$59-C66<=0,0,MIN($D$59-C66,$C$73*D61)) -> 0 | E73: =IF($E$59-C67<=0,0,MIN($E$59-C67,$C$73*E61)) -> 0 | F73: =IF(C73-D73-E73<=0,0,C73-D73-E73) -> 0
B74: MATRAH DAĞITIM PAYLARI | D74: =IFERROR(IF(D73/C73<=0,0,D73/C73),0) -> 0 | E74: =IFERROR(IF(E73/C73<=0,0,E73/C73),0) -> 0 | F74: =IFERROR(F73/C73,0) -> 0
B75: İHRACAT, İMALAT VE DİĞER FAALİYETLERDEN ELDE EDİLEN KAZANCIN TOPLAM TİCARİ KAZANÇ İÇİNDEKİ PAYLARI | D75: =IFERROR(IF(AND(D73+E73>C73, F73<=0),1,(D73+E73)/C73),0) -> 0 | F75: =IFERROR(IF(F73<=0,0,F73/C73),0) -> 0
B76: NEGATİF VE % 100 DEN BÜYÜKLÜK KONTROLÜ SONRASINDAKİ PAYLARI | D76: =IFERROR(IF(D75<=0,0,IF(D75>1,1,D75)),0) -> 0 | F76: =IFERROR(IF(F75<=0,0,IF(F75>1,1,F75)),0) -> 0
B78: SAFİ KURUM KAZANCI (KURUMLAR VERGİSİ MATRAHI) | C78: =C59+C63-C64-C65-C69-C70 -> 0 | D78: =IF(C78<0, "ZARAR","KAR") -> KAR
B80: 2022 YILI 3. DÖNEM İNDİRİMLİ KURUMLAR VERGİSİ HESAPLAMA TABLOSU
C81: 1. TEŞVİK BELGESİ | D81: 2. TEŞVİK BELGESİ | E81: 3. TEŞVİK BELGESİ | F81: 4. TEŞVİK BELGESİ | G81: 5. TEŞVİK BELGESİ
B82: Vergi İndirim Oranı (VİO)
B83: KV MATRAHI (Safi Kurum Kazancı) | C83: =C78 -> 0
B84: 32/A Uygulanacak K.V. Matrahı (HER BİR TEŞVİK BELGESİ KAPSAMINDA YARARLANILABİLECEK YATIRIMA KATKI TUTARININ MATRAHI BU HÜCRELERE YAZILMALIDIR) | H84: =IF(SUM(C84:G84)>C78,"32/A İNDİRİMİ UYGULANACAK KAZANÇ, SAFİ KURUM KAZANCINDAN FAZLADIR",SUM(C84:G84)) -> 0
B85: 32/A UYGULANMAYACAK K.V. Matrahı | C85: =IF(C83-(C84+D84+E84+F84+G84)<0,0,C83-(C84+D84+E84+F84+G84)) -> 0
B86: MATRAH TOPLAMI | C86: =IF((C84+D84+E84+F84+G84+C85)>C78,C78,(C84+D84+E84+F84+G84+C85)) -> 0
B88: SAFİ KURUM KAZANCININ KV VERGİ ORANLARI İTİBARİYLE DAĞILIMI | C88: TOPLAM SAFİ KAZANÇ | D88: İhracat Kazancı Payı | E88: Üretim Kazancı Payı | F88: Diğer Faaliyet Kazancı Payı | G88: KVK 32/6 DA BELİRTİLEN ŞARTLARIN BULUNDUĞU KABUL EDİLMİŞTİR.
C90: =C78 -> 0 | D90: =IF(AND(AND($D$59>0,($D$59+$E$59)>=$C$59,D59>=C66),$C$90>=MAX(D59,D73)), MIN(MAX(IF(D59<=C90,D59,IF(D73<=C90,D73)),$C$90*D74)), IF(OR(D59<=0,D73<=0),0, MIN( MAX( MAX( IF(D59<=C90,D59), IF(D73<=C90,D73) ), MIN($C$90*D74,D59,D73)),$C$90))) -> 0 | E90: =MIN( IF(AND(AND($E$59>0,($D$59+$E$59)>=$C$59,E59>=C67),$C$90>=MAX(E59,E73)), MIN(MAX(IF(E59<=C90,E59,IF(E73<=C90,E73)),$C$90*E74)), IF(OR(E59<=0,E73<=0),0, MIN( MAX( MAX( IF(E59<=C90,E59), IF(E73<=C90,E73) ), MIN($C$90*E74,E59,E73)),$C$90))),C90-D90) -> 0 | F90: =C90-D90-E90 -> 0
B91: SAFİ KURUM KAZANCININ DAĞILIMI ORANSAL DAĞILIMI | C91: =C90 -> 0 | D91: =IFERROR(D90/C90,0) -> 0 | E91: =IFERROR(E90/D90,0) -> 0 | F91: =IFERROR(F90/E90,0) -> 0
B92: SAFİ KURUM KAZANCININ DAĞILIMI TUTARSAL | C92: =C91 -> 0 | D92: =D90 -> 0 | E92: =E90 -> 0 | F92: =F90 -> 0
B93: SAFİ KURUM KAZANCI DAĞILIMI | C93: =C92 -> 0 | D93: =IFERROR(IF(D92/C92>=1,1,D92/C92),0) -> 0 | E93: =IFERROR(IF(E92/C92>=1,1,E92/C92),0) -> 0 | F93: =IFERROR(IF(F92/C92>=1,1,F92/C92),0) -> 0 | I93: KV ORANI
B94: 1 PUAN VE 32/A İNDİRİMİ OLMASAYDI HESAPLANAN KV TUTARI (32/6 UYGULANMIŞTIR) | C94: =C93*($I$94-2/100) -> 0 | D94: =D92*($I$94-2/100) -> 0 | E94: =E92*($I$94-2/100) -> 0 | F94: =F92*($I$94-2/100) -> 0 | I94: 0.25
B95: 32/ A UYGULANAN MATRAH | C95: =C84+D84+E84+F84+G84 -> 0 | D95: =D107+D112+D117+D122+D127 -> 0 | E95: =D106+D111+D116+D121+D126 -> 0 | F95: =D105+D110+D115+D120+D125 -> 0
B96: 32/A UYGULANACAK MATRAH ÜZERİNDEN ÖDENECEK KV TUTARI | C96: =L108+L113+L118+L123+L128 -> 0 | D96: =L107+L112+L117+L122+L127 -> 0 | E96: =L106+L111+L116+L121+L126 -> 0 | F96: =L105+L110+L115+L120+L125 -> 0
B97: 32/A UYGULANMAYAN MATRAH | C97: =IF(C85<=0,0,C85) -> 0 | D97: =D132 -> 0 | E97: =D131 -> 0 | F97: =D130 -> 0
B98: 32/A UYGULANMAYAN MATRAH ÜZERİNDEN ÖDENECEK KV TUTARI | C98: =N130 -> 0 | D98: =L132 -> 0 | E98: =L131 -> 0 | F98: =L130 -> 0
B99: TOPLAM ÖDENECEK KV | C99: =C96+C98 -> 0 | D99: =L132+L107 -> 0 | E99: =L131+L106 -> 0 | F99: =L130+L105 -> 0
B100: TOPLAM AVANTAJ (YARARLANILAN 1 PUAN İNDİRİMİ + 32/A İNDİRİMİ TUTARI ) | C100: =C94-C99 -> 0 | D100: =D101+D102 -> 0 | E100: =E101+E102 -> 0 | F100: 0
B101: YARARLANILAN 1 - 5 PUAN İNDİRİMİ TUTARI | C101: =H133+H128+H123+H118+H113+H108 -> 0 | D101: =H132+H107+H112+H117+H122+H127 -> 0 | E101: =H131+H106+H111+H116+H121+H126 -> 0 | F101: =H130+H105+H110+H115+H120+H125 -> 0
B102: YARLANILAN 32/A İNDİRİMİ TUTARI | C102: =M108+M113+M118+M123+M128+M133 -> 0 | D102: =M107+M112+M122+M127+M132+M117 -> 0 | E102: =M106+M111+M116+M121+M126+M131 -> 0 | F102: =M105++M110+M115+M120+M125+M130 -> 0
B104: 32/A UYGULANABİLECEK MATRAH (1.TEŞVİK BELGESİ) | C104: =C84 -> 0 | D104: KV MATRAHI | E104: 32/6 VE 1 - 5 PUAN İNDİRİM OLMASAYDI HESAPLANAN KV TUTARI | F104: 32/6 NEDENİYLE HESAPLANAN İNDİRİM TUTAR | G104: 32/6 A İNDİRİMİ SONRASINDA HESAPLANAN KURUMLAR VERGİSİ TUTARI | H104: 1 - 5 Puan İndirim Tutarı | I104: 1 -5 Puan İndirim Sonrasında Hesaplanan KV Tutarı | J104: 32/A İndirimi Olmasaydı Ödenecek KV Tutarı | K104: 32/6 İndirimi / 1 -5 Puan İndirim ve 32/A VİO Uygulandıktan Sonra Tatbik Edilecek KV Oranı | L104: 1 - 5 Puan İndirim ve 32/A İndirimi Uygulandıktan Sonra Ödenecek KV Tutarı | M104: Yararlanılan Yatırıma Katkı Tutarı (32/A İnd. KV Nedeniyle Vazgeçilen Vergi Tutarı) | N104: Ödenecek KV Tutarı
B105: GENEL ORANA TABİ KISIM (DİĞER FAALİYETLER) | C105: =F93 -> 0 | D105: =C104*C105 -> 0 | E105: =D105*$I$94 -> 0 | F105: =D105*0.02 -> 0 | G105: =E105-F105 -> 0 | H105: 0 | I105: =E105-H105-F105 -> 0 | J105: =I105 -> 0 | K105: =($I$94-0.02)-(($I$94-0.02)*C82) -> 0.23 | L105: =K105*D105 -> 0 | M105: =J105-L105 -> 0 | N105: =L108 -> 0
B106: 1 PUAN İNDİRİMLİ ORANA TABİ KISIM (İMALAT) | C106: =E93 -> 0 | D106: =C104*C106 -> 0 | E106: =D106*$I$94 -> 0 | F106: =D106*0.02 -> 0 | G106: =E106-F106 -> 0 | H106: =D106/100 -> 0 | I106: =E106-H106-F106 -> 0 | J106: =I106 -> 0 | K106: =($I$94-0.03)-(($I$94-0.03)*C82) -> 0.22 | L106: =K106*D106 -> 0 | M106: =J106-L106 -> 0
B107: 5 PUAN İNDİRİMLİ ORANA TABİ KISIM ( İHRACAT) | C107: =D93 -> 0 | D107: =C104*C107 -> 0 | E107: =D107*$I$94 -> 0 | F107: 0 | G107: 0 | H107: =D107/20 -> 0 | I107: =E107-H107-F107 -> 0 | J107: 0 | K107: =($I$94-0.07)-(($I$94-0.07)*C82) -> 0.18 | L107: =K107*D107 -> 0 | M107: 0
B108: TOPLAM | C108: =SUM(C105:C107) -> 0 | D108: =SUM(D105:D107) -> 0 | E108: 0 | F108: 0 | G108: 0 | H108: =SUM(H105:H107) -> 0 | I108: =SUM(I105:I107) -> 0 | J108: =SUM(J105:J107) -> 0 | L108: 0 | M108: 0
B109: 32/A UYGULANABİLECEK MATRAH (2.TEŞVİK BELGESİ) | C109: =D84 -> 0 | D109: KV MATRAHI | E109: 32/6 VE 1-5 PUAN İNDİRİM OLMASAYDI HESAPLANAN KV TUTARI | F109: 32/6 NEDENİYLE HESAPLANAN İNDİRİM TUTAR | G109: 32/6 A İNDİRİMİ SONRASINDA HESAPLANAN KURUMLAR VERGİSİ TUTARI | H109: 1 - 5 Puan İndirim Tutarı | I109: 1 -5 Puan İndirim Sonrasında Hesaplanan KV Tutarı | J109: 32/A İndirimi Olmasaydı Ödenecek KV Tutarı | K109: 32/6 İndirimi / 1 - 5 Puan İndirim ve 32/A VİO Uygulandıktan Sonra Tatbik Edilecek KV Oranı | L109: 1 -5 Puan İndirim ve 32/A İndirimi Uygulandıktan Sonra Ödenecek KV Tutarı | M109: Yararlanılan Yatırıma Katkı Tutarı (32/A İnd. KV Nedeniyle Vazgeçilen Vergi Tutarı) | N109: Ödenecek KV Tutarı
B110: GENEL ORANA TABİ KISIM (DİĞER FAALİYETLER) | C110: =F93 -> 0 | D110: =C109*C110 -> 0 | E110: =D110*$I$94 -> 0 | F110: =D110*0.02 -> 0 | G110: =E110-F110 -> 0 | H110: 0 | I110: =E110-H110-F110 -> 0 | J110: =I110 -> 0 | K110: =($I$94-0.02)-(($I$94-0.02)*D82) -> 0.23 | L110: =K110*D110 -> 0 | M110: =J110-L110 -> 0 | N110: =L113 -> 0
B111: 1 PUAN İNDİRİMLİ ORANA TABİ KISIM (İMALAT) | C111: =E93 -> 0 | D111: =C109*C111 -> 0 | E111: =D111*$I$94 -> 0 | F111: =D111*0.02 -> 0 | G111: =E111-F111 -> 0 | H111: =D111/100 -> 0 | I111: =E111-H111-F111 -> 0 | J111: =I111 -> 0 | K111: =($I$94-0.03)-(($I$94-0.03)*D82) -> 0.22 | L111: =K111*D111 -> 0 | M111: =J111-L111 -> 0
B112: 5 PUAN İNDİRİMLİ ORANA TABİ KISIM ( İHRACAT) | C112: =D93 -> 0 | D112: =C109*C112 -> 0 | E112: =D112*$I$94 -> 0 | F112: 0 | G112: 0 | H112: =D112/20 -> 0 | I112: =E112-H112-F112 -> 0 | J112: 0 | K112: =($I$94-0.07)-(($I$94-0.07)*D82) -> 0.18 | L112: =K112*D112 -> 0 | M112: 0
B113: TOPLAM | C113: =SUM(C110:C112) -> 0 | D113: 0 | E113: 0 | F113: 0 | G113: 0 | H113: =SUM(H110:H112) -> 0 | I113: =SUM(I110:I112) -> 0 | J113: =SUM(J110:J112) -> 0 | L113: =SUM(L110:L112) -> 0 | M113: 0
B114: 32/A UYGULANABİLECEK MATRAH (3.TEŞVİK BELGESİ) | C114: =E84 -> 0 | D114: KV MATRAHI | E114: 32/6 VE 1 - 5 PUAN İNDİRİM OLMASAYDI HESAPLANAN KV TUTARI | F114: 32/6 NEDENİYLE HESAPLANAN İNDİRİM TUTAR | G114: 32/6 A İNDİRİMİ SONRASINDA HESAPLANAN KURUMLAR VERGİSİ TUTARI | H114: 1 - 5 Puan İndirim Tutarı | I114: 1 -5 Puan İndirim Sonrasında Hesaplanan KV Tutarı | J114: 32/A İndirimi Olmasaydı Ödenecek KV Tutarı | K114: 32/6 İndirimi / 1 -5 Puan İndirim ve 32/A VİO Uygulandıktan Sonra Tatbik Edilecek KV Oranı | L114: 1 - 5 Puan İndirim ve 32/A İndirimi Uygulandıktan Sonra Ödenecek KV Tutarı | M114: Yararlanılan Yatırıma Katkı Tutarı (32/A İnd. KV Nedeniyle Vazgeçilen Vergi Tutarı) | N114: Ödenecek KV Tutarı
B115: GENEL ORANA TABİ KISIM (DİĞER FAALİYETLER) | C115: =F93 -> 0 | D115: =C114*C115 -> 0 | E115: =D115*$I$94 -> 0 | F115: =D115*0.02 -> 0 | G115: =E115-F115 -> 0 | H115: 0 | I115: =E115-H115-F115 -> 0 | J115: =I115 -> 0 | K115: =($I$94-0.02)-(($I$94-0.02)*E82) -> 0.23 | L115: =K115*D115 -> 0 | M115: =J115-L115 -> 0 | N115: =L118 -> 0
B116: 1 PUAN İNDİRİMLİ ORANA TABİ KISIM (İMALAT) | C116: =E93 -> 0 | D116: =C114*C116 -> 0 | E116: =D116*$I$94 -> 0 | F116: =D116*0.02 -> 0 | G116: =E116-F116 -> 0 | H116: =D116/100 -> 0 | I116: =E116-H116-F116 -> 0 | J116: =I116 -> 0 | K116: =($I$94-0.03)-(($I$94-0.03)*E82) -> 0.22 | L116: =K116*D116 -> 0 | M116: =J116-L116 -> 0
B117: 5 PUAN İNDİRİMLİ ORANA TABİ KISIM ( İHRACAT) | C117: =D93 -> 0 | D117: =C114*C117 -> 0 | E117: =D117*$I$94 -> 0 | F117: 0 | G117: 0 | H117: =D117/20 -> 0 | I117: =E117-H117-F117 -> 0 | J117: 0 | K117: =($I$94-0.07)-(($I$94-0.07)*E82) -> 0.18 | L117: =K117*D117 -> 0 | M117: 0
B118: TOPLAM | C118: =SUM(C115:C117) -> 0 | D118: 0 | E118: 0 | F118: 0 | G118: 0 | H118: =SUM(H115:H117) -> 0 | I118: =SUM(I115:I117) -> 0 | J118: =SUM(J115:J117) -> 0 | L118: =SUM(L115:L117) -> 0 | M118: 0
B119: 32/A UYGULANABİLECEK MATRAH (4. TEŞVİK BELGESİ) | C119: =F84 -> 0 | D119: KV MATRAHI | E119: 32/6 VE 1-5 PUAN İNDİRİM OLMASAYDI HESAPLANAN KV TUTARI | F119: 32/6 NEDENİYLE HESAPLANAN İNDİRİM TUTAR | G119: 32/6 A İNDİRİMİ SONRASINDA HESAPLANAN KURUMLAR VERGİSİ TUTARI | H119: 1 - 5 Puan İndirim Tutarı | I119: 1 -5 Puan İndirim Sonrasında Hesaplanan KV Tutarı | J119: 32/A İndirimi Olmasaydı Ödenecek KV Tutarı | K119: 32/6 İndirimi / 1 - 5 Puan İndirim ve 32/A VİO Uygulandıktan Sonra Tatbik Edilecek KV Oranı | L119: 1 -5 Puan İndirim ve 32/A İndirimi Uygulandıktan Sonra Ödenecek KV Tutarı | M119: Yararlanılan Yatırıma Katkı Tutarı (32/A İnd. KV Nedeniyle Vazgeçilen Vergi Tutarı) | N119: Ödenecek KV Tutarı
B120: GENEL ORANA TABİ KISIM (DİĞER FAALİYETLER) | C120: =F93 -> 0 | D120: =C119*C120 -> 0 | E120: =D120*$I$94 -> 0 | F120: =D120*0.02 -> 0 | G120: =E120-F120 -> 0 | H120: 0 | I120: =E120-H120-F120 -> 0 | J120: =I120 -> 0 | K120: =($I$94-0.02)-(($I$94-0.02)*F82) -> 0.23 | L120: =K120*D120 -> 0 | M120: =J120-L120 -> 0 | N120: =L123 -> 0
B121: 1 PUAN İNDİRİMLİ ORANA TABİ KISIM (İMALAT) | C121: =E93 -> 0 | D121: =C119*C121 -> 0 | E121: =D121*$I$94 -> 0 | F121: =D121*0.02 -> 0 | G121: =E121-F121 -> 0 | H121: =D121/100 -> 0 | I121: =E121-H121-F121 -> 0 | J121: =I121 -> 0 | K121: =($I$94-0.03)-(($I$94-0.03)*F82) -> 0.22 | L121: =K121*D121 -> 0 | M121: =J121-L121 -> 0
B122: 5 PUAN İNDİRİMLİ ORANA TABİ KISIM ( İHRACAT) | C122: =D93 -> 0 | D122: =C119*C122 -> 0 | E122: =D122*$I$94 -> 0 | F122: 0 | G122: 0 | H122: =D122/20 -> 0 | I122: =E122-H122-F122 -> 0 | J122: 0 | K122: =($I$94-0.07)-(($I$94-0.07)*F82) -> 0.18 | L122: =K122*D122 -> 0 | M122: 0
B123: TOPLAM | C123: =SUM(C120:C122) -> 0 | D123: 0 | E123: 0 | F123: 0 | G123: 0 | H123: =SUM(H120:H122) -> 0 | I123: =SUM(I120:I122) -> 0 | J123: =SUM(J120:J122) -> 0 | L123: =SUM(L120:L122) -> 0 | M123: 0
B124: 32/A UYGULANABİLECEK MATRAH (5.TEŞVİK BELGESİ) | C124: =G84 -> 0 | D124: KV MATRAHI | E124: 32/6 VE 1 - 5 PUAN İNDİRİM OLMASAYDI HESAPLANAN KV TUTARI | F124: 32/6 NEDENİYLE HESAPLANAN İNDİRİM TUTAR | G124: 32/6 A İNDİRİMİ SONRASINDA HESAPLANAN KURUMLAR VERGİSİ TUTARI | H124: 1 - 5 Puan İndirim Tutarı | I124: 1 -5 Puan İndirim Sonrasında Hesaplanan KV Tutarı | J124: 32/A İndirimi Olmasaydı Ödenecek KV Tutarı | K124: 32/6 İndirimi / 1 -5 Puan İndirim ve 32/A VİO Uygulandıktan Sonra Tatbik Edilecek KV Oranı | L124: 1 - 5 Puan İndirim ve 32/A İndirimi Uygulandıktan Sonra Ödenecek KV Tutarı | M124: Yararlanılan Yatırıma Katkı Tutarı (32/A İnd. KV Nedeniyle Vazgeçilen Vergi Tutarı) | N124: Ödenecek KV Tutarı
B125: GENEL ORANA TABİ KISIM (DİĞER FAALİYETLER) | C125: =F93 -> 0 | D125: =C124*C125 -> 0 | E125: =D125*$I$94 -> 0 | F125: =D125*0.02 -> 0 | G125: =E125-F125 -> 0 | H125: 0 | I125: =E125-H125-F125 -> 0 | J125: =I125 -> 0 | K125: =($I$94-0.02)-(($I$94-0.02)*F82) -> 0.23 | L125: =K125*D125 -> 0 | M125: =J125-L125 -> 0 | N125: =L128 -> 0
B126: 1 PUAN İNDİRİMLİ ORANA TABİ KISIM (İMALAT) | C126: =E93 -> 0 | D126: =C124*C126 -> 0 | E126: =D126*$I$94 -> 0 | F126: =D126*0.02 -> 0 | G126: =E126-F126 -> 0 | H126: =D126/100 -> 0 | I126: =E126-H126-F126 -> 0 | J126: =I126 -> 0 | K126: =($I$94-0.03)-(($I$94-0.03)*G82) -> 0.22 | L126: =K126*D126 -> 0 | M126: =J126-L126 -> 0
B127: 5 PUAN İNDİRİMLİ ORANA TABİ KISIM ( İHRACAT) | C127: =D93 -> 0 | D127: =C124*C127 -> 0 | E127: =D127*$I$94 -> 0 | F127: 0 | G127: 0 | H127: =D127/20 -> 0 | I127: =E127-H127-F127 -> 0 | J127: 0 | K127: =($I$94-0.07)-(($I$94-0.07)*G82) -> 0.18 | L127: =K127*D127 -> 0 | M127: 0
B128: TOPLAM | C128: =SUM(C125:C127) -> 0 | D128: 0 | E128: 0 | F128: 0 | G128: 0 | H128: =SUM(H125:H127) -> 0 | I128: =SUM(I125:I127) -> 0 | J128: =SUM(J125:J127) -> 0 | L128: =SUM(L125:L127) -> 0 | M128: 0
B129: 32/A UYGULANAMAYACAK MATRAH | C129: =IF(C85<=0,0,C85) -> 0 | D129: KV MATRAHI | E129: 32/6 VE 1-5 PUAN İNDİRİM OLMASAYDI HESAPLANAN KV TUTARI | F129: 32/6 NEDENİYLE HESAPLANAN İNDİRİM TUTAR | G129: 32/6 A İNDİRİMİ SONRASINDA HESAPLANAN KURUMLAR VERGİSİ TUTARI | H129: 1 - 5 Puan İndirim Tutarı | I129: 1 -5 Puan İndirim Sonrasında Hesaplanan KV Tutarı | J129: 32/A İNDİRİMİ UYGULANMAZ | L129: 1 Puan İndirim ve 32/A İndirimi Uygulandıktan Sonra Ödenecek KV Tutarı | M129: Yararlanılan Yatırıma Katkı Tutarı (32/A İnd. KV Nedeniyle Vazgeçilen Vergi Tutarı) | N129: Ödenecek KV Tutarı
B130: GENEL ORANA TABİ KISIM (DİĞER FAALİYETLER) | C130: =F93 -> 0 | D130: =C129*C130 -> 0 | E130: =D130*$I$94 -> 0 | F130: =D130*0.02 -> 0 | G130: =E130-F130 -> 0 | H130: 0 | I130: =E130-H130-F130 -> 0 | L130: =I130 -> 0 | M130: 0 | N130: =L133 -> 0
B131: 1 PUAN İNDİRİMLİ ORANA TABİ KISIM (İMALAT) | C131: =E93 -> 0 | D131: =C131*C129 -> 0 | E131: =D131*$I$94 -> 0 | F131: =D131*0.02 -> 0 | G131: =E131-F131 -> 0 | H131: =D131/100 -> 0 | I131: =E131-H131-F131 -> 0 | L131: =I131 -> 0 | M131: 0
B132: 5 PUAN İNDİRİMLİ ORANA TABİ KISIM ( İHRACAT) | C132: =D93 -> 0 | D132: =C132*C129 -> 0 | E132: =D132*$I$94 -> 0 | F132: 0 | G132: 0 | H132: =D132/20 -> 0 | I132: =E132-H132-F132 -> 0 | L132: 0 | M132: 0
B133: TOPLAM | C133: =SUM(C130:C132) -> 0 | D133: =SUM(D130:D132) -> 0 | E133: 0 | F133: =SUM(F130:F132) -> 0 | G133: 0 | H133: =SUM(H130:H132) -> 0 | I133: =SUM(I130:I132) -> 0 | L133: 0 | M133: =SUM(M130:M132) -> 0
B134: TOPLAM KV MATRAHI VE ÖDENMESİ GEREKEN KV | C134: =C104+C129+C109+C114+C119+C124 -> 0 | D134: =D108+D133+D113+D118+D123+D128 -> 0 | E134: 0 | F134: 0 | G134: 0 | H134: 0 | I134: 0 | L134: =L108+L133+L113+L118+L123+L128 -> 0 | M134: =M133+M108+M113+M118+M123+M128 -> 0 | N134: =N105+N130+N110+N115+N120+N125 -> 0
B136: GEÇİCİ VERGİ BEYANNMESİNDE MATRAH BİLDİRİMİ BÖLÜMÜNDE DOLDURULACAK KISIMLAR VE TUTARLARI
B137: 32 A Madde Kapsamında İndirimli Kurumlar Vergisine (Geçici Vergiye) Tabi Matrah | C137: =C104+C109+C114+C119+C124 -> 0 | D137: =E108+E113+E118+E123+E128 -> 0 | E137: 1-5 Puan Olmasaydı Hesaplan KV Tutarı
D138: =I108+I113+I118+I123++I128 -> 0 | E138: 1 -5 Puan İndirim Sonrasında Ödenecek KV Tutarı (32 A olmasaydı hesaplanacak Vergi)
D139: =M108+M113+M118+M123+M128 -> 0 | E139: 32/A İndirimi ile Vazgeçilen Vergi
B140: 32 A Madde Kapsamında İndirimli Kurumlar Vergisi(Geçici Vergi) Oranı | C140: =IFERROR(D140/C137,0) -> 0 | D140: =N105+N110+N115+N120+N125 -> 0 | E140: 32/A ya Tabi Matrah Üzerinden Ödenecek KV
B141: 32/7 Madde Kapsamında İndirimli Kurumlar Vergisine (Geçici Vergiye) Tabi Matrah (İhracat) | C141: =D132 -> 0 | D141: =G132 -> 0 | E141: 5 Puan Olmasaydı Hesaplan KV Tutarı
D142: =H132 -> 0 | E142: 5 Puan İndirimin Vergi Etkisi
B143: 32/7 Madde Kapsamında İndirimli Kurumlar Vergisi (Geçici Vergi) Oranı | C143: =IFERROR(D143/C141,0) -> 0 | D143: =I132 -> 0 | E143: 5 Puan İndirim Sonrasında Ödenecek KV Tutarı (İhracat)
B144: 32/8 Madde Kapsamında İndirimli Kurumlar Vergisine (Geçici Vergiye) Tabi Matrah (Üretim) | C144: =D131 -> 0 | D144: =G131 -> 0 | E144: 1 Puan Olmasaydı Hesaplan KV Tutarı
D145: =H131 -> 0 | E145: 1 Puan İndirimin Vergi Etkisi
B146: 32/8 Madde Kapsamında İndirimli Kurumlar Vergisi (Geçici Vergi) Oranı | C146: =IFERROR(D146/C144,0) -> 0 | D146: =I131 -> 0 | E146: 1 Puan İndirim Sonrasında Ödenecek KV Tutarı (Üretim)
B147: Genel Orana Tabi Matrah (Diğer) | C147: =D130 -> 0 | D147: =L130 -> 0 | E147: Diğer Faalilyetlerden Elde Edilen Kazanç
C148: =IFERROR(D147/C147,0) -> 0
B149: MATRAHLAR TOPLAMI | C149: =C137+C144+C141+C147 -> 0 | D149: =D140+D146+D143+D147 -> 0

Sheet İ Ö 2 (hidden)
B2: FAALİYET TÜRLERİ İTİBARİYLE HASILATLAR VE TOPLAM İÇİNDEKİ ORANLARI | C2: =IFERROR(C4/C4,0) -> 1 | D2: =IFERROR(D4/C4,0) -> 0.6 | E2: =IFERROR(E4/C4,0) -> 0 | F2: =IFERROR(F4/C4,0) -> 0.4
C3: Toplam Hasılat | D3: İhracat faaliyeti | E3: İmalat faaliyeti | F3: Diğer faaliyetler
B4: A-BRÜT SATIŞLAR (60) | C4: =D4+E4+F4 -> 2000000 | D4: =SUM(D5:D7) -> 1200000 | E4: =SUM(E5:E7) -> 0 | F4: 800000
B5: 1-Yurtiçi Satışlar (600) | C5: =D5+E5+F5 -> 800000 | F5: 800000
B6: 2-Yurtdışı Satışlar (601) | C6: =D6+E6+F6 -> 1200000 | D6: 1200000
B7: 3-Diğer Gelirler (602) | C7: =D7+E7+F7 -> 0
B8: B-SATIŞ İNDİRİMLERİ(-) (61) | C8: =SUM(C9:C11) -> 0 | D8: =SUM(D9:D11) -> 0 | E8: =SUM(E9:E11) -> 0 | F8: 0
B9: 1-Satıştan İadeler (-) (610) | C9: =SUM(D9:F9) -> 0
B10: 2- Satış İskontoları (-) (611) | C10: =SUM(D10:F10) -> 0
B11: 3-Diğer İndirimler (-) (612) | C11: 0
B12: C-NET SATIŞLAR | C12: =C4-C8 -> 2000000 | D12: =D4-D8 -> 1200000 | E12: =E4-E8 -> 0 | F12: 800000
B13: D-SATIŞLARIN MALİYETİ (-) (62) | C13: =SUM(C14:C17) -> 0 | D13: =SUM(D14:D17) -> 0 | E13: =SUM(E14:E17) -> 0 | F13: =SUM(F14:F17) -> 0
B14: 1-Satılan Mamuller Maliyeti ( 620) | C14: =SUM(D14:F14) -> 0
B15: 2-Satılan Ticari Mal Maliyeti (621) | C15: =SUM(D15:F15) -> 0
B16: 3-Satılan Hizmet Maliyeti (622) | C16: 0
B17: 4-Diğer Satışların Maliyeti (623) | C17: 0
B18: BRÜT SATIŞ KARI / ZARARI | C18: =C12-C13 -> 2000000 | D18: =D12-D13 -> 1200000 | E18: =E12-E13 -> 0 | F18: 800000
B19: E-FAALİYET GİDERLERİ (-) (63) | C19: =SUM(C20:C24) -> 0 | D19: =SUM(D20:D24) -> 0 | E19: =SUM(E20:E24) -> 0 | F19: 0
B20: 1-Araştırma ve Geliştirme Giderleri(-) (630) | C20: =SUM(D20:F20) -> 0
B21: 2-Pazarlama, Satış ve Dağıtım Giderleri(-) (631) | C21: =SUM(D21:F21) -> 0
B22: 3-Genel Yönetim Giderleri(-) (632) | C22: =SUM(D22:F22) -> 0
B23: MÜŞTEREK GENEL GİDERLER (DAĞITIM-HASILAT PAYINA GÖRE) | D23: =C23*D2 -> 0 | E23: =C23*E2 -> 0 | F23: =C23*F2 -> 0
B24: MÜŞTEREK GENEL GİDER GİBİ DAĞITIMA TABİ TUTULACAK AMORTİSMAN GİDERLERİ (DAĞITIM-HASILAT PAYINA GÖRE) | D24: =C24*D2 -> 0 | E24: =C24*E2 -> 0 | F24: =C24*F2 -> 0
B25: FAALİYET KARI / ZARARI | C25: =C18-C19 -> 2000000 | D25: =D18-D19 -> 1200000 | E25: =E18-E19 -> 0 | F25: 800000
B26: F-DİĞER FAALİYETLERDEN OLAĞAN GELİR VE KARLAR (64) | C26: =SUM(C27:C35) -> 0 | D26: =SUM(D27:D35) -> 0 | E26: =SUM(E27:E35) -> 0 | F26: =SUM(F27:F35) -> 0
B27: 1- İŞTİRAKLERDEN TEMETTÜ GELİRLERİ (640) | C27: =SUM(D27:F27) -> 0
B28: 2- BAĞLI ORTAKLIKLARDAN TEMETTÜ GELİRLERİ (641) | C28: =SUM(D28:F28) -> 0
B29: 3- FAİZ GELİRLERİ (642) (ihracat ve imalat kaynaklı alacağın tahsiline kadar olan süreçte oluşan) | C29: 0
B30: 4- KOMİSYON GELİRLERİ (643) | C30: 0
B31: 5- KONUSU OLMAYAN KARŞILIKLAR (644) | C31: 0
B32: 6- MENKUL KIYMET SATIŞ KARLARI (645) | C32: 0
B33: 7- KAMBİYO KARLARI (646) (ihracat ve imalat kaynaklı alacağın tahsiline kadar olan süreçte oluşan) | C33: 0
B34: 8- REESKONT FAİZ GELİRLERİ (647) | C34: 0
B35: 9- FAALİYETLE İLGİLİ DİĞER GELİR VE KARLAR (649) | C35: 0
B36: ARA TOPLAM | C36: =C25+C26 -> 2000000 | D36: =D25+D26 -> 1200000 | E36: =E25+E26 -> 0 | F36: =F25+F26 -> 800000
B37: G-DİĞER FAALİYETLERDEN OLAĞAN GİDER VE ZARARLAR(-) (65) | C37: =SUM(C38:C43) -> 0 | D37: =SUM(D38:D43) -> 0 | E37: =SUM(E38:E43) -> 0 | F37: 0
B38: 1- KOMİSYON GİDERLERİ (653) | C38: =SUM(D38:F38) -> 0
B39: 2- KARŞILIK GİDERLERİ (654) | C39: =SUM(D39:F39) -> 0
B40: 3- MENKUL KIYMET SATIŞ ZARARLARI (655) | C40: 0
B41: 4- KAMBİYO ZARARLARI (656) (ihracat ve imalat kaynaklı alacağın tahsiline kadar olan süreçte oluşan) | C41: 0
B42: 5- REESKONT FAİZ GİDERLERİ (657) | C42: 0
B43: 6- DİĞER OLAĞAN GİDER VE ZARARLAR (659) | C43: =SUM(D43:F43) -> 0
B44: ARA TOPLAM | C44: =C36-C37 -> 2000000 | D44: =D36-D37 -> 1200000 | E44: =E36-E37 -> 0 | F44: 800000
B45: H-FİNANSMAN GİDERLERİ(-) (66) | C45: =SUM(C46:C49) -> 0 | D45: =SUM(D46:D49) -> 0 | E45: =SUM(E46:E49) -> 0 | F45: =SUM(F46:F49) -> 0
B46: 1- KISA VADELİ BORÇLANMA GİDERLERİ (-) | C46: =SUM(D46:F46) -> 0
B47: 2- UZUN VADELİ BORÇLANMA GİDERLERİ (-) | C47: =SUM(D47:F47) -> 0
B48: 1- KISA VADELİ BORÇLANMA GİDERLERİ (-) (DAĞITIM) | D48: =C48*D2 -> 0 | E48: =C48*E2 -> 0 | F48: =C48*F2 -> 0
B49: 2- UZUN VADELİ BORÇLANMA GİDERLERİ (-) (DAĞITIM) | D49: =C49*D2 -> 0 | E49: =C49*E2 -> 0 | F49: =C49*F2 -> 0
B50: ARA TOPLAM | C50: =C44-C45 -> 2000000 | D50: =D44-D45 -> 1200000 | E50: =E44-E45 -> 0 | F50: =F44-F45 -> 800000
B51: I-OLAĞANDIŞI GELİR VE KÂRLAR (67) | C51: =SUM(D51:F51) -> 0 | D51: =SUM(D52:D53) -> 0 | E51: =SUM(E52:E53) -> 0 | F51: =SUM(F52:F53) -> 0
B52: 1- ÖNCEKİ DÖNEM GELİR VE KARLARI (671) | C52: =SUM(D52:F52) -> 0
B53: 2-DİĞER OLAĞAN DIŞI GELİR VE KARLAR (679) | C53: =SUM(D53:F53) -> 0
B54: ARA TOPLAM | C54: =SUM(D54:F54) -> 2000000 | D54: =D50+D51 -> 1200000 | E54: =E50+E51 -> 0 | F54: 800000
B55: J-OLAĞANDIŞI GİDER VE ZARARLAR(-) (68) | C55: =SUM(C56:C58) -> 0 | D55: =SUM(D56:D58) -> 0 | E55: =SUM(E56:E58) -> 0 | F55: 0
B56: 1-Çalışmayan Kısım Gider ve Zararları(-) (680) | C56: =SUM(D56:F56) -> 0
B57: 2-Önceki Dönem Gider ve Zararları(-) (681) | C57: =SUM(D57:F57) -> 0
B58: 3-Diğer Olağan Dışı Gider ve Zararlar(-) (689) | C58: 0
B59: DÖNEM KÂRI VEYA ZARARI (TİCARİ BİLANÇO KARI ZARARI ) | C59: =C54-C55 -> 2000000 | D59: =D54-D55 -> 1200000 | E59: =E54-E55 -> 0 | F59: 800000
B60: İHRACAT, İMALAT VE DİĞER FAALİYETLERDEN ELDE EDİLEN KAZANCIN TOPLAM TİCARİ KAZANÇ İÇİNDEKİ PAYLARI (Kazançlar arasında Öncelik İhracat Kazancına Verilmiştir. İhrcat Kazancından arta kalan Ticari Kazanç İmalat ve Diğer Faaliyetlere Sayılmıştır.) | D60: =IF(D59>=$C$59,1, IF(D59<=0,0, IF(AND(D59>0,D59<$C$59),D59/$C$59))) -> 0.6 | E60: =IF(E59>=$C$59,1, IF(E59<=0,0, IF(AND(E59>0,E59<$C$59),E59/$C$59))) -> 0 | F60: =IF(F59>=$C$59,1, IF(F59<=0,0, IF(AND(F59>0,F59<$C$59),F59/$C$59))) -> 0.4
D61: =D60/(D60+E60+F60) -> 0.6 | E61: =E60/(D60+E60+F60) -> 0 | F61: =F60/(D60+E60+F60) -> 0.4
B63: KKEG + | C63: 200000
B64: KABUL EDİLMEYEN GELİRLER -
B65: ZARAR OLSA DAHİ İNDİRİLECEK İSTİSNALAR - | C65: =C66+C67+C68 -> 100000
B66: Hizmet İhracatı Faaliyetinden (KVK 10-1/ğ) Elde Edilen Kazançlardan İstisna Edilenlerin Toplamı
B67: İmalat Faaliyetinden Elde Edilen Kazançlardan İstisna Edilenlerin Toplamı
B68: Diğer Faaliyetlerden Elde Edilen Kazançlardan İstisna Edilenlerin Toplamı | C68: 100000
B69: GEÇMİŞ YIL ZARARLARI -
B70: İNDİRİMLER - | C70: 100000 | D70: AZAMİ YAZILABİLECEK İNDİRİMLER TUTARI | E70: =C59+C63-C64-C65-C69 -> 2100000
B72: 1 PUAN İNDİRİM UYGULANACAK TUTARIN HESABINDA İSTİSNA KAZANÇLAR DÜŞÜLDÜKTEN SONRA BULUNAN TİCARİ KAZANÇ TUTARI İLE İHRACAT,İMALAT VE DİĞER KAZANÇLARIN TUTARI | C72: TİCARİ KAZANÇ TAN İhracat ve İmalat Kazancından İstisna Olan Tutarlar Düşüldükten Sonra Kalan Tutarı | D72: İhracat Faaliyetinden Elde Edilen Kazançtan İstisna Olan Kısım Düşüldükten Sonra Bulunan Tutarı | E72: Üretim Faaliyetinden Elde Edilen Kazançtan İstisna Olan Kısım Düşüldükten Sonra Bulunan Tutarı | F72: Diğer Faaliyetinden Elde Edilen Kazanç
C73: =IF(C59-C66-C67<=0,0,C59-C66-C67) -> 2000000 | D73: =IF($D$59-C66<=0,0,MIN($D$59-C66,$C$73*D61)) -> 1200000 | E73: =IF($E$59-C67<=0,0,MIN($E$59-C67,$C$73*E61)) -> 0 | F73: =IF(C73-D73-E73<=0,0,C73-D73-E73) -> 800000
B74: MATRAH DAĞITIM PAYLARI | D74: =IFERROR(IF(D73/C73<=0,0,D73/C73),0) -> 0.6 | E74: =IFERROR(IF(E73/C73<=0,0,E73/C73),0) -> 0 | F74: =IFERROR(F73/C73,0) -> 0.4
B75: İHRACAT, İMALAT VE DİĞER FAALİYETLERDEN ELDE EDİLEN KAZANCIN TOPLAM TİCARİ KAZANÇ İÇİNDEKİ PAYLARI | D75: =IFERROR(IF(AND(D73+E73>C73, F73<=0),1,(D73+E73)/C73),0) -> 0.6 | F75: =IFERROR(IF(F73<=0,0,F73/C73),0) -> 0.4
B76: NEGATİF VE % 100 DEN BÜYÜKLÜK KONTROLÜ SONRASINDAKİ PAYLARI | D76: =IFERROR(IF(D75<=0,0,IF(D75>1,1,D75)),0) -> 0.6 | F76: =IFERROR(IF(F75<=0,0,IF(F75>1,1,F75)),0) -> 0.4
B78: SAFİ KURUM KAZANCI (KURUMLAR VERGİSİ MATRAHI) | C78: =C59+C63-C64-C65-C69-C70 -> 2000000 | D78: =IF(C78<0, "ZARAR","KAR") -> KAR
B80: 2022 YILI 3. DÖNEM İNDİRİMLİ KURUMLAR VERGİSİ HESAPLAMA TABLOSU
C81: 1. TEŞVİK BELGESİ | D81: 2. TEŞVİK BELGESİ | E81: 3. TEŞVİK BELGESİ | F81: 4. TEŞVİK BELGESİ | G81: 5. TEŞVİK BELGESİ
B82: Vergi İndirim Oranı (VİO)
B83: KV MATRAHI (Safi Kurum Kazancı) | C83: =C78 -> 2000000
B84: 32/A Uygulanacak K.V. Matrahı (HER BİR TEŞVİK BELGESİ KAPSAMINDA YARARLANILABİLECEK YATIRIMA KATKI TUTARININ MATRAHI BU HÜCRELERE YAZILMALIDIR) | H84: =IF(SUM(C84:G84)>C78,"32/A İNDİRİMİ UYGULANACAK KAZANÇ, SAFİ KURUM KAZANCINDAN FAZLADIR",SUM(C84:G84)) -> 0
B85: 32/A UYGULANMAYACAK K.V. Matrahı | C85: =IF(C83-(C84+D84+E84+F84+G84)<0,0,C83-(C84+D84+E84+F84+G84)) -> 2000000
B86: MATRAH TOPLAMI | C86: =IF((C84+D84+E84+F84+G84+C85)>C78,C78,(C84+D84+E84+F84+G84+C85)) -> 2000000
B88: SAFİ KURUM KAZANCININ KV VERGİ ORANLARI İTİBARİYLE DAĞILIMI | C88: TOPLAM SAFİ KAZANÇ | D88: İhracat Kazancı Payı | E88: Üretim Kazancı Payı | F88: Diğer Faaliyet Kazancı Payı
C90: =C78 -> 2000000 | D90: =IF(AND(AND($D$59>0,($D$59+$E$59)>=$C$59,D59>=C66),$C$90>=MAX(D59,D73)), MIN(MAX(IF(D59<=C90,D59,IF(D73<=C90,D73)),$C$90*D74)), IF(OR(D59<=0,D73<=0),0, MIN( MAX( MAX( IF(D59<=C90,D59), IF(D73<=C90,D73) ), MIN($C$90*D74,D59,D73)),$C$90))) -> 1200000 | E90: =MIN( IF(AND(AND($E$59>0,($D$59+$E$59)>=$C$59,E59>=C67),$C$90>=MAX(E59,E73)), MIN(MAX(IF(E59<=C90,E59,IF(E73<=C90,E73)),$C$90*E74)), IF(OR(E59<=0,E73<=0),0, MIN( MAX( MAX( IF(E59<=C90,E59), IF(E73<=C90,E73) ), MIN($C$90*E74,E59,E73)),$C$90))),C90-D90) -> 0 | F90: =C90-D90-E90 -> 800000
B91: SAFİ KURUM KAZANCININ DAĞILIMI ORANSAL DAĞILIMI | C91: =C90 -> 2000000 | D91: =D90/C90 -> 0.6 | E91: =E90/C90 -> 0 | F91: =F90/C90 -> 0.4
B92: SAFİ KURUM KAZANCININ DAĞILIMI TUTARSAL | C92: =C91 -> 2000000 | D92: =D90 -> 1200000 | E92: =E90 -> 0 | F92: =F90 -> 800000
B93: SAFİ KURUM KAZANCI DAĞILIMI | C93: =C92 -> 2000000 | D93: =IFERROR(IF(D92/C92>=1,1,D92/C92),0) -> 0.6 | E93: =IFERROR(IF(E92/C92>=1,1,E92/C92),0) -> 0 | F93: =IFERROR(IF(F92/C92>=1,1,F92/C92),0) -> 0.4 | H93: KV ORANI
B94: 1 PUAN VE 32/A İNDİRİMİ OLMASAYDI HESAPLANAN KV TUTARI | C94: =C93*$H$94 -> 500000 | D94: =D92*$H$94 -> 300000 | E94: =E92*$H$94 -> 0 | F94: =F92*$H$94 -> 200000 | H94: 0.25
B95: 32/ A UYGULANAN MATRAH | C95: =C84+D84+E84+F84+G84 -> 0 | D95: =D107+D112+D117+D122+D127 -> 0 | E95: =D106+D111+D116+D121+D126 -> 0 | F95: =D105+D110+D115+D120+D125 -> 0
B96: 32/A UYGULANACAK MATRAH ÜZERİNDEN ÖDENECEK KV TUTARI | C96: =J108+J113+J118+J123+J128 -> 0 | D96: =J107+J112+J117+J122+J127 -> 0 | E96: =J106+J111+J116+J121+J126 -> 0 | F96: =J105+J110+J115+J120+J125 -> 0
B97: 32/A UYGULANMAYAN MATRAH | C97: =IF(C85<=0,0,C85) -> 2000000 | D97: =D132 -> 1200000 | E97: =D131 -> 0 | F97: =D130 -> 800000
B98: 32/A UYGULANMAYAN MATRAH ÜZERİNDEN ÖDENECEK KV TUTARI | C98: =L130 -> 440000 | D98: =J132 -> 240000 | E98: =J131 -> 0 | F98: =J130 -> 200000
B99: TOPLAM ÖDENECEK KV | C99: =C96+C98 -> 440000 | D99: =J132+J107 -> 240000 | E99: =J131+J106 -> 0 | F99: =J130+J105 -> 200000
B100: TOPLAM AVANTAJ (YARARLANILAN 1 PUAN İNDİRİMİ + 32/A İNDİRİMİ TUTARI ) | C100: =C94-C99 -> 60000 | D100: =D101+D102 -> 60000 | E100: =E101+E102 -> 0 | F100: =F101+F102 -> 0
B101: YARARLANILAN 1 - 5 PUAN İNDİRİMİ TUTARI | C101: =F133+F128+F123+F118+F113+F108 -> 60000 | D101: =F132+F107+F112+F117+F122+F127 -> 60000 | E101: =F131+F106+F111+F116+F121+F126 -> 0 | F101: =F130+F105+F110+F115+F120+F125 -> 0
B102: YARLANILAN 32/A İNDİRİMİ TUTARI | C102: =K108+K113+K118+K123+K128+K133 -> 0 | D102: =K107+K112+K122+K127+K132 -> 0 | E102: =K106+K111+K116+K121+K126+K131 -> 0 | F102: =K105++K110+K115+K120+K125+K130 -> 0
B104: 32/A UYGULANABİLECEK MATRAH (1.TEŞVİK BELGESİ) | C104: =C84 -> 0 | D104: KV MATRAHI | E104: 1 - 5 PUAN İNDİRİM OLMASAYDI HESAPLANAN KV TUTARI | F104: 1 -5 Puan İndirim Tutarı | G104: 1 - 5 Puan İndirim Sonrasında Hesaplanan KV Tutarı | H104: 32/A İndirimi Olmasaydı Ödenecek KV Tutarı | I104: 1 -5 Puan İndirim ve 32/A VİO Uygulandıktan Sonra Tatbik Edilecek KV Oranı | J104: 1 -5 Puan İndirim ve 32/A İndirimi Uygulandıktan Sonra Ödenecek KV Tutarı | K104: Yararlanılan Yatırıma Katkı Tutarı (32/A İnd. KV Nedeniyle Vazgeçilen Vergi Tutarı) | L104: Ödenecek KV Tutarı
B105: GENEL ORANA TABİ KISIM (DİĞER FAALİYETLER) | C105: =F93 -> 0.4 | D105: =C104*C105 -> 0 | E105: =D105*$H$94 -> 0 | F105: 0 | G105: =E105-F105 -> 0 | H105: =G105 -> 0 | I105: =($H$94)-(($H$94)*$C$82) -> 0.25 | J105: =I105*D105 -> 0 | K105: =G105-J105 -> 0 | L105: =J108 -> 0
B106: 1 PUAN İNDİRİMLİ ORANA TABİ KISIM (İMALAT) | C106: =E93 -> 0 | D106: =C104*C106 -> 0 | E106: =D106*$H$94 -> 0 | F106: =D106/100 -> 0 | G106: =E106-F106 -> 0 | H106: =G106 -> 0 | I106: =($H$94-0.01)-(($H$94-0.01)*$C$82) -> 0.24 | J106: =I106*D106 -> 0 | K106: =G106-J106 -> 0
B107: 5 PUAN İNDİRİMLİ ORANA TABİ KISIM ( İHRACAT) | C107: =D93 -> 0.6 | D107: =C104*C107 -> 0 | E107: =D107*$H$94 -> 0 | F107: =D107/20 -> 0 | G107: =E107-F107 -> 0 | H107: 0 | I107: =($H$94-0.05)-(($H$94-0.05)*C82) -> 0.2 | J107: 0 | K107: =G107-J107 -> 0
B108: TOPLAM | C108: =SUM(C105:C107) -> 1 | D108: =SUM(D105:D107) -> 0 | E108: 0 | F108: =SUM(F105:F107) -> 0 | G108: =SUM(G105:G107) -> 0 | H108: =SUM(H105:H107) -> 0 | J108: 0 | K108: 0
B109: 32/A UYGULANABİLECEK MATRAH (2.TEŞVİK BELGESİ) | C109: =D84 -> 0 | D109: KV MATRAHI | E109: 1 - 5 PUAN İNDİRİM OLMASAYDI HESAPLANAN KV TUTARI | F109: 1 -5 Puan İndirim Tutarı | G109: 1 -5 Puan İndirim Sonrasında Hesaplanan KV Tutarı | H109: 32/A İndirimi Olmasaydı Ödenecek KV Tutarı | I109: 1 - 5 Puan İndirim ve 32/A VİO Uygulandıktan Sonra Tatbik Edilecek KV Oranı | J109: 1-5 Puan İndirim ve 32/A İndirimi Uygulandıktan Sonra Ödenecek KV Tutarı | K109: Yararlanılan Yatırıma Katkı Tutarı (32/A İnd. KV Nedeniyle Vazgeçilen Vergi Tutarı) | L109: Ödenecek KV Tutarı
B110: GENEL ORANA TABİ KISIM (DİĞER FAALİYETLER) | C110: =F93 -> 0.4 | D110: =C109*C110 -> 0 | E110: =D110*$H$94 -> 0 | F110: 0 | G110: =E110-F110 -> 0 | H110: =G110 -> 0 | I110: =($H$94)-(($H$94)*D82) -> 0.25 | J110: =I110*D110 -> 0 | K110: =G110-J110 -> 0 | L110: =J113 -> 0
B111: 1 PUAN İNDİRİMLİ ORANA TABİ KISIM (İMALAT) | C111: =E93 -> 0 | D111: =C109*C111 -> 0 | E111: =D111*$H$94 -> 0 | F111: =D111/100 -> 0 | G111: =E111-F111 -> 0 | H111: =G111 -> 0 | I111: =($H$94-0.01)-(($H$94-0.01)*D82) -> 0.24 | J111: =I111*D111 -> 0 | K111: =G111-J111 -> 0
B112: 5 PUAN İNDİRİMLİ ORANA TABİ KISIM ( İHRACAT) | C112: =D93 -> 0.6 | D112: =C109*C112 -> 0 | E112: =D112*$H$94 -> 0 | F112: =D112/20 -> 0 | G112: =E112-F112 -> 0 | H112: 0 | I112: =($H$94-0.05)-(($H$94-0.05)*D82) -> 0.2 | J112: 0 | K112: =G112-J112 -> 0
B113: TOPLAM | C113: =SUM(C110:C112) -> 1 | D113: 0 | E113: 0 | F113: =SUM(F110:F112) -> 0 | G113: =SUM(G110:G112) -> 0 | H113: =SUM(H110:H112) -> 0 | J113: =SUM(J110:J112) -> 0 | K113: 0
B114: 32/A UYGULANABİLECEK MATRAH (3.TEŞVİK BELGESİ) | C114: =E84 -> 0 | D114: KV MATRAHI | E114: 1 - 5 PUAN İNDİRİM OLMASAYDI HESAPLANAN KV TUTARI | F114: 1-5 Puan İndirim Tutarı | G114: 1 - 5 Puan İndirim Sonrasında Hesaplanan KV Tutarı | H114: 32/A İndirimi Olmasaydı Ödenecek KV Tutarı | I114: 1 - 5 Puan İndirim ve 32/A VİO Uygulandıktan Sonra Tatbik Edilecek KV Oranı | J114: 1 -5 Puan İndirim ve 32/A İndirimi Uygulandıktan Sonra Ödenecek KV Tutarı | K114: Yararlanılan Yatırıma Katkı Tutarı (32/A İnd. KV Nedeniyle Vazgeçilen Vergi Tutarı) | L114: Ödenecek KV Tutarı
B115: GENEL ORANA TABİ KISIM (DİĞER FAALİYETLER) | C115: =F93 -> 0.4 | D115: =C114*C115 -> 0 | E115: =D115*$H$94 -> 0 | F115: 0 | G115: =E115-F115 -> 0 | H115: =G115 -> 0 | I115: =($H$94)-(($H$94)*E82) -> 0.25 | J115: =I115*D115 -> 0 | K115: =G115-J115 -> 0 | L115: =J118 -> 0
B116: 1 PUAN İNDİRİMLİ ORANA TABİ KISIM (İMALAT) | C116: =E93 -> 0 | D116: =C114*C116 -> 0 | E116: =D116*$H$94 -> 0 | F116: =D116/100 -> 0 | G116: =E116-F116 -> 0 | H116: =G116 -> 0 | I116: =($H$94-0.01)-(($H$94-0.01)*E82) -> 0.24 | J116: =I116*D116 -> 0 | K116: =G116-J116 -> 0
B117: 5 PUAN İNDİRİMLİ ORANA TABİ KISIM ( İHRACAT) | C117: =D93 -> 0.6 | D117: =C114*C117 -> 0 | E117: =D117*$H$94 -> 0 | F117: =D117/20 -> 0 | G117: =E117-F117 -> 0 | H117: 0 | I117: =($H$94-0.05)-(($H$94-0.05)*E82) -> 0.2 | J117: 0 | K117: =G117-J117 -> 0
B118: TOPLAM | C118: =SUM(C115:C117) -> 1 | D118: 0 | E118: 0 | F118: =SUM(F115:F117) -> 0 | G118: =SUM(G115:G117) -> 0 | H118: =SUM(H115:H117) -> 0 | J118: =SUM(J115:J117) -> 0 | K118: 0
B119: 32/A UYGULANABİLECEK MATRAH (4. TEŞVİK BELGESİ) | C119: =F84 -> 0 | D119: KV MATRAHI | E119: 1 - 5 PUAN İNDİRİM OLMASAYDI HESAPLANAN KV TUTARI | F119: 1-5 Puan İndirim Tutarı | G119: 1 -5 Puan İndirim Sonrasında Hesaplanan KV Tutarı | H119: 32/A İndirimi Olmasaydı Ödenecek KV Tutarı | I119: 1- 5 Puan İndirim ve 32/A VİO Uygulandıktan Sonra Tatbik Edilecek KV Oranı | J119: 1-5 Puan İndirim ve 32/A İndirimi Uygulandıktan Sonra Ödenecek KV Tutarı | K119: Yararlanılan Yatırıma Katkı Tutarı (32/A İnd. KV Nedeniyle Vazgeçilen Vergi Tutarı) | L119: Ödenecek KV Tutarı
B120: GENEL ORANA TABİ KISIM (DİĞER FAALİYETLER) | C120: =F93 -> 0.4 | D120: =C119*C120 -> 0 | E120: =D120*$H$94 -> 0 | F120: 0 | G120: =E120-F120 -> 0 | H120: =G120 -> 0 | I120: =($H$94)-(($H$94)*F82) -> 0.25 | J120: =I120*D120 -> 0 | K120: =G120-J120 -> 0 | L120: =J123 -> 0
B121: 1 PUAN İNDİRİMLİ ORANA TABİ KISIM (İMALAT) | C121: =E93 -> 0 | D121: =C119*C121 -> 0 | E121: =D121*$H$94 -> 0 | F121: =D121/100 -> 0 | G121: =E121-F121 -> 0 | H121: =G121 -> 0 | I121: =($H$94-0.01)-(($H$94-0.01)*F82) -> 0.24 | J121: =I121*D121 -> 0 | K121: =G121-J121 -> 0
B122: 5 PUAN İNDİRİMLİ ORANA TABİ KISIM ( İHRACAT) | C122: =D93 -> 0.6 | D122: =C119*C122 -> 0 | E122: =D122*$H$94 -> 0 | F122: =D122/20 -> 0 | G122: =E122-F122 -> 0 | H122: 0 | I122: =($H$94-0.05)-(($H$94-0.05)*F82) -> 0.2 | J122: 0 | K122: =G122-J122 -> 0
B123: TOPLAM | C123: =SUM(C120:C122) -> 1 | D123: 0 | E123: 0 | F123: =SUM(F120:F122) -> 0 | G123: =SUM(G120:G122) -> 0 | H123: =SUM(H120:H122) -> 0 | J123: =SUM(J120:J122) -> 0 | K123: 0
B124: 32/A UYGULANABİLECEK MATRAH (5.TEŞVİK BELGESİ) | C124: =G84 -> 0 | D124: KV MATRAHI | E124: 1 - 5 PUAN İNDİRİM OLMASAYDI HESAPLANAN KV TUTARI | F124: 1-5 Puan İndirim Tutarı | G124: 1 - 5 Puan İndirim Sonrasında Hesaplanan KV Tutarı | H124: 32/A İndirimi Olmasaydı Ödenecek KV Tutarı | I124: 1 -5 Puan İndirim ve 32/A VİO Uygulandıktan Sonra Tatbik Edilecek KV Oranı | J124: 1 - 5 Puan İndirim ve 32/A İndirimi Uygulandıktan Sonra Ödenecek KV Tutarı | K124: Yararlanılan Yatırıma Katkı Tutarı (32/A İnd. KV Nedeniyle Vazgeçilen Vergi Tutarı) | L124: Ödenecek KV Tutarı
B125: GENEL ORANA TABİ KISIM (DİĞER FAALİYETLER) | C125: =F93 -> 0.4 | D125: =C124*C125 -> 0 | E125: =D125*$H$94 -> 0 | F125: 0 | G125: =E125-F125 -> 0 | H125: =G125 -> 0 | I125: =($H$94)-(($H$94)*G82) -> 0.25 | J125: =I125*D125 -> 0 | K125: =G125-J125 -> 0 | L125: =J128 -> 0
B126: 1 PUAN İNDİRİMLİ ORANA TABİ KISIM (İMALAT) | C126: =E93 -> 0 | D126: =C124*C126 -> 0 | E126: =D126*$H$94 -> 0 | F126: =D126/100 -> 0 | G126: =E126-F126 -> 0 | H126: =G126 -> 0 | I126: =($H$94-0.01)-(($H$94-0.01)*G82) -> 0.24 | J126: =I126*D126 -> 0 | K126: =G126-J126 -> 0
B127: 5 PUAN İNDİRİMLİ ORANA TABİ KISIM ( İHRACAT) | C127: =D93 -> 0.6 | D127: =C124*C127 -> 0 | E127: =D127*$H$94 -> 0 | F127: =D127/20 -> 0 | G127: =E127-F127 -> 0 | H127: 0 | I127: =($H$94-0.05)-(($H$94-0.05)*G82) -> 0.2 | J127: 0 | K127: =G127-J127 -> 0
B128: TOPLAM | C128: =SUM(C125:C127) -> 1 | D128: 0 | E128: 0 | F128: =SUM(F125:F127) -> 0 | G128: =SUM(G125:G127) -> 0 | H128: =SUM(H125:H127) -> 0 | J128: =SUM(J125:J127) -> 0 | K128: 0
B129: 32/A UYGULANAMAYACAK MATRAH | C129: =IF(C85<=0,0,C85) -> 2000000 | D129: KV MATRAHI | E129: 1-5 PUAN İNDİRİM OLMASAYDI HESAPLANAN KV TUTARI | F129: 1-5 Puan İndirim Tutarı | G129: 1 -5 Puan İndirim Sonrasında Hesaplanan KV Tutarı | H129: 32/A İNDİRİMİ UYGULANMAZ | J129: 1 Puan İndirim ve 32/A İndirimi Uygulandıktan Sonra Ödenecek KV Tutarı | K129: Yararlanılan Yatırıma Katkı Tutarı (32/A İnd. KV Nedeniyle Vazgeçilen Vergi Tutarı) | L129: Ödenecek KV Tutarı
B130: GENEL ORANA TABİ KISIM (DİĞER FAALİYETLER) | C130: =F93 -> 0.4 | D130: =C129*C130 -> 800000 | E130: =D130*$H$94 -> 200000 | F130: 0 | G130: =E130-F130 -> 200000 | J130: =G130 -> 200000 | K130: =G130-J130 -> 0 | L130: =J133 -> 440000
B131: 1 PUAN İNDİRİMLİ ORANA TABİ KISIM (İMALAT) | C131: =E93 -> 0 | D131: =C131*C129 -> 0 | E131: =D131*$H$94 -> 0 | F131: =D131/100 -> 0 | G131: =E131-F131 -> 0 | J131: =G131 -> 0 | K131: =G131-J131 -> 0
B132: 5 PUAN İNDİRİMLİ ORANA TABİ KISIM ( İHRACAT) | C132: =D93 -> 0.6 | D132: =C132*C129 -> 1200000 | E132: =D132*$H$94 -> 300000 | F132: =D132/20 -> 60000 | G132: =E132-F132 -> 240000 | J132: 240000 | K132: 0
B133: TOPLAM | C133: =SUM(C130:C132) -> 1 | D133: =SUM(D130:D132) -> 2000000 | E133: 500000 | F133: =SUM(F130:F132) -> 60000 | G133: =SUM(G130:G132) -> 440000 | J133: 440000 | K133: 0
B134: TOPLAM KV MATRAHI VE ÖDENMESİ GEREKEN KV | C134: =C104+C129+C109+C114+C119+C124 -> 2000000 | D134: =D108+D133+D113+D118+D123+D128 -> 2000000 | E134: =E108+E133+E113+E118+E123+E128 -> 500000 | F134: =F108+F133+F113+F118+F123+F128 -> 60000 | G134: =G108+G133+G113+G118+G123+G128 -> 440000 | J134: =J108+J133+J113+J118+J123+J128 -> 440000 | K134: =K133+K108+K113+K118+K123+K128 -> 0 | L134: =L105+L130+L110+L115+L120+L125 -> 440000
B136: GEÇİCİ VERGİ BEYANNMESİNDE MATRAH BİLDİRİMİ BÖLÜMÜNDE DOLDURULACAK KISIMLAR VE TUTARLARI
B137: 32 A Madde Kapsamında İndirimli Kurumlar Vergisine (Geçici Vergiye) Tabi Matrah | C137: =C104+C109+C114+C119+C124 -> 0 | D137: =E108+E113+E118+E123+E128 -> 0 | E137: 1-5 Puan Olmasaydı Hesaplan KV Tutarı
D138: =G108+G113+G118+G123++G128 -> 0 | E138: 1 -5 Puan İndirim Sonrasında Ödenecek KV Tutarı (32 A olmasaydı hesaplanacak Vergi)
D139: =K108+K113+K118+K123+K128 -> 0 | E139: 32/A İndirimi ile Vazgeçilen Vergi
B140: 32 A Madde Kapsamında İndirimli Kurumlar Vergisi(Geçici Vergi) Oranı | C140: =IFERROR(D140/C137,0) -> 0 | D140: =L105+L110+L115+L120+L125 -> 0 | E140: 32/A ya Tabi Matrah Üzerinden Ödenecek KV
B141: 32/7 Madde Kapsamında İndirimli Kurumlar Vergisine (Geçici Vergiye) Tabi Matrah (İhracat) | C141: =D132 -> 1200000 | D141: =E132 -> 300000 | E141: 5 Puan Olmasaydı Hesaplan KV Tutarı
D142: =F132 -> 60000 | E142: 5 Puan İndirimin Vergi Etkisi
B143: 32/7 Madde Kapsamında İndirimli Kurumlar Vergisi (Geçici Vergi) Oranı | C143: =IFERROR(D143/C141,0) -> 0.2 | D143: =G132 -> 240000 | E143: 5 Puan İndirim Sonrasında Ödenecek KV Tutarı (İhracat)
B144: 32/8 Madde Kapsamında İndirimli Kurumlar Vergisine (Geçici Vergiye) Tabi Matrah (Üretim) | C144: =D131 -> 0 | D144: =E131 -> 0 | E144: 1 Puan Olmasaydı Hesaplan KV Tutarı
D145: =F131 -> 0 | E145: 1 Puan İndirimin Vergi Etkisi
B146: 32/8 Madde Kapsamında İndirimli Kurumlar Vergisi (Geçici Vergi) Oranı | C146: =IFERROR(D146/C144,0) -> 0 | D146: =G131 -> 0 | E146: 1 Puan İndirim Sonrasında Ödenecek KV Tutarı (Üretim)
B147: Genel Orana Tabi Matrah (Diğer) | C147: =D130 -> 800000 | D147: =J130 -> 200000 | E147: Diğer Faalilyetlerden Elde Edilen Kazanç
C148: =IFERROR(D147/C147,0) -> 0.25
B149: MATRAHLAR TOPLAMI | C149: =C137+C144+C141+C147 -> 2000000 | D149: =D140+D146+D143+D147 -> 440000

Sheet İ Ö 3 (hidden)
B2: FAALİYET TÜRLERİ İTİBARİYLE HASILATLAR VE TOPLAM İÇİNDEKİ ORANLARI | C2: =IFERROR(C4/C4,0) -> 1 | D2: =IFERROR(D4/C4,0) -> 1.2 | E2: =IFERROR(E4/C4,0) -> 0 | F2: =IFERROR(F4/C4,0) -> -0.2
C3: Toplam Hasılat | D3: İhracat faaliyeti | E3: İmalat faaliyeti | F3: Diğer faaliyetler
B4: A-BRÜT SATIŞLAR (60) | C4: =D4+E4+F4 -> 500000 | D4: =SUM(D5:D7) -> 600000 | E4: =SUM(E5:E7) -> 0 | F4: -100000
B5: 1-Yurtiçi Satışlar (600) | C5: =D5+E5+F5 -> -100000 | F5: -100000
B6: 2-Yurtdışı Satışlar (601) | C6: =D6+E6+F6 -> 600000 | D6: 600000
B7: 3-Diğer Gelirler (602) | C7: =D7+E7+F7 -> 0
B8: B-SATIŞ İNDİRİMLERİ(-) (61) | C8: =SUM(C9:C11) -> 0 | D8: =SUM(D9:D11) -> 0 | E8: =SUM(E9:E11) -> 0 | F8: 0
B9: 1-Satıştan İadeler (-) (610) | C9: =SUM(D9:F9) -> 0
B10: 2- Satış İskontoları (-) (611) | C10: =SUM(D10:F10) -> 0
B11: 3-Diğer İndirimler (-) (612) | C11: 0
B12: C-NET SATIŞLAR | C12: =C4-C8 -> 500000 | D12: =D4-D8 -> 600000 | E12: =E4-E8 -> 0 | F12: -100000
B13: D-SATIŞLARIN MALİYETİ (-) (62) | C13: =SUM(C14:C17) -> 0 | D13: =SUM(D14:D17) -> 0 | E13: =SUM(E14:E17) -> 0 | F13: =SUM(F14:F17) -> 0
B14: 1-Satılan Mamuller Maliyeti ( 620) | C14: =SUM(D14:F14) -> 0
B15: 2-Satılan Ticari Mal Maliyeti (621) | C15: =SUM(D15:F15) -> 0
B16: 3-Satılan Hizmet Maliyeti (622) | C16: 0
B17: 4-Diğer Satışların Maliyeti (623) | C17: 0
B18: BRÜT SATIŞ KARI / ZARARI | C18: =C12-C13 -> 500000 | D18: =D12-D13 -> 600000 | E18: =E12-E13 -> 0 | F18: -100000
B19: E-FAALİYET GİDERLERİ (-) (63) | C19: =SUM(C20:C24) -> 0 | D19: =SUM(D20:D24) -> 0 | E19: =SUM(E20:E24) -> 0 | F19: 0
B20: 1-Araştırma ve Geliştirme Giderleri(-) (630) | C20: =SUM(D20:F20) -> 0
B21: 2-Pazarlama, Satış ve Dağıtım Giderleri(-) (631) | C21: =SUM(D21:F21) -> 0
B22: 3-Genel Yönetim Giderleri(-) (632) | C22: =SUM(D22:F22) -> 0
B23: MÜŞTEREK GENEL GİDERLER (DAĞITIM-HASILAT PAYINA GÖRE) | D23: =C23*D2 -> 0 | E23: =C23*E2 -> 0 | F23: =C23*F2 -> 0
B24: MÜŞTEREK GENEL GİDER GİBİ DAĞITIMA TABİ TUTULACAK AMORTİSMAN GİDERLERİ (DAĞITIM-HASILAT PAYINA GÖRE) | D24: =C24*D2 -> 0 | E24: =C24*E2 -> 0 | F24: =C24*F2 -> 0
B25: FAALİYET KARI / ZARARI | C25: =C18-C19 -> 500000 | D25: =D18-D19 -> 600000 | E25: =E18-E19 -> 0 | F25: -100000
B26: F-DİĞER FAALİYETLERDEN OLAĞAN GELİR VE KARLAR (64) | C26: =SUM(C27:C35) -> 0 | D26: =SUM(D27:D35) -> 0 | E26: =SUM(E27:E35) -> 0 | F26: =SUM(F27:F35) -> 0
B27: 1- İŞTİRAKLERDEN TEMETTÜ GELİRLERİ (640) | C27: =SUM(D27:F27) -> 0
B28: 2- BAĞLI ORTAKLIKLARDAN TEMETTÜ GELİRLERİ (641) | C28: =SUM(D28:F28) -> 0
B29: 3- FAİZ GELİRLERİ (642) (ihracat ve imalat kaynaklı alacağın tahsiline kadar olan süreçte oluşan) | C29: 0
B30: 4- KOMİSYON GELİRLERİ (643) | C30: 0
B31: 5- KONUSU OLMAYAN KARŞILIKLAR (644) | C31: 0
B32: 6- MENKUL KIYMET SATIŞ KARLARI (645) | C32: 0
B33: 7- KAMBİYO KARLARI (646) (ihracat ve imalat kaynaklı alacağın tahsiline kadar olan süreçte oluşan) | C33: 0
B34: 8- REESKONT FAİZ GELİRLERİ (647) | C34: 0
B35: 9- FAALİYETLE İLGİLİ DİĞER GELİR VE KARLAR (649) | C35: 0
B36: ARA TOPLAM | C36: =C25+C26 -> 500000 | D36: =D25+D26 -> 600000 | E36: =E25+E26 -> 0 | F36: =F25+F26 -> -100000
B37: G-DİĞER FAALİYETLERDEN OLAĞAN GİDER VE ZARARLAR(-) (65) | C37: =SUM(C38:C43) -> 0 | D37: =SUM(D38:D43) -> 0 | E37: =SUM(E38:E43) -> 0 | F37: 0
B38: 1- KOMİSYON GİDERLERİ (653) | C38: =SUM(D38:F38) -> 0
B39: 2- KARŞILIK GİDERLERİ (654) | C39: =SUM(D39:F39) -> 0
B40: 3- MENKUL KIYMET SATIŞ ZARARLARI (655) | C40: 0
B41: 4- KAMBİYO ZARARLARI (656) (ihracat ve imalat kaynaklı alacağın tahsiline kadar olan süreçte oluşan) | C41: 0
B42: 5- REESKONT FAİZ GİDERLERİ (657) | C42: 0
B43: 6- DİĞER OLAĞAN GİDER VE ZARARLAR (659) | C43: =SUM(D43:F43) -> 0
B44: ARA TOPLAM | C44: =C36-C37 -> 500000 | D44: =D36-D37 -> 600000 | E44: =E36-E37 -> 0 | F44: -100000
B45: H-FİNANSMAN GİDERLERİ(-) (66) | C45: =SUM(C46:C49) -> 0 | D45: =SUM(D46:D49) -> 0 | E45: =SUM(E46:E49) -> 0 | F45: =SUM(F46:F49) -> 0
B46: 1- KISA VADELİ BORÇLANMA GİDERLERİ (-) | C46: =SUM(D46:F46) -> 0
B47: 2- UZUN VADELİ BORÇLANMA GİDERLERİ (-) | C47: =SUM(D47:F47) -> 0
B48: 1- KISA VADELİ BORÇLANMA GİDERLERİ (-) (DAĞITIM) | D48: =C48*D2 -> 0 | E48: =C48*E2 -> 0 | F48: =C48*F2 -> 0
B49: 2- UZUN VADELİ BORÇLANMA GİDERLERİ (-) (DAĞITIM) | D49: =C49*D2 -> 0 | E49: =C49*E2 -> 0 | F49: =C49*F2 -> 0
B50: ARA TOPLAM | C50: =C44-C45 -> 500000 | D50: =D44-D45 -> 600000 | E50: =E44-E45 -> 0 | F50: =F44-F45 -> -100000
B51: I-OLAĞANDIŞI GELİR VE KÂRLAR (67) | C51: =SUM(D51:F51) -> 0 | D51: =SUM(D52:D53) -> 0 | E51: =SUM(E52:E53) -> 0 | F51: =SUM(F52:F53) -> 0
B52: 1- ÖNCEKİ DÖNEM GELİR VE KARLARI (671) | C52: =SUM(D52:F52) -> 0
B53: 2-DİĞER OLAĞAN DIŞI GELİR VE KARLAR (679) | C53: =SUM(D53:F53) -> 0
B54: ARA TOPLAM | C54: =SUM(D54:F54) -> 500000 | D54: =D50+D51 -> 600000 | E54: =E50+E51 -> 0 | F54: -100000
B55: J-OLAĞANDIŞI GİDER VE ZARARLAR(-) (68) | C55: =SUM(C56:C58) -> 0 | D55: =SUM(D56:D58) -> 0 | E55: =SUM(E56:E58) -> 0 | F55: 0
B56: 1-Çalışmayan Kısım Gider ve Zararları(-) (680) | C56: =SUM(D56:F56) -> 0
B57: 2-Önceki Dönem Gider ve Zararları(-) (681) | C57: =SUM(D57:F57) -> 0
B58: 3-Diğer Olağan Dışı Gider ve Zararlar(-) (689) | C58: 0
B59: DÖNEM KÂRI VEYA ZARARI (TİCARİ BİLANÇO KARI ZARARI ) | C59: =C54-C55 -> 500000 | D59: =D54-D55 -> 600000 | E59: =E54-E55 -> 0 | F59: -100000
B60: İHRACAT, İMALAT VE DİĞER FAALİYETLERDEN ELDE EDİLEN KAZANCIN TOPLAM TİCARİ KAZANÇ İÇİNDEKİ PAYLARI (Kazançlar arasında Öncelik İhracat Kazancına Verilmiştir. İhrcat Kazancından arta kalan Ticari Kazanç İmalat ve Diğer Faaliyetlere Sayılmıştır.) | D60: =IF(D59>=$C$59,1, IF(D59<=0,0, IF(AND(D59>0,D59<$C$59),D59/$C$59))) -> 1 | E60: =IF(E59>=$C$59,1, IF(E59<=0,0, IF(AND(E59>0,E59<$C$59),E59/$C$59))) -> 0 | F60: =IF(F59>=$C$59,1, IF(F59<=0,0, IF(AND(F59>0,F59<$C$59),F59/$C$59))) -> 0
D61: =D60/(D60+E60+F60) -> 1 | E61: =E60/(D60+E60+F60) -> 0 | F61: =F60/(D60+E60+F60) -> 0
B63: KKEG + | C63: 300000
B64: KABUL EDİLMEYEN GELİRLER -
B65: ZARAR OLSA DAHİ İNDİRİLECEK İSTİSNALAR - | C65: =C66+C67+C68 -> 0
B66: Hizmet İhracatı Faaliyetinden (KVK 10-1/ğ) Elde Edilen Kazançlardan İstisna Edilenlerin Toplamı
B67: İmalat Faaliyetinden Elde Edilen Kazançlardan İstisna Edilenlerin Toplamı
B68: Diğer Faaliyetlerden Elde Edilen Kazançlardan İstisna Edilenlerin Toplamı
B69: GEÇMİŞ YIL ZARARLARI -
B70: İNDİRİMLER - | D70: AZAMİ YAZILABİLECEK İNDİRİMLER TUTARI | E70: =C59+C63-C64-C65-C69 -> 800000
B72: 1 PUAN İNDİRİM UYGULANACAK TUTARIN HESABINDA İSTİSNA KAZANÇLAR DÜŞÜLDÜKTEN SONRA BULUNAN TİCARİ KAZANÇ TUTARI İLE İHRACAT,İMALAT VE DİĞER KAZANÇLARIN TUTARI | C72: TİCARİ KAZANÇ TAN İhracat ve İmalat Kazancından İstisna Olan Tutarlar Düşüldükten Sonra Kalan Tutarı | D72: İhracat Faaliyetinden Elde Edilen Kazançtan İstisna Olan Kısım Düşüldükten Sonra Bulunan Tutarı | E72: Üretim Faaliyetinden Elde Edilen Kazançtan İstisna Olan Kısım Düşüldükten Sonra Bulunan Tutarı | F72: Diğer Faaliyetinden Elde Edilen Kazanç
C73: =IF(C59-C66-C67<=0,0,C59-C66-C67) -> 500000 | D73: =IF($D$59-C66<=0,0,MIN($D$59-C66,$C$73*D61)) -> 500000 | E73: =IF($E$59-C67<=0,0,MIN($E$59-C67,$C$73*E61)) -> 0 | F73: =IF(C73-D73-E73<=0,0,C73-D73-E73) -> 0
B74: MATRAH DAĞITIM PAYLARI | D74: =IFERROR(IF(D73/C73<=0,0,D73/C73),0) -> 1 | E74: =IFERROR(IF(E73/C73<=0,0,E73/C73),0) -> 0 | F74: =IFERROR(F73/C73,0) -> 0
B75: İHRACAT, İMALAT VE DİĞER FAALİYETLERDEN ELDE EDİLEN KAZANCIN TOPLAM TİCARİ KAZANÇ İÇİNDEKİ PAYLARI | D75: =IFERROR(IF(AND(D73+E73>C73, F73<=0),1,(D73+E73)/C73),0) -> 1 | F75: =IFERROR(IF(F73<=0,0,F73/C73),0) -> 0
B76: NEGATİF VE % 100 DEN BÜYÜKLÜK KONTROLÜ SONRASINDAKİ PAYLARI | D76: =IFERROR(IF(D75<=0,0,IF(D75>1,1,D75)),0) -> 1 | F76: =IFERROR(IF(F75<=0,0,IF(F75>1,1,F75)),0) -> 0
B78: SAFİ KURUM KAZANCI (KURUMLAR VERGİSİ MATRAHI) | C78: =C59+C63-C64-C65-C69-C70 -> 800000 | D78: =IF(C78<0, "ZARAR","KAR") -> KAR
B80: 2022 YILI 3. DÖNEM İNDİRİMLİ KURUMLAR VERGİSİ HESAPLAMA TABLOSU
C81: 1. TEŞVİK BELGESİ | D81: 2. TEŞVİK BELGESİ | E81: 3. TEŞVİK BELGESİ | F81: 4. TEŞVİK BELGESİ | G81: 5. TEŞVİK BELGESİ
B82: Vergi İndirim Oranı (VİO)
B83: KV MATRAHI (Safi Kurum Kazancı) | C83: =C78 -> 800000
B84: 32/A Uygulanacak K.V. Matrahı (HER BİR TEŞVİK BELGESİ KAPSAMINDA YARARLANILABİLECEK YATIRIMA KATKI TUTARININ MATRAHI BU HÜCRELERE YAZILMALIDIR) | H84: =IF(SUM(C84:G84)>C78,"32/A İNDİRİMİ UYGULANACAK KAZANÇ, SAFİ KURUM KAZANCINDAN FAZLADIR",SUM(C84:G84)) -> 0
B85: 32/A UYGULANMAYACAK K.V. Matrahı | C85: =IF(C83-(C84+D84+E84+F84+G84)<0,0,C83-(C84+D84+E84+F84+G84)) -> 800000
B86: MATRAH TOPLAMI | C86: =IF((C84+D84+E84+F84+G84+C85)>C78,C78,(C84+D84+E84+F84+G84+C85)) -> 800000
B88: SAFİ KURUM KAZANCININ KV VERGİ ORANLARI İTİBARİYLE DAĞILIMI | C88: TOPLAM SAFİ KAZANÇ | D88: İhracat Kazancı Payı | E88: Üretim Kazancı Payı | F88: Diğer Faaliyet Kazancı Payı
C90: =C78 -> 800000 | D90: =IF(AND(AND($D$59>0,($D$59+$E$59)>=$C$59,D59>=C66),$C$90>=MAX(D59,D73)), MIN(MAX(IF(D59<=C90,D59,IF(D73<=C90,D73)),$C$90*D74)), IF(OR(D59<=0,D73<=0),0, MIN( MAX( MAX( IF(D59<=C90,D59), IF(D73<=C90,D73) ), MIN($C$90*D74,D59,D73)),$C$90))) -> 800000 | E90: =MIN( IF(AND(AND($E$59>0,($D$59+$E$59)>=$C$59,E59>=C67),$C$90>=MAX(E59,E73)), MIN(MAX(IF(E59<=C90,E59,IF(E73<=C90,E73)),$C$90*E74)), IF(OR(E59<=0,E73<=0),0, MIN( MAX( MAX( IF(E59<=C90,E59), IF(E73<=C90,E73) ), MIN($C$90*E74,E59,E73)),$C$90))),C90-D90) -> 0 | F90: =C90-D90-E90 -> 0
B91: SAFİ KURUM KAZANCININ DAĞILIMI ORANSAL DAĞILIMI | C91: =C90 -> 800000 | D91: =D90/C90 -> 1 | E91: =E90/C90 -> 0 | F91: =F90/C90 -> 0
B92: SAFİ KURUM KAZANCININ DAĞILIMI TUTARSAL | C92: =C91 -> 800000 | D92: =D90 -> 800000 | E92: =E90 -> 0 | F92: =F90 -> 0
B93: SAFİ KURUM KAZANCI DAĞILIMI | C93: =C92 -> 800000 | D93: =IFERROR(IF(D92/C92>=1,1,D92/C92),0) -> 1 | E93: =IFERROR(IF(E92/C92>=1,1,E92/C92),0) -> 0 | F93: =IFERROR(IF(F92/C92>=1,1,F92/C92),0) -> 0 | H93: KV ORANI
B94: 1 PUAN VE 32/A İNDİRİMİ OLMASAYDI HESAPLANAN KV TUTARI | C94: =C93*$H$94 -> 200000 | D94: =D92*$H$94 -> 200000 | E94: =E92*$H$94 -> 0 | F94: =F92*$H$94 -> 0 | H94: 0.25
B95: 32/ A UYGULANAN MATRAH | C95: =C84+D84+E84+F84+G84 -> 0 | D95: =D107+D112+D117+D122+D127 -> 0 | E95: =D106+D111+D116+D121+D126 -> 0 | F95: =D105+D110+D115+D120+D125 -> 0
B96: 32/A UYGULANACAK MATRAH ÜZERİNDEN ÖDENECEK KV TUTARI | C96: =J108+J113+J118+J123+J128 -> 0 | D96: =J107+J112+J117+J122+J127 -> 0 | E96: =J106+J111+J116+J121+J126 -> 0 | F96: =J105+J110+J115+J120+J125 -> 0
B97: 32/A UYGULANMAYAN MATRAH | C97: =IF(C85<=0,0,C85) -> 800000 | D97: =D132 -> 800000 | E97: =D131 -> 0 | F97: =D130 -> 0
B98: 32/A UYGULANMAYAN MATRAH ÜZERİNDEN ÖDENECEK KV TUTARI | C98: =L130 -> 160000 | D98: =J132 -> 160000 | E98: =J131 -> 0 | F98: =J130 -> 0
B99: TOPLAM ÖDENECEK KV | C99: =C96+C98 -> 160000 | D99: =J132+J107 -> 160000 | E99: =J131+J106 -> 0 | F99: =J130+J105 -> 0
B100: TOPLAM AVANTAJ (YARARLANILAN 1 PUAN İNDİRİMİ + 32/A İNDİRİMİ TUTARI ) | C100: =C94-C99 -> 40000 | D100: =D101+D102 -> 40000 | E100: =E101+E102 -> 0 | F100: =F101+F102 -> 0
B101: YARARLANILAN 1 - 5 PUAN İNDİRİMİ TUTARI | C101: =F133+F128+F123+F118+F113+F108 -> 40000 | D101: =F132+F107+F112+F117+F122+F127 -> 40000 | E101: =F131+F106+F111+F116+F121+F126 -> 0 | F101: =F130+F105+F110+F115+F120+F125 -> 0
B102: YARLANILAN 32/A İNDİRİMİ TUTARI | C102: =K108+K113+K118+K123+K128+K133 -> 0 | D102: =K107+K112+K122+K127+K132 -> 0 | E102: =K106+K111+K116+K121+K126+K131 -> 0 | F102: =K105++K110+K115+K120+K125+K130 -> 0
B104: 32/A UYGULANABİLECEK MATRAH (1.TEŞVİK BELGESİ) | C104: =C84 -> 0 | D104: KV MATRAHI | E104: 1 - 5 PUAN İNDİRİM OLMASAYDI HESAPLANAN KV TUTARI | F104: 1 -5 Puan İndirim Tutarı | G104: 1 - 5 Puan İndirim Sonrasında Hesaplanan KV Tutarı | H104: 32/A İndirimi Olmasaydı Ödenecek KV Tutarı | I104: 1 -5 Puan İndirim ve 32/A VİO Uygulandıktan Sonra Tatbik Edilecek KV Oranı | J104: 1 -5 Puan İndirim ve 32/A İndirimi Uygulandıktan Sonra Ödenecek KV Tutarı | K104: Yararlanılan Yatırıma Katkı Tutarı (32/A İnd. KV Nedeniyle Vazgeçilen Vergi Tutarı) | L104: Ödenecek KV Tutarı
B105: GENEL ORANA TABİ KISIM (DİĞER FAALİYETLER) | C105: =F93 -> 0 | D105: =C104*C105 -> 0 | E105: =D105*$H$94 -> 0 | F105: 0 | G105: =E105-F105 -> 0 | H105: =G105 -> 0 | I105: =($H$94)-(($H$94)*$C$82) -> 0.25 | J105: =I105*D105 -> 0 | K105: =G105-J105 -> 0 | L105: =J108 -> 0
B106: 1 PUAN İNDİRİMLİ ORANA TABİ KISIM (İMALAT) | C106: =E93 -> 0 | D106: =C104*C106 -> 0 | E106: =D106*$H$94 -> 0 | F106: =D106/100 -> 0 | G106: =E106-F106 -> 0 | H106: =G106 -> 0 | I106: =($H$94-0.01)-(($H$94-0.01)*$C$82) -> 0.24 | J106: =I106*D106 -> 0 | K106: =G106-J106 -> 0
B107: 5 PUAN İNDİRİMLİ ORANA TABİ KISIM ( İHRACAT) | C107: =D93 -> 1 | D107: =C104*C107 -> 0 | E107: =D107*$H$94 -> 0 | F107: =D107/20 -> 0 | G107: =E107-F107 -> 0 | H107: 0 | I107: =($H$94-0.05)-(($H$94-0.05)*C82) -> 0.2 | J107: 0 | K107: =G107-J107 -> 0
B108: TOPLAM | C108: =SUM(C105:C107) -> 1 | D108: =SUM(D105:D107) -> 0 | E108: 0 | F108: =SUM(F105:F107) -> 0 | G108: =SUM(G105:G107) -> 0 | H108: =SUM(H105:H107) -> 0 | J108: 0 | K108: 0
B109: 32/A UYGULANABİLECEK MATRAH (2.TEŞVİK BELGESİ) | C109: =D84 -> 0 | D109: KV MATRAHI | E109: 1 - 5 PUAN İNDİRİM OLMASAYDI HESAPLANAN KV TUTARI | F109: 1 -5 Puan İndirim Tutarı | G109: 1 -5 Puan İndirim Sonrasında Hesaplanan KV Tutarı | H109: 32/A İndirimi Olmasaydı Ödenecek KV Tutarı | I109: 1 - 5 Puan İndirim ve 32/A VİO Uygulandıktan Sonra Tatbik Edilecek KV Oranı | J109: 1-5 Puan İndirim ve 32/A İndirimi Uygulandıktan Sonra Ödenecek KV Tutarı | K109: Yararlanılan Yatırıma Katkı Tutarı (32/A İnd. KV Nedeniyle Vazgeçilen Vergi Tutarı) | L109: Ödenecek KV Tutarı
B110: GENEL ORANA TABİ KISIM (DİĞER FAALİYETLER) | C110: =F93 -> 0 | D110: =C109*C110 -> 0 | E110: =D110*$H$94 -> 0 | F110: 0 | G110: =E110-F110 -> 0 | H110: =G110 -> 0 | I110: =($H$94)-(($H$94)*D82) -> 0.25 | J110: =I110*D110 -> 0 | K110: =G110-J110 -> 0 | L110: =J113 -> 0
B111: 1 PUAN İNDİRİMLİ ORANA TABİ KISIM (İMALAT) | C111: =E93 -> 0 | D111: =C109*C111 -> 0 | E111: =D111*$H$94 -> 0 | F111: =D111/100 -> 0 | G111: =E111-F111 -> 0 | H111: =G111 -> 0 | I111: =($H$94-0.01)-(($H$94-0.01)*D82) -> 0.24 | J111: =I111*D111 -> 0 | K111: =G111-J111 -> 0
B112: 5 PUAN İNDİRİMLİ ORANA TABİ KISIM ( İHRACAT) | C112: =D93 -> 1 | D112: =C109*C112 -> 0 | E112: =D112*$H$94 -> 0 | F112: =D112/20 -> 0 | G112: =E112-F112 -> 0 | H112: 0 | I112: =($H$94-0.05)-(($H$94-0.05)*D82) -> 0.2 | J112: 0 | K112: =G112-J112 -> 0
B113: TOPLAM | C113: =SUM(C110:C112) -> 1 | D113: 0 | E113: 0 | F113: =SUM(F110:F112) -> 0 | G113: =SUM(G110:G112) -> 0 | H113: =SUM(H110:H112) -> 0 | J113: =SUM(J110:J112) -> 0 | K113: 0
B114: 32/A UYGULANABİLECEK MATRAH (3.TEŞVİK BELGESİ) | C114: =E84 -> 0 | D114: KV MATRAHI | E114: 1 - 5 PUAN İNDİRİM OLMASAYDI HESAPLANAN KV TUTARI | F114: 1-5 Puan İndirim Tutarı | G114: 1 - 5 Puan İndirim Sonrasında Hesaplanan KV Tutarı | H114: 32/A İndirimi Olmasaydı Ödenecek KV Tutarı | I114: 1 - 5 Puan İndirim ve 32/A VİO Uygulandıktan Sonra Tatbik Edilecek KV Oranı | J114: 1 -5 Puan İndirim ve 32/A İndirimi Uygulandıktan Sonra Ödenecek KV Tutarı | K114: Yararlanılan Yatırıma Katkı Tutarı (32/A İnd. KV Nedeniyle Vazgeçilen Vergi Tutarı) | L114: Ödenecek KV Tutarı
B115: GENEL ORANA TABİ KISIM (DİĞER FAALİYETLER) | C115: =F93 -> 0 | D115: =C114*C115 -> 0 | E115: =D115*$H$94 -> 0 | F115: 0 | G115: =E115-F115 -> 0 | H115: =G115 -> 0 | I115: =($H$94)-(($H$94)*E82) -> 0.25 | J115: =I115*D115 -> 0 | K115: =G115-J115 -> 0 | L115: =J118 -> 0
B116: 1 PUAN İNDİRİMLİ ORANA TABİ KISIM (İMALAT) | C116: =E93 -> 0 | D116: =C114*C116 -> 0 | E116: =D116*$H$94 -> 0 | F116: =D116/100 -> 0 | G116: =E116-F116 -> 0 | H116: =G116 -> 0 | I116: =($H$94-0.01)-(($H$94-0.01)*E82) -> 0.24 | J116: =I116*D116 -> 0 | K116: =G116-J116 -> 0
B117: 5 PUAN İNDİRİMLİ ORANA TABİ KISIM ( İHRACAT) | C117: =D93 -> 1 | D117: =C114*C117 -> 0 | E117: =D117*$H$94 -> 0 | F117: =D117/20 -> 0 | G117: =E117-F117 -> 0 | H117: 0 | I117: =($H$94-0.05)-(($H$94-0.05)*E82) -> 0.2 | J117: 0 | K117: =G117-J117 -> 0
B118: TOPLAM | C118: =SUM(C115:C117) -> 1 | D118: 0 | E118: 0 | F118: =SUM(F115:F117) -> 0 | G118: =SUM(G115:G117) -> 0 | H118: =SUM(H115:H117) -> 0 | J118: =SUM(J115:J117) -> 0 | K118: 0
B119: 32/A UYGULANABİLECEK MATRAH (4. TEŞVİK BELGESİ) | C119: =F84 -> 0 | D119: KV MATRAHI | E119: 1 - 5 PUAN İNDİRİM OLMASAYDI HESAPLANAN KV TUTARI | F119: 1-5 Puan İndirim Tutarı | G119: 1 -5 Puan İndirim Sonrasında Hesaplanan KV Tutarı | H119: 32/A İndirimi Olmasaydı Ödenecek KV Tutarı | I119: 1- 5 Puan İndirim ve 32/A VİO Uygulandıktan Sonra Tatbik Edilecek KV Oranı | J119: 1-5 Puan İndirim ve 32/A İndirimi Uygulandıktan Sonra Ödenecek KV Tutarı | K119: Yararlanılan Yatırıma Katkı Tutarı (32/A İnd. KV Nedeniyle Vazgeçilen Vergi Tutarı) | L119: Ödenecek KV Tutarı
B120: GENEL ORANA TABİ KISIM (DİĞER FAALİYETLER) | C120: =F93 -> 0 | D120: =C119*C120 -> 0 | E120: =D120*$H$94 -> 0 | F120: 0 | G120: =E120-F120 -> 0 | H120: =G120 -> 0 | I120: =($H$94)-(($H$94)*F82) -> 0.25 | J120: =I120*D120 -> 0 | K120: =G120-J120 -> 0 | L120: =J123 -> 0
B121: 1 PUAN İNDİRİMLİ ORANA TABİ KISIM (İMALAT) | C121: =E93 -> 0 | D121: =C119*C121 -> 0 | E121: =D121*$H$94 -> 0 | F121: =D121/100 -> 0 | G121: =E121-F121 -> 0 | H121: =G121 -> 0 | I121: =($H$94-0.01)-(($H$94-0.01)*F82) -> 0.24 | J121: =I121*D121 -> 0 | K121: =G121-J121 -> 0
B122: 5 PUAN İNDİRİMLİ ORANA TABİ KISIM ( İHRACAT) | C122: =D93 -> 1 | D122: =C119*C122 -> 0 | E122: =D122*$H$94 -> 0 | F122: =D122/20 -> 0 | G122: =E122-F122 -> 0 | H122: 0 | I122: =($H$94-0.05)-(($H$94-0.05)*F82) -> 0.2 | J122: 0 | K122: =G122-J122 -> 0
B123: TOPLAM | C123: =SUM(C120:C122) -> 1 | D123: 0 | E123: 0 | F123: =SUM(F120:F122) -> 0 | G123: =SUM(G120:G122) -> 0 | H123: =SUM(H120:H122) -> 0 | J123: =SUM(J120:J122) -> 0 | K123: 0
B124: 32/A UYGULANABİLECEK MATRAH (5.TEŞVİK BELGESİ) | C124: =G84 -> 0 | D124: KV MATRAHI | E124: 1 - 5 PUAN İNDİRİM OLMASAYDI HESAPLANAN KV TUTARI | F124: 1-5 Puan İndirim Tutarı | G124: 1 - 5 Puan İndirim Sonrasında Hesaplanan KV Tutarı | H124: 32/A İndirimi Olmasaydı Ödenecek KV Tutarı | I124: 1 -5 Puan İndirim ve 32/A VİO Uygulandıktan Sonra Tatbik Edilecek KV Oranı | J124: 1 - 5 Puan İndirim ve 32/A İndirimi Uygulandıktan Sonra Ödenecek KV Tutarı | K124: Yararlanılan Yatırıma Katkı Tutarı (32/A İnd. KV Nedeniyle Vazgeçilen Vergi Tutarı) | L124: Ödenecek KV Tutarı
B125: GENEL ORANA TABİ KISIM (DİĞER FAALİYETLER) | C125: =F93 -> 0 | D125: =C124*C125 -> 0 | E125: =D125*$H$94 -> 0 | F125: 0 | G125: =E125-F125 -> 0 | H125: =G125 -> 0 | I125: =($H$94)-(($H$94)*G82) -> 0.25 | J125: =I125*D125 -> 0 | K125: =G125-J125 -> 0 | L125: =J128 -> 0
B126: 1 PUAN İNDİRİMLİ ORANA TABİ KISIM (İMALAT) | C126: =E93 -> 0 | D126: =C124*C126 -> 0 | E126: =D126*$H$94 -> 0 | F126: =D126/100 -> 0 | G126: =E126-F126 -> 0 | H126: =G126 -> 0 | I126: =($H$94-0.01)-(($H$94-0.01)*G82) -> 0.24 | J126: =I126*D126 -> 0 | K126: =G126-J126 -> 0
B127: 5 PUAN İNDİRİMLİ ORANA TABİ KISIM ( İHRACAT) | C127: =D93 -> 1 | D127: =C124*C127 -> 0 | E127: =D127*$H$94 -> 0 | F127: =D127/20 -> 0 | G127: =E127-F127 -> 0 | H127: 0 | I127: =($H$94-0.05)-(($H$94-0.05)*G82) -> 0.2 | J127: 0 | K127: =G127-J127 -> 0
B128: TOPLAM | C128: =SUM(C125:C127) -> 1 | D128: 0 | E128: 0 | F128: =SUM(F125:F127) -> 0 | G128: =SUM(G125:G127) -> 0 | H128: =SUM(H125:H127) -> 0 | J128: =SUM(J125:J127) -> 0 | K128: 0
B129: 32/A UYGULANAMAYACAK MATRAH | C129: =IF(C85<=0,0,C85) -> 800000 | D129: KV MATRAHI | E129: 1-5 PUAN İNDİRİM OLMASAYDI HESAPLANAN KV TUTARI | F129: 1-5 Puan İndirim Tutarı | G129: 1 -5 Puan İndirim Sonrasında Hesaplanan KV Tutarı | H129: 32/A İNDİRİMİ UYGULANMAZ | J129: 1 Puan İndirim ve 32/A İndirimi Uygulandıktan Sonra Ödenecek KV Tutarı | K129: Yararlanılan Yatırıma Katkı Tutarı (32/A İnd. KV Nedeniyle Vazgeçilen Vergi Tutarı) | L129: Ödenecek KV Tutarı
B130: GENEL ORANA TABİ KISIM (DİĞER FAALİYETLER) | C130: =F93 -> 0 | D130: =C129*C130 -> 0 | E130: =D130*$H$94 -> 0 | F130: 0 | G130: =E130-F130 -> 0 | J130: =G130 -> 0 | K130: =G130-J130 -> 0 | L130: =J133 -> 160000
B131: 1 PUAN İNDİRİMLİ ORANA TABİ KISIM (İMALAT) | C131: =E93 -> 0 | D131: =C131*C129 -> 0 | E131: =D131*$H$94 -> 0 | F131: =D131/100 -> 0 | G131: =E131-F131 -> 0 | J131: =G131 -> 0 | K131: =G131-J131 -> 0
B132: 5 PUAN İNDİRİMLİ ORANA TABİ KISIM ( İHRACAT) | C132: =D93 -> 1 | D132: =C132*C129 -> 800000 | E132: =D132*$H$94 -> 200000 | F132: =D132/20 -> 40000 | G132: =E132-F132 -> 160000 | J132: 160000 | K132: 0
B133: TOPLAM | C133: =SUM(C130:C132) -> 1 | D133: =SUM(D130:D132) -> 800000 | E133: 200000 | F133: =SUM(F130:F132) -> 40000 | G133: =SUM(G130:G132) -> 160000 | J133: 160000 | K133: 0
B134: TOPLAM KV MATRAHI VE ÖDENMESİ GEREKEN KV | C134: =C104+C129+C109+C114+C119+C124 -> 800000 | D134: =D108+D133+D113+D118+D123+D128 -> 800000 | E134: =E108+E133+E113+E118+E123+E128 -> 200000 | F134: =F108+F133+F113+F118+F123+F128 -> 40000 | G134: =G108+G133+G113+G118+G123+G128 -> 160000 | J134: =J108+J133+J113+J118+J123+J128 -> 160000 | K134: =K133+K108+K113+K118+K123+K128 -> 0 | L134: =L105+L130+L110+L115+L120+L125 -> 160000
B136: GEÇİCİ VERGİ BEYANNMESİNDE MATRAH BİLDİRİMİ BÖLÜMÜNDE DOLDURULACAK KISIMLAR VE TUTARLARI
B137: 32 A Madde Kapsamında İndirimli Kurumlar Vergisine (Geçici Vergiye) Tabi Matrah | C137: =C104+C109+C114+C119+C124 -> 0 | D137: =E108+E113+E118+E123+E128 -> 0 | E137: 1-5 Puan Olmasaydı Hesaplan KV Tutarı
D138: =G108+G113+G118+G123++G128 -> 0 | E138: 1 -5 Puan İndirim Sonrasında Ödenecek KV Tutarı (32 A olmasaydı hesaplanacak Vergi)
D139: =K108+K113+K118+K123+K128 -> 0 | E139: 32/A İndirimi ile Vazgeçilen Vergi
B140: 32 A Madde Kapsamında İndirimli Kurumlar Vergisi(Geçici Vergi) Oranı | C140: =IFERROR(D140/C137,0) -> 0 | D140: =L105+L110+L115+L120+L125 -> 0 | E140: 32/A ya Tabi Matrah Üzerinden Ödenecek KV
B141: 32/7 Madde Kapsamında İndirimli Kurumlar Vergisine (Geçici Vergiye) Tabi Matrah (İhracat) | C141: =D132 -> 800000 | D141: =E132 -> 200000 | E141: 5 Puan Olmasaydı Hesaplan KV Tutarı
D142: =F132 -> 40000 | E142: 5 Puan İndirimin Vergi Etkisi
B143: 32/7 Madde Kapsamında İndirimli Kurumlar Vergisi (Geçici Vergi) Oranı | C143: =IFERROR(D143/C141,0) -> 0.2 | D143: =G132 -> 160000 | E143: 5 Puan İndirim Sonrasında Ödenecek KV Tutarı (İhracat)
B144: 32/8 Madde Kapsamında İndirimli Kurumlar Vergisine (Geçici Vergiye) Tabi Matrah (Üretim) | C144: =D131 -> 0 | D144: =E131 -> 0 | E144: 1 Puan Olmasaydı Hesaplan KV Tutarı
D145: =F131 -> 0 | E145: 1 Puan İndirimin Vergi Etkisi
B146: 32/8 Madde Kapsamında İndirimli Kurumlar Vergisi (Geçici Vergi) Oranı | C146: =IFERROR(D146/C144,0) -> 0 | D146: =G131 -> 0 | E146: 1 Puan İndirim Sonrasında Ödenecek KV Tutarı (Üretim)
B147: Genel Orana Tabi Matrah (Diğer) | C147: =D130 -> 0 | D147: =J130 -> 0 | E147: Diğer Faalilyetlerden Elde Edilen Kazanç
C148: =IFERROR(D147/C147,0) -> 0
B149: MATRAHLAR TOPLAMI | C149: =C137+C144+C141+C147 -> 800000 | D149: =D140+D146+D143+D147 -> 160000

Sheet İ Ö 4 (hidden)
B2: FAALİYET TÜRLERİ İTİBARİYLE HASILATLAR VE TOPLAM İÇİNDEKİ ORANLARI | C2: =IFERROR(C4/C4,0) -> 1 | D2: =IFERROR(D4/C4,0) -> 1.052631579 | E2: =IFERROR(E4/C4,0) -> 0 | F2: =IFERROR(F4/C4,0) -> -0.05263157895
C3: Toplam Hasılat | D3: İhracat faaliyeti | E3: İmalat faaliyeti | F3: Diğer faaliyetler
B4: A-BRÜT SATIŞLAR (60) | C4: =D4+E4+F4 -> 950000 | D4: =SUM(D5:D7) -> 1000000 | E4: =SUM(E5:E7) -> 0 | F4: -50000
B5: 1-Yurtiçi Satışlar (600) | C5: =D5+E5+F5 -> -50000 | F5: -50000
B6: 2-Yurtdışı Satışlar (601) | C6: =D6+E6+F6 -> 1000000 | D6: 1000000
B7: 3-Diğer Gelirler (602) | C7: =D7+E7+F7 -> 0
B8: B-SATIŞ İNDİRİMLERİ(-) (61) | C8: =SUM(C9:C11) -> 0 | D8: =SUM(D9:D11) -> 0 | E8: =SUM(E9:E11) -> 0 | F8: 0
B9: 1-Satıştan İadeler (-) (610) | C9: =SUM(D9:F9) -> 0
B10: 2- Satış İskontoları (-) (611) | C10: =SUM(D10:F10) -> 0
B11: 3-Diğer İndirimler (-) (612) | C11: 0
B12: C-NET SATIŞLAR | C12: =C4-C8 -> 950000 | D12: =D4-D8 -> 1000000 | E12: =E4-E8 -> 0 | F12: -50000
B13: D-SATIŞLARIN MALİYETİ (-) (62) | C13: =SUM(C14:C17) -> 0 | D13: =SUM(D14:D17) -> 0 | E13: =SUM(E14:E17) -> 0 | F13: =SUM(F14:F17) -> 0
B14: 1-Satılan Mamuller Maliyeti ( 620) | C14: =SUM(D14:F14) -> 0
B15: 2-Satılan Ticari Mal Maliyeti (621) | C15: =SUM(D15:F15) -> 0
B16: 3-Satılan Hizmet Maliyeti (622) | C16: 0
B17: 4-Diğer Satışların Maliyeti (623) | C17: 0
B18: BRÜT SATIŞ KARI / ZARARI | C18: =C12-C13 -> 950000 | D18: =D12-D13 -> 1000000 | E18: =E12-E13 -> 0 | F18: -50000
B19: E-FAALİYET GİDERLERİ (-) (63) | C19: =SUM(C20:C24) -> 0 | D19: =SUM(D20:D24) -> 0 | E19: =SUM(E20:E24) -> 0 | F19: 0
B20: 1-Araştırma ve Geliştirme Giderleri(-) (630) | C20: =SUM(D20:F20) -> 0
B21: 2-Pazarlama, Satış ve Dağıtım Giderleri(-) (631) | C21: =SUM(D21:F21) -> 0
B22: 3-Genel Yönetim Giderleri(-) (632) | C22: =SUM(D22:F22) -> 0
B23: MÜŞTEREK GENEL GİDERLER (DAĞITIM-HASILAT PAYINA GÖRE) | D23: =C23*D2 -> 0 | E23: =C23*E2 -> 0 | F23: =C23*F2 -> 0
B24: MÜŞTEREK GENEL GİDER GİBİ DAĞITIMA TABİ TUTULACAK AMORTİSMAN GİDERLERİ (DAĞITIM-HASILAT PAYINA GÖRE) | D24: =C24*D2 -> 0 | E24: =C24*E2 -> 0 | F24: =C24*F2 -> 0
B25: FAALİYET KARI / ZARARI | C25: =C18-C19 -> 950000 | D25: =D18-D19 -> 1000000 | E25: =E18-E19 -> 0 | F25: -50000
B26: F-DİĞER FAALİYETLERDEN OLAĞAN GELİR VE KARLAR (64) | C26: =SUM(C27:C35) -> 0 | D26: =SUM(D27:D35) -> 0 | E26: =SUM(E27:E35) -> 0 | F26: =SUM(F27:F35) -> 0
B27: 1- İŞTİRAKLERDEN TEMETTÜ GELİRLERİ (640) | C27: =SUM(D27:F27) -> 0
B28: 2- BAĞLI ORTAKLIKLARDAN TEMETTÜ GELİRLERİ (641) | C28: =SUM(D28:F28) -> 0
B29: 3- FAİZ GELİRLERİ (642) (ihracat ve imalat kaynaklı alacağın tahsiline kadar olan süreçte oluşan) | C29: 0
B30: 4- KOMİSYON GELİRLERİ (643) | C30: 0
B31: 5- KONUSU OLMAYAN KARŞILIKLAR (644) | C31: 0
B32: 6- MENKUL KIYMET SATIŞ KARLARI (645) | C32: 0
B33: 7- KAMBİYO KARLARI (646) (ihracat ve imalat kaynaklı alacağın tahsiline kadar olan süreçte oluşan) | C33: 0
B34: 8- REESKONT FAİZ GELİRLERİ (647) | C34: 0
B35: 9- FAALİYETLE İLGİLİ DİĞER GELİR VE KARLAR (649) | C35: 0
B36: ARA TOPLAM | C36: =C25+C26 -> 950000 | D36: =D25+D26 -> 1000000 | E36: =E25+E26 -> 0 | F36: =F25+F26 -> -50000
B37: G-DİĞER FAALİYETLERDEN OLAĞAN GİDER VE ZARARLAR(-) (65) | C37: =SUM(C38:C43) -> 0 | D37: =SUM(D38:D43) -> 0 | E37: =SUM(E38:E43) -> 0 | F37: 0
B38: 1- KOMİSYON GİDERLERİ (653) | C38: =SUM(D38:F38) -> 0
B39: 2- KARŞILIK GİDERLERİ (654) | C39: =SUM(D39:F39) -> 0
B40: 3- MENKUL KIYMET SATIŞ ZARARLARI (655) | C40: 0
B41: 4- KAMBİYO ZARARLARI (656) (ihracat ve imalat kaynaklı alacağın tahsiline kadar olan süreçte oluşan) | C41: 0
B42: 5- REESKONT FAİZ GİDERLERİ (657) | C42: 0
B43: 6- DİĞER OLAĞAN GİDER VE ZARARLAR (659) | C43: =SUM(D43:F43) -> 0
B44: ARA TOPLAM | C44: =C36-C37 -> 950000 | D44: =D36-D37 -> 1000000 | E44: =E36-E37 -> 0 | F44: -50000
B45: H-FİNANSMAN GİDERLERİ(-) (66) | C45: =SUM(C46:C49) -> 0 | D45: =SUM(D46:D49) -> 0 | E45: =SUM(E46:E49) -> 0 | F45: =SUM(F46:F49) -> 0
B46: 1- KISA VADELİ BORÇLANMA GİDERLERİ (-) | C46: =SUM(D46:F46) -> 0
B47: 2- UZUN VADELİ BORÇLANMA GİDERLERİ (-) | C47: =SUM(D47:F47) -> 0
B48: 1- KISA VADELİ BORÇLANMA GİDERLERİ (-) (DAĞITIM) | D48: =C48*D2 -> 0 | E48: =C48*E2 -> 0 | F48: =C48*F2 -> 0
B49: 2- UZUN VADELİ BORÇLANMA GİDERLERİ (-) (DAĞITIM) | D49: =C49*D2 -> 0 | E49: =C49*E2 -> 0 | F49: =C49*F2 -> 0
B50: ARA TOPLAM | C50: =C44-C45 -> 950000 | D50: =D44-D45 -> 1000000 | E50: =E44-E45 -> 0 | F50: =F44-F45 -> -50000
B51: I-OLAĞANDIŞI GELİR VE KÂRLAR (67) | C51: =SUM(D51:F51) -> 0 | D51: =SUM(D52:D53) -> 0 | E51: =SUM(E52:E53) -> 0 | F51: =SUM(F52:F53) -> 0
B52: 1- ÖNCEKİ DÖNEM GELİR VE KARLARI (671) | C52: =SUM(D52:F52) -> 0
B53: 2-DİĞER OLAĞAN DIŞI GELİR VE KARLAR (679) | C53: =SUM(D53:F53) -> 0
B54: ARA TOPLAM | C54: =SUM(D54:F54) -> 950000 | D54: =D50+D51 -> 1000000 | E54: =E50+E51 -> 0 | F54: -50000
B55: J-OLAĞANDIŞI GİDER VE ZARARLAR(-) (68) | C55: =SUM(C56:C58) -> 0 | D55: =SUM(D56:D58) -> 0 | E55: =SUM(E56:E58) -> 0 | F55: 0
B56: 1-Çalışmayan Kısım Gider ve Zararları(-) (680) | C56: =SUM(D56:F56) -> 0
B57: 2-Önceki Dönem Gider ve Zararları(-) (681) | C57: =SUM(D57:F57) -> 0
B58: 3-Diğer Olağan Dışı Gider ve Zararlar(-) (689) | C58: 0
B59: DÖNEM KÂRI VEYA ZARARI (TİCARİ BİLANÇO KARI ZARARI ) | C59: =C54-C55 -> 950000 | D59: =D54-D55 -> 1000000 | E59: =E54-E55 -> 0 | F59: -50000
B60: İHRACAT, İMALAT VE DİĞER FAALİYETLERDEN ELDE EDİLEN KAZANCIN TOPLAM TİCARİ KAZANÇ İÇİNDEKİ PAYLARI (Kazançlar arasında Öncelik İhracat Kazancına Verilmiştir. İhrcat Kazancından arta kalan Ticari Kazanç İmalat ve Diğer Faaliyetlere Sayılmıştır.) | D60: =IF(D59>=$C$59,1, IF(D59<=0,0, IF(AND(D59>0,D59<$C$59),D59/$C$59))) -> 1 | E60: =IF(E59>=$C$59,1, IF(E59<=0,0, IF(AND(E59>0,E59<$C$59),E59/$C$59))) -> 0 | F60: =IF(F59>=$C$59,1, IF(F59<=0,0, IF(AND(F59>0,F59<$C$59),F59/$C$59))) -> 0
D61: =D60/(D60+E60+F60) -> 1 | E61: =E60/(D60+E60+F60) -> 0 | F61: =F60/(D60+E60+F60) -> 0
B63: KKEG + | C63: 0
B64: KABUL EDİLMEYEN GELİRLER -
B65: ZARAR OLSA DAHİ İNDİRİLECEK İSTİSNALAR - | C65: =C66+C67+C68 -> 0
B66: Hizmet İhracatı Faaliyetinden (KVK 10-1/ğ) Elde Edilen Kazançlardan İstisna Edilenlerin Toplamı
B67: İmalat Faaliyetinden Elde Edilen Kazançlardan İstisna Edilenlerin Toplamı
B68: Diğer Faaliyetlerden Elde Edilen Kazançlardan İstisna Edilenlerin Toplamı
B69: GEÇMİŞ YIL ZARARLARI - | C69: 750000
B70: İNDİRİMLER - | D70: AZAMİ YAZILABİLECEK İNDİRİMLER TUTARI | E70: =C59+C63-C64-C65-C69 -> 200000
B72: 1 PUAN İNDİRİM UYGULANACAK TUTARIN HESABINDA İSTİSNA KAZANÇLAR DÜŞÜLDÜKTEN SONRA BULUNAN TİCARİ KAZANÇ TUTARI İLE İHRACAT,İMALAT VE DİĞER KAZANÇLARIN TUTARI | C72: TİCARİ KAZANÇ TAN İhracat ve İmalat Kazancından İstisna Olan Tutarlar Düşüldükten Sonra Kalan Tutarı | D72: İhracat Faaliyetinden Elde Edilen Kazançtan İstisna Olan Kısım Düşüldükten Sonra Bulunan Tutarı | E72: Üretim Faaliyetinden Elde Edilen Kazançtan İstisna Olan Kısım Düşüldükten Sonra Bulunan Tutarı | F72: Diğer Faaliyetinden Elde Edilen Kazanç
C73: =IF(C59-C66-C67<=0,0,C59-C66-C67) -> 950000 | D73: =IF($D$59-C66<=0,0,MIN($D$59-C66,$C$73*D61)) -> 950000 | E73: =IF($E$59-C67<=0,0,MIN($E$59-C67,$C$73*E61)) -> 0 | F73: =IF(C73-D73-E73<=0,0,C73-D73-E73) -> 0
B74: MATRAH DAĞITIM PAYLARI | D74: =IFERROR(IF(D73/C73<=0,0,D73/C73),0) -> 1 | E74: =IFERROR(IF(E73/C73<=0,0,E73/C73),0) -> 0 | F74: =IFERROR(F73/C73,0) -> 0
B75: İHRACAT, İMALAT VE DİĞER FAALİYETLERDEN ELDE EDİLEN KAZANCIN TOPLAM TİCARİ KAZANÇ İÇİNDEKİ PAYLARI | D75: =IFERROR(IF(AND(D73+E73>C73, F73<=0),1,(D73+E73)/C73),0) -> 1 | F75: =IFERROR(IF(F73<=0,0,F73/C73),0) -> 0
B76: NEGATİF VE % 100 DEN BÜYÜKLÜK KONTROLÜ SONRASINDAKİ PAYLARI | D76: =IFERROR(IF(D75<=0,0,IF(D75>1,1,D75)),0) -> 1 | F76: =IFERROR(IF(F75<=0,0,IF(F75>1,1,F75)),0) -> 0
B78: SAFİ KURUM KAZANCI (KURUMLAR VERGİSİ MATRAHI) | C78: =C59+C63-C64-C65-C69-C70 -> 200000 | D78: =IF(C78<0, "ZARAR","KAR") -> KAR
B80: 2022 YILI 3. DÖNEM İNDİRİMLİ KURUMLAR VERGİSİ HESAPLAMA TABLOSU
C81: 1. TEŞVİK BELGESİ | D81: 2. TEŞVİK BELGESİ | E81: 3. TEŞVİK BELGESİ | F81: 4. TEŞVİK BELGESİ | G81: 5. TEŞVİK BELGESİ
B82: Vergi İndirim Oranı (VİO)
B83: KV MATRAHI (Safi Kurum Kazancı) | C83: =C78 -> 200000
B84: 32/A Uygulanacak K.V. Matrahı (HER BİR TEŞVİK BELGESİ KAPSAMINDA YARARLANILABİLECEK YATIRIMA KATKI TUTARININ MATRAHI BU HÜCRELERE YAZILMALIDIR) | H84: =IF(SUM(C84:G84)>C78,"32/A İNDİRİMİ UYGULANACAK KAZANÇ, SAFİ KURUM KAZANCINDAN FAZLADIR",SUM(C84:G84)) -> 0
B85: 32/A UYGULANMAYACAK K.V. Matrahı | C85: =IF(C83-(C84+D84+E84+F84+G84)<0,0,C83-(C84+D84+E84+F84+G84)) -> 200000
B86: MATRAH TOPLAMI | C86: =IF((C84+D84+E84+F84+G84+C85)>C78,C78,(C84+D84+E84+F84+G84+C85)) -> 200000
B88: SAFİ KURUM KAZANCININ KV VERGİ ORANLARI İTİBARİYLE DAĞILIMI | C88: TOPLAM SAFİ KAZANÇ | D88: İhracat Kazancı Payı | E88: Üretim Kazancı Payı | F88: Diğer Faaliyet Kazancı Payı
C90: =C78 -> 200000 | D90: =IF(AND(AND($D$59>0,($D$59+$E$59)>=$C$59,D59>=C66),$C$90>=MAX(D59,D73)), MIN(MAX(IF(D59<=C90,D59,IF(D73<=C90,D73)),$C$90*D74)), IF(OR(D59<=0,D73<=0),0, MIN( MAX( MAX( IF(D59<=C90,D59), IF(D73<=C90,D73) ), MIN($C$90*D74,D59,D73)),$C$90))) -> 200000 | E90: =MIN( IF(AND(AND($E$59>0,($D$59+$E$59)>=$C$59,E59>=C67),$C$90>=MAX(E59,E73)), MIN(MAX(IF(E59<=C90,E59,IF(E73<=C90,E73)),$C$90*E74)), IF(OR(E59<=0,E73<=0),0, MIN( MAX( MAX( IF(E59<=C90,E59), IF(E73<=C90,E73) ), MIN($C$90*E74,E59,E73)),$C$90))),C90-D90) -> 0 | F90: =C90-D90-E90 -> 0
B91: SAFİ KURUM KAZANCININ DAĞILIMI ORANSAL DAĞILIMI | C91: =C90 -> 200000 | D91: =D90/C90 -> 1 | E91: =E90/C90 -> 0 | F91: =F90/C90 -> 0
B92: SAFİ KURUM KAZANCININ DAĞILIMI TUTARSAL | C92: =C91 -> 200000 | D92: =D90 -> 200000 | E92: =E90 -> 0 | F92: =F90 -> 0
B93: SAFİ KURUM KAZANCI DAĞILIMI | C93: =C92 -> 200000 | D93: =IFERROR(IF(D92/C92>=1,1,D92/C92),0) -> 1 | E93: =IFERROR(IF(E92/C92>=1,1,E92/C92),0) -> 0 | F93: =IFERROR(IF(F92/C92>=1,1,F92/C92),0) -> 0 | H93: KV ORANI
B94: 1 PUAN VE 32/A İNDİRİMİ OLMASAYDI HESAPLANAN KV TUTARI | C94: =C93*$H$94 -> 50000 | D94: =D92*$H$94 -> 50000 | E94: =E92*$H$94 -> 0 | F94: =F92*$H$94 -> 0 | H94: 0.25
B95: 32/ A UYGULANAN MATRAH | C95: =C84+D84+E84+F84+G84 -> 0 | D95: =D107+D112+D117+D122+D127 -> 0 | E95: =D106+D111+D116+D121+D126 -> 0 | F95: =D105+D110+D115+D120+D125 -> 0
B96: 32/A UYGULANACAK MATRAH ÜZERİNDEN ÖDENECEK KV TUTARI | C96: =J108+J113+J118+J123+J128 -> 0 | D96: =J107+J112+J117+J122+J127 -> 0 | E96: =J106+J111+J116+J121+J126 -> 0 | F96: =J105+J110+J115+J120+J125 -> 0
B97: 32/A UYGULANMAYAN MATRAH | C97: =IF(C85<=0,0,C85) -> 200000 | D97: =D132 -> 200000 | E97: =D131 -> 0 | F97: =D130 -> 0
B98: 32/A UYGULANMAYAN MATRAH ÜZERİNDEN ÖDENECEK KV TUTARI | C98: =L130 -> 40000 | D98: =J132 -> 40000 | E98: =J131 -> 0 | F98: =J130 -> 0
B99: TOPLAM ÖDENECEK KV | C99: =C96+C98 -> 40000 | D99: =J132+J107 -> 40000 | E99: =J131+J106 -> 0 | F99: =J130+J105 -> 0
B100: TOPLAM AVANTAJ (YARARLANILAN 1 PUAN İNDİRİMİ + 32/A İNDİRİMİ TUTARI ) | C100: =C94-C99 -> 10000 | D100: =D101+D102 -> 10000 | E100: =E101+E102 -> 0 | F100: =F101+F102 -> 0
B101: YARARLANILAN 1 - 5 PUAN İNDİRİMİ TUTARI | C101: =F133+F128+F123+F118+F113+F108 -> 10000 | D101: =F132+F107+F112+F117+F122+F127 -> 10000 | E101: =F131+F106+F111+F116+F121+F126 -> 0 | F101: =F130+F105+F110+F115+F120+F125 -> 0
B102: YARLANILAN 32/A İNDİRİMİ TUTARI | C102: =K108+K113+K118+K123+K128+K133 -> 0 | D102: =K107+K112+K122+K127+K132 -> 0 | E102: =K106+K111+K116+K121+K126+K131 -> 0 | F102: =K105++K110+K115+K120+K125+K130 -> 0
B104: 32/A UYGULANABİLECEK MATRAH (1.TEŞVİK BELGESİ) | C104: =C84 -> 0 | D104: KV MATRAHI | E104: 1 - 5 PUAN İNDİRİM OLMASAYDI HESAPLANAN KV TUTARI | F104: 1 -5 Puan İndirim Tutarı | G104: 1 - 5 Puan İndirim Sonrasında Hesaplanan KV Tutarı | H104: 32/A İndirimi Olmasaydı Ödenecek KV Tutarı | I104: 1 -5 Puan İndirim ve 32/A VİO Uygulandıktan Sonra Tatbik Edilecek KV Oranı | J104: 1 -5 Puan İndirim ve 32/A İndirimi Uygulandıktan Sonra Ödenecek KV Tutarı | K104: Yararlanılan Yatırıma Katkı Tutarı (32/A İnd. KV Nedeniyle Vazgeçilen Vergi Tutarı) | L104: Ödenecek KV Tutarı
B105: GENEL ORANA TABİ KISIM (DİĞER FAALİYETLER) | C105: =F93 -> 0 | D105: =C104*C105 -> 0 | E105: =D105*$H$94 -> 0 | F105: 0 | G105: =E105-F105 -> 0 | H105: =G105 -> 0 | I105: =($H$94)-(($H$94)*$C$82) -> 0.25 | J105: =I105*D105 -> 0 | K105: =G105-J105 -> 0 | L105: =J108 -> 0
B106: 1 PUAN İNDİRİMLİ ORANA TABİ KISIM (İMALAT) | C106: =E93 -> 0 | D106: =C104*C106 -> 0 | E106: =D106*$H$94 -> 0 | F106: =D106/100 -> 0 | G106: =E106-F106 -> 0 | H106: =G106 -> 0 | I106: =($H$94-0.01)-(($H$94-0.01)*$C$82) -> 0.24 | J106: =I106*D106 -> 0 | K106: =G106-J106 -> 0
B107: 5 PUAN İNDİRİMLİ ORANA TABİ KISIM ( İHRACAT) | C107: =D93 -> 1 | D107: =C104*C107 -> 0 | E107: =D107*$H$94 -> 0 | F107: =D107/20 -> 0 | G107: =E107-F107 -> 0 | H107: 0 | I107: =($H$94-0.05)-(($H$94-0.05)*C82) -> 0.2 | J107: 0 | K107: =G107-J107 -> 0
B108: TOPLAM | C108: =SUM(C105:C107) -> 1 | D108: =SUM(D105:D107) -> 0 | E108: 0 | F108: =SUM(F105:F107) -> 0 | G108: =SUM(G105:G107) -> 0 | H108: =SUM(H105:H107) -> 0 | J108: 0 | K108: 0
B109: 32/A UYGULANABİLECEK MATRAH (2.TEŞVİK BELGESİ) | C109: =D84 -> 0 | D109: KV MATRAHI | E109: 1 - 5 PUAN İNDİRİM OLMASAYDI HESAPLANAN KV TUTARI | F109: 1 -5 Puan İndirim Tutarı | G109: 1 -5 Puan İndirim Sonrasında Hesaplanan KV Tutarı | H109: 32/A İndirimi Olmasaydı Ödenecek KV Tutarı | I109: 1 - 5 Puan İndirim ve 32/A VİO Uygulandıktan Sonra Tatbik Edilecek KV Oranı | J109: 1-5 Puan İndirim ve 32/A İndirimi Uygulandıktan Sonra Ödenecek KV Tutarı | K109: Yararlanılan Yatırıma Katkı Tutarı (32/A İnd. KV Nedeniyle Vazgeçilen Vergi Tutarı) | L109: Ödenecek KV Tutarı
B110: GENEL ORANA TABİ KISIM (DİĞER FAALİYETLER) | C110: =F93 -> 0 | D110: =C109*C110 -> 0 | E110: =D110*$H$94 -> 0 | F110: 0 | G110: =E110-F110 -> 0 | H110: =G110 -> 0 | I110: =($H$94)-(($H$94)*D82) -> 0.25 | J110: =I110*D110 -> 0 | K110: =G110-J110 -> 0 | L110: =J113 -> 0
B111: 1 PUAN İNDİRİMLİ ORANA TABİ KISIM (İMALAT) | C111: =E93 -> 0 | D111: =C109*C111 -> 0 | E111: =D111*$H$94 -> 0 | F111: =D111/100 -> 0 | G111: =E111-F111 -> 0 | H111: =G111 -> 0 | I111: =($H$94-0.01)-(($H$94-0.01)*D82) -> 0.24 | J111: =I111*D111 -> 0 | K111: =G111-J111 -> 0
B112: 5 PUAN İNDİRİMLİ ORANA TABİ KISIM ( İHRACAT) | C112: =D93 -> 1 | D112: =C109*C112 -> 0 | E112: =D112*$H$94 -> 0 | F112: =D112/20 -> 0 | G112: =E112-F112 -> 0 | H112: 0 | I112: =($H$94-0.05)-(($H$94-0.05)*D82) -> 0.2 | J112: 0 | K112: =G112-J112 -> 0
B113: TOPLAM | C113: =SUM(C110:C112) -> 1 | D113: 0 | E113: 0 | F113: =SUM(F110:F112) -> 0 | G113: =SUM(G110:G112) -> 0 | H113: =SUM(H110:H112) -> 0 | J113: =SUM(J110:J112) -> 0 | K113: 0
B114: 32/A UYGULANABİLECEK MATRAH (3.TEŞVİK BELGESİ) | C114: =E84 -> 0 | D114: KV MATRAHI | E114: 1 - 5 PUAN İNDİRİM OLMASAYDI HESAPLANAN KV TUTARI | F114: 1-5 Puan İndirim Tutarı | G114: 1 - 5 Puan İndirim Sonrasında Hesaplanan KV Tutarı | H114: 32/A İndirimi Olmasaydı Ödenecek KV Tutarı | I114: 1 - 5 Puan İndirim ve 32/A VİO Uygulandıktan Sonra Tatbik Edilecek KV Oranı | J114: 1 -5 Puan İndirim ve 32/A İndirimi Uygulandıktan Sonra Ödenecek KV Tutarı | K114: Yararlanılan Yatırıma Katkı Tutarı (32/A İnd. KV Nedeniyle Vazgeçilen Vergi Tutarı) | L114: Ödenecek KV Tutarı
B115: GENEL ORANA TABİ KISIM (DİĞER FAALİYETLER) | C115: =F93 -> 0 | D115: =C114*C115 -> 0 | E115: =D115*$H$94 -> 0 | F115: 0 | G115: =E115-F115 -> 0 | H115: =G115 -> 0 | I115: =($H$94)-(($H$94)*E82) -> 0.25 | J115: =I115*D115 -> 0 | K115: =G115-J115 -> 0 | L115: =J118 -> 0
B116: 1 PUAN İNDİRİMLİ ORANA TABİ KISIM (İMALAT) | C116: =E93 -> 0 | D116: =C114*C116 -> 0 | E116: =D116*$H$94 -> 0 | F116: =D116/100 -> 0 | G116: =E116-F116 -> 0 | H116: =G116 -> 0 | I116: =($H$94-0.01)-(($H$94-0.01)*E82) -> 0.24 | J116: =I116*D116 -> 0 | K116: =G116-J116 -> 0
B117: 5 PUAN İNDİRİMLİ ORANA TABİ KISIM ( İHRACAT) | C117: =D93 -> 1 | D117: =C114*C117 -> 0 | E117: =D117*$H$94 -> 0 | F117: =D117/20 -> 0 | G117: =E117-F117 -> 0 | H117: 0 | I117: =($H$94-0.05)-(($H$94-0.05)*E82) -> 0.2 | J117: 0 | K117: =G117-J117 -> 0
B118: TOPLAM | C118: =SUM(C115:C117) -> 1 | D118: 0 | E118: 0 | F118: =SUM(F115:F117) -> 0 | G118: =SUM(G115:G117) -> 0 | H118: =SUM(H115:H117) -> 0 | J118: =SUM(J115:J117) -> 0 | K118: 0
B119: 32/A UYGULANABİLECEK MATRAH (4. TEŞVİK BELGESİ) | C119: =F84 -> 0 | D119: KV MATRAHI | E119: 1 - 5 PUAN İNDİRİM OLMASAYDI HESAPLANAN KV TUTARI | F119: 1-5 Puan İndirim Tutarı | G119: 1 -5 Puan İndirim Sonrasında Hesaplanan KV Tutarı | H119: 32/A İndirimi Olmasaydı Ödenecek KV Tutarı | I119: 1- 5 Puan İndirim ve 32/A VİO Uygulandıktan Sonra Tatbik Edilecek KV Oranı | J119: 1-5 Puan İndirim ve 32/A İndirimi Uygulandıktan Sonra Ödenecek KV Tutarı | K119: Yararlanılan Yatırıma Katkı Tutarı (32/A İnd. KV Nedeniyle Vazgeçilen Vergi Tutarı) | L119: Ödenecek KV Tutarı
B120: GENEL ORANA TABİ KISIM (DİĞER FAALİYETLER) | C120: =F93 -> 0 | D120: =C119*C120 -> 0 | E120: =D120*$H$94 -> 0 | F120: 0 | G120: =E120-F120 -> 0 | H120: =G120 -> 0 | I120: =($H$94)-(($H$94)*F82) -> 0.25 | J120: =I120*D120 -> 0 | K120: =G120-J120 -> 0 | L120: =J123 -> 0
B121: 1 PUAN İNDİRİMLİ ORANA TABİ KISIM (İMALAT) | C121: =E93 -> 0 | D121: =C119*C121 -> 0 | E121: =D121*$H$94 -> 0 | F121: =D121/100 -> 0 | G121: =E121-F121 -> 0 | H121: =G121 -> 0 | I121: =($H$94-0.01)-(($H$94-0.01)*F82) -> 0.24 | J121: =I121*D121 -> 0 | K121: =G121-J121 -> 0
B122: 5 PUAN İNDİRİMLİ ORANA TABİ KISIM ( İHRACAT) | C122: =D93 -> 1 | D122: =C119*C122 -> 0 | E122: =D122*$H$94 -> 0 | F122: =D122/20 -> 0 | G122: =E122-F122 -> 0 | H122: 0 | I122: =($H$94-0.05)-(($H$94-0.05)*F82) -> 0.2 | J122: 0 | K122: =G122-J122 -> 0
B123: TOPLAM | C123: =SUM(C120:C122) -> 1 | D123: 0 | E123: 0 | F123: =SUM(F120:F122) -> 0 | G123: =SUM(G120:G122) -> 0 | H123: =SUM(H120:H122) -> 0 | J123: =SUM(J120:J122) -> 0 | K123: 0
B124: 32/A UYGULANABİLECEK MATRAH (5.TEŞVİK BELGESİ) | C124: =G84 -> 0 | D124: KV MATRAHI | E124: 1 - 5 PUAN İNDİRİM OLMASAYDI HESAPLANAN KV TUTARI | F124: 1-5 Puan İndirim Tutarı | G124: 1 - 5 Puan İndirim Sonrasında Hesaplanan KV Tutarı | H124: 32/A İndirimi Olmasaydı Ödenecek KV Tutarı | I124: 1 -5 Puan İndirim ve 32/A VİO Uygulandıktan Sonra Tatbik Edilecek KV Oranı | J124: 1 - 5 Puan İndirim ve 32/A İndirimi Uygulandıktan Sonra Ödenecek KV Tutarı | K124: Yararlanılan Yatırıma Katkı Tutarı (32/A İnd. KV Nedeniyle Vazgeçilen Vergi Tutarı) | L124: Ödenecek KV Tutarı
B125: GENEL ORANA TABİ KISIM (DİĞER FAALİYETLER) | C125: =F93 -> 0 | D125: =C124*C125 -> 0 | E125: =D125*$H$94 -> 0 | F125: 0 | G125: =E125-F125 -> 0 | H125: =G125 -> 0 | I125: =($H$94)-(($H$94)*G82) -> 0.25 | J125: =I125*D125 -> 0 | K125: =G125-J125 -> 0 | L125: =J128 -> 0
B126: 1 PUAN İNDİRİMLİ ORANA TABİ KISIM (İMALAT) | C126: =E93 -> 0 | D126: =C124*C126 -> 0 | E126: =D126*$H$94 -> 0 | F126: =D126/100 -> 0 | G126: =E126-F126 -> 0 | H126: =G126 -> 0 | I126: =($H$94-0.01)-(($H$94-0.01)*G82) -> 0.24 | J126: =I126*D126 -> 0 | K126: =G126-J126 -> 0
B127: 5 PUAN İNDİRİMLİ ORANA TABİ KISIM ( İHRACAT) | C127: =D93 -> 1 | D127: =C124*C127 -> 0 | E127: =D127*$H$94 -> 0 | F127: =D127/20 -> 0 | G127: =E127-F127 -> 0 | H127: 0 | I127: =($H$94-0.05)-(($H$94-0.05)*G82) -> 0.2 | J127: 0 | K127: =G127-J127 -> 0
B128: TOPLAM | C128: =SUM(C125:C127) -> 1 | D128: 0 | E128: 0 | F128: =SUM(F125:F127) -> 0 | G128: =SUM(G125:G127) -> 0 | H128: =SUM(H125:H127) -> 0 | J128: =SUM(J125:J127) -> 0 | K128: 0
B129: 32/A UYGULANAMAYACAK MATRAH | C129: =IF(C85<=0,0,C85) -> 200000 | D129: KV MATRAHI | E129: 1-5 PUAN İNDİRİM OLMASAYDI HESAPLANAN KV TUTARI | F129: 1-5 Puan İndirim Tutarı | G129: 1 -5 Puan İndirim Sonrasında Hesaplanan KV Tutarı | H129: 32/A İNDİRİMİ UYGULANMAZ | J129: 1 Puan İndirim ve 32/A İndirimi Uygulandıktan Sonra Ödenecek KV Tutarı | K129: Yararlanılan Yatırıma Katkı Tutarı (32/A İnd. KV Nedeniyle Vazgeçilen Vergi Tutarı) | L129: Ödenecek KV Tutarı
B130: GENEL ORANA TABİ KISIM (DİĞER FAALİYETLER) | C130: =F93 -> 0 | D130: =C129*C130 -> 0 | E130: =D130*$H$94 -> 0 | F130: 0 | G130: =E130-F130 -> 0 | J130: =G130 -> 0 | K130: =G130-J130 -> 0 | L130: =J133 -> 40000
B131: 1 PUAN İNDİRİMLİ ORANA TABİ KISIM (İMALAT) | C131: =E93 -> 0 | D131: =C131*C129 -> 0 | E131: =D131*$H$94 -> 0 | F131: =D131/100 -> 0 | G131: =E131-F131 -> 0 | J131: =G131 -> 0 | K131: =G131-J131 -> 0
B132: 5 PUAN İNDİRİMLİ ORANA TABİ KISIM ( İHRACAT) | C132: =D93 -> 1 | D132: =C132*C129 -> 200000 | E132: =D132*$H$94 -> 50000 | F132: =D132/20 -> 10000 | G132: =E132-F132 -> 40000 | J132: 40000 | K132: 0
B133: TOPLAM | C133: =SUM(C130:C132) -> 1 | D133: =SUM(D130:D132) -> 200000 | E133: 50000 | F133: =SUM(F130:F132) -> 10000 | G133: =SUM(G130:G132) -> 40000 | J133: 40000 | K133: 0
B134: TOPLAM KV MATRAHI VE ÖDENMESİ GEREKEN KV | C134: =C104+C129+C109+C114+C119+C124 -> 200000 | D134: =D108+D133+D113+D118+D123+D128 -> 200000 | E134: =E108+E133+E113+E118+E123+E128 -> 50000 | F134: =F108+F133+F113+F118+F123+F128 -> 10000 | G134: =G108+G133+G113+G118+G123+G128 -> 40000 | J134: =J108+J133+J113+J118+J123+J128 -> 40000 | K134: =K133+K108+K113+K118+K123+K128 -> 0 | L134: =L105+L130+L110+L115+L120+L125 -> 40000
B136: GEÇİCİ VERGİ BEYANNMESİNDE MATRAH BİLDİRİMİ BÖLÜMÜNDE DOLDURULACAK KISIMLAR VE TUTARLARI
B137: 32 A Madde Kapsamında İndirimli Kurumlar Vergisine (Geçici Vergiye) Tabi Matrah | C137: =C104+C109+C114+C119+C124 -> 0 | D137: =E108+E113+E118+E123+E128 -> 0 | E137: 1-5 Puan Olmasaydı Hesaplan KV Tutarı
D138: =G108+G113+G118+G123++G128 -> 0 | E138: 1 -5 Puan İndirim Sonrasında Ödenecek KV Tutarı (32 A olmasaydı hesaplanacak Vergi)
D139: =K108+K113+K118+K123+K128 -> 0 | E139: 32/A İndirimi ile Vazgeçilen Vergi
B140: 32 A Madde Kapsamında İndirimli Kurumlar Vergisi(Geçici Vergi) Oranı | C140: =IFERROR(D140/C137,0) -> 0 | D140: =L105+L110+L115+L120+L125 -> 0 | E140: 32/A ya Tabi Matrah Üzerinden Ödenecek KV
B141: 32/7 Madde Kapsamında İndirimli Kurumlar Vergisine (Geçici Vergiye) Tabi Matrah (İhracat) | C141: =D132 -> 200000 | D141: =E132 -> 50000 | E141: 5 Puan Olmasaydı Hesaplan KV Tutarı
D142: =F132 -> 10000 | E142: 5 Puan İndirimin Vergi Etkisi
B143: 32/7 Madde Kapsamında İndirimli Kurumlar Vergisi (Geçici Vergi) Oranı | C143: =IFERROR(D143/C141,0) -> 0.2 | D143: =G132 -> 40000 | E143: 5 Puan İndirim Sonrasında Ödenecek KV Tutarı (İhracat)
B144: 32/8 Madde Kapsamında İndirimli Kurumlar Vergisine (Geçici Vergiye) Tabi Matrah (Üretim) | C144: =D131 -> 0 | D144: =E131 -> 0 | E144: 1 Puan Olmasaydı Hesaplan KV Tutarı
D145: =F131 -> 0 | E145: 1 Puan İndirimin Vergi Etkisi
B146: 32/8 Madde Kapsamında İndirimli Kurumlar Vergisi (Geçici Vergi) Oranı | C146: =IFERROR(D146/C144,0) -> 0 | D146: =G131 -> 0 | E146: 1 Puan İndirim Sonrasında Ödenecek KV Tutarı (Üretim)
B147: Genel Orana Tabi Matrah (Diğer) | C147: =D130 -> 0 | D147: =J130 -> 0 | E147: Diğer Faalilyetlerden Elde Edilen Kazanç
C148: =IFERROR(D147/C147,0) -> 0
B149: MATRAHLAR TOPLAMI | C149: =C137+C144+C141+C147 -> 200000 | D149: =D140+D146+D143+D147 -> 40000

Sheet İ Ö 5 (hidden)
B2: FAALİYET TÜRLERİ İTİBARİYLE HASILATLAR VE TOPLAM İÇİNDEKİ ORANLARI | C2: =IFERROR(C4/C4,0) -> 1 | D2: =IFERROR(D4/C4,0) -> 0.1 | E2: =IFERROR(E4/C4,0) -> 0 | F2: =IFERROR(F4/C4,0) -> 0.9
C3: Toplam Hasılat | D3: İhracat faaliyeti | E3: İmalat faaliyeti | F3: Diğer faaliyetler
B4: A-BRÜT SATIŞLAR (60) | C4: =D4+E4+F4 -> 50000000 | D4: =SUM(D5:D7) -> 5000000 | E4: =SUM(E5:E7) -> 0 | F4: 45000000
B5: 1-Yurtiçi Satışlar (600) | C5: =D5+E5+F5 -> 45000000 | F5: 45000000
B6: 2-Yurtdışı Satışlar (601) | C6: =D6+E6+F6 -> 5000000 | D6: 5000000
B7: 3-Diğer Gelirler (602) | C7: =D7+E7+F7 -> 0
B8: B-SATIŞ İNDİRİMLERİ(-) (61) | C8: =SUM(C9:C11) -> 0 | D8: =SUM(D9:D11) -> 0 | E8: =SUM(E9:E11) -> 0 | F8: 0
B9: 1-Satıştan İadeler (-) (610) | C9: =SUM(D9:F9) -> 0
B10: 2- Satış İskontoları (-) (611) | C10: =SUM(D10:F10) -> 0
B11: 3-Diğer İndirimler (-) (612) | C11: 0
B12: C-NET SATIŞLAR | C12: =C4-C8 -> 50000000 | D12: =D4-D8 -> 5000000 | E12: =E4-E8 -> 0 | F12: 45000000
B13: D-SATIŞLARIN MALİYETİ (-) (62) | C13: =SUM(C14:C17) -> 0 | D13: =SUM(D14:D17) -> 0 | E13: =SUM(E14:E17) -> 0 | F13: =SUM(F14:F17) -> 0
B14: 1-Satılan Mamuller Maliyeti ( 620) | C14: =SUM(D14:F14) -> 0
B15: 2-Satılan Ticari Mal Maliyeti (621) | C15: =SUM(D15:F15) -> 0
B16: 3-Satılan Hizmet Maliyeti (622) | C16: 0
B17: 4-Diğer Satışların Maliyeti (623) | C17: 0
B18: BRÜT SATIŞ KARI / ZARARI | C18: =C12-C13 -> 50000000 | D18: =D12-D13 -> 5000000 | E18: =E12-E13 -> 0 | F18: 45000000
B19: E-FAALİYET GİDERLERİ (-) (63) | C19: =SUM(C20:C24) -> 0 | D19: =SUM(D20:D24) -> 0 | E19: =SUM(E20:E24) -> 0 | F19: 0
B20: 1-Araştırma ve Geliştirme Giderleri(-) (630) | C20: =SUM(D20:F20) -> 0
B21: 2-Pazarlama, Satış ve Dağıtım Giderleri(-) (631) | C21: =SUM(D21:F21) -> 0
B22: 3-Genel Yönetim Giderleri(-) (632) | C22: =SUM(D22:F22) -> 0
B23: MÜŞTEREK GENEL GİDERLER (DAĞITIM-HASILAT PAYINA GÖRE) | D23: =C23*D2 -> 0 | E23: =C23*E2 -> 0 | F23: =C23*F2 -> 0
B24: MÜŞTEREK GENEL GİDER GİBİ DAĞITIMA TABİ TUTULACAK AMORTİSMAN GİDERLERİ (DAĞITIM-HASILAT PAYINA GÖRE) | D24: =C24*D2 -> 0 | E24: =C24*E2 -> 0 | F24: =C24*F2 -> 0
B25: FAALİYET KARI / ZARARI | C25: =C18-C19 -> 50000000 | D25: =D18-D19 -> 5000000 | E25: =E18-E19 -> 0 | F25: 45000000
B26: F-DİĞER FAALİYETLERDEN OLAĞAN GELİR VE KARLAR (64) | C26: =SUM(C27:C35) -> 0 | D26: =SUM(D27:D35) -> 0 | E26: =SUM(E27:E35) -> 0 | F26: =SUM(F27:F35) -> 0
B27: 1- İŞTİRAKLERDEN TEMETTÜ GELİRLERİ (640) | C27: =SUM(D27:F27) -> 0
B28: 2- BAĞLI ORTAKLIKLARDAN TEMETTÜ GELİRLERİ (641) | C28: =SUM(D28:F28) -> 0
B29: 3- FAİZ GELİRLERİ (642) (ihracat ve imalat kaynaklı alacağın tahsiline kadar olan süreçte oluşan) | C29: 0
B30: 4- KOMİSYON GELİRLERİ (643) | C30: 0
B31: 5- KONUSU OLMAYAN KARŞILIKLAR (644) | C31: 0
B32: 6- MENKUL KIYMET SATIŞ KARLARI (645) | C32: 0
B33: 7- KAMBİYO KARLARI (646) (ihracat ve imalat kaynaklı alacağın tahsiline kadar olan süreçte oluşan) | C33: 0
B34: 8- REESKONT FAİZ GELİRLERİ (647) | C34: 0
B35: 9- FAALİYETLE İLGİLİ DİĞER GELİR VE KARLAR (649) | C35: 0
B36: ARA TOPLAM | C36: =C25+C26 -> 50000000 | D36: =D25+D26 -> 5000000 | E36: =E25+E26 -> 0 | F36: =F25+F26 -> 45000000
B37: G-DİĞER FAALİYETLERDEN OLAĞAN GİDER VE ZARARLAR(-) (65) | C37: =SUM(C38:C43) -> 0 | D37: =SUM(D38:D43) -> 0 | E37: =SUM(E38:E43) -> 0 | F37: 0
B38: 1- KOMİSYON GİDERLERİ (653) | C38: =SUM(D38:F38) -> 0
B39: 2- KARŞILIK GİDERLERİ (654) | C39: =SUM(D39:F39) -> 0
B40: 3- MENKUL KIYMET SATIŞ ZARARLARI (655) | C40: 0
B41: 4- KAMBİYO ZARARLARI (656) (ihracat ve imalat kaynaklı alacağın tahsiline kadar olan süreçte oluşan) | C41: 0
B42: 5- REESKONT FAİZ GİDERLERİ (657) | C42: 0
B43: 6- DİĞER OLAĞAN GİDER VE ZARARLAR (659) | C43: =SUM(D43:F43) -> 0
B44: ARA TOPLAM | C44: =C36-C37 -> 50000000 | D44: =D36-D37 -> 5000000 | E44: =E36-E37 -> 0 | F44: 45000000
B45: H-FİNANSMAN GİDERLERİ(-) (66) | C45: =SUM(C46:C49) -> 0 | D45: =SUM(D46:D49) -> 0 | E45: =SUM(E46:E49) -> 0 | F45: =SUM(F46:F49) -> 0
B46: 1- KISA VADELİ BORÇLANMA GİDERLERİ (-) | C46: =SUM(D46:F46) -> 0
B47: 2- UZUN VADELİ BORÇLANMA GİDERLERİ (-) | C47: =SUM(D47:F47) -> 0
B48: 1- KISA VADELİ BORÇLANMA GİDERLERİ (-) (DAĞITIM) | D48: =C48*D2 -> 0 | E48: =C48*E2 -> 0 | F48: =C48*F2 -> 0
B49: 2- UZUN VADELİ BORÇLANMA GİDERLERİ (-) (DAĞITIM) | D49: =C49*D2 -> 0 | E49: =C49*E2 -> 0 | F49: =C49*F2 -> 0
B50: ARA TOPLAM | C50: =C44-C45 -> 50000000 | D50: =D44-D45 -> 5000000 | E50: =E44-E45 -> 0 | F50: =F44-F45 -> 45000000
B51: I-OLAĞANDIŞI GELİR VE KÂRLAR (67) | C51: =SUM(D51:F51) -> 0 | D51: =SUM(D52:D53) -> 0 | E51: =SUM(E52:E53) -> 0 | F51: =SUM(F52:F53) -> 0
B52: 1- ÖNCEKİ DÖNEM GELİR VE KARLARI (671) | C52: =SUM(D52:F52) -> 0
B53: 2-DİĞER OLAĞAN DIŞI GELİR VE KARLAR (679) | C53: =SUM(D53:F53) -> 0
B54: ARA TOPLAM | C54: =SUM(D54:F54) -> 50000000 | D54: =D50+D51 -> 5000000 | E54: =E50+E51 -> 0 | F54: 45000000
B55: J-OLAĞANDIŞI GİDER VE ZARARLAR(-) (68) | C55: =SUM(C56:C58) -> 0 | D55: =SUM(D56:D58) -> 0 | E55: =SUM(E56:E58) -> 0 | F55: 0
B56: 1-Çalışmayan Kısım Gider ve Zararları(-) (680) | C56: =SUM(D56:F56) -> 0
B57: 2-Önceki Dönem Gider ve Zararları(-) (681) | C57: =SUM(D57:F57) -> 0
B58: 3-Diğer Olağan Dışı Gider ve Zararlar(-) (689) | C58: 0
B59: DÖNEM KÂRI VEYA ZARARI (TİCARİ BİLANÇO KARI ZARARI ) | C59: =C54-C55 -> 50000000 | D59: =D54-D55 -> 5000000 | E59: =E54-E55 -> 0 | F59: 45000000
B60: İHRACAT, İMALAT VE DİĞER FAALİYETLERDEN ELDE EDİLEN KAZANCIN TOPLAM TİCARİ KAZANÇ İÇİNDEKİ PAYLARI (Kazançlar arasında Öncelik İhracat Kazancına Verilmiştir. İhrcat Kazancından arta kalan Ticari Kazanç İmalat ve Diğer Faaliyetlere Sayılmıştır.) | D60: =IF(D59>=$C$59,1, IF(D59<=0,0, IF(AND(D59>0,D59<$C$59),D59/$C$59))) -> 0.1 | E60: =IF(E59>=$C$59,1, IF(E59<=0,0, IF(AND(E59>0,E59<$C$59),E59/$C$59))) -> 0 | F60: =IF(F59>=$C$59,1, IF(F59<=0,0, IF(AND(F59>0,F59<$C$59),F59/$C$59))) -> 0.9
D61: =D60/(D60+E60+F60) -> 0.1 | E61: =E60/(D60+E60+F60) -> 0 | F61: =F60/(D60+E60+F60) -> 0.9
B63: KKEG + | C63: 2000000
B64: KABUL EDİLMEYEN GELİRLER -
B65: ZARAR OLSA DAHİ İNDİRİLECEK İSTİSNALAR - | C65: =C66+C67+C68 -> 12000000
B66: Hizmet İhracatı Faaliyetinden (KVK 10-1/ğ) Elde Edilen Kazançlardan İstisna Edilenlerin Toplamı
B67: İmalat Faaliyetinden Elde Edilen Kazançlardan İstisna Edilenlerin Toplamı
B68: Diğer Faaliyetlerden Elde Edilen Kazançlardan İstisna Edilenlerin Toplamı | C68: 12000000
B69: GEÇMİŞ YIL ZARARLARI - | C69: 0
B70: İNDİRİMLER - | D70: AZAMİ YAZILABİLECEK İNDİRİMLER TUTARI | E70: =C59+C63-C64-C65-C69 -> 40000000
B72: 1 PUAN İNDİRİM UYGULANACAK TUTARIN HESABINDA İSTİSNA KAZANÇLAR DÜŞÜLDÜKTEN SONRA BULUNAN TİCARİ KAZANÇ TUTARI İLE İHRACAT,İMALAT VE DİĞER KAZANÇLARIN TUTARI | C72: TİCARİ KAZANÇ TAN İhracat ve İmalat Kazancından İstisna Olan Tutarlar Düşüldükten Sonra Kalan Tutarı | D72: İhracat Faaliyetinden Elde Edilen Kazançtan İstisna Olan Kısım Düşüldükten Sonra Bulunan Tutarı | E72: Üretim Faaliyetinden Elde Edilen Kazançtan İstisna Olan Kısım Düşüldükten Sonra Bulunan Tutarı | F72: Diğer Faaliyetinden Elde Edilen Kazanç
C73: =IF(C59-C66-C67<=0,0,C59-C66-C67) -> 50000000 | D73: =IF($D$59-C66<=0,0,MIN($D$59-C66,$C$73*D61)) -> 5000000 | E73: =IF($E$59-C67<=0,0,MIN($E$59-C67,$C$73*E61)) -> 0 | F73: =IF(C73-D73-E73<=0,0,C73-D73-E73) -> 45000000
B74: MATRAH DAĞITIM PAYLARI | D74: =IFERROR(IF(D73/C73<=0,0,D73/C73),0) -> 0.1 | E74: =IFERROR(IF(E73/C73<=0,0,E73/C73),0) -> 0 | F74: =IFERROR(F73/C73,0) -> 0.9
B75: İHRACAT, İMALAT VE DİĞER FAALİYETLERDEN ELDE EDİLEN KAZANCIN TOPLAM TİCARİ KAZANÇ İÇİNDEKİ PAYLARI | D75: =IFERROR(IF(AND(D73+E73>C73, F73<=0),1,(D73+E73)/C73),0) -> 0.1 | F75: =IFERROR(IF(F73<=0,0,F73/C73),0) -> 0.9
B76: NEGATİF VE % 100 DEN BÜYÜKLÜK KONTROLÜ SONRASINDAKİ PAYLARI | D76: =IFERROR(IF(D75<=0,0,IF(D75>1,1,D75)),0) -> 0.1 | F76: =IFERROR(IF(F75<=0,0,IF(F75>1,1,F75)),0) -> 0.9
B78: SAFİ KURUM KAZANCI (KURUMLAR VERGİSİ MATRAHI) | C78: =C59+C63-C64-C65-C69-C70 -> 40000000 | D78: =IF(C78<0, "ZARAR","KAR") -> KAR
B80: 2022 YILI 3. DÖNEM İNDİRİMLİ KURUMLAR VERGİSİ HESAPLAMA TABLOSU
C81: 1. TEŞVİK BELGESİ | D81: 2. TEŞVİK BELGESİ | E81: 3. TEŞVİK BELGESİ | F81: 4. TEŞVİK BELGESİ | G81: 5. TEŞVİK BELGESİ
B82: Vergi İndirim Oranı (VİO)
B83: KV MATRAHI (Safi Kurum Kazancı) | C83: =C78 -> 40000000
B84: 32/A Uygulanacak K.V. Matrahı (HER BİR TEŞVİK BELGESİ KAPSAMINDA YARARLANILABİLECEK YATIRIMA KATKI TUTARININ MATRAHI BU HÜCRELERE YAZILMALIDIR) | H84: =IF(SUM(C84:G84)>C78,"32/A İNDİRİMİ UYGULANACAK KAZANÇ, SAFİ KURUM KAZANCINDAN FAZLADIR",SUM(C84:G84)) -> 0
B85: 32/A UYGULANMAYACAK K.V. Matrahı | C85: =IF(C83-(C84+D84+E84+F84+G84)<0,0,C83-(C84+D84+E84+F84+G84)) -> 40000000
B86: MATRAH TOPLAMI | C86: =IF((C84+D84+E84+F84+G84+C85)>C78,C78,(C84+D84+E84+F84+G84+C85)) -> 40000000
B88: SAFİ KURUM KAZANCININ KV VERGİ ORANLARI İTİBARİYLE DAĞILIMI | C88: TOPLAM SAFİ KAZANÇ | D88: İhracat Kazancı Payı | E88: Üretim Kazancı Payı | F88: Diğer Faaliyet Kazancı Payı
C90: =C78 -> 40000000 | D90: =IF(AND(AND($D$59>0,($D$59+$E$59)>=$C$59,D59>=C66),$C$90>=MAX(D59,D73)), MIN(MAX(IF(D59<=C90,D59,IF(D73<=C90,D73)),$C$90*D74)), IF(OR(D59<=0,D73<=0),0, MIN( MAX( MAX( IF(D59<=C90,D59), IF(D73<=C90,D73) ), MIN($C$90*D74,D59,D73)),$C$90))) -> 5000000 | E90: =MIN( IF(AND(AND($E$59>0,($D$59+$E$59)>=$C$59,E59>=C67),$C$90>=MAX(E59,E73)), MIN(MAX(IF(E59<=C90,E59,IF(E73<=C90,E73)),$C$90*E74)), IF(OR(E59<=0,E73<=0),0, MIN( MAX( MAX( IF(E59<=C90,E59), IF(E73<=C90,E73) ), MIN($C$90*E74,E59,E73)),$C$90))),C90-D90) -> 0 | F90: =C90-D90-E90 -> 35000000
B91: SAFİ KURUM KAZANCININ DAĞILIMI ORANSAL DAĞILIMI | C91: =C90 -> 40000000 | D91: =D90/C90 -> 0.125 | E91: =E90/C90 -> 0 | F91: =F90/C90 -> 0.875
B92: SAFİ KURUM KAZANCININ DAĞILIMI TUTARSAL | C92: =C91 -> 40000000 | D92: =D90 -> 5000000 | E92: =E90 -> 0 | F92: =F90 -> 35000000
B93: SAFİ KURUM KAZANCI DAĞILIMI | C93: =C92 -> 40000000 | D93: =IFERROR(IF(D92/C92>=1,1,D92/C92),0) -> 0.125 | E93: =IFERROR(IF(E92/C92>=1,1,E92/C92),0) -> 0 | F93: =IFERROR(IF(F92/C92>=1,1,F92/C92),0) -> 0.875 | H93: KV ORANI
B94: 1 PUAN VE 32/A İNDİRİMİ OLMASAYDI HESAPLANAN KV TUTARI | C94: =C93*$H$94 -> 10000000 | D94: =D92*$H$94 -> 1250000 | E94: =E92*$H$94 -> 0 | F94: =F92*$H$94 -> 8750000 | H94: 0.25
B95: 32/ A UYGULANAN MATRAH | C95: =C84+D84+E84+F84+G84 -> 0 | D95: =D107+D112+D117+D122+D127 -> 0 | E95: =D106+D111+D116+D121+D126 -> 0 | F95: =D105+D110+D115+D120+D125 -> 0
B96: 32/A UYGULANACAK MATRAH ÜZERİNDEN ÖDENECEK KV TUTARI | C96: =J108+J113+J118+J123+J128 -> 0 | D96: =J107+J112+J117+J122+J127 -> 0 | E96: =J106+J111+J116+J121+J126 -> 0 | F96: =J105+J110+J115+J120+J125 -> 0
B97: 32/A UYGULANMAYAN MATRAH | C97: =IF(C85<=0,0,C85) -> 40000000 | D97: =D132 -> 5000000 | E97: =D131 -> 0 | F97: =D130 -> 35000000
B98: 32/A UYGULANMAYAN MATRAH ÜZERİNDEN ÖDENECEK KV TUTARI | C98: =L130 -> 9750000 | D98: =J132 -> 1000000 | E98: =J131 -> 0 | F98: =J130 -> 8750000
B99: TOPLAM ÖDENECEK KV | C99: =C96+C98 -> 9750000 | D99: =J132+J107 -> 1000000 | E99: =J131+J106 -> 0 | F99: =J130+J105 -> 8750000
B100: TOPLAM AVANTAJ (YARARLANILAN 1 PUAN İNDİRİMİ + 32/A İNDİRİMİ TUTARI ) | C100: =C94-C99 -> 250000 | D100: =D101+D102 -> 250000 | E100: =E101+E102 -> 0 | F100: =F101+F102 -> 0
B101: YARARLANILAN 1 - 5 PUAN İNDİRİMİ TUTARI | C101: =F133+F128+F123+F118+F113+F108 -> 250000 | D101: =F132+F107+F112+F117+F122+F127 -> 250000 | E101: =F131+F106+F111+F116+F121+F126 -> 0 | F101: =F130+F105+F110+F115+F120+F125 -> 0
B102: YARLANILAN 32/A İNDİRİMİ TUTARI | C102: =K108+K113+K118+K123+K128+K133 -> 0 | D102: =K107+K112+K122+K127+K132 -> 0 | E102: =K106+K111+K116+K121+K126+K131 -> 0 | F102: =K105++K110+K115+K120+K125+K130 -> 0
B104: 32/A UYGULANABİLECEK MATRAH (1.TEŞVİK BELGESİ) | C104: =C84 -> 0 | D104: KV MATRAHI | E104: 1 - 5 PUAN İNDİRİM OLMASAYDI HESAPLANAN KV TUTARI | F104: 1 -5 Puan İndirim Tutarı | G104: 1 - 5 Puan İndirim Sonrasında Hesaplanan KV Tutarı | H104: 32/A İndirimi Olmasaydı Ödenecek KV Tutarı | I104: 1 -5 Puan İndirim ve 32/A VİO Uygulandıktan Sonra Tatbik Edilecek KV Oranı | J104: 1 -5 Puan İndirim ve 32/A İndirimi Uygulandıktan Sonra Ödenecek KV Tutarı | K104: Yararlanılan Yatırıma Katkı Tutarı (32/A İnd. KV Nedeniyle Vazgeçilen Vergi Tutarı) | L104: Ödenecek KV Tutarı
B105: GENEL ORANA TABİ KISIM (DİĞER FAALİYETLER) | C105: =F93 -> 0.875 | D105: =C104*C105 -> 0 | E105: =D105*$H$94 -> 0 | F105: 0 | G105: =E105-F105 -> 0 | H105: =G105 -> 0 | I105: =($H$94)-(($H$94)*$C$82) -> 0.25 | J105: =I105*D105 -> 0 | K105: =G105-J105 -> 0 | L105: =J108 -> 0
B106: 1 PUAN İNDİRİMLİ ORANA TABİ KISIM (İMALAT) | C106: =E93 -> 0 | D106: =C104*C106 -> 0 | E106: =D106*$H$94 -> 0 | F106: =D106/100 -> 0 | G106: =E106-F106 -> 0 | H106: =G106 -> 0 | I106: =($H$94-0.01)-(($H$94-0.01)*$C$82) -> 0.24 | J106: =I106*D106 -> 0 | K106: =G106-J106 -> 0
B107: 5 PUAN İNDİRİMLİ ORANA TABİ KISIM ( İHRACAT) | C107: =D93 -> 0.125 | D107: =C104*C107 -> 0 | E107: =D107*$H$94 -> 0 | F107: =D107/20 -> 0 | G107: =E107-F107 -> 0 | H107: 0 | I107: =($H$94-0.05)-(($H$94-0.05)*C82) -> 0.2 | J107: 0 | K107: =G107-J107 -> 0
B108: TOPLAM | C108: =SUM(C105:C107) -> 1 | D108: =SUM(D105:D107) -> 0 | E108: 0 | F108: =SUM(F105:F107) -> 0 | G108: =SUM(G105:G107) -> 0 | H108: =SUM(H105:H107) -> 0 | J108: 0 | K108: 0
B109: 32/A UYGULANABİLECEK MATRAH (2.TEŞVİK BELGESİ) | C109: =D84 -> 0 | D109: KV MATRAHI | E109: 1 - 5 PUAN İNDİRİM OLMASAYDI HESAPLANAN KV TUTARI | F109: 1 -5 Puan İndirim Tutarı | G109: 1 -5 Puan İndirim Sonrasında Hesaplanan KV Tutarı | H109: 32/A İndirimi Olmasaydı Ödenecek KV Tutarı | I109: 1 - 5 Puan İndirim ve 32/A VİO Uygulandıktan Sonra Tatbik Edilecek KV Oranı | J109: 1-5 Puan İndirim ve 32/A İndirimi Uygulandıktan Sonra Ödenecek KV Tutarı | K109: Yararlanılan Yatırıma Katkı Tutarı (32/A İnd. KV Nedeniyle Vazgeçilen Vergi Tutarı) | L109: Ödenecek KV Tutarı
B110: GENEL ORANA TABİ KISIM (DİĞER FAALİYETLER) | C110: =F93 -> 0.875 | D110: =C109*C110 -> 0 | E110: =D110*$H$94 -> 0 | F110: 0 | G110: =E110-F110 -> 0 | H110: =G110 -> 0 | I110: =($H$94)-(($H$94)*D82) -> 0.25 | J110: =I110*D110 -> 0 | K110: =G110-J110 -> 0 | L110: =J113 -> 0
B111: 1 PUAN İNDİRİMLİ ORANA TABİ KISIM (İMALAT) | C111: =E93 -> 0 | D111: =C109*C111 -> 0 | E111: =D111*$H$94 -> 0 | F111: =D111/100 -> 0 | G111: =E111-F111 -> 0 | H111: =G111 -> 0 | I111: =($H$94-0.01)-(($H$94-0.01)*D82) -> 0.24 | J111: =I111*D111 -> 0 | K111: =G111-J111 -> 0
B112: 5 PUAN İNDİRİMLİ ORANA TABİ KISIM ( İHRACAT) | C112: =D93 -> 0.125 | D112: =C109*C112 -> 0 | E112: =D112*$H$94 -> 0 | F112: =D112/20 -> 0 | G112: =E112-F112 -> 0 | H112: 0 | I112: =($H$94-0.05)-(($H$94-0.05)*D82) -> 0.2 | J112: 0 | K112: =G112-J112 -> 0
B113: TOPLAM | C113: =SUM(C110:C112) -> 1 | D113: 0 | E113: 0 | F113: =SUM(F110:F112) -> 0 | G113: =SUM(G110:G112) -> 0 | H113: =SUM(H110:H112) -> 0 | J113: =SUM(J110:J112) -> 0 | K113: 0
B114: 32/A UYGULANABİLECEK MATRAH (3.TEŞVİK BELGESİ) | C114: =E84 -> 0 | D114: KV MATRAHI | E114: 1 - 5 PUAN İNDİRİM OLMASAYDI HESAPLANAN KV TUTARI | F114: 1-5 Puan İndirim Tutarı | G114: 1 - 5 Puan İndirim Sonrasında Hesaplanan KV Tutarı | H114: 32/A İndirimi Olmasaydı Ödenecek KV Tutarı | I114: 1 - 5 Puan İndirim ve 32/A VİO Uygulandıktan Sonra Tatbik Edilecek KV Oranı | J114: 1 -5 Puan İndirim ve 32/A İndirimi Uygulandıktan Sonra Ödenecek KV Tutarı | K114: Yararlanılan Yatırıma Katkı Tutarı (32/A İnd. KV Nedeniyle Vazgeçilen Vergi Tutarı) | L114: Ödenecek KV Tutarı
B115: GENEL ORANA TABİ KISIM (DİĞER FAALİYETLER) | C115: =F93 -> 0.875 | D115: =C114*C115 -> 0 | E115: =D115*$H$94 -> 0 | F115: 0 | G115: =E115-F115 -> 0 | H115: =G115 -> 0 | I115: =($H$94)-(($H$94)*E82) -> 0.25 | J115: =I115*D115 -> 0 | K115: =G115-J115 -> 0 | L115: =J118 -> 0
B116: 1 PUAN İNDİRİMLİ ORANA TABİ KISIM (İMALAT) | C116: =E93 -> 0 | D116: =C114*C116 -> 0 | E116: =D116*$H$94 -> 0 | F116: =D116/100 -> 0 | G116: =E116-F116 -> 0 | H116: =G116 -> 0 | I116: =($H$94-0.01)-(($H$94-0.01)*E82) -> 0.24 | J116: =I116*D116 -> 0 | K116: =G116-J116 -> 0
B117: 5 PUAN İNDİRİMLİ ORANA TABİ KISIM ( İHRACAT) | C117: =D93 -> 0.125 | D117: =C114*C117 -> 0 | E117: =D117*$H$94 -> 0 | F117: =D117/20 -> 0 | G117: =E117-F117 -> 0 | H117: 0 | I117: =($H$94-0.05)-(($H$94-0.05)*E82) -> 0.2 | J117: 0 | K117: =G117-J117 -> 0
B118: TOPLAM | C118: =SUM(C115:C117) -> 1 | D118: 0 | E118: 0 | F118: =SUM(F115:F117) -> 0 | G118: =SUM(G115:G117) -> 0 | H118: =SUM(H115:H117) -> 0 | J118: =SUM(J115:J117) -> 0 | K118: 0
B119: 32/A UYGULANABİLECEK MATRAH (4. TEŞVİK BELGESİ) | C119: =F84 -> 0 | D119: KV MATRAHI | E119: 1 - 5 PUAN İNDİRİM OLMASAYDI HESAPLANAN KV TUTARI | F119: 1-5 Puan İndirim Tutarı | G119: 1 -5 Puan İndirim Sonrasında Hesaplanan KV Tutarı | H119: 32/A İndirimi Olmasaydı Ödenecek KV Tutarı | I119: 1- 5 Puan İndirim ve 32/A VİO Uygulandıktan Sonra Tatbik Edilecek KV Oranı | J119: 1-5 Puan İndirim ve 32/A İndirimi Uygulandıktan Sonra Ödenecek KV Tutarı | K119: Yararlanılan Yatırıma Katkı Tutarı (32/A İnd. KV Nedeniyle Vazgeçilen Vergi Tutarı) | L119: Ödenecek KV Tutarı
B120: GENEL ORANA TABİ KISIM (DİĞER FAALİYETLER) | C120: =F93 -> 0.875 | D120: =C119*C120 -> 0 | E120: =D120*$H$94 -> 0 | F120: 0 | G120: =E120-F120 -> 0 | H120: =G120 -> 0 | I120: =($H$94)-(($H$94)*F82) -> 0.25 | J120: =I120*D120 -> 0 | K120: =G120-J120 -> 0 | L120: =J123 -> 0
B121: 1 PUAN İNDİRİMLİ ORANA TABİ KISIM (İMALAT) | C121: =E93 -> 0 | D121: =C119*C121 -> 0 | E121: =D121*$H$94 -> 0 | F121: =D121/100 -> 0 | G121: =E121-F121 -> 0 | H121: =G121 -> 0 | I121: =($H$94-0.01)-(($H$94-0.01)*F82) -> 0.24 | J121: =I121*D121 -> 0 | K121: =G121-J121 -> 0
B122: 5 PUAN İNDİRİMLİ ORANA TABİ KISIM ( İHRACAT) | C122: =D93 -> 0.125 | D122: =C119*C122 -> 0 | E122: =D122*$H$94 -> 0 | F122: =D122/20 -> 0 | G122: =E122-F122 -> 0 | H122: 0 | I122: =($H$94-0.05)-(($H$94-0.05)*F82) -> 0.2 | J122: 0 | K122: =G122-J122 -> 0
B123: TOPLAM | C123: =SUM(C120:C122) -> 1 | D123: 0 | E123: 0 | F123: =SUM(F120:F122) -> 0 | G123: =SUM(G120:G122) -> 0 | H123: =SUM(H120:H122) -> 0 | J123: =SUM(J120:J122) -> 0 | K123: 0
B124: 32/A UYGULANABİLECEK MATRAH (5.TEŞVİK BELGESİ) | C124: =G84 -> 0 | D124: KV MATRAHI | E124: 1 - 5 PUAN İNDİRİM OLMASAYDI HESAPLANAN KV TUTARI | F124: 1-5 Puan İndirim Tutarı | G124: 1 - 5 Puan İndirim Sonrasında Hesaplanan KV Tutarı | H124: 32/A İndirimi Olmasaydı Ödenecek KV Tutarı | I124: 1 -5 Puan İndirim ve 32/A VİO Uygulandıktan Sonra Tatbik Edilecek KV Oranı | J124: 1 - 5 Puan İndirim ve 32/A İndirimi Uygulandıktan Sonra Ödenecek KV Tutarı | K124: Yararlanılan Yatırıma Katkı Tutarı (32/A İnd. KV Nedeniyle Vazgeçilen Vergi Tutarı) | L124: Ödenecek KV Tutarı
B125: GENEL ORANA TABİ KISIM (DİĞER FAALİYETLER) | C125: =F93 -> 0.875 | D125: =C124*C125 -> 0 | E125: =D125*$H$94 -> 0 | F125: 0 | G125: =E125-F125 -> 0 | H125: =G125 -> 0 | I125: =($H$94)-(($H$94)*G82) -> 0.25 | J125: =I125*D125 -> 0 | K125: =G125-J125 -> 0 | L125: =J128 -> 0
B126: 1 PUAN İNDİRİMLİ ORANA TABİ KISIM (İMALAT) | C126: =E93 -> 0 | D126: =C124*C126 -> 0 | E126: =D126*$H$94 -> 0 | F126: =D126/100 -> 0 | G126: =E126-F126 -> 0 | H126: =G126 -> 0 | I126: =($H$94-0.01)-(($H$94-0.01)*G82) -> 0.24 | J126: =I126*D126 -> 0 | K126: =G126-J126 -> 0
B127: 5 PUAN İNDİRİMLİ ORANA TABİ KISIM ( İHRACAT) | C127: =D93 -> 0.125 | D127: =C124*C127 -> 0 | E127: =D127*$H$94 -> 0 | F127: =D127/20 -> 0 | G127: =E127-F127 -> 0 | H127: 0 | I127: =($H$94-0.05)-(($H$94-0.05)*G82) -> 0.2 | J127: 0 | K127: =G127-J127 -> 0
B128: TOPLAM | C128: =SUM(C125:C127) -> 1 | D128: 0 | E128: 0 | F128: =SUM(F125:F127) -> 0 | G128: =SUM(G125:G127) -> 0 | H128: =SUM(H125:H127) -> 0 | J128: =SUM(J125:J127) -> 0 | K128: 0
B129: 32/A UYGULANAMAYACAK MATRAH | C129: =IF(C85<=0,0,C85) -> 40000000 | D129: KV MATRAHI | E129: 1-5 PUAN İNDİRİM OLMASAYDI HESAPLANAN KV TUTARI | F129: 1-5 Puan İndirim Tutarı | G129: 1 -5 Puan İndirim Sonrasında Hesaplanan KV Tutarı | H129: 32/A İNDİRİMİ UYGULANMAZ | J129: 1 Puan İndirim ve 32/A İndirimi Uygulandıktan Sonra Ödenecek KV Tutarı | K129: Yararlanılan Yatırıma Katkı Tutarı (32/A İnd. KV Nedeniyle Vazgeçilen Vergi Tutarı) | L129: Ödenecek KV Tutarı
B130: GENEL ORANA TABİ KISIM (DİĞER FAALİYETLER) | C130: =F93 -> 0.875 | D130: =C129*C130 -> 35000000 | E130: =D130*$H$94 -> 8750000 | F130: 0 | G130: =E130-F130 -> 8750000 | J130: =G130 -> 8750000 | K130: =G130-J130 -> 0 | L130: =J133 -> 9750000
B131: 1 PUAN İNDİRİMLİ ORANA TABİ KISIM (İMALAT) | C131: =E93 -> 0 | D131: =C131*C129 -> 0 | E131: =D131*$H$94 -> 0 | F131: =D131/100 -> 0 | G131: =E131-F131 -> 0 | J131: =G131 -> 0 | K131: =G131-J131 -> 0
B132: 5 PUAN İNDİRİMLİ ORANA TABİ KISIM ( İHRACAT) | C132: =D93 -> 0.125 | D132: =C132*C129 -> 5000000 | E132: =D132*$H$94 -> 1250000 | F132: =D132/20 -> 250000 | G132: =E132-F132 -> 1000000 | J132: 1000000 | K132: 0
B133: TOPLAM | C133: =SUM(C130:C132) -> 1 | D133: =SUM(D130:D132) -> 40000000 | E133: 10000000 | F133: =SUM(F130:F132) -> 250000 | G133: =SUM(G130:G132) -> 9750000 | J133: 9750000 | K133: 0
B134: TOPLAM KV MATRAHI VE ÖDENMESİ GEREKEN KV | C134: =C104+C129+C109+C114+C119+C124 -> 40000000 | D134: =D108+D133+D113+D118+D123+D128 -> 40000000 | E134: =E108+E133+E113+E118+E123+E128 -> 10000000 | F134: =F108+F133+F113+F118+F123+F128 -> 250000 | G134: =G108+G133+G113+G118+G123+G128 -> 9750000 | J134: =J108+J133+J113+J118+J123+J128 -> 9750000 | K134: =K133+K108+K113+K118+K123+K128 -> 0 | L134: =L105+L130+L110+L115+L120+L125 -> 9750000
B136: GEÇİCİ VERGİ BEYANNMESİNDE MATRAH BİLDİRİMİ BÖLÜMÜNDE DOLDURULACAK KISIMLAR VE TUTARLARI
B137: 32 A Madde Kapsamında İndirimli Kurumlar Vergisine (Geçici Vergiye) Tabi Matrah | C137: =C104+C109+C114+C119+C124 -> 0 | D137: =E108+E113+E118+E123+E128 -> 0 | E137: 1-5 Puan Olmasaydı Hesaplan KV Tutarı
D138: =G108+G113+G118+G123++G128 -> 0 | E138: 1 -5 Puan İndirim Sonrasında Ödenecek KV Tutarı (32 A olmasaydı hesaplanacak Vergi)
D139: =K108+K113+K118+K123+K128 -> 0 | E139: 32/A İndirimi ile Vazgeçilen Vergi
B140: 32 A Madde Kapsamında İndirimli Kurumlar Vergisi(Geçici Vergi) Oranı | C140: =IFERROR(D140/C137,0) -> 0 | D140: =L105+L110+L115+L120+L125 -> 0 | E140: 32/A ya Tabi Matrah Üzerinden Ödenecek KV
B141: 32/7 Madde Kapsamında İndirimli Kurumlar Vergisine (Geçici Vergiye) Tabi Matrah (İhracat) | C141: =D132 -> 5000000 | D141: =E132 -> 1250000 | E141: 5 Puan Olmasaydı Hesaplan KV Tutarı
D142: =F132 -> 250000 | E142: 5 Puan İndirimin Vergi Etkisi
B143: 32/7 Madde Kapsamında İndirimli Kurumlar Vergisi (Geçici Vergi) Oranı | C143: =IFERROR(D143/C141,0) -> 0.2 | D143: =G132 -> 1000000 | E143: 5 Puan İndirim Sonrasında Ödenecek KV Tutarı (İhracat)
B144: 32/8 Madde Kapsamında İndirimli Kurumlar Vergisine (Geçici Vergiye) Tabi Matrah (Üretim) | C144: =D131 -> 0 | D144: =E131 -> 0 | E144: 1 Puan Olmasaydı Hesaplan KV Tutarı
D145: =F131 -> 0 | E145: 1 Puan İndirimin Vergi Etkisi
B146: 32/8 Madde Kapsamında İndirimli Kurumlar Vergisi (Geçici Vergi) Oranı | C146: =IFERROR(D146/C144,0) -> 0 | D146: =G131 -> 0 | E146: 1 Puan İndirim Sonrasında Ödenecek KV Tutarı (Üretim)
B147: Genel Orana Tabi Matrah (Diğer) | C147: =D130 -> 35000000 | D147: =J130 -> 8750000 | E147: Diğer Faalilyetlerden Elde Edilen Kazanç
C148: =IFERROR(D147/C147,0) -> 0.25
B149: MATRAHLAR TOPLAMI | C149: =C137+C144+C141+C147 -> 40000000 | D149: =D140+D146+D143+D147 -> 9750000

Sheet Ü Ö1 (hidden)
B2: FAALİYET TÜRLERİ İTİBARİYLE HASILATLAR VE TOPLAM İÇİNDEKİ ORANLARI | C2: =IFERROR(C4/C4,0) -> 1 | D2: =IFERROR(D4/C4,0) -> 0 | E2: =IFERROR(E4/C4,0) -> 0.7 | F2: =IFERROR(F4/C4,0) -> 0.3
C3: Toplam Hasılat | D3: İhracat faaliyeti | E3: İmalat faaliyeti | F3: Diğer faaliyetler
B4: A-BRÜT SATIŞLAR (60) | C4: =D4+E4+F4 -> 2000000 | D4: =SUM(D5:D7) -> 0 | E4: =SUM(E5:E7) -> 1400000 | F4: 600000
B5: 1-Yurtiçi Satışlar (600) | C5: =D5+E5+F5 -> 2000000 | E5: 1400000 | F5: 600000
B6: 2-Yurtdışı Satışlar (601) | C6: =D6+E6+F6 -> 0 | D6: 0
B7: 3-Diğer Gelirler (602) | C7: =D7+E7+F7 -> 0
B8: B-SATIŞ İNDİRİMLERİ(-) (61) | C8: =SUM(C9:C11) -> 0 | D8: =SUM(D9:D11) -> 0 | E8: =SUM(E9:E11) -> 0 | F8: 0
B9: 1-Satıştan İadeler (-) (610) | C9: =SUM(D9:F9) -> 0
B10: 2- Satış İskontoları (-) (611) | C10: =SUM(D10:F10) -> 0
B11: 3-Diğer İndirimler (-) (612) | C11: 0
B12: C-NET SATIŞLAR | C12: =C4-C8 -> 2000000 | D12: =D4-D8 -> 0 | E12: =E4-E8 -> 1400000 | F12: 600000
B13: D-SATIŞLARIN MALİYETİ (-) (62) | C13: =SUM(C14:C17) -> 0 | D13: =SUM(D14:D17) -> 0 | E13: =SUM(E14:E17) -> 0 | F13: =SUM(F14:F17) -> 0
B14: 1-Satılan Mamuller Maliyeti ( 620) | C14: =SUM(D14:F14) -> 0
B15: 2-Satılan Ticari Mal Maliyeti (621) | C15: =SUM(D15:F15) -> 0
B16: 3-Satılan Hizmet Maliyeti (622) | C16: 0
B17: 4-Diğer Satışların Maliyeti (623) | C17: 0
B18: BRÜT SATIŞ KARI / ZARARI | C18: =C12-C13 -> 2000000 | D18: =D12-D13 -> 0 | E18: =E12-E13 -> 1400000 | F18: 600000
B19: E-FAALİYET GİDERLERİ (-) (63) | C19: =SUM(C20:C24) -> 0 | D19: =SUM(D20:D24) -> 0 | E19: =SUM(E20:E24) -> 0 | F19: 0
B20: 1-Araştırma ve Geliştirme Giderleri(-) (630) | C20: =SUM(D20:F20) -> 0
B21: 2-Pazarlama, Satış ve Dağıtım Giderleri(-) (631) | C21: =SUM(D21:F21) -> 0
B22: 3-Genel Yönetim Giderleri(-) (632) | C22: =SUM(D22:F22) -> 0
B23: MÜŞTEREK GENEL GİDERLER (DAĞITIM-HASILAT PAYINA GÖRE) | D23: =C23*D2 -> 0 | E23: =C23*E2 -> 0 | F23: =C23*F2 -> 0
B24: MÜŞTEREK GENEL GİDER GİBİ DAĞITIMA TABİ TUTULACAK AMORTİSMAN GİDERLERİ (DAĞITIM-HASILAT PAYINA GÖRE) | D24: =C24*D2 -> 0 | E24: =C24*E2 -> 0 | F24: =C24*F2 -> 0
B25: FAALİYET KARI / ZARARI | C25: =C18-C19 -> 2000000 | D25: =D18-D19 -> 0 | E25: =E18-E19 -> 1400000 | F25: 600000
B26: F-DİĞER FAALİYETLERDEN OLAĞAN GELİR VE KARLAR (64) | C26: =SUM(C27:C35) -> 0 | D26: =SUM(D27:D35) -> 0 | E26: =SUM(E27:E35) -> 0 | F26: =SUM(F27:F35) -> 0
B27: 1- İŞTİRAKLERDEN TEMETTÜ GELİRLERİ (640) | C27: =SUM(D27:F27) -> 0
B28: 2- BAĞLI ORTAKLIKLARDAN TEMETTÜ GELİRLERİ (641) | C28: =SUM(D28:F28) -> 0
B29: 3- FAİZ GELİRLERİ (642) (ihracat ve imalat kaynaklı alacağın tahsiline kadar olan süreçte oluşan) | C29: 0
B30: 4- KOMİSYON GELİRLERİ (643) | C30: 0
B31: 5- KONUSU OLMAYAN KARŞILIKLAR (644) | C31: 0
B32: 6- MENKUL KIYMET SATIŞ KARLARI (645) | C32: 0
B33: 7- KAMBİYO KARLARI (646) (ihracat ve imalat kaynaklı alacağın tahsiline kadar olan süreçte oluşan) | C33: 0
B34: 8- REESKONT FAİZ GELİRLERİ (647) | C34: 0
B35: 9- FAALİYETLE İLGİLİ DİĞER GELİR VE KARLAR (649) | C35: 0
B36: ARA TOPLAM | C36: =C25+C26 -> 2000000 | D36: =D25+D26 -> 0 | E36: =E25+E26 -> 1400000 | F36: =F25+F26 -> 600000
B37: G-DİĞER FAALİYETLERDEN OLAĞAN GİDER VE ZARARLAR(-) (65) | C37: =SUM(C38:C43) -> 0 | D37: =SUM(D38:D43) -> 0 | E37: =SUM(E38:E43) -> 0 | F37: 0
B38: 1- KOMİSYON GİDERLERİ (653) | C38: =SUM(D38:F38) -> 0
B39: 2- KARŞILIK GİDERLERİ (654) | C39: =SUM(D39:F39) -> 0
B40: 3- MENKUL KIYMET SATIŞ ZARARLARI (655) | C40: 0
B41: 4- KAMBİYO ZARARLARI (656) (ihracat ve imalat kaynaklı alacağın tahsiline kadar olan süreçte oluşan) | C41: 0
B42: 5- REESKONT FAİZ GİDERLERİ (657) | C42: 0
B43: 6- DİĞER OLAĞAN GİDER VE ZARARLAR (659) | C43: =SUM(D43:F43) -> 0
B44: ARA TOPLAM | C44: =C36-C37 -> 2000000 | D44: =D36-D37 -> 0 | E44: =E36-E37 -> 1400000 | F44: 600000
B45: H-FİNANSMAN GİDERLERİ(-) (66) | C45: =SUM(C46:C49) -> 0 | D45: =SUM(D46:D49) -> 0 | E45: =SUM(E46:E49) -> 0 | F45: =SUM(F46:F49) -> 0
B46: 1- KISA VADELİ BORÇLANMA GİDERLERİ (-) | C46: =SUM(D46:F46) -> 0
B47: 2- UZUN VADELİ BORÇLANMA GİDERLERİ (-) | C47: =SUM(D47:F47) -> 0
B48: 1- KISA VADELİ BORÇLANMA GİDERLERİ (-) (DAĞITIM) | D48: =C48*D2 -> 0 | E48: =C48*E2 -> 0 | F48: =C48*F2 -> 0
B49: 2- UZUN VADELİ BORÇLANMA GİDERLERİ (-) (DAĞITIM) | D49: =C49*D2 -> 0 | E49: =C49*E2 -> 0 | F49: =C49*F2 -> 0
B50: ARA TOPLAM | C50: =C44-C45 -> 2000000 | D50: =D44-D45 -> 0 | E50: =E44-E45 -> 1400000 | F50: =F44-F45 -> 600000
B51: I-OLAĞANDIŞI GELİR VE KÂRLAR (67) | C51: =SUM(D51:F51) -> 0 | D51: =SUM(D52:D53) -> 0 | E51: =SUM(E52:E53) -> 0 | F51: =SUM(F52:F53) -> 0
B52: 1- ÖNCEKİ DÖNEM GELİR VE KARLARI (671) | C52: =SUM(D52:F52) -> 0
B53: 2-DİĞER OLAĞAN DIŞI GELİR VE KARLAR (679) | C53: =SUM(D53:F53) -> 0
B54: ARA TOPLAM | C54: =SUM(D54:F54) -> 2000000 | D54: =D50+D51 -> 0 | E54: =E50+E51 -> 1400000 | F54: 600000
B55: J-OLAĞANDIŞI GİDER VE ZARARLAR(-) (68) | C55: =SUM(C56:C58) -> 0 | D55: =SUM(D56:D58) -> 0 | E55: =SUM(E56:E58) -> 0 | F55: 0
B56: 1-Çalışmayan Kısım Gider ve Zararları(-) (680) | C56: =SUM(D56:F56) -> 0
B57: 2-Önceki Dönem Gider ve Zararları(-) (681) | C57: =SUM(D57:F57) -> 0
B58: 3-Diğer Olağan Dışı Gider ve Zararlar(-) (689) | C58: 0
B59: DÖNEM KÂRI VEYA ZARARI (TİCARİ BİLANÇO KARI ZARARI ) | C59: =C54-C55 -> 2000000 | D59: =D54-D55 -> 0 | E59: =E54-E55 -> 1400000 | F59: 600000
B60: İHRACAT, İMALAT VE DİĞER FAALİYETLERDEN ELDE EDİLEN KAZANCIN TOPLAM TİCARİ KAZANÇ İÇİNDEKİ PAYLARI (Kazançlar arasında Öncelik İhracat Kazancına Verilmiştir. İhrcat Kazancından arta kalan Ticari Kazanç İmalat ve Diğer Faaliyetlere Sayılmıştır.) | D60: =IF(D59>=$C$59,1, IF(D59<=0,0, IF(AND(D59>0,D59<$C$59),D59/$C$59))) -> 0 | E60: =IF(E59>=$C$59,1, IF(E59<=0,0, IF(AND(E59>0,E59<$C$59),E59/$C$59))) -> 0.7 | F60: =IF(F59>=$C$59,1, IF(F59<=0,0, IF(AND(F59>0,F59<$C$59),F59/$C$59))) -> 0.3
D61: =D60/(D60+E60+F60) -> 0 | E61: =E60/(D60+E60+F60) -> 0.7 | F61: =F60/(D60+E60+F60) -> 0.3
B63: KKEG + | C63: 500000
B64: KABUL EDİLMEYEN GELİRLER -
B65: ZARAR OLSA DAHİ İNDİRİLECEK İSTİSNALAR - | C65: =C66+C67+C68 -> 0
B66: Hizmet İhracatı Faaliyetinden (KVK 10-1/ğ) Elde Edilen Kazançlardan İstisna Edilenlerin Toplamı
B67: İmalat Faaliyetinden Elde Edilen Kazançlardan İstisna Edilenlerin Toplamı
B68: Diğer Faaliyetlerden Elde Edilen Kazançlardan İstisna Edilenlerin Toplamı
B69: GEÇMİŞ YIL ZARARLARI - | C69: 1200000
B70: İNDİRİMLER - | D70: AZAMİ YAZILABİLECEK İNDİRİMLER TUTARI | E70: =C59+C63-C64-C65-C69 -> 1300000
B72: 1 PUAN İNDİRİM UYGULANACAK TUTARIN HESABINDA İSTİSNA KAZANÇLAR DÜŞÜLDÜKTEN SONRA BULUNAN TİCARİ KAZANÇ TUTARI İLE İHRACAT,İMALAT VE DİĞER KAZANÇLARIN TUTARI | C72: TİCARİ KAZANÇ TAN İhracat ve İmalat Kazancından İstisna Olan Tutarlar Düşüldükten Sonra Kalan Tutarı | D72: İhracat Faaliyetinden Elde Edilen Kazançtan İstisna Olan Kısım Düşüldükten Sonra Bulunan Tutarı | E72: Üretim Faaliyetinden Elde Edilen Kazançtan İstisna Olan Kısım Düşüldükten Sonra Bulunan Tutarı | F72: Diğer Faaliyetinden Elde Edilen Kazanç
C73: =IF(C59-C66-C67<=0,0,C59-C66-C67) -> 2000000 | D73: =IF($D$59-C66<=0,0,MIN($D$59-C66,$C$73*D61)) -> 0 | E73: =IF($E$59-C67<=0,0,MIN($E$59-C67,$C$73*E61)) -> 1400000 | F73: =IF(C73-D73-E73<=0,0,C73-D73-E73) -> 600000
B74: MATRAH DAĞITIM PAYLARI | D74: =IFERROR(IF(D73/C73<=0,0,D73/C73),0) -> 0 | E74: =IFERROR(IF(E73/C73<=0,0,E73/C73),0) -> 0.7 | F74: =IFERROR(F73/C73,0) -> 0.3
B75: İHRACAT, İMALAT VE DİĞER FAALİYETLERDEN ELDE EDİLEN KAZANCIN TOPLAM TİCARİ KAZANÇ İÇİNDEKİ PAYLARI | D75: =IFERROR(IF(AND(D73+E73>C73, F73<=0),1,(D73+E73)/C73),0) -> 0.7 | F75: =IFERROR(IF(F73<=0,0,F73/C73),0) -> 0.3
B76: NEGATİF VE % 100 DEN BÜYÜKLÜK KONTROLÜ SONRASINDAKİ PAYLARI | D76: =IFERROR(IF(D75<=0,0,IF(D75>1,1,D75)),0) -> 0.7 | F76: =IFERROR(IF(F75<=0,0,IF(F75>1,1,F75)),0) -> 0.3
B78: SAFİ KURUM KAZANCI (KURUMLAR VERGİSİ MATRAHI) | C78: =C59+C63-C64-C65-C69-C70 -> 1300000 | D78: =IF(C78<0, "ZARAR","KAR") -> KAR
B80: 2022 YILI 3. DÖNEM İNDİRİMLİ KURUMLAR VERGİSİ HESAPLAMA TABLOSU
C81: 1. TEŞVİK BELGESİ | D81: 2. TEŞVİK BELGESİ | E81: 3. TEŞVİK BELGESİ | F81: 4. TEŞVİK BELGESİ | G81: 5. TEŞVİK BELGESİ
B82: Vergi İndirim Oranı (VİO)
B83: KV MATRAHI (Safi Kurum Kazancı) | C83: =C78 -> 1300000
B84: 32/A Uygulanacak K.V. Matrahı (HER BİR TEŞVİK BELGESİ KAPSAMINDA YARARLANILABİLECEK YATIRIMA KATKI TUTARININ MATRAHI BU HÜCRELERE YAZILMALIDIR) | H84: =IF(SUM(C84:G84)>C78,"32/A İNDİRİMİ UYGULANACAK KAZANÇ, SAFİ KURUM KAZANCINDAN FAZLADIR",SUM(C84:G84)) -> 0
B85: 32/A UYGULANMAYACAK K.V. Matrahı | C85: =IF(C83-(C84+D84+E84+F84+G84)<0,0,C83-(C84+D84+E84+F84+G84)) -> 1300000
B86: MATRAH TOPLAMI | C86: =IF((C84+D84+E84+F84+G84+C85)>C78,C78,(C84+D84+E84+F84+G84+C85)) -> 1300000
B88: SAFİ KURUM KAZANCININ KV VERGİ ORANLARI İTİBARİYLE DAĞILIMI | C88: TOPLAM SAFİ KAZANÇ | D88: İhracat Kazancı Payı | E88: Üretim Kazancı Payı | F88: Diğer Faaliyet Kazancı Payı
C90: =C78 -> 1300000 | D90: =IF(AND(AND($D$59>0,($D$59+$E$59)>=$C$59,D59>=C66),$C$90>=MAX(D59,D73)), MIN(MAX(IF(D59<=C90,D59,IF(D73<=C90,D73)),$C$90*D74)), IF(OR(D59<=0,D73<=0),0, MIN( MAX( MAX( IF(D59<=C90,D59), IF(D73<=C90,D73) ), MIN($C$90*D74,D59,D73)),$C$90))) -> 0 | E90: =MIN( IF(AND(AND($E$59>0,($D$59+$E$59)>=$C$59,E59>=C67),$C$90>=MAX(E59,E73)), MIN(MAX(IF(E59<=C90,E59,IF(E73<=C90,E73)),$C$90*E74)), IF(OR(E59<=0,E73<=0),0, MIN( MAX( MAX( IF(E59<=C90,E59), IF(E73<=C90,E73) ), MIN($C$90*E74,E59,E73)),$C$90))),C90-D90) -> 910000 | F90: =C90-D90-E90 -> 390000
B91: SAFİ KURUM KAZANCININ DAĞILIMI ORANSAL DAĞILIMI | C91: =C90 -> 1300000 | D91: =D90/C90 -> 0 | E91: =E90/C90 -> 0.7 | F91: =F90/C90 -> 0.3
B92: SAFİ KURUM KAZANCININ DAĞILIMI TUTARSAL | C92: =C91 -> 1300000 | D92: =D90 -> 0 | E92: =E90 -> 910000 | F92: =F90 -> 390000
B93: SAFİ KURUM KAZANCI DAĞILIMI | C93: =C92 -> 1300000 | D93: =IFERROR(IF(D92/C92>=1,1,D92/C92),0) -> 0 | E93: =IFERROR(IF(E92/C92>=1,1,E92/C92),0) -> 0.7 | F93: =IFERROR(IF(F92/C92>=1,1,F92/C92),0) -> 0.3 | H93: KV ORANI
B94: 1 PUAN VE 32/A İNDİRİMİ OLMASAYDI HESAPLANAN KV TUTARI | C94: =C93*$H$94 -> 325000 | D94: =D92*$H$94 -> 0 | E94: =E92*$H$94 -> 227500 | F94: =F92*$H$94 -> 97500 | H94: 0.25
B95: 32/ A UYGULANAN MATRAH | C95: =C84+D84+E84+F84+G84 -> 0 | D95: =D107+D112+D117+D122+D127 -> 0 | E95: =D106+D111+D116+D121+D126 -> 0 | F95: =D105+D110+D115+D120+D125 -> 0
B96: 32/A UYGULANACAK MATRAH ÜZERİNDEN ÖDENECEK KV TUTARI | C96: =J108+J113+J118+J123+J128 -> 0 | D96: =J107+J112+J117+J122+J127 -> 0 | E96: =J106+J111+J116+J121+J126 -> 0 | F96: =J105+J110+J115+J120+J125 -> 0
B97: 32/A UYGULANMAYAN MATRAH | C97: =IF(C85<=0,0,C85) -> 1300000 | D97: =D132 -> 0 | E97: =D131 -> 910000 | F97: =D130 -> 390000
B98: 32/A UYGULANMAYAN MATRAH ÜZERİNDEN ÖDENECEK KV TUTARI | C98: =L130 -> 315900 | D98: =J132 -> 0 | E98: =J131 -> 218400 | F98: =J130 -> 97500
B99: TOPLAM ÖDENECEK KV | C99: =C96+C98 -> 315900 | D99: =J132+J107 -> 0 | E99: =J131+J106 -> 218400 | F99: =J130+J105 -> 97500
B100: TOPLAM AVANTAJ (YARARLANILAN 1 PUAN İNDİRİMİ + 32/A İNDİRİMİ TUTARI ) | C100: =C94-C99 -> 9100 | D100: =D101+D102 -> 0 | E100: =E101+E102 -> 9100 | F100: =F101+F102 -> 0
B101: YARARLANILAN 1 - 5 PUAN İNDİRİMİ TUTARI | C101: =F133+F128+F123+F118+F113+F108 -> 9100 | D101: =F132+F107+F112+F117+F122+F127 -> 0 | E101: =F131+F106+F111+F116+F121+F126 -> 9100 | F101: =F130+F105+F110+F115+F120+F125 -> 0
B102: YARLANILAN 32/A İNDİRİMİ TUTARI | C102: =K108+K113+K118+K123+K128+K133 -> 0 | D102: =K107+K112+K122+K127+K132 -> 0 | E102: =K106+K111+K116+K121+K126+K131 -> 0 | F102: =K105++K110+K115+K120+K125+K130 -> 0
B104: 32/A UYGULANABİLECEK MATRAH (1.TEŞVİK BELGESİ) | C104: =C84 -> 0 | D104: KV MATRAHI | E104: 1 - 5 PUAN İNDİRİM OLMASAYDI HESAPLANAN KV TUTARI | F104: 1 -5 Puan İndirim Tutarı | G104: 1 - 5 Puan İndirim Sonrasında Hesaplanan KV Tutarı | H104: 32/A İndirimi Olmasaydı Ödenecek KV Tutarı | I104: 1 -5 Puan İndirim ve 32/A VİO Uygulandıktan Sonra Tatbik Edilecek KV Oranı | J104: 1 -5 Puan İndirim ve 32/A İndirimi Uygulandıktan Sonra Ödenecek KV Tutarı | K104: Yararlanılan Yatırıma Katkı Tutarı (32/A İnd. KV Nedeniyle Vazgeçilen Vergi Tutarı) | L104: Ödenecek KV Tutarı
B105: GENEL ORANA TABİ KISIM (DİĞER FAALİYETLER) | C105: =F93 -> 0.3 | D105: =C104*C105 -> 0 | E105: =D105*$H$94 -> 0 | F105: 0 | G105: =E105-F105 -> 0 | H105: =G105 -> 0 | I105: =($H$94)-(($H$94)*$C$82) -> 0.25 | J105: =I105*D105 -> 0 | K105: =G105-J105 -> 0 | L105: =J108 -> 0
B106: 1 PUAN İNDİRİMLİ ORANA TABİ KISIM (İMALAT) | C106: =E93 -> 0.7 | D106: =C104*C106 -> 0 | E106: =D106*$H$94 -> 0 | F106: =D106/100 -> 0 | G106: =E106-F106 -> 0 | H106: =G106 -> 0 | I106: =($H$94-0.01)-(($H$94-0.01)*$C$82) -> 0.24 | J106: =I106*D106 -> 0 | K106: =G106-J106 -> 0
B107: 5 PUAN İNDİRİMLİ ORANA TABİ KISIM ( İHRACAT) | C107: =D93 -> 0 | D107: =C104*C107 -> 0 | E107: =D107*$H$94 -> 0 | F107: =D107/20 -> 0 | G107: =E107-F107 -> 0 | H107: 0 | I107: =($H$94-0.05)-(($H$94-0.05)*C82) -> 0.2 | J107: 0 | K107: =G107-J107 -> 0
B108: TOPLAM | C108: =SUM(C105:C107) -> 1 | D108: =SUM(D105:D107) -> 0 | E108: 0 | F108: =SUM(F105:F107) -> 0 | G108: =SUM(G105:G107) -> 0 | H108: =SUM(H105:H107) -> 0 | J108: 0 | K108: 0
B109: 32/A UYGULANABİLECEK MATRAH (2.TEŞVİK BELGESİ) | C109: =D84 -> 0 | D109: KV MATRAHI | E109: 1 - 5 PUAN İNDİRİM OLMASAYDI HESAPLANAN KV TUTARI | F109: 1 -5 Puan İndirim Tutarı | G109: 1 -5 Puan İndirim Sonrasında Hesaplanan KV Tutarı | H109: 32/A İndirimi Olmasaydı Ödenecek KV Tutarı | I109: 1 - 5 Puan İndirim ve 32/A VİO Uygulandıktan Sonra Tatbik Edilecek KV Oranı | J109: 1-5 Puan İndirim ve 32/A İndirimi Uygulandıktan Sonra Ödenecek KV Tutarı | K109: Yararlanılan Yatırıma Katkı Tutarı (32/A İnd. KV Nedeniyle Vazgeçilen Vergi Tutarı) | L109: Ödenecek KV Tutarı
B110: GENEL ORANA TABİ KISIM (DİĞER FAALİYETLER) | C110: =F93 -> 0.3 | D110: =C109*C110 -> 0 | E110: =D110*$H$94 -> 0 | F110: 0 | G110: =E110-F110 -> 0 | H110: =G110 -> 0 | I110: =($H$94)-(($H$94)*D82) -> 0.25 | J110: =I110*D110 -> 0 | K110: =G110-J110 -> 0 | L110: =J113 -> 0
B111: 1 PUAN İNDİRİMLİ ORANA TABİ KISIM (İMALAT) | C111: =E93 -> 0.7 | D111: =C109*C111 -> 0 | E111: =D111*$H$94 -> 0 | F111: =D111/100 -> 0 | G111: =E111-F111 -> 0 | H111: =G111 -> 0 | I111: =($H$94-0.01)-(($H$94-0.01)*D82) -> 0.24 | J111: =I111*D111 -> 0 | K111: =G111-J111 -> 0
B112: 5 PUAN İNDİRİMLİ ORANA TABİ KISIM ( İHRACAT) | C112: =D93 -> 0 | D112: =C109*C112 -> 0 | E112: =D112*$H$94 -> 0 | F112: =D112/20 -> 0 | G112: =E112-F112 -> 0 | H112: 0 | I112: =($H$94-0.05)-(($H$94-0.05)*D82) -> 0.2 | J112: 0 | K112: =G112-J112 -> 0
B113: TOPLAM | C113: =SUM(C110:C112) -> 1 | D113: 0 | E113: 0 | F113: =SUM(F110:F112) -> 0 | G113: =SUM(G110:G112) -> 0 | H113: =SUM(H110:H112) -> 0 | J113: =SUM(J110:J112) -> 0 | K113: 0
B114: 32/A UYGULANABİLECEK MATRAH (3.TEŞVİK BELGESİ) | C114: =E84 -> 0 | D114: KV MATRAHI | E114: 1 - 5 PUAN İNDİRİM OLMASAYDI HESAPLANAN KV TUTARI | F114: 1-5 Puan İndirim Tutarı | G114: 1 - 5 Puan İndirim Sonrasında Hesaplanan KV Tutarı | H114: 32/A İndirimi Olmasaydı Ödenecek KV Tutarı | I114: 1 - 5 Puan İndirim ve 32/A VİO Uygulandıktan Sonra Tatbik Edilecek KV Oranı | J114: 1 -5 Puan İndirim ve 32/A İndirimi Uygulandıktan Sonra Ödenecek KV Tutarı | K114: Yararlanılan Yatırıma Katkı Tutarı (32/A İnd. KV Nedeniyle Vazgeçilen Vergi Tutarı) | L114: Ödenecek KV Tutarı
B115: GENEL ORANA TABİ KISIM (DİĞER FAALİYETLER) | C115: =F93 -> 0.3 | D115: =C114*C115 -> 0 | E115: =D115*$H$94 -> 0 | F115: 0 | G115: =E115-F115 -> 0 | H115: =G115 -> 0 | I115: =($H$94)-(($H$94)*E82) -> 0.25 | J115: =I115*D115 -> 0 | K115: =G115-J115 -> 0 | L115: =J118 -> 0
B116: 1 PUAN İNDİRİMLİ ORANA TABİ KISIM (İMALAT) | C116: =E93 -> 0.7 | D116: =C114*C116 -> 0 | E116: =D116*$H$94 -> 0 | F116: =D116/100 -> 0 | G116: =E116-F116 -> 0 | H116: =G116 -> 0 | I116: =($H$94-0.01)-(($H$94-0.01)*E82) -> 0.24 | J116: =I116*D116 -> 0 | K116: =G116-J116 -> 0
B117: 5 PUAN İNDİRİMLİ ORANA TABİ KISIM ( İHRACAT) | C117: =D93 -> 0 | D117: =C114*C117 -> 0 | E117: =D117*$H$94 -> 0 | F117: =D117/20 -> 0 | G117: =E117-F117 -> 0 | H117: 0 | I117: =($H$94-0.05)-(($H$94-0.05)*E82) -> 0.2 | J117: 0 | K117: =G117-J117 -> 0
B118: TOPLAM | C118: =SUM(C115:C117) -> 1 | D118: 0 | E118: 0 | F118: =SUM(F115:F117) -> 0 | G118: =SUM(G115:G117) -> 0 | H118: =SUM(H115:H117) -> 0 | J118: =SUM(J115:J117) -> 0 | K118: 0
B119: 32/A UYGULANABİLECEK MATRAH (4. TEŞVİK BELGESİ) | C119: =F84 -> 0 | D119: KV MATRAHI | E119: 1 - 5 PUAN İNDİRİM OLMASAYDI HESAPLANAN KV TUTARI | F119: 1-5 Puan İndirim Tutarı | G119: 1 -5 Puan İndirim Sonrasında Hesaplanan KV Tutarı | H119: 32/A İndirimi Olmasaydı Ödenecek KV Tutarı | I119: 1- 5 Puan İndirim ve 32/A VİO Uygulandıktan Sonra Tatbik Edilecek KV Oranı | J119: 1-5 Puan İndirim ve 32/A İndirimi Uygulandıktan Sonra Ödenecek KV Tutarı | K119: Yararlanılan Yatırıma Katkı Tutarı (32/A İnd. KV Nedeniyle Vazgeçilen Vergi Tutarı) | L119: Ödenecek KV Tutarı
B120: GENEL ORANA TABİ KISIM (DİĞER FAALİYETLER) | C120: =F93 -> 0.3 | D120: =C119*C120 -> 0 | E120: =D120*$H$94 -> 0 | F120: 0 | G120: =E120-F120 -> 0 | H120: =G120 -> 0 | I120: =($H$94)-(($H$94)*F82) -> 0.25 | J120: =I120*D120 -> 0 | K120: =G120-J120 -> 0 | L120: =J123 -> 0
B121: 1 PUAN İNDİRİMLİ ORANA TABİ KISIM (İMALAT) | C121: =E93 -> 0.7 | D121: =C119*C121 -> 0 | E121: =D121*$H$94 -> 0 | F121: =D121/100 -> 0 | G121: =E121-F121 -> 0 | H121: =G121 -> 0 | I121: =($H$94-0.01)-(($H$94-0.01)*F82) -> 0.24 | J121: =I121*D121 -> 0 | K121: =G121-J121 -> 0
B122: 5 PUAN İNDİRİMLİ ORANA TABİ KISIM ( İHRACAT) | C122: =D93 -> 0 | D122: =C119*C122 -> 0 | E122: =D122*$H$94 -> 0 | F122: =D122/20 -> 0 | G122: =E122-F122 -> 0 | H122: 0 | I122: =($H$94-0.05)-(($H$94-0.05)*F82) -> 0.2 | J122: 0 | K122: =G122-J122 -> 0
B123: TOPLAM | C123: =SUM(C120:C122) -> 1 | D123: 0 | E123: 0 | F123: =SUM(F120:F122) -> 0 | G123: =SUM(G120:G122) -> 0 | H123: =SUM(H120:H122) -> 0 | J123: =SUM(J120:J122) -> 0 | K123: 0
B124: 32/A UYGULANABİLECEK MATRAH (5.TEŞVİK BELGESİ) | C124: =G84 -> 0 | D124: KV MATRAHI | E124: 1 - 5 PUAN İNDİRİM OLMASAYDI HESAPLANAN KV TUTARI | F124: 1-5 Puan İndirim Tutarı | G124: 1 - 5 Puan İndirim Sonrasında Hesaplanan KV Tutarı | H124: 32/A İndirimi Olmasaydı Ödenecek KV Tutarı | I124: 1 -5 Puan İndirim ve 32/A VİO Uygulandıktan Sonra Tatbik Edilecek KV Oranı | J124: 1 - 5 Puan İndirim ve 32/A İndirimi Uygulandıktan Sonra Ödenecek KV Tutarı | K124: Yararlanılan Yatırıma Katkı Tutarı (32/A İnd. KV Nedeniyle Vazgeçilen Vergi Tutarı) | L124: Ödenecek KV Tutarı
B125: GENEL ORANA TABİ KISIM (DİĞER FAALİYETLER) | C125: =F93 -> 0.3 | D125: =C124*C125 -> 0 | E125: =D125*$H$94 -> 0 | F125: 0 | G125: =E125-F125 -> 0 | H125: =G125 -> 0 | I125: =($H$94)-(($H$94)*G82) -> 0.25 | J125: =I125*D125 -> 0 | K125: =G125-J125 -> 0 | L125: =J128 -> 0
B126: 1 PUAN İNDİRİMLİ ORANA TABİ KISIM (İMALAT) | C126: =E93 -> 0.7 | D126: =C124*C126 -> 0 | E126: =D126*$H$94 -> 0 | F126: =D126/100 -> 0 | G126: =E126-F126 -> 0 | H126: =G126 -> 0 | I126: =($H$94-0.01)-(($H$94-0.01)*G82) -> 0.24 | J126: =I126*D126 -> 0 | K126: =G126-J126 -> 0
B127: 5 PUAN İNDİRİMLİ ORANA TABİ KISIM ( İHRACAT) | C127: =D93 -> 0 | D127: =C124*C127 -> 0 | E127: =D127*$H$94 -> 0 | F127: =D127/20 -> 0 | G127: =E127-F127 -> 0 | H127: 0 | I127: =($H$94-0.05)-(($H$94-0.05)*G82) -> 0.2 | J127: 0 | K127: =G127-J127 -> 0
B128: TOPLAM | C128: =SUM(C125:C127) -> 1 | D128: 0 | E128: 0 | F128: =SUM(F125:F127) -> 0 | G128: =SUM(G125:G127) -> 0 | H128: =SUM(H125:H127) -> 0 | J128: =SUM(J125:J127) -> 0 | K128: 0
B129: 32/A UYGULANAMAYACAK MATRAH | C129: =IF(C85<=0,0,C85) -> 1300000 | D129: KV MATRAHI | E129: 1-5 PUAN İNDİRİM OLMASAYDI HESAPLANAN KV TUTARI | F129: 1-5 Puan İndirim Tutarı | G129: 1 -5 Puan İndirim Sonrasında Hesaplanan KV Tutarı | H129: 32/A İNDİRİMİ UYGULANMAZ | J129: 1 Puan İndirim ve 32/A İndirimi Uygulandıktan Sonra Ödenecek KV Tutarı | K129: Yararlanılan Yatırıma Katkı Tutarı (32/A İnd. KV Nedeniyle Vazgeçilen Vergi Tutarı) | L129: Ödenecek KV Tutarı
B130: GENEL ORANA TABİ KISIM (DİĞER FAALİYETLER) | C130: =F93 -> 0.3 | D130: =C129*C130 -> 390000 | E130: =D130*$H$94 -> 97500 | F130: 0 | G130: =E130-F130 -> 97500 | J130: =G130 -> 97500 | K130: =G130-J130 -> 0 | L130: =J133 -> 315900
B131: 1 PUAN İNDİRİMLİ ORANA TABİ KISIM (İMALAT) | C131: =E93 -> 0.7 | D131: =C131*C129 -> 910000 | E131: =D131*$H$94 -> 227500 | F131: =D131/100 -> 9100 | G131: =E131-F131 -> 218400 | J131: =G131 -> 218400 | K131: =G131-J131 -> 0
B132: 5 PUAN İNDİRİMLİ ORANA TABİ KISIM ( İHRACAT) | C132: =D93 -> 0 | D132: =C132*C129 -> 0 | E132: =D132*$H$94 -> 0 | F132: =D132/20 -> 0 | G132: =E132-F132 -> 0 | J132: 0 | K132: 0
B133: TOPLAM | C133: =SUM(C130:C132) -> 1 | D133: =SUM(D130:D132) -> 1300000 | E133: 325000 | F133: =SUM(F130:F132) -> 9100 | G133: =SUM(G130:G132) -> 315900 | J133: 315900 | K133: 0
B134: TOPLAM KV MATRAHI VE ÖDENMESİ GEREKEN KV | C134: =C104+C129+C109+C114+C119+C124 -> 1300000 | D134: =D108+D133+D113+D118+D123+D128 -> 1300000 | E134: =E108+E133+E113+E118+E123+E128 -> 325000 | F134: =F108+F133+F113+F118+F123+F128 -> 9100 | G134: =G108+G133+G113+G118+G123+G128 -> 315900 | J134: =J108+J133+J113+J118+J123+J128 -> 315900 | K134: =K133+K108+K113+K118+K123+K128 -> 0 | L134: =L105+L130+L110+L115+L120+L125 -> 315900
B136: GEÇİCİ VERGİ BEYANNMESİNDE MATRAH BİLDİRİMİ BÖLÜMÜNDE DOLDURULACAK KISIMLAR VE TUTARLARI
B137: 32 A Madde Kapsamında İndirimli Kurumlar Vergisine (Geçici Vergiye) Tabi Matrah | C137: =C104+C109+C114+C119+C124 -> 0 | D137: =E108+E113+E118+E123+E128 -> 0 | E137: 1-5 Puan Olmasaydı Hesaplan KV Tutarı
D138: =G108+G113+G118+G123++G128 -> 0 | E138: 1 -5 Puan İndirim Sonrasında Ödenecek KV Tutarı (32 A olmasaydı hesaplanacak Vergi)
D139: =K108+K113+K118+K123+K128 -> 0 | E139: 32/A İndirimi ile Vazgeçilen Vergi
B140: 32 A Madde Kapsamında İndirimli Kurumlar Vergisi(Geçici Vergi) Oranı | C140: =IFERROR(D140/C137,0) -> 0 | D140: =L105+L110+L115+L120+L125 -> 0 | E140: 32/A ya Tabi Matrah Üzerinden Ödenecek KV
B141: 32/7 Madde Kapsamında İndirimli Kurumlar Vergisine (Geçici Vergiye) Tabi Matrah (İhracat) | C141: =D132 -> 0 | D141: =E132 -> 0 | E141: 5 Puan Olmasaydı Hesaplan KV Tutarı
D142: =F132 -> 0 | E142: 5 Puan İndirimin Vergi Etkisi
B143: 32/7 Madde Kapsamında İndirimli Kurumlar Vergisi (Geçici Vergi) Oranı | C143: =IFERROR(D143/C141,0) -> 0 | D143: =G132 -> 0 | E143: 5 Puan İndirim Sonrasında Ödenecek KV Tutarı (İhracat)
B144: 32/8 Madde Kapsamında İndirimli Kurumlar Vergisine (Geçici Vergiye) Tabi Matrah (Üretim) | C144: =D131 -> 910000 | D144: =E131 -> 227500 | E144: 1 Puan Olmasaydı Hesaplan KV Tutarı
D145: =F131 -> 9100 | E145: 1 Puan İndirimin Vergi Etkisi
B146: 32/8 Madde Kapsamında İndirimli Kurumlar Vergisi (Geçici Vergi) Oranı | C146: =IFERROR(D146/C144,0) -> 0.24 | D146: =G131 -> 218400 | E146: 1 Puan İndirim Sonrasında Ödenecek KV Tutarı (Üretim)
B147: Genel Orana Tabi Matrah (Diğer) | C147: =D130 -> 390000 | D147: =J130 -> 97500 | E147: Diğer Faalilyetlerden Elde Edilen Kazanç
C148: =IFERROR(D147/C147,0) -> 0.25
B149: MATRAHLAR TOPLAMI | C149: =C137+C144+C141+C147 -> 1300000 | D149: =D140+D146+D143+D147 -> 315900

Sheet Ü Ö2 (hidden)
B2: FAALİYET TÜRLERİ İTİBARİYLE HASILATLAR VE TOPLAM İÇİNDEKİ ORANLARI | C2: =IFERROR(C4/C4,0) -> 1 | D2: =IFERROR(D4/C4,0) -> 0 | E2: =IFERROR(E4/C4,0) -> 0.4 | F2: =IFERROR(F4/C4,0) -> 0.6
C3: Toplam Hasılat | D3: İhracat faaliyeti | E3: İmalat faaliyeti | F3: Diğer faaliyetler
B4: A-BRÜT SATIŞLAR (60) | C4: =D4+E4+F4 -> 2000000 | D4: =SUM(D5:D7) -> 0 | E4: =SUM(E5:E7) -> 800000 | F4: 1200000
B5: 1-Yurtiçi Satışlar (600) | C5: =D5+E5+F5 -> 2600000 | E5: 2600000 | F5: 0
B6: 2-Yurtdışı Satışlar (601) | C6: =D6+E6+F6 -> 0 | D6: 0
B7: 3-Diğer Gelirler (602) | C7: =D7+E7+F7 -> -600000 | E7: -1800000 | F7: 1200000
B8: B-SATIŞ İNDİRİMLERİ(-) (61) | C8: =SUM(C9:C11) -> 0 | D8: =SUM(D9:D11) -> 0 | E8: =SUM(E9:E11) -> 0 | F8: 0
B9: 1-Satıştan İadeler (-) (610) | C9: =SUM(D9:F9) -> 0
B10: 2- Satış İskontoları (-) (611) | C10: =SUM(D10:F10) -> 0
B11: 3-Diğer İndirimler (-) (612) | C11: 0
B12: C-NET SATIŞLAR | C12: =C4-C8 -> 2000000 | D12: =D4-D8 -> 0 | E12: =E4-E8 -> 800000 | F12: 1200000
B13: D-SATIŞLARIN MALİYETİ (-) (62) | C13: =SUM(C14:C17) -> 0 | D13: =SUM(D14:D17) -> 0 | E13: =SUM(E14:E17) -> 0 | F13: =SUM(F14:F17) -> 0
B14: 1-Satılan Mamuller Maliyeti ( 620) | C14: =SUM(D14:F14) -> 0
B15: 2-Satılan Ticari Mal Maliyeti (621) | C15: =SUM(D15:F15) -> 0
B16: 3-Satılan Hizmet Maliyeti (622) | C16: 0
B17: 4-Diğer Satışların Maliyeti (623) | C17: 0
B18: BRÜT SATIŞ KARI / ZARARI | C18: =C12-C13 -> 2000000 | D18: =D12-D13 -> 0 | E18: =E12-E13 -> 800000 | F18: 1200000
B19: E-FAALİYET GİDERLERİ (-) (63) | C19: =SUM(C20:C24) -> 0 | D19: =SUM(D20:D24) -> 0 | E19: =SUM(E20:E24) -> 0 | F19: 0
B20: 1-Araştırma ve Geliştirme Giderleri(-) (630) | C20: =SUM(D20:F20) -> 0
B21: 2-Pazarlama, Satış ve Dağıtım Giderleri(-) (631) | C21: =SUM(D21:F21) -> 0
B22: 3-Genel Yönetim Giderleri(-) (632) | C22: =SUM(D22:F22) -> 0
B23: MÜŞTEREK GENEL GİDERLER (DAĞITIM-HASILAT PAYINA GÖRE) | D23: =C23*D2 -> 0 | E23: =C23*E2 -> 0 | F23: =C23*F2 -> 0
B24: MÜŞTEREK GENEL GİDER GİBİ DAĞITIMA TABİ TUTULACAK AMORTİSMAN GİDERLERİ (DAĞITIM-HASILAT PAYINA GÖRE) | D24: =C24*D2 -> 0 | E24: =C24*E2 -> 0 | F24: =C24*F2 -> 0
B25: FAALİYET KARI / ZARARI | C25: =C18-C19 -> 2000000 | D25: =D18-D19 -> 0 | E25: =E18-E19 -> 800000 | F25: 1200000
B26: F-DİĞER FAALİYETLERDEN OLAĞAN GELİR VE KARLAR (64) | C26: =SUM(C27:C35) -> 0 | D26: =SUM(D27:D35) -> 0 | E26: =SUM(E27:E35) -> 0 | F26: =SUM(F27:F35) -> 0
B27: 1- İŞTİRAKLERDEN TEMETTÜ GELİRLERİ (640) | C27: =SUM(D27:F27) -> 0
B28: 2- BAĞLI ORTAKLIKLARDAN TEMETTÜ GELİRLERİ (641) | C28: =SUM(D28:F28) -> 0
B29: 3- FAİZ GELİRLERİ (642) (ihracat ve imalat kaynaklı alacağın tahsiline kadar olan süreçte oluşan) | C29: 0
B30: 4- KOMİSYON GELİRLERİ (643) | C30: 0
B31: 5- KONUSU OLMAYAN KARŞILIKLAR (644) | C31: 0
B32: 6- MENKUL KIYMET SATIŞ KARLARI (645) | C32: 0
B33: 7- KAMBİYO KARLARI (646) (ihracat ve imalat kaynaklı alacağın tahsiline kadar olan süreçte oluşan) | C33: 0
B34: 8- REESKONT FAİZ GELİRLERİ (647) | C34: 0
B35: 9- FAALİYETLE İLGİLİ DİĞER GELİR VE KARLAR (649) | C35: 0
B36: ARA TOPLAM | C36: =C25+C26 -> 2000000 | D36: =D25+D26 -> 0 | E36: =E25+E26 -> 800000 | F36: =F25+F26 -> 1200000
B37: G-DİĞER FAALİYETLERDEN OLAĞAN GİDER VE ZARARLAR(-) (65) | C37: =SUM(C38:C43) -> 0 | D37: =SUM(D38:D43) -> 0 | E37: =SUM(E38:E43) -> 0 | F37: 0
B38: 1- KOMİSYON GİDERLERİ (653) | C38: =SUM(D38:F38) -> 0
B39: 2- KARŞILIK GİDERLERİ (654) | C39: =SUM(D39:F39) -> 0
B40: 3- MENKUL KIYMET SATIŞ ZARARLARI (655) | C40: 0
B41: 4- KAMBİYO ZARARLARI (656) (ihracat ve imalat kaynaklı alacağın tahsiline kadar olan süreçte oluşan) | C41: 0
B42: 5- REESKONT FAİZ GİDERLERİ (657) | C42: 0
B43: 6- DİĞER OLAĞAN GİDER VE ZARARLAR (659) | C43: =SUM(D43:F43) -> 0
B44: ARA TOPLAM | C44: =C36-C37 -> 2000000 | D44: =D36-D37 -> 0 | E44: =E36-E37 -> 800000 | F44: 1200000
B45: H-FİNANSMAN GİDERLERİ(-) (66) | C45: =SUM(C46:C49) -> 0 | D45: =SUM(D46:D49) -> 0 | E45: =SUM(E46:E49) -> 0 | F45: =SUM(F46:F49) -> 0
B46: 1- KISA VADELİ BORÇLANMA GİDERLERİ (-) | C46: =SUM(D46:F46) -> 0
B47: 2- UZUN VADELİ BORÇLANMA GİDERLERİ (-) | C47: =SUM(D47:F47) -> 0
B48: 1- KISA VADELİ BORÇLANMA GİDERLERİ (-) (DAĞITIM) | D48: =C48*D2 -> 0 | E48: =C48*E2 -> 0 | F48: =C48*F2 -> 0
B49: 2- UZUN VADELİ BORÇLANMA GİDERLERİ (-) (DAĞITIM) | D49: =C49*D2 -> 0 | E49: =C49*E2 -> 0 | F49: =C49*F2 -> 0
B50: ARA TOPLAM | C50: =C44-C45 -> 2000000 | D50: =D44-D45 -> 0 | E50: =E44-E45 -> 800000 | F50: =F44-F45 -> 1200000
B51: I-OLAĞANDIŞI GELİR VE KÂRLAR (67) | C51: =SUM(D51:F51) -> 0 | D51: =SUM(D52:D53) -> 0 | E51: =SUM(E52:E53) -> 0 | F51: =SUM(F52:F53) -> 0
B52: 1- ÖNCEKİ DÖNEM GELİR VE KARLARI (671) | C52: =SUM(D52:F52) -> 0
B53: 2-DİĞER OLAĞAN DIŞI GELİR VE KARLAR (679) | C53: =SUM(D53:F53) -> 0
B54: ARA TOPLAM | C54: =SUM(D54:F54) -> 2000000 | D54: =D50+D51 -> 0 | E54: =E50+E51 -> 800000 | F54: 1200000
B55: J-OLAĞANDIŞI GİDER VE ZARARLAR(-) (68) | C55: =SUM(C56:C58) -> 0 | D55: =SUM(D56:D58) -> 0 | E55: =SUM(E56:E58) -> 0 | F55: 0
B56: 1-Çalışmayan Kısım Gider ve Zararları(-) (680) | C56: =SUM(D56:F56) -> 0
B57: 2-Önceki Dönem Gider ve Zararları(-) (681) | C57: =SUM(D57:F57) -> 0
B58: 3-Diğer Olağan Dışı Gider ve Zararlar(-) (689) | C58: 0
B59: DÖNEM KÂRI VEYA ZARARI (TİCARİ BİLANÇO KARI ZARARI ) | C59: =C54-C55 -> 2000000 | D59: =D54-D55 -> 0 | E59: =E54-E55 -> 800000 | F59: 1200000
B60: İHRACAT, İMALAT VE DİĞER FAALİYETLERDEN ELDE EDİLEN KAZANCIN TOPLAM TİCARİ KAZANÇ İÇİNDEKİ PAYLARI (Kazançlar arasında Öncelik İhracat Kazancına Verilmiştir. İhrcat Kazancından arta kalan Ticari Kazanç İmalat ve Diğer Faaliyetlere Sayılmıştır.) | D60: =IF(D59>=$C$59,1, IF(D59<=0,0, IF(AND(D59>0,D59<$C$59),D59/$C$59))) -> 0 | E60: =IF(E59>=$C$59,1, IF(E59<=0,0, IF(AND(E59>0,E59<$C$59),E59/$C$59))) -> 0.4 | F60: =IF(F59>=$C$59,1, IF(F59<=0,0, IF(AND(F59>0,F59<$C$59),F59/$C$59))) -> 0.6
D61: =D60/(D60+E60+F60) -> 0 | E61: =E60/(D60+E60+F60) -> 0.4 | F61: =F60/(D60+E60+F60) -> 0.6
B63: KKEG + | C63: 1000000
B64: KABUL EDİLMEYEN GELİRLER -
B65: ZARAR OLSA DAHİ İNDİRİLECEK İSTİSNALAR - | C65: =C66+C67+C68 -> 0
B66: Hizmet İhracatı Faaliyetinden (KVK 10-1/ğ) Elde Edilen Kazançlardan İstisna Edilenlerin Toplamı
B67: İmalat Faaliyetinden Elde Edilen Kazançlardan İstisna Edilenlerin Toplamı
B68: Diğer Faaliyetlerden Elde Edilen Kazançlardan İstisna Edilenlerin Toplamı
B69: GEÇMİŞ YIL ZARARLARI - | C69: 2000000
B70: İNDİRİMLER - | D70: AZAMİ YAZILABİLECEK İNDİRİMLER TUTARI | E70: =C59+C63-C64-C65-C69 -> 1000000
B72: 1 PUAN İNDİRİM UYGULANACAK TUTARIN HESABINDA İSTİSNA KAZANÇLAR DÜŞÜLDÜKTEN SONRA BULUNAN TİCARİ KAZANÇ TUTARI İLE İHRACAT,İMALAT VE DİĞER KAZANÇLARIN TUTARI | C72: TİCARİ KAZANÇ TAN İhracat ve İmalat Kazancından İstisna Olan Tutarlar Düşüldükten Sonra Kalan Tutarı | D72: İhracat Faaliyetinden Elde Edilen Kazançtan İstisna Olan Kısım Düşüldükten Sonra Bulunan Tutarı | E72: Üretim Faaliyetinden Elde Edilen Kazançtan İstisna Olan Kısım Düşüldükten Sonra Bulunan Tutarı | F72: Diğer Faaliyetinden Elde Edilen Kazanç
C73: =IF(C59-C66-C67<=0,0,C59-C66-C67) -> 2000000 | D73: =IF($D$59-C66<=0,0,MIN($D$59-C66,$C$73*D61)) -> 0 | E73: =IF($E$59-C67<=0,0,MIN($E$59-C67,$C$73*E61)) -> 800000 | F73: =IF(C73-D73-E73<=0,0,C73-D73-E73) -> 1200000
B74: MATRAH DAĞITIM PAYLARI | D74: =IFERROR(IF(D73/C73<=0,0,D73/C73),0) -> 0 | E74: =IFERROR(IF(E73/C73<=0,0,E73/C73),0) -> 0.4 | F74: =IFERROR(F73/C73,0) -> 0.6
B75: İHRACAT, İMALAT VE DİĞER FAALİYETLERDEN ELDE EDİLEN KAZANCIN TOPLAM TİCARİ KAZANÇ İÇİNDEKİ PAYLARI | D75: =IFERROR(IF(AND(D73+E73>C73, F73<=0),1,(D73+E73)/C73),0) -> 0.4 | F75: =IFERROR(IF(F73<=0,0,F73/C73),0) -> 0.6
B76: NEGATİF VE % 100 DEN BÜYÜKLÜK KONTROLÜ SONRASINDAKİ PAYLARI | D76: =IFERROR(IF(D75<=0,0,IF(D75>1,1,D75)),0) -> 0.4 | F76: =IFERROR(IF(F75<=0,0,IF(F75>1,1,F75)),0) -> 0.6
B78: SAFİ KURUM KAZANCI (KURUMLAR VERGİSİ MATRAHI) | C78: =C59+C63-C64-C65-C69-C70 -> 1000000 | D78: =IF(C78<0, "ZARAR","KAR") -> KAR
B80: 2022 YILI 3. DÖNEM İNDİRİMLİ KURUMLAR VERGİSİ HESAPLAMA TABLOSU
C81: 1. TEŞVİK BELGESİ | D81: 2. TEŞVİK BELGESİ | E81: 3. TEŞVİK BELGESİ | F81: 4. TEŞVİK BELGESİ | G81: 5. TEŞVİK BELGESİ
B82: Vergi İndirim Oranı (VİO)
B83: KV MATRAHI (Safi Kurum Kazancı) | C83: =C78 -> 1000000
B84: 32/A Uygulanacak K.V. Matrahı (HER BİR TEŞVİK BELGESİ KAPSAMINDA YARARLANILABİLECEK YATIRIMA KATKI TUTARININ MATRAHI BU HÜCRELERE YAZILMALIDIR) | H84: =IF(SUM(C84:G84)>C78,"32/A İNDİRİMİ UYGULANACAK KAZANÇ, SAFİ KURUM KAZANCINDAN FAZLADIR",SUM(C84:G84)) -> 0
B85: 32/A UYGULANMAYACAK K.V. Matrahı | C85: =IF(C83-(C84+D84+E84+F84+G84)<0,0,C83-(C84+D84+E84+F84+G84)) -> 1000000
B86: MATRAH TOPLAMI | C86: =IF((C84+D84+E84+F84+G84+C85)>C78,C78,(C84+D84+E84+F84+G84+C85)) -> 1000000
B88: SAFİ KURUM KAZANCININ KV VERGİ ORANLARI İTİBARİYLE DAĞILIMI | C88: TOPLAM SAFİ KAZANÇ | D88: İhracat Kazancı Payı | E88: Üretim Kazancı Payı | F88: Diğer Faaliyet Kazancı Payı
C90: =C78 -> 1000000 | D90: =IF(AND(AND($D$59>0,($D$59+$E$59)>=$C$59,D59>=C66),$C$90>=MAX(D59,D73)), MIN(MAX(IF(D59<=C90,D59,IF(D73<=C90,D73)),$C$90*D74)), IF(OR(D59<=0,D73<=0),0, MIN( MAX( MAX( IF(D59<=C90,D59), IF(D73<=C90,D73) ), MIN($C$90*D74,D59,D73)),$C$90))) -> 0 | E90: =MIN( IF(AND(AND($E$59>0,($D$59+$E$59)>=$C$59,E59>=C67),$C$90>=MAX(E59,E73)), MIN(MAX(IF(E59<=C90,E59,IF(E73<=C90,E73)),$C$90*E74)), IF(OR(E59<=0,E73<=0),0, MIN( MAX( MAX( IF(E59<=C90,E59), IF(E73<=C90,E73) ), MIN($C$90*E74,E59,E73)),$C$90))),C90-D90) -> 800000 | F90: =C90-D90-E90 -> 200000
B91: SAFİ KURUM KAZANCININ DAĞILIMI ORANSAL DAĞILIMI | C91: =C90 -> 1000000 | D91: =D90/C90 -> 0 | E91: =E90/C90 -> 0.8 | F91: =F90/C90 -> 0.2
B92: SAFİ KURUM KAZANCININ DAĞILIMI TUTARSAL | C92: =C91 -> 1000000 | D92: =D90 -> 0 | E92: =E90 -> 800000 | F92: =F90 -> 200000
B93: SAFİ KURUM KAZANCI DAĞILIMI | C93: =C92 -> 1000000 | D93: =IFERROR(IF(D92/C92>=1,1,D92/C92),0) -> 0 | E93: =IFERROR(IF(E92/C92>=1,1,E92/C92),0) -> 0.8 | F93: =IFERROR(IF(F92/C92>=1,1,F92/C92),0) -> 0.2 | H93: KV ORANI
B94: 1 PUAN VE 32/A İNDİRİMİ OLMASAYDI HESAPLANAN KV TUTARI | C94: =C93*$H$94 -> 250000 | D94: =D92*$H$94 -> 0 | E94: =E92*$H$94 -> 200000 | F94: =F92*$H$94 -> 50000 | H94: 0.25
B95: 32/ A UYGULANAN MATRAH | C95: =C84+D84+E84+F84+G84 -> 0 | D95: =D107+D112+D117+D122+D127 -> 0 | E95: =D106+D111+D116+D121+D126 -> 0 | F95: =D105+D110+D115+D120+D125 -> 0
B96: 32/A UYGULANACAK MATRAH ÜZERİNDEN ÖDENECEK KV TUTARI | C96: =J108+J113+J118+J123+J128 -> 0 | D96: =J107+J112+J117+J122+J127 -> 0 | E96: =J106+J111+J116+J121+J126 -> 0 | F96: =J105+J110+J115+J120+J125 -> 0
B97: 32/A UYGULANMAYAN MATRAH | C97: =IF(C85<=0,0,C85) -> 1000000 | D97: =D132 -> 0 | E97: =D131 -> 800000 | F97: =D130 -> 200000
B98: 32/A UYGULANMAYAN MATRAH ÜZERİNDEN ÖDENECEK KV TUTARI | C98: =L130 -> 242000 | D98: =J132 -> 0 | E98: =J131 -> 192000 | F98: =J130 -> 50000
B99: TOPLAM ÖDENECEK KV | C99: =C96+C98 -> 242000 | D99: =J132+J107 -> 0 | E99: =J131+J106 -> 192000 | F99: =J130+J105 -> 50000
B100: TOPLAM AVANTAJ (YARARLANILAN 1 PUAN İNDİRİMİ + 32/A İNDİRİMİ TUTARI ) | C100: =C94-C99 -> 8000 | D100: =D101+D102 -> 0 | E100: =E101+E102 -> 8000 | F100: =F101+F102 -> 0
B101: YARARLANILAN 1 - 5 PUAN İNDİRİMİ TUTARI | C101: =F133+F128+F123+F118+F113+F108 -> 8000 | D101: =F132+F107+F112+F117+F122+F127 -> 0 | E101: =F131+F106+F111+F116+F121+F126 -> 8000 | F101: =F130+F105+F110+F115+F120+F125 -> 0
B102: YARLANILAN 32/A İNDİRİMİ TUTARI | C102: =K108+K113+K118+K123+K128+K133 -> 0 | D102: =K107+K112+K122+K127+K132 -> 0 | E102: =K106+K111+K116+K121+K126+K131 -> 0 | F102: =K105++K110+K115+K120+K125+K130 -> 0
B104: 32/A UYGULANABİLECEK MATRAH (1.TEŞVİK BELGESİ) | C104: =C84 -> 0 | D104: KV MATRAHI | E104: 1 - 5 PUAN İNDİRİM OLMASAYDI HESAPLANAN KV TUTARI | F104: 1 -5 Puan İndirim Tutarı | G104: 1 - 5 Puan İndirim Sonrasında Hesaplanan KV Tutarı | H104: 32/A İndirimi Olmasaydı Ödenecek KV Tutarı | I104: 1 -5 Puan İndirim ve 32/A VİO Uygulandıktan Sonra Tatbik Edilecek KV Oranı | J104: 1 -5 Puan İndirim ve 32/A İndirimi Uygulandıktan Sonra Ödenecek KV Tutarı | K104: Yararlanılan Yatırıma Katkı Tutarı (32/A İnd. KV Nedeniyle Vazgeçilen Vergi Tutarı) | L104: Ödenecek KV Tutarı
B105: GENEL ORANA TABİ KISIM (DİĞER FAALİYETLER) | C105: =F93 -> 0.2 | D105: =C104*C105 -> 0 | E105: =D105*$H$94 -> 0 | F105: 0 | G105: =E105-F105 -> 0 | H105: =G105 -> 0 | I105: =($H$94)-(($H$94)*$C$82) -> 0.25 | J105: =I105*D105 -> 0 | K105: =G105-J105 -> 0 | L105: =J108 -> 0
B106: 1 PUAN İNDİRİMLİ ORANA TABİ KISIM (İMALAT) | C106: =E93 -> 0.8 | D106: =C104*C106 -> 0 | E106: =D106*$H$94 -> 0 | F106: =D106/100 -> 0 | G106: =E106-F106 -> 0 | H106: =G106 -> 0 | I106: =($H$94-0.01)-(($H$94-0.01)*$C$82) -> 0.24 | J106: =I106*D106 -> 0 | K106: =G106-J106 -> 0
B107: 5 PUAN İNDİRİMLİ ORANA TABİ KISIM ( İHRACAT) | C107: =D93 -> 0 | D107: =C104*C107 -> 0 | E107: =D107*$H$94 -> 0 | F107: =D107/20 -> 0 | G107: =E107-F107 -> 0 | H107: 0 | I107: =($H$94-0.05)-(($H$94-0.05)*C82) -> 0.2 | J107: 0 | K107: =G107-J107 -> 0
B108: TOPLAM | C108: =SUM(C105:C107) -> 1 | D108: =SUM(D105:D107) -> 0 | E108: 0 | F108: =SUM(F105:F107) -> 0 | G108: =SUM(G105:G107) -> 0 | H108: =SUM(H105:H107) -> 0 | J108: 0 | K108: 0
B109: 32/A UYGULANABİLECEK MATRAH (2.TEŞVİK BELGESİ) | C109: =D84 -> 0 | D109: KV MATRAHI | E109: 1 - 5 PUAN İNDİRİM OLMASAYDI HESAPLANAN KV TUTARI | F109: 1 -5 Puan İndirim Tutarı | G109: 1 -5 Puan İndirim Sonrasında Hesaplanan KV Tutarı | H109: 32/A İndirimi Olmasaydı Ödenecek KV Tutarı | I109: 1 - 5 Puan İndirim ve 32/A VİO Uygulandıktan Sonra Tatbik Edilecek KV Oranı | J109: 1-5 Puan İndirim ve 32/A İndirimi Uygulandıktan Sonra Ödenecek KV Tutarı | K109: Yararlanılan Yatırıma Katkı Tutarı (32/A İnd. KV Nedeniyle Vazgeçilen Vergi Tutarı) | L109: Ödenecek KV Tutarı
B110: GENEL ORANA TABİ KISIM (DİĞER FAALİYETLER) | C110: =F93 -> 0.2 | D110: =C109*C110 -> 0 | E110: =D110*$H$94 -> 0 | F110: 0 | G110: =E110-F110 -> 0 | H110: =G110 -> 0 | I110: =($H$94)-(($H$94)*D82) -> 0.25 | J110: =I110*D110 -> 0 | K110: =G110-J110 -> 0 | L110: =J113 -> 0
B111: 1 PUAN İNDİRİMLİ ORANA TABİ KISIM (İMALAT) | C111: =E93 -> 0.8 | D111: =C109*C111 -> 0 | E111: =D111*$H$94 -> 0 | F111: =D111/100 -> 0 | G111: =E111-F111 -> 0 | H111: =G111 -> 0 | I111: =($H$94-0.01)-(($H$94-0.01)*D82) -> 0.24 | J111: =I111*D111 -> 0 | K111: =G111-J111 -> 0
B112: 5 PUAN İNDİRİMLİ ORANA TABİ KISIM ( İHRACAT) | C112: =D93 -> 0 | D112: =C109*C112 -> 0 | E112: =D112*$H$94 -> 0 | F112: =D112/20 -> 0 | G112: =E112-F112 -> 0 | H112: 0 | I112: =($H$94-0.05)-(($H$94-0.05)*D82) -> 0.2 | J112: 0 | K112: =G112-J112 -> 0
B113: TOPLAM | C113: =SUM(C110:C112) -> 1 | D113: 0 | E113: 0 | F113: =SUM(F110:F112) -> 0 | G113: =SUM(G110:G112) -> 0 | H113: =SUM(H110:H112) -> 0 | J113: =SUM(J110:J112) -> 0 | K113: 0
B114: 32/A UYGULANABİLECEK MATRAH (3.TEŞVİK BELGESİ) | C114: =E84 -> 0 | D114: KV MATRAHI | E114: 1 - 5 PUAN İNDİRİM OLMASAYDI HESAPLANAN KV TUTARI | F114: 1-5 Puan İndirim Tutarı | G114: 1 - 5 Puan İndirim Sonrasında Hesaplanan KV Tutarı | H114: 32/A İndirimi Olmasaydı Ödenecek KV Tutarı | I114: 1 - 5 Puan İndirim ve 32/A VİO Uygulandıktan Sonra Tatbik Edilecek KV Oranı | J114: 1 -5 Puan İndirim ve 32/A İndirimi Uygulandıktan Sonra Ödenecek KV Tutarı | K114: Yararlanılan Yatırıma Katkı Tutarı (32/A İnd. KV Nedeniyle Vazgeçilen Vergi Tutarı) | L114: Ödenecek KV Tutarı
B115: GENEL ORANA TABİ KISIM (DİĞER FAALİYETLER) | C115: =F93 -> 0.2 | D115: =C114*C115 -> 0 | E115: =D115*$H$94 -> 0 | F115: 0 | G115: =E115-F115 -> 0 | H115: =G115 -> 0 | I115: =($H$94)-(($H$94)*E82) -> 0.25 | J115: =I115*D115 -> 0 | K115: =G115-J115 -> 0 | L115: =J118 -> 0
B116: 1 PUAN İNDİRİMLİ ORANA TABİ KISIM (İMALAT) | C116: =E93 -> 0.8 | D116: =C114*C116 -> 0 | E116: =D116*$H$94 -> 0 | F116: =D116/100 -> 0 | G116: =E116-F116 -> 0 | H116: =G116 -> 0 | I116: =($H$94-0.01)-(($H$94-0.01)*E82) -> 0.24 | J116: =I116*D116 -> 0 | K116: =G116-J116 -> 0
B117: 5 PUAN İNDİRİMLİ ORANA TABİ KISIM ( İHRACAT) | C117: =D93 -> 0 | D117: =C114*C117 -> 0 | E117: =D117*$H$94 -> 0 | F117: =D117/20 -> 0 | G117: =E117-F117 -> 0 | H117: 0 | I117: =($H$94-0.05)-(($H$94-0.05)*E82) -> 0.2 | J117: 0 | K117: =G117-J117 -> 0
B118: TOPLAM | C118: =SUM(C115:C117) -> 1 | D118: 0 | E118: 0 | F118: =SUM(F115:F117) -> 0 | G118: =SUM(G115:G117) -> 0 | H118: =SUM(H115:H117) -> 0 | J118: =SUM(J115:J117) -> 0 | K118: 0
B119: 32/A UYGULANABİLECEK MATRAH (4. TEŞVİK BELGESİ) | C119: =F84 -> 0 | D119: KV MATRAHI | E119: 1 - 5 PUAN İNDİRİM OLMASAYDI HESAPLANAN KV TUTARI | F119: 1-5 Puan İndirim Tutarı | G119: 1 -5 Puan İndirim Sonrasında Hesaplanan KV Tutarı | H119: 32/A İndirimi Olmasaydı Ödenecek KV Tutarı | I119: 1- 5 Puan İndirim ve 32/A VİO Uygulandıktan Sonra Tatbik Edilecek KV Oranı | J119: 1-5 Puan İndirim ve 32/A İndirimi Uygulandıktan Sonra Ödenecek KV Tutarı | K119: Yararlanılan Yatırıma Katkı Tutarı (32/A İnd. KV Nedeniyle Vazgeçilen Vergi Tutarı) | L119: Ödenecek KV Tutarı
B120: GENEL ORANA TABİ KISIM (DİĞER FAALİYETLER) | C120: =F93 -> 0.2 | D120: =C119*C120 -> 0 | E120: =D120*$H$94 -> 0 | F120: 0 | G120: =E120-F120 -> 0 | H120: =G120 -> 0 | I120: =($H$94)-(($H$94)*F82) -> 0.25 | J120: =I120*D120 -> 0 | K120: =G120-J120 -> 0 | L120: =J123 -> 0
B121: 1 PUAN İNDİRİMLİ ORANA TABİ KISIM (İMALAT) | C121: =E93 -> 0.8 | D121: =C119*C121 -> 0 | E121: =D121*$H$94 -> 0 | F121: =D121/100 -> 0 | G121: =E121-F121 -> 0 | H121: =G121 -> 0 | I121: =($H$94-0.01)-(($H$94-0.01)*F82) -> 0.24 | J121: =I121*D121 -> 0 | K121: =G121-J121 -> 0
B122: 5 PUAN İNDİRİMLİ ORANA TABİ KISIM ( İHRACAT) | C122: =D93 -> 0 | D122: =C119*C122 -> 0 | E122: =D122*$H$94 -> 0 | F122: =D122/20 -> 0 | G122: =E122-F122 -> 0 | H122: 0 | I122: =($H$94-0.05)-(($H$94-0.05)*F82) -> 0.2 | J122: 0 | K122: =G122-J122 -> 0
B123: TOPLAM | C123: =SUM(C120:C122) -> 1 | D123: 0 | E123: 0 | F123: =SUM(F120:F122) -> 0 | G123: =SUM(G120:G122) -> 0 | H123: =SUM(H120:H122) -> 0 | J123: =SUM(J120:J122) -> 0 | K123: 0
B124: 32/A UYGULANABİLECEK MATRAH (5.TEŞVİK BELGESİ) | C124: =G84 -> 0 | D124: KV MATRAHI | E124: 1 - 5 PUAN İNDİRİM OLMASAYDI HESAPLANAN KV TUTARI | F124: 1-5 Puan İndirim Tutarı | G124: 1 - 5 Puan İndirim Sonrasında Hesaplanan KV Tutarı | H124: 32/A İndirimi Olmasaydı Ödenecek KV Tutarı | I124: 1 -5 Puan İndirim ve 32/A VİO Uygulandıktan Sonra Tatbik Edilecek KV Oranı | J124: 1 - 5 Puan İndirim ve 32/A İndirimi Uygulandıktan Sonra Ödenecek KV Tutarı | K124: Yararlanılan Yatırıma Katkı Tutarı (32/A İnd. KV Nedeniyle Vazgeçilen Vergi Tutarı) | L124: Ödenecek KV Tutarı
B125: GENEL ORANA TABİ KISIM (DİĞER FAALİYETLER) | C125: =F93 -> 0.2 | D125: =C124*C125 -> 0 | E125: =D125*$H$94 -> 0 | F125: 0 | G125: =E125-F125 -> 0 | H125: =G125 -> 0 | I125: =($H$94)-(($H$94)*G82) -> 0.25 | J125: =I125*D125 -> 0 | K125: =G125-J125 -> 0 | L125: =J128 -> 0
B126: 1 PUAN İNDİRİMLİ ORANA TABİ KISIM (İMALAT) | C126: =E93 -> 0.8 | D126: =C124*C126 -> 0 | E126: =D126*$H$94 -> 0 | F126: =D126/100 -> 0 | G126: =E126-F126 -> 0 | H126: =G126 -> 0 | I126: =($H$94-0.01)-(($H$94-0.01)*G82) -> 0.24 | J126: =I126*D126 -> 0 | K126: =G126-J126 -> 0
B127: 5 PUAN İNDİRİMLİ ORANA TABİ KISIM ( İHRACAT) | C127: =D93 -> 0 | D127: =C124*C127 -> 0 | E127: =D127*$H$94 -> 0 | F127: =D127/20 -> 0 | G127: =E127-F127 -> 0 | H127: 0 | I127: =($H$94-0.05)-(($H$94-0.05)*G82) -> 0.2 | J127: 0 | K127: =G127-J127 -> 0
B128: TOPLAM | C128: =SUM(C125:C127) -> 1 | D128: 0 | E128: 0 | F128: =SUM(F125:F127) -> 0 | G128: =SUM(G125:G127) -> 0 | H128: =SUM(H125:H127) -> 0 | J128: =SUM(J125:J127) -> 0 | K128: 0
B129: 32/A UYGULANAMAYACAK MATRAH | C129: =IF(C85<=0,0,C85) -> 1000000 | D129: KV MATRAHI | E129: 1-5 PUAN İNDİRİM OLMASAYDI HESAPLANAN KV TUTARI | F129: 1-5 Puan İndirim Tutarı | G129: 1 -5 Puan İndirim Sonrasında Hesaplanan KV Tutarı | H129: 32/A İNDİRİMİ UYGULANMAZ | J129: 1 Puan İndirim ve 32/A İndirimi Uygulandıktan Sonra Ödenecek KV Tutarı | K129: Yararlanılan Yatırıma Katkı Tutarı (32/A İnd. KV Nedeniyle Vazgeçilen Vergi Tutarı) | L129: Ödenecek KV Tutarı
B130: GENEL ORANA TABİ KISIM (DİĞER FAALİYETLER) | C130: =F93 -> 0.2 | D130: =C129*C130 -> 200000 | E130: =D130*$H$94 -> 50000 | F130: 0 | G130: =E130-F130 -> 50000 | J130: =G130 -> 50000 | K130: =G130-J130 -> 0 | L130: =J133 -> 242000
B131: 1 PUAN İNDİRİMLİ ORANA TABİ KISIM (İMALAT) | C131: =E93 -> 0.8 | D131: =C131*C129 -> 800000 | E131: =D131*$H$94 -> 200000 | F131: =D131/100 -> 8000 | G131: =E131-F131 -> 192000 | J131: =G131 -> 192000 | K131: =G131-J131 -> 0
B132: 5 PUAN İNDİRİMLİ ORANA TABİ KISIM ( İHRACAT) | C132: =D93 -> 0 | D132: =C132*C129 -> 0 | E132: =D132*$H$94 -> 0 | F132: =D132/20 -> 0 | G132: =E132-F132 -> 0 | J132: 0 | K132: 0
B133: TOPLAM | C133: =SUM(C130:C132) -> 1 | D133: =SUM(D130:D132) -> 1000000 | E133: 250000 | F133: =SUM(F130:F132) -> 8000 | G133: =SUM(G130:G132) -> 242000 | J133: 242000 | K133: 0
B134: TOPLAM KV MATRAHI VE ÖDENMESİ GEREKEN KV | C134: =C104+C129+C109+C114+C119+C124 -> 1000000 | D134: =D108+D133+D113+D118+D123+D128 -> 1000000 | E134: =E108+E133+E113+E118+E123+E128 -> 250000 | F134: =F108+F133+F113+F118+F123+F128 -> 8000 | G134: =G108+G133+G113+G118+G123+G128 -> 242000 | J134: =J108+J133+J113+J118+J123+J128 -> 242000 | K134: =K133+K108+K113+K118+K123+K128 -> 0 | L134: =L105+L130+L110+L115+L120+L125 -> 242000
B136: GEÇİCİ VERGİ BEYANNMESİNDE MATRAH BİLDİRİMİ BÖLÜMÜNDE DOLDURULACAK KISIMLAR VE TUTARLARI
B137: 32 A Madde Kapsamında İndirimli Kurumlar Vergisine (Geçici Vergiye) Tabi Matrah | C137: =C104+C109+C114+C119+C124 -> 0 | D137: =E108+E113+E118+E123+E128 -> 0 | E137: 1-5 Puan Olmasaydı Hesaplan KV Tutarı
D138: =G108+G113+G118+G123++G128 -> 0 | E138: 1 -5 Puan İndirim Sonrasında Ödenecek KV Tutarı (32 A olmasaydı hesaplanacak Vergi)
D139: =K108+K113+K118+K123+K128 -> 0 | E139: 32/A İndirimi ile Vazgeçilen Vergi
B140: 32 A Madde Kapsamında İndirimli Kurumlar Vergisi(Geçici Vergi) Oranı | C140: =IFERROR(D140/C137,0) -> 0 | D140: =L105+L110+L115+L120+L125 -> 0 | E140: 32/A ya Tabi Matrah Üzerinden Ödenecek KV
B141: 32/7 Madde Kapsamında İndirimli Kurumlar Vergisine (Geçici Vergiye) Tabi Matrah (İhracat) | C141: =D132 -> 0 | D141: =E132 -> 0 | E141: 5 Puan Olmasaydı Hesaplan KV Tutarı
D142: =F132 -> 0 | E142: 5 Puan İndirimin Vergi Etkisi
B143: 32/7 Madde Kapsamında İndirimli Kurumlar Vergisi (Geçici Vergi) Oranı | C143: =IFERROR(D143/C141,0) -> 0 | D143: =G132 -> 0 | E143: 5 Puan İndirim Sonrasında Ödenecek KV Tutarı (İhracat)
B144: 32/8 Madde Kapsamında İndirimli Kurumlar Vergisine (Geçici Vergiye) Tabi Matrah (Üretim) | C144: =D131 -> 800000 | D144: =E131 -> 200000 | E144: 1 Puan Olmasaydı Hesaplan KV Tutarı
D145: =F131 -> 8000 | E145: 1 Puan İndirimin Vergi Etkisi
B146: 32/8 Madde Kapsamında İndirimli Kurumlar Vergisi (Geçici Vergi) Oranı | C146: =IFERROR(D146/C144,0) -> 0.24 | D146: =G131 -> 192000 | E146: 1 Puan İndirim Sonrasında Ödenecek KV Tutarı (Üretim)
B147: Genel Orana Tabi Matrah (Diğer) | C147: =D130 -> 200000 | D147: =J130 -> 50000 | E147: Diğer Faalilyetlerden Elde Edilen Kazanç
C148: =IFERROR(D147/C147,0) -> 0.25
B149: MATRAHLAR TOPLAMI | C149: =C137+C144+C141+C147 -> 1000000 | D149: =D140+D146+D143+D147 -> 242000

Sheet İÜ Ö1 (hidden)
B2: FAALİYET TÜRLERİ İTİBARİYLE HASILATLAR VE TOPLAM İÇİNDEKİ ORANLARI | C2: =IFERROR(C4/C4,0) -> 1 | D2: =IFERROR(D4/C4,0) -> 0.6 | E2: =IFERROR(E4/C4,0) -> 0.4 | F2: =IFERROR(F4/C4,0) -> 0
C3: Toplam Hasılat | D3: İhracat faaliyeti | E3: İmalat faaliyeti | F3: Diğer faaliyetler
B4: A-BRÜT SATIŞLAR (60) | C4: =D4+E4+F4 -> 1000000 | D4: =SUM(D5:D7) -> 600000 | E4: =SUM(E5:E7) -> 400000 | F4: 0
B5: 1-Yurtiçi Satışlar (600) | C5: =D5+E5+F5 -> 400000 | E5: 400000
B6: 2-Yurtdışı Satışlar (601) | C6: =D6+E6+F6 -> 600000 | D6: 600000
B7: 3-Diğer Gelirler (602) | C7: =D7+E7+F7 -> 0
B8: B-SATIŞ İNDİRİMLERİ(-) (61) | C8: =SUM(C9:C11) -> 0 | D8: =SUM(D9:D11) -> 0 | E8: =SUM(E9:E11) -> 0 | F8: 0
B9: 1-Satıştan İadeler (-) (610) | C9: =SUM(D9:F9) -> 0
B10: 2- Satış İskontoları (-) (611) | C10: =SUM(D10:F10) -> 0
B11: 3-Diğer İndirimler (-) (612) | C11: 0
B12: C-NET SATIŞLAR | C12: =C4-C8 -> 1000000 | D12: =D4-D8 -> 600000 | E12: =E4-E8 -> 400000 | F12: 0
B13: D-SATIŞLARIN MALİYETİ (-) (62) | C13: =SUM(C14:C17) -> 0 | D13: =SUM(D14:D17) -> 0 | E13: =SUM(E14:E17) -> 0 | F13: =SUM(F14:F17) -> 0
B14: 1-Satılan Mamuller Maliyeti ( 620) | C14: =SUM(D14:F14) -> 0
B15: 2-Satılan Ticari Mal Maliyeti (621) | C15: =SUM(D15:F15) -> 0
B16: 3-Satılan Hizmet Maliyeti (622) | C16: 0
B17: 4-Diğer Satışların Maliyeti (623) | C17: 0
B18: BRÜT SATIŞ KARI / ZARARI | C18: =C12-C13 -> 1000000 | D18: =D12-D13 -> 600000 | E18: =E12-E13 -> 400000 | F18: 0
B19: E-FAALİYET GİDERLERİ (-) (63) | C19: =SUM(C20:C24) -> 0 | D19: =SUM(D20:D24) -> 0 | E19: =SUM(E20:E24) -> 0 | F19: 0
B20: 1-Araştırma ve Geliştirme Giderleri(-) (630) | C20: =SUM(D20:F20) -> 0
B21: 2-Pazarlama, Satış ve Dağıtım Giderleri(-) (631) | C21: =SUM(D21:F21) -> 0
B22: 3-Genel Yönetim Giderleri(-) (632) | C22: =SUM(D22:F22) -> 0
B23: MÜŞTEREK GENEL GİDERLER (DAĞITIM-HASILAT PAYINA GÖRE) | D23: =C23*D2 -> 0 | E23: =C23*E2 -> 0 | F23: =C23*F2 -> 0
B24: MÜŞTEREK GENEL GİDER GİBİ DAĞITIMA TABİ TUTULACAK AMORTİSMAN GİDERLERİ (DAĞITIM-HASILAT PAYINA GÖRE) | D24: =C24*D2 -> 0 | E24: =C24*E2 -> 0 | F24: =C24*F2 -> 0
B25: FAALİYET KARI / ZARARI | C25: =C18-C19 -> 1000000 | D25: =D18-D19 -> 600000 | E25: =E18-E19 -> 400000 | F25: 0
B26: F-DİĞER FAALİYETLERDEN OLAĞAN GELİR VE KARLAR (64) | C26: =SUM(C27:C35) -> 0 | D26: =SUM(D27:D35) -> 0 | E26: =SUM(E27:E35) -> 0 | F26: =SUM(F27:F35) -> 0
B27: 1- İŞTİRAKLERDEN TEMETTÜ GELİRLERİ (640) | C27: =SUM(D27:F27) -> 0
B28: 2- BAĞLI ORTAKLIKLARDAN TEMETTÜ GELİRLERİ (641) | C28: =SUM(D28:F28) -> 0
B29: 3- FAİZ GELİRLERİ (642) (ihracat ve imalat kaynaklı alacağın tahsiline kadar olan süreçte oluşan) | C29: 0
B30: 4- KOMİSYON GELİRLERİ (643) | C30: 0
B31: 5- KONUSU OLMAYAN KARŞILIKLAR (644) | C31: 0
B32: 6- MENKUL KIYMET SATIŞ KARLARI (645) | C32: 0
B33: 7- KAMBİYO KARLARI (646) (ihracat ve imalat kaynaklı alacağın tahsiline kadar olan süreçte oluşan) | C33: 0
B34: 8- REESKONT FAİZ GELİRLERİ (647) | C34: 0
B35: 9- FAALİYETLE İLGİLİ DİĞER GELİR VE KARLAR (649) | C35: 0
B36: ARA TOPLAM | C36: =C25+C26 -> 1000000 | D36: =D25+D26 -> 600000 | E36: =E25+E26 -> 400000 | F36: =F25+F26 -> 0
B37: G-DİĞER FAALİYETLERDEN OLAĞAN GİDER VE ZARARLAR(-) (65) | C37: =SUM(C38:C43) -> 0 | D37: =SUM(D38:D43) -> 0 | E37: =SUM(E38:E43) -> 0 | F37: 0
B38: 1- KOMİSYON GİDERLERİ (653) | C38: =SUM(D38:F38) -> 0
B39: 2- KARŞILIK GİDERLERİ (654) | C39: =SUM(D39:F39) -> 0
B40: 3- MENKUL KIYMET SATIŞ ZARARLARI (655) | C40: 0
B41: 4- KAMBİYO ZARARLARI (656) (ihracat ve imalat kaynaklı alacağın tahsiline kadar olan süreçte oluşan) | C41: 0
B42: 5- REESKONT FAİZ GİDERLERİ (657) | C42: 0
B43: 6- DİĞER OLAĞAN GİDER VE ZARARLAR (659) | C43: =SUM(D43:F43) -> 0
B44: ARA TOPLAM | C44: =C36-C37 -> 1000000 | D44: =D36-D37 -> 600000 | E44: =E36-E37 -> 400000 | F44: 0
B45: H-FİNANSMAN GİDERLERİ(-) (66) | C45: =SUM(C46:C49) -> 0 | D45: =SUM(D46:D49) -> 0 | E45: =SUM(E46:E49) -> 0 | F45: =SUM(F46:F49) -> 0
B46: 1- KISA VADELİ BORÇLANMA GİDERLERİ (-) | C46: =SUM(D46:F46) -> 0
B47: 2- UZUN VADELİ BORÇLANMA GİDERLERİ (-) | C47: =SUM(D47:F47) -> 0
B48: 1- KISA VADELİ BORÇLANMA GİDERLERİ (-) (DAĞITIM) | D48: =C48*D2 -> 0 | E48: =C48*E2 -> 0 | F48: =C48*F2 -> 0
B49: 2- UZUN VADELİ BORÇLANMA GİDERLERİ (-) (DAĞITIM) | D49: =C49*D2 -> 0 | E49: =C49*E2 -> 0 | F49: =C49*F2 -> 0
B50: ARA TOPLAM | C50: =C44-C45 -> 1000000 | D50: =D44-D45 -> 600000 | E50: =E44-E45 -> 400000 | F50: =F44-F45 -> 0
B51: I-OLAĞANDIŞI GELİR VE KÂRLAR (67) | C51: =SUM(D51:F51) -> 0 | D51: =SUM(D52:D53) -> 0 | E51: =SUM(E52:E53) -> 0 | F51: =SUM(F52:F53) -> 0
B52: 1- ÖNCEKİ DÖNEM GELİR VE KARLARI (671) | C52: =SUM(D52:F52) -> 0
B53: 2-DİĞER OLAĞAN DIŞI GELİR VE KARLAR (679) | C53: =SUM(D53:F53) -> 0
B54: ARA TOPLAM | C54: =SUM(D54:F54) -> 1000000 | D54: =D50+D51 -> 600000 | E54: =E50+E51 -> 400000 | F54: 0
B55: J-OLAĞANDIŞI GİDER VE ZARARLAR(-) (68) | C55: =SUM(C56:C58) -> 0 | D55: =SUM(D56:D58) -> 0 | E55: =SUM(E56:E58) -> 0 | F55: 0
B56: 1-Çalışmayan Kısım Gider ve Zararları(-) (680) | C56: =SUM(D56:F56) -> 0
B57: 2-Önceki Dönem Gider ve Zararları(-) (681) | C57: =SUM(D57:F57) -> 0
B58: 3-Diğer Olağan Dışı Gider ve Zararlar(-) (689) | C58: 0
B59: DÖNEM KÂRI VEYA ZARARI (TİCARİ BİLANÇO KARI ZARARI ) | C59: =C54-C55 -> 1000000 | D59: =D54-D55 -> 600000 | E59: =E54-E55 -> 400000 | F59: 0
B60: İHRACAT, İMALAT VE DİĞER FAALİYETLERDEN ELDE EDİLEN KAZANCIN TOPLAM TİCARİ KAZANÇ İÇİNDEKİ PAYLARI (Kazançlar arasında Öncelik İhracat Kazancına Verilmiştir. İhrcat Kazancından arta kalan Ticari Kazanç İmalat ve Diğer Faaliyetlere Sayılmıştır.) | D60: =IF(D59>=$C$59,1, IF(D59<=0,0, IF(AND(D59>0,D59<$C$59),D59/$C$59))) -> 0.6 | E60: =IF(E59>=$C$59,1, IF(E59<=0,0, IF(AND(E59>0,E59<$C$59),E59/$C$59))) -> 0.4 | F60: =IF(F59>=$C$59,1, IF(F59<=0,0, IF(AND(F59>0,F59<$C$59),F59/$C$59))) -> 0
D61: =D60/(D60+E60+F60) -> 0.6 | E61: =E60/(D60+E60+F60) -> 0.4 | F61: =F60/(D60+E60+F60) -> 0
B63: KKEG +
B64: KABUL EDİLMEYEN GELİRLER -
B65: ZARAR OLSA DAHİ İNDİRİLECEK İSTİSNALAR - | C65: =C66+C67+C68 -> 0
B66: Hizmet İhracatı Faaliyetinden (KVK 10-1/ğ) Elde Edilen Kazançlardan İstisna Edilenlerin Toplamı
B67: İmalat Faaliyetinden Elde Edilen Kazançlardan İstisna Edilenlerin Toplamı
B68: Diğer Faaliyetlerden Elde Edilen Kazançlardan İstisna Edilenlerin Toplamı
B69: GEÇMİŞ YIL ZARARLARI -
B70: İNDİRİMLER - | D70: AZAMİ YAZILABİLECEK İNDİRİMLER TUTARI | E70: =C59+C63-C64-C65-C69 -> 1000000
B72: 1 PUAN İNDİRİM UYGULANACAK TUTARIN HESABINDA İSTİSNA KAZANÇLAR DÜŞÜLDÜKTEN SONRA BULUNAN TİCARİ KAZANÇ TUTARI İLE İHRACAT,İMALAT VE DİĞER KAZANÇLARIN TUTARI | C72: TİCARİ KAZANÇ TAN İhracat ve İmalat Kazancından İstisna Olan Tutarlar Düşüldükten Sonra Kalan Tutarı | D72: İhracat Faaliyetinden Elde Edilen Kazançtan İstisna Olan Kısım Düşüldükten Sonra Bulunan Tutarı | E72: Üretim Faaliyetinden Elde Edilen Kazançtan İstisna Olan Kısım Düşüldükten Sonra Bulunan Tutarı | F72: Diğer Faaliyetinden Elde Edilen Kazanç
C73: =IF(C59-C66-C67<=0,0,C59-C66-C67) -> 1000000 | D73: =IF($D$59-C66<=0,0,MIN($D$59-C66,$C$73*D61)) -> 600000 | E73: =IF($E$59-C67<=0,0,MIN($E$59-C67,$C$73*E61)) -> 400000 | F73: =IF(C73-D73-E73<=0,0,C73-D73-E73) -> 0
B74: MATRAH DAĞITIM PAYLARI | D74: =IFERROR(IF(D73/C73<=0,0,D73/C73),0) -> 0.6 | E74: =IFERROR(IF(E73/C73<=0,0,E73/C73),0) -> 0.4 | F74: =IFERROR(F73/C73,0) -> 0
B75: İHRACAT, İMALAT VE DİĞER FAALİYETLERDEN ELDE EDİLEN KAZANCIN TOPLAM TİCARİ KAZANÇ İÇİNDEKİ PAYLARI | D75: =IFERROR(IF(AND(D73+E73>C73, F73<=0),1,(D73+E73)/C73),0) -> 1 | F75: =IFERROR(IF(F73<=0,0,F73/C73),0) -> 0
B76: NEGATİF VE % 100 DEN BÜYÜKLÜK KONTROLÜ SONRASINDAKİ PAYLARI | D76: =IFERROR(IF(D75<=0,0,IF(D75>1,1,D75)),0) -> 1 | F76: =IFERROR(IF(F75<=0,0,IF(F75>1,1,F75)),0) -> 0
B78: SAFİ KURUM KAZANCI (KURUMLAR VERGİSİ MATRAHI) | C78: =C59+C63-C64-C65-C69-C70 -> 1000000 | D78: =IF(C78<0, "ZARAR","KAR") -> KAR
B80: 2022 YILI 3. DÖNEM İNDİRİMLİ KURUMLAR VERGİSİ HESAPLAMA TABLOSU
C81: 1. TEŞVİK BELGESİ | D81: 2. TEŞVİK BELGESİ | E81: 3. TEŞVİK BELGESİ | F81: 4. TEŞVİK BELGESİ | G81: 5. TEŞVİK BELGESİ
B82: Vergi İndirim Oranı (VİO)
B83: KV MATRAHI (Safi Kurum Kazancı) | C83: =C78 -> 1000000
B84: 32/A Uygulanacak K.V. Matrahı (HER BİR TEŞVİK BELGESİ KAPSAMINDA YARARLANILABİLECEK YATIRIMA KATKI TUTARININ MATRAHI BU HÜCRELERE YAZILMALIDIR) | H84: =IF(SUM(C84:G84)>C78,"32/A İNDİRİMİ UYGULANACAK KAZANÇ, SAFİ KURUM KAZANCINDAN FAZLADIR",SUM(C84:G84)) -> 0
B85: 32/A UYGULANMAYACAK K.V. Matrahı | C85: =IF(C83-(C84+D84+E84+F84+G84)<0,0,C83-(C84+D84+E84+F84+G84)) -> 1000000
B86: MATRAH TOPLAMI | C86: =IF((C84+D84+E84+F84+G84+C85)>C78,C78,(C84+D84+E84+F84+G84+C85)) -> 1000000
B88: SAFİ KURUM KAZANCININ KV VERGİ ORANLARI İTİBARİYLE DAĞILIMI | C88: TOPLAM SAFİ KAZANÇ | D88: İhracat Kazancı Payı | E88: Üretim Kazancı Payı | F88: Diğer Faaliyet Kazancı Payı
C90: =C78 -> 1000000 | D90: =IF(AND(AND($D$59>0,($D$59+$E$59)>=$C$59,D59>=C66),$C$90>=MAX(D59,D73)), MIN(MAX(IF(D59<=C90,D59,IF(D73<=C90,D73)),$C$90*D74)), IF(OR(D59<=0,D73<=0),0, MIN( MAX( MAX( IF(D59<=C90,D59), IF(D73<=C90,D73) ), MIN($C$90*D74,D59,D73)),$C$90))) -> 600000 | E90: =MIN( IF(AND(AND($E$59>0,($D$59+$E$59)>=$C$59,E59>=C67),$C$90>=MAX(E59,E73)), MIN(MAX(IF(E59<=C90,E59,IF(E73<=C90,E73)),$C$90*E74)), IF(OR(E59<=0,E73<=0),0, MIN( MAX( MAX( IF(E59<=C90,E59), IF(E73<=C90,E73) ), MIN($C$90*E74,E59,E73)),$C$90))),C90-D90) -> 400000 | F90: =C90-D90-E90 -> 0
B91: SAFİ KURUM KAZANCININ DAĞILIMI ORANSAL DAĞILIMI | C91: =C90 -> 1000000 | D91: =D90/C90 -> 0.6 | E91: =E90/C90 -> 0.4 | F91: =F90/C90 -> 0
B92: SAFİ KURUM KAZANCININ DAĞILIMI TUTARSAL | C92: =C91 -> 1000000 | D92: =D90 -> 600000 | E92: =E90 -> 400000 | F92: =F90 -> 0
B93: SAFİ KURUM KAZANCI DAĞILIMI | C93: =C92 -> 1000000 | D93: =IFERROR(IF(D92/C92>=1,1,D92/C92),0) -> 0.6 | E93: =IFERROR(IF(E92/C92>=1,1,E92/C92),0) -> 0.4 | F93: =IFERROR(IF(F92/C92>=1,1,F92/C92),0) -> 0 | H93: KV ORANI
B94: 1 PUAN VE 32/A İNDİRİMİ OLMASAYDI HESAPLANAN KV TUTARI | C94: =C93*$H$94 -> 250000 | D94: =D92*$H$94 -> 150000 | E94: =E92*$H$94 -> 100000 | F94: =F92*$H$94 -> 0 | H94: 0.25
B95: 32/ A UYGULANAN MATRAH | C95: =C84+D84+E84+F84+G84 -> 0 | D95: =D107+D112+D117+D122+D127 -> 0 | E95: =D106+D111+D116+D121+D126 -> 0 | F95: =D105+D110+D115+D120+D125 -> 0
B96: 32/A UYGULANACAK MATRAH ÜZERİNDEN ÖDENECEK KV TUTARI | C96: =J108+J113+J118+J123+J128 -> 0 | D96: =J107+J112+J117+J122+J127 -> 0 | E96: =J106+J111+J116+J121+J126 -> 0 | F96: =J105+J110+J115+J120+J125 -> 0
B97: 32/A UYGULANMAYAN MATRAH | C97: =IF(C85<=0,0,C85) -> 1000000 | D97: =D132 -> 600000 | E97: =D131 -> 400000 | F97: =D130 -> 0
B98: 32/A UYGULANMAYAN MATRAH ÜZERİNDEN ÖDENECEK KV TUTARI | C98: =L130 -> 216000 | D98: =J132 -> 120000 | E98: =J131 -> 96000 | F98: =J130 -> 0
B99: TOPLAM ÖDENECEK KV | C99: =C96+C98 -> 216000 | D99: =J132+J107 -> 120000 | E99: =J131+J106 -> 96000 | F99: =J130+J105 -> 0
B100: TOPLAM AVANTAJ (YARARLANILAN 1 PUAN İNDİRİMİ + 32/A İNDİRİMİ TUTARI ) | C100: =C94-C99 -> 34000 | D100: =D101+D102 -> 30000 | E100: =E101+E102 -> 4000 | F100: =F101+F102 -> 0
B101: YARARLANILAN 1 - 5 PUAN İNDİRİMİ TUTARI | C101: =F133+F128+F123+F118+F113+F108 -> 34000 | D101: =F132+F107+F112+F117+F122+F127 -> 30000 | E101: =F131+F106+F111+F116+F121+F126 -> 4000 | F101: =F130+F105+F110+F115+F120+F125 -> 0
B102: YARLANILAN 32/A İNDİRİMİ TUTARI | C102: =K108+K113+K118+K123+K128+K133 -> 0 | D102: =K107+K112+K122+K127+K132 -> 0 | E102: =K106+K111+K116+K121+K126+K131 -> 0 | F102: =K105++K110+K115+K120+K125+K130 -> 0
B104: 32/A UYGULANABİLECEK MATRAH (1.TEŞVİK BELGESİ) | C104: =C84 -> 0 | D104: KV MATRAHI | E104: 1 - 5 PUAN İNDİRİM OLMASAYDI HESAPLANAN KV TUTARI | F104: 1 -5 Puan İndirim Tutarı | G104: 1 - 5 Puan İndirim Sonrasında Hesaplanan KV Tutarı | H104: 32/A İndirimi Olmasaydı Ödenecek KV Tutarı | I104: 1 -5 Puan İndirim ve 32/A VİO Uygulandıktan Sonra Tatbik Edilecek KV Oranı | J104: 1 -5 Puan İndirim ve 32/A İndirimi Uygulandıktan Sonra Ödenecek KV Tutarı | K104: Yararlanılan Yatırıma Katkı Tutarı (32/A İnd. KV Nedeniyle Vazgeçilen Vergi Tutarı) | L104: Ödenecek KV Tutarı
B105: GENEL ORANA TABİ KISIM (DİĞER FAALİYETLER) | C105: =F93 -> 0 | D105: =C104*C105 -> 0 | E105: =D105*$H$94 -> 0 | F105: 0 | G105: =E105-F105 -> 0 | H105: =G105 -> 0 | I105: =($H$94)-(($H$94)*$C$82) -> 0.25 | J105: =I105*D105 -> 0 | K105: =G105-J105 -> 0 | L105: =J108 -> 0
B106: 1 PUAN İNDİRİMLİ ORANA TABİ KISIM (İMALAT) | C106: =E93 -> 0.4 | D106: =C104*C106 -> 0 | E106: =D106*$H$94 -> 0 | F106: =D106/100 -> 0 | G106: =E106-F106 -> 0 | H106: =G106 -> 0 | I106: =($H$94-0.01)-(($H$94-0.01)*$C$82) -> 0.24 | J106: =I106*D106 -> 0 | K106: =G106-J106 -> 0
B107: 5 PUAN İNDİRİMLİ ORANA TABİ KISIM ( İHRACAT) | C107: =D93 -> 0.6 | D107: =C104*C107 -> 0 | E107: =D107*$H$94 -> 0 | F107: =D107/20 -> 0 | G107: =E107-F107 -> 0 | H107: 0 | I107: =($H$94-0.05)-(($H$94-0.05)*C82) -> 0.2 | J107: 0 | K107: =G107-J107 -> 0
B108: TOPLAM | C108: =SUM(C105:C107) -> 1 | D108: =SUM(D105:D107) -> 0 | E108: 0 | F108: =SUM(F105:F107) -> 0 | G108: =SUM(G105:G107) -> 0 | H108: =SUM(H105:H107) -> 0 | J108: 0 | K108: 0
B109: 32/A UYGULANABİLECEK MATRAH (2.TEŞVİK BELGESİ) | C109: =D84 -> 0 | D109: KV MATRAHI | E109: 1 - 5 PUAN İNDİRİM OLMASAYDI HESAPLANAN KV TUTARI | F109: 1 -5 Puan İndirim Tutarı | G109: 1 -5 Puan İndirim Sonrasında Hesaplanan KV Tutarı | H109: 32/A İndirimi Olmasaydı Ödenecek KV Tutarı | I109: 1 - 5 Puan İndirim ve 32/A VİO Uygulandıktan Sonra Tatbik Edilecek KV Oranı | J109: 1-5 Puan İndirim ve 32/A İndirimi Uygulandıktan Sonra Ödenecek KV Tutarı | K109: Yararlanılan Yatırıma Katkı Tutarı (32/A İnd. KV Nedeniyle Vazgeçilen Vergi Tutarı) | L109: Ödenecek KV Tutarı
B110: GENEL ORANA TABİ KISIM (DİĞER FAALİYETLER) | C110: =F93 -> 0 | D110: =C109*C110 -> 0 | E110: =D110*$H$94 -> 0 | F110: 0 | G110: =E110-F110 -> 0 | H110: =G110 -> 0 | I110: =($H$94)-(($H$94)*D82) -> 0.25 | J110: =I110*D110 -> 0 | K110: =G110-J110 -> 0 | L110: =J113 -> 0
B111: 1 PUAN İNDİRİMLİ ORANA TABİ KISIM (İMALAT) | C111: =E93 -> 0.4 | D111: =C109*C111 -> 0 | E111: =D111*$H$94 -> 0 | F111: =D111/100 -> 0 | G111: =E111-F111 -> 0 | H111: =G111 -> 0 | I111: =($H$94-0.01)-(($H$94-0.01)*D82) -> 0.24 | J111: =I111*D111 -> 0 | K111: =G111-J111 -> 0
B112: 5 PUAN İNDİRİMLİ ORANA TABİ KISIM ( İHRACAT) | C112: =D93 -> 0.6 | D112: =C109*C112 -> 0 | E112: =D112*$H$94 -> 0 | F112: =D112/20 -> 0 | G112: =E112-F112 -> 0 | H112: 0 | I112: =($H$94-0.05)-(($H$94-0.05)*D82) -> 0.2 | J112: 0 | K112: =G112-J112 -> 0
B113: TOPLAM | C113: =SUM(C110:C112) -> 1 | D113: 0 | E113: 0 | F113: =SUM(F110:F112) -> 0 | G113: =SUM(G110:G112) -> 0 | H113: =SUM(H110:H112) -> 0 | J113: =SUM(J110:J112) -> 0 | K113: 0
B114: 32/A UYGULANABİLECEK MATRAH (3.TEŞVİK BELGESİ) | C114: =E84 -> 0 | D114: KV MATRAHI | E114: 1 - 5 PUAN İNDİRİM OLMASAYDI HESAPLANAN KV TUTARI | F114: 1-5 Puan İndirim Tutarı | G114: 1 - 5 Puan İndirim Sonrasında Hesaplanan KV Tutarı | H114: 32/A İndirimi Olmasaydı Ödenecek KV Tutarı | I114: 1 - 5 Puan İndirim ve 32/A VİO Uygulandıktan Sonra Tatbik Edilecek KV Oranı | J114: 1 -5 Puan İndirim ve 32/A İndirimi Uygulandıktan Sonra Ödenecek KV Tutarı | K114: Yararlanılan Yatırıma Katkı Tutarı (32/A İnd. KV Nedeniyle Vazgeçilen Vergi Tutarı) | L114: Ödenecek KV Tutarı
B115: GENEL ORANA TABİ KISIM (DİĞER FAALİYETLER) | C115: =F93 -> 0 | D115: =C114*C115 -> 0 | E115: =D115*$H$94 -> 0 | F115: 0 | G115: =E115-F115 -> 0 | H115: =G115 -> 0 | I115: =($H$94)-(($H$94)*E82) -> 0.25 | J115: =I115*D115 -> 0 | K115: =G115-J115 -> 0 | L115: =J118 -> 0
B116: 1 PUAN İNDİRİMLİ ORANA TABİ KISIM (İMALAT) | C116: =E93 -> 0.4 | D116: =C114*C116 -> 0 | E116: =D116*$H$94 -> 0 | F116: =D116/100 -> 0 | G116: =E116-F116 -> 0 | H116: =G116 -> 0 | I116: =($H$94-0.01)-(($H$94-0.01)*E82) -> 0.24 | J116: =I116*D116 -> 0 | K116: =G116-J116 -> 0
B117: 5 PUAN İNDİRİMLİ ORANA TABİ KISIM ( İHRACAT) | C117: =D93 -> 0.6 | D117: =C114*C117 -> 0 | E117: =D117*$H$94 -> 0 | F117: =D117/20 -> 0 | G117: =E117-F117 -> 0 | H117: 0 | I117: =($H$94-0.05)-(($H$94-0.05)*E82) -> 0.2 | J117: 0 | K117: =G117-J117 -> 0
B118: TOPLAM | C118: =SUM(C115:C117) -> 1 | D118: 0 | E118: 0 | F118: =SUM(F115:F117) -> 0 | G118: =SUM(G115:G117) -> 0 | H118: =SUM(H115:H117) -> 0 | J118: =SUM(J115:J117) -> 0 | K118: 0
B119: 32/A UYGULANABİLECEK MATRAH (4. TEŞVİK BELGESİ) | C119: =F84 -> 0 | D119: KV MATRAHI | E119: 1 - 5 PUAN İNDİRİM OLMASAYDI HESAPLANAN KV TUTARI | F119: 1-5 Puan İndirim Tutarı | G119: 1 -5 Puan İndirim Sonrasında Hesaplanan KV Tutarı | H119: 32/A İndirimi Olmasaydı Ödenecek KV Tutarı | I119: 1- 5 Puan İndirim ve 32/A VİO Uygulandıktan Sonra Tatbik Edilecek KV Oranı | J119: 1-5 Puan İndirim ve 32/A İndirimi Uygulandıktan Sonra Ödenecek KV Tutarı | K119: Yararlanılan Yatırıma Katkı Tutarı (32/A İnd. KV Nedeniyle Vazgeçilen Vergi Tutarı) | L119: Ödenecek KV Tutarı
B120: GENEL ORANA TABİ KISIM (DİĞER FAALİYETLER) | C120: =F93 -> 0 | D120: =C119*C120 -> 0 | E120: =D120*$H$94 -> 0 | F120: 0 | G120: =E120-F120 -> 0 | H120: =G120 -> 0 | I120: =($H$94)-(($H$94)*F82) -> 0.25 | J120: =I120*D120 -> 0 | K120: =G120-J120 -> 0 | L120: =J123 -> 0
B121: 1 PUAN İNDİRİMLİ ORANA TABİ KISIM (İMALAT) | C121: =E93 -> 0.4 | D121: =C119*C121 -> 0 | E121: =D121*$H$94 -> 0 | F121: =D121/100 -> 0 | G121: =E121-F121 -> 0 | H121: =G121 -> 0 | I121: =($H$94-0.01)-(($H$94-0.01)*F82) -> 0.24 | J121: =I121*D121 -> 0 | K121: =G121-J121 -> 0
B122: 5 PUAN İNDİRİMLİ ORANA TABİ KISIM ( İHRACAT) | C122: =D93 -> 0.6 | D122: =C119*C122 -> 0 | E122: =D122*$H$94 -> 0 | F122: =D122/20 -> 0 | G122: =E122-F122 -> 0 | H122: 0 | I122: =($H$94-0.05)-(($H$94-0.05)*F82) -> 0.2 | J122: 0 | K122: =G122-J122 -> 0
B123: TOPLAM | C123: =SUM(C120:C122) -> 1 | D123: 0 | E123: 0 | F123: =SUM(F120:F122) -> 0 | G123: =SUM(G120:G122) -> 0 | H123: =SUM(H120:H122) -> 0 | J123: =SUM(J120:J122) -> 0 | K123: 0
B124: 32/A UYGULANABİLECEK MATRAH (5.TEŞVİK BELGESİ) | C124: =G84 -> 0 | D124: KV MATRAHI | E124: 1 - 5 PUAN İNDİRİM OLMASAYDI HESAPLANAN KV TUTARI | F124: 1-5 Puan İndirim Tutarı | G124: 1 - 5 Puan İndirim Sonrasında Hesaplanan KV Tutarı | H124: 32/A İndirimi Olmasaydı Ödenecek KV Tutarı | I124: 1 -5 Puan İndirim ve 32/A VİO Uygulandıktan Sonra Tatbik Edilecek KV Oranı | J124: 1 - 5 Puan İndirim ve 32/A İndirimi Uygulandıktan Sonra Ödenecek KV Tutarı | K124: Yararlanılan Yatırıma Katkı Tutarı (32/A İnd. KV Nedeniyle Vazgeçilen Vergi Tutarı) | L124: Ödenecek KV Tutarı
B125: GENEL ORANA TABİ KISIM (DİĞER FAALİYETLER) | C125: =F93 -> 0 | D125: =C124*C125 -> 0 | E125: =D125*$H$94 -> 0 | F125: 0 | G125: =E125-F125 -> 0 | H125: =G125 -> 0 | I125: =($H$94)-(($H$94)*G82) -> 0.25 | J125: =I125*D125 -> 0 | K125: =G125-J125 -> 0 | L125: =J128 -> 0
B126: 1 PUAN İNDİRİMLİ ORANA TABİ KISIM (İMALAT) | C126: =E93 -> 0.4 | D126: =C124*C126 -> 0 | E126: =D126*$H$94 -> 0 | F126: =D126/100 -> 0 | G126: =E126-F126 -> 0 | H126: =G126 -> 0 | I126: =($H$94-0.01)-(($H$94-0.01)*G82) -> 0.24 | J126: =I126*D126 -> 0 | K126: =G126-J126 -> 0
B127: 5 PUAN İNDİRİMLİ ORANA TABİ KISIM ( İHRACAT) | C127: =D93 -> 0.6 | D127: =C124*C127 -> 0 | E127: =D127*$H$94 -> 0 | F127: =D127/20 -> 0 | G127: =E127-F127 -> 0 | H127: 0 | I127: =($H$94-0.05)-(($H$94-0.05)*G82) -> 0.2 | J127: 0 | K127: =G127-J127 -> 0
B128: TOPLAM | C128: =SUM(C125:C127) -> 1 | D128: 0 | E128: 0 | F128: =SUM(F125:F127) -> 0 | G128: =SUM(G125:G127) -> 0 | H128: =SUM(H125:H127) -> 0 | J128: =SUM(J125:J127) -> 0 | K128: 0
B129: 32/A UYGULANAMAYACAK MATRAH | C129: =IF(C85<=0,0,C85) -> 1000000 | D129: KV MATRAHI | E129: 1-5 PUAN İNDİRİM OLMASAYDI HESAPLANAN KV TUTARI | F129: 1-5 Puan İndirim Tutarı | G129: 1 -5 Puan İndirim Sonrasında Hesaplanan KV Tutarı | H129: 32/A İNDİRİMİ UYGULANMAZ | J129: 1 Puan İndirim ve 32/A İndirimi Uygulandıktan Sonra Ödenecek KV Tutarı | K129: Yararlanılan Yatırıma Katkı Tutarı (32/A İnd. KV Nedeniyle Vazgeçilen Vergi Tutarı) | L129: Ödenecek KV Tutarı
B130: GENEL ORANA TABİ KISIM (DİĞER FAALİYETLER) | C130: =F93 -> 0 | D130: =C129*C130 -> 0 | E130: =D130*$H$94 -> 0 | F130: 0 | G130: =E130-F130 -> 0 | J130: =G130 -> 0 | K130: =G130-J130 -> 0 | L130: =J133 -> 216000
B131: 1 PUAN İNDİRİMLİ ORANA TABİ KISIM (İMALAT) | C131: =E93 -> 0.4 | D131: =C131*C129 -> 400000 | E131: =D131*$H$94 -> 100000 | F131: =D131/100 -> 4000 | G131: =E131-F131 -> 96000 | J131: =G131 -> 96000 | K131: =G131-J131 -> 0
B132: 5 PUAN İNDİRİMLİ ORANA TABİ KISIM ( İHRACAT) | C132: =D93 -> 0.6 | D132: =C132*C129 -> 600000 | E132: =D132*$H$94 -> 150000 | F132: =D132/20 -> 30000 | G132: =E132-F132 -> 120000 | J132: 120000 | K132: 0
B133: TOPLAM | C133: =SUM(C130:C132) -> 1 | D133: =SUM(D130:D132) -> 1000000 | E133: 250000 | F133: =SUM(F130:F132) -> 34000 | G133: =SUM(G130:G132) -> 216000 | J133: 216000 | K133: 0
B134: TOPLAM KV MATRAHI VE ÖDENMESİ GEREKEN KV | C134: =C104+C129+C109+C114+C119+C124 -> 1000000 | D134: =D108+D133+D113+D118+D123+D128 -> 1000000 | E134: =E108+E133+E113+E118+E123+E128 -> 250000 | F134: =F108+F133+F113+F118+F123+F128 -> 34000 | G134: =G108+G133+G113+G118+G123+G128 -> 216000 | J134: =J108+J133+J113+J118+J123+J128 -> 216000 | K134: =K133+K108+K113+K118+K123+K128 -> 0 | L134: =L105+L130+L110+L115+L120+L125 -> 216000
B136: GEÇİCİ VERGİ BEYANNMESİNDE MATRAH BİLDİRİMİ BÖLÜMÜNDE DOLDURULACAK KISIMLAR VE TUTARLARI
B137: 32 A Madde Kapsamında İndirimli Kurumlar Vergisine (Geçici Vergiye) Tabi Matrah | C137: =C104+C109+C114+C119+C124 -> 0 | D137: =E108+E113+E118+E123+E128 -> 0 | E137: 1-5 Puan Olmasaydı Hesaplan KV Tutarı
D138: =G108+G113+G118+G123++G128 -> 0 | E138: 1 -5 Puan İndirim Sonrasında Ödenecek KV Tutarı (32 A olmasaydı hesaplanacak Vergi)
D139: =K108+K113+K118+K123+K128 -> 0 | E139: 32/A İndirimi ile Vazgeçilen Vergi
B140: 32 A Madde Kapsamında İndirimli Kurumlar Vergisi(Geçici Vergi) Oranı | C140: =IFERROR(D140/C137,0) -> 0 | D140: =L105+L110+L115+L120+L125 -> 0 | E140: 32/A ya Tabi Matrah Üzerinden Ödenecek KV
B141: 32/7 Madde Kapsamında İndirimli Kurumlar Vergisine (Geçici Vergiye) Tabi Matrah (İhracat) | C141: =D132 -> 600000 | D141: =E132 -> 150000 | E141: 5 Puan Olmasaydı Hesaplan KV Tutarı
D142: =F132 -> 30000 | E142: 5 Puan İndirimin Vergi Etkisi
B143: 32/7 Madde Kapsamında İndirimli Kurumlar Vergisi (Geçici Vergi) Oranı | C143: =IFERROR(D143/C141,0) -> 0.2 | D143: =G132 -> 120000 | E143: 5 Puan İndirim Sonrasında Ödenecek KV Tutarı (İhracat)
B144: 32/8 Madde Kapsamında İndirimli Kurumlar Vergisine (Geçici Vergiye) Tabi Matrah (Üretim) | C144: =D131 -> 400000 | D144: =E131 -> 100000 | E144: 1 Puan Olmasaydı Hesaplan KV Tutarı
D145: =F131 -> 4000 | E145: 1 Puan İndirimin Vergi Etkisi
B146: 32/8 Madde Kapsamında İndirimli Kurumlar Vergisi (Geçici Vergi) Oranı | C146: =IFERROR(D146/C144,0) -> 0.24 | D146: =G131 -> 96000 | E146: 1 Puan İndirim Sonrasında Ödenecek KV Tutarı (Üretim)
B147: Genel Orana Tabi Matrah (Diğer) | C147: =D130 -> 0 | D147: =J130 -> 0 | E147: Diğer Faalilyetlerden Elde Edilen Kazanç
C148: =IFERROR(D147/C147,0) -> 0
B149: MATRAHLAR TOPLAMI | C149: =C137+C144+C141+C147 -> 1000000 | D149: =D140+D146+D143+D147 -> 216000

Sheet İÜ Ö2 (hidden)
B2: FAALİYET TÜRLERİ İTİBARİYLE HASILATLAR VE TOPLAM İÇİNDEKİ ORANLARI | C2: =IFERROR(C4/C4,0) -> 1 | D2: =IFERROR(D4/C4,0) -> 0.5 | E2: =IFERROR(E4/C4,0) -> 0.3 | F2: =IFERROR(F4/C4,0) -> 0.2
C3: Toplam Hasılat | D3: İhracat faaliyeti | E3: İmalat faaliyeti | F3: Diğer faaliyetler
B4: A-BRÜT SATIŞLAR (60) | C4: =D4+E4+F4 -> 3000000 | D4: =SUM(D5:D7) -> 1500000 | E4: =SUM(E5:E7) -> 900000 | F4: 600000
B5: 1-Yurtiçi Satışlar (600) | C5: =D5+E5+F5 -> 1500000 | E5: 900000 | F5: 600000
B6: 2-Yurtdışı Satışlar (601) | C6: =D6+E6+F6 -> 1500000 | D6: 1500000
B7: 3-Diğer Gelirler (602) | C7: =D7+E7+F7 -> 0
B8: B-SATIŞ İNDİRİMLERİ(-) (61) | C8: =SUM(C9:C11) -> 0 | D8: =SUM(D9:D11) -> 0 | E8: =SUM(E9:E11) -> 0 | F8: 0
B9: 1-Satıştan İadeler (-) (610) | C9: =SUM(D9:F9) -> 0
B10: 2- Satış İskontoları (-) (611) | C10: =SUM(D10:F10) -> 0
B11: 3-Diğer İndirimler (-) (612) | C11: 0
B12: C-NET SATIŞLAR | C12: =C4-C8 -> 3000000 | D12: =D4-D8 -> 1500000 | E12: =E4-E8 -> 900000 | F12: 600000
B13: D-SATIŞLARIN MALİYETİ (-) (62) | C13: =SUM(C14:C17) -> 0 | D13: =SUM(D14:D17) -> 0 | E13: =SUM(E14:E17) -> 0 | F13: =SUM(F14:F17) -> 0
B14: 1-Satılan Mamuller Maliyeti ( 620) | C14: =SUM(D14:F14) -> 0
B15: 2-Satılan Ticari Mal Maliyeti (621) | C15: =SUM(D15:F15) -> 0
B16: 3-Satılan Hizmet Maliyeti (622) | C16: 0
B17: 4-Diğer Satışların Maliyeti (623) | C17: =SUM(D17:F17) -> 0
B18: BRÜT SATIŞ KARI / ZARARI | C18: =C12-C13 -> 3000000 | D18: =D12-D13 -> 1500000 | E18: =E12-E13 -> 900000 | F18: 600000
B19: E-FAALİYET GİDERLERİ (-) (63) | C19: =SUM(C20:C24) -> 0 | D19: =SUM(D20:D24) -> 0 | E19: =SUM(E20:E24) -> 0 | F19: 0
B20: 1-Araştırma ve Geliştirme Giderleri(-) (630) | C20: =SUM(D20:F20) -> 0
B21: 2-Pazarlama, Satış ve Dağıtım Giderleri(-) (631) | C21: =SUM(D21:F21) -> 0
B22: 3-Genel Yönetim Giderleri(-) (632) | C22: =SUM(D22:F22) -> 0
B23: MÜŞTEREK GENEL GİDERLER (DAĞITIM-HASILAT PAYINA GÖRE) | D23: =C23*D2 -> 0 | E23: =C23*E2 -> 0 | F23: =C23*F2 -> 0
B24: MÜŞTEREK GENEL GİDER GİBİ DAĞITIMA TABİ TUTULACAK AMORTİSMAN GİDERLERİ (DAĞITIM-HASILAT PAYINA GÖRE) | D24: =C24*D2 -> 0 | E24: =C24*E2 -> 0 | F24: =C24*F2 -> 0
B25: FAALİYET KARI / ZARARI | C25: =C18-C19 -> 3000000 | D25: =D18-D19 -> 1500000 | E25: =E18-E19 -> 900000 | F25: 600000
B26: F-DİĞER FAALİYETLERDEN OLAĞAN GELİR VE KARLAR (64) | C26: =SUM(C27:C35) -> 0 | D26: =SUM(D27:D35) -> 0 | E26: =SUM(E27:E35) -> 0 | F26: =SUM(F27:F35) -> 0
B27: 1- İŞTİRAKLERDEN TEMETTÜ GELİRLERİ (640) | C27: =SUM(D27:F27) -> 0
B28: 2- BAĞLI ORTAKLIKLARDAN TEMETTÜ GELİRLERİ (641) | C28: =SUM(D28:F28) -> 0
B29: 3- FAİZ GELİRLERİ (642) (ihracat ve imalat kaynaklı alacağın tahsiline kadar olan süreçte oluşan) | C29: 0
B30: 4- KOMİSYON GELİRLERİ (643) | C30: 0
B31: 5- KONUSU OLMAYAN KARŞILIKLAR (644) | C31: 0
B32: 6- MENKUL KIYMET SATIŞ KARLARI (645) | C32: 0
B33: 7- KAMBİYO KARLARI (646) (ihracat ve imalat kaynaklı alacağın tahsiline kadar olan süreçte oluşan) | C33: 0
B34: 8- REESKONT FAİZ GELİRLERİ (647) | C34: 0
B35: 9- FAALİYETLE İLGİLİ DİĞER GELİR VE KARLAR (649) | C35: 0
B36: ARA TOPLAM | C36: =C25+C26 -> 3000000 | D36: =D25+D26 -> 1500000 | E36: =E25+E26 -> 900000 | F36: =F25+F26 -> 600000
B37: G-DİĞER FAALİYETLERDEN OLAĞAN GİDER VE ZARARLAR(-) (65) | C37: =SUM(C38:C43) -> 0 | D37: =SUM(D38:D43) -> 0 | E37: =SUM(E38:E43) -> 0 | F37: 0
B38: 1- KOMİSYON GİDERLERİ (653) | C38: =SUM(D38:F38) -> 0
B39: 2- KARŞILIK GİDERLERİ (654) | C39: =SUM(D39:F39) -> 0
B40: 3- MENKUL KIYMET SATIŞ ZARARLARI (655) | C40: 0
B41: 4- KAMBİYO ZARARLARI (656) (ihracat ve imalat kaynaklı alacağın tahsiline kadar olan süreçte oluşan) | C41: 0
B42: 5- REESKONT FAİZ GİDERLERİ (657) | C42: 0
B43: 6- DİĞER OLAĞAN GİDER VE ZARARLAR (659) | C43: =SUM(D43:F43) -> 0
B44: ARA TOPLAM | C44: =C36-C37 -> 3000000 | D44: =D36-D37 -> 1500000 | E44: =E36-E37 -> 900000 | F44: 600000
B45: H-FİNANSMAN GİDERLERİ(-) (66) | C45: =SUM(C46:C49) -> 0 | D45: =SUM(D46:D49) -> 0 | E45: =SUM(E46:E49) -> 0 | F45: =SUM(F46:F49) -> 0
B46: 1- KISA VADELİ BORÇLANMA GİDERLERİ (-) | C46: =SUM(D46:F46) -> 0
B47: 2- UZUN VADELİ BORÇLANMA GİDERLERİ (-) | C47: =SUM(D47:F47) -> 0
B48: 1- KISA VADELİ BORÇLANMA GİDERLERİ (-) (DAĞITIM) | D48: =C48*D2 -> 0 | E48: =C48*E2 -> 0 | F48: =C48*F2 -> 0
B49: 2- UZUN VADELİ BORÇLANMA GİDERLERİ (-) (DAĞITIM) | D49: =C49*D2 -> 0 | E49: =C49*E2 -> 0 | F49: =C49*F2 -> 0
B50: ARA TOPLAM | C50: =C44-C45 -> 3000000 | D50: =D44-D45 -> 1500000 | E50: =E44-E45 -> 900000 | F50: =F44-F45 -> 600000
B51: I-OLAĞANDIŞI GELİR VE KÂRLAR (67) | C51: =SUM(D51:F51) -> 0 | D51: =SUM(D52:D53) -> 0 | E51: =SUM(E52:E53) -> 0 | F51: =SUM(F52:F53) -> 0
B52: 1- ÖNCEKİ DÖNEM GELİR VE KARLARI (671) | C52: =SUM(D52:F52) -> 0
B53: 2-DİĞER OLAĞAN DIŞI GELİR VE KARLAR (679) | C53: =SUM(D53:F53) -> 0
B54: ARA TOPLAM | C54: =SUM(D54:F54) -> 3000000 | D54: =D50+D51 -> 1500000 | E54: =E50+E51 -> 900000 | F54: 600000
B55: J-OLAĞANDIŞI GİDER VE ZARARLAR(-) (68) | C55: =SUM(C56:C58) -> 0 | D55: =SUM(D56:D58) -> 0 | E55: =SUM(E56:E58) -> 0 | F55: 0
B56: 1-Çalışmayan Kısım Gider ve Zararları(-) (680) | C56: =SUM(D56:F56) -> 0
B57: 2-Önceki Dönem Gider ve Zararları(-) (681) | C57: =SUM(D57:F57) -> 0
B58: 3-Diğer Olağan Dışı Gider ve Zararlar(-) (689) | C58: 0
B59: DÖNEM KÂRI VEYA ZARARI (TİCARİ BİLANÇO KARI ZARARI ) | C59: =C54-C55 -> 3000000 | D59: =D54-D55 -> 1500000 | E59: =E54-E55 -> 900000 | F59: 600000
B60: İHRACAT, İMALAT VE DİĞER FAALİYETLERDEN ELDE EDİLEN KAZANCIN TOPLAM TİCARİ KAZANÇ İÇİNDEKİ PAYLARI (Kazançlar arasında Öncelik İhracat Kazancına Verilmiştir. İhrcat Kazancından arta kalan Ticari Kazanç İmalat ve Diğer Faaliyetlere Sayılmıştır.) | D60: =IF(D59>=$C$59,1, IF(D59<=0,0, IF(AND(D59>0,D59<$C$59),D59/$C$59))) -> 0.5 | E60: =IF(E59>=$C$59,1, IF(E59<=0,0, IF(AND(E59>0,E59<$C$59),E59/$C$59))) -> 0.3 | F60: =IF(F59>=$C$59,1, IF(F59<=0,0, IF(AND(F59>0,F59<$C$59),F59/$C$59))) -> 0.2
D61: =D60/(D60+E60+F60) -> 0.5 | E61: =E60/(D60+E60+F60) -> 0.3 | F61: =F60/(D60+E60+F60) -> 0.2
B63: KKEG + | C63: 200000
B64: KABUL EDİLMEYEN GELİRLER -
B65: ZARAR OLSA DAHİ İNDİRİLECEK İSTİSNALAR - | C65: =C66+C67+C68 -> 0
B66: Hizmet İhracatı Faaliyetinden (KVK 10-1/ğ) Elde Edilen Kazançlardan İstisna Edilenlerin Toplamı
B67: İmalat Faaliyetinden Elde Edilen Kazançlardan İstisna Edilenlerin Toplamı
B68: Diğer Faaliyetlerden Elde Edilen Kazançlardan İstisna Edilenlerin Toplamı
B69: GEÇMİŞ YIL ZARARLARI - | C69: 1200000
B70: İNDİRİMLER - | D70: AZAMİ YAZILABİLECEK İNDİRİMLER TUTARI | E70: =C59+C63-C64-C65-C69 -> 2000000
B72: 1 PUAN İNDİRİM UYGULANACAK TUTARIN HESABINDA İSTİSNA KAZANÇLAR DÜŞÜLDÜKTEN SONRA BULUNAN TİCARİ KAZANÇ TUTARI İLE İHRACAT,İMALAT VE DİĞER KAZANÇLARIN TUTARI | C72: TİCARİ KAZANÇ TAN İhracat ve İmalat Kazancından İstisna Olan Tutarlar Düşüldükten Sonra Kalan Tutarı | D72: İhracat Faaliyetinden Elde Edilen Kazançtan İstisna Olan Kısım Düşüldükten Sonra Bulunan Tutarı | E72: Üretim Faaliyetinden Elde Edilen Kazançtan İstisna Olan Kısım Düşüldükten Sonra Bulunan Tutarı | F72: Diğer Faaliyetinden Elde Edilen Kazanç
C73: =IF(C59-C66-C67<=0,0,C59-C66-C67) -> 3000000 | D73: =IF($D$59-C66<=0,0,MIN($D$59-C66,$C$73*D61)) -> 1500000 | E73: =IF($E$59-C67<=0,0,MIN($E$59-C67,$C$73*E61)) -> 900000 | F73: =IF(C73-D73-E73<=0,0,C73-D73-E73) -> 600000
B74: MATRAH DAĞITIM PAYLARI | D74: =IFERROR(IF(D73/C73<=0,0,D73/C73),0) -> 0.5 | E74: =IFERROR(IF(E73/C73<=0,0,E73/C73),0) -> 0.3 | F74: =IFERROR(F73/C73,0) -> 0.2
B75: İHRACAT, İMALAT VE DİĞER FAALİYETLERDEN ELDE EDİLEN KAZANCIN TOPLAM TİCARİ KAZANÇ İÇİNDEKİ PAYLARI | D75: =IFERROR(IF(AND(D73+E73>C73, F73<=0),1,(D73+E73)/C73),0) -> 0.8 | F75: =IFERROR(IF(F73<=0,0,F73/C73),0) -> 0.2
B76: NEGATİF VE % 100 DEN BÜYÜKLÜK KONTROLÜ SONRASINDAKİ PAYLARI | D76: =IFERROR(IF(D75<=0,0,IF(D75>1,1,D75)),0) -> 0.8 | F76: =IFERROR(IF(F75<=0,0,IF(F75>1,1,F75)),0) -> 0.2
B78: SAFİ KURUM KAZANCI (KURUMLAR VERGİSİ MATRAHI) | C78: =C59+C63-C64-C65-C69-C70 -> 2000000 | D78: =IF(C78<0, "ZARAR","KAR") -> KAR
B80: 2022 YILI 3. DÖNEM İNDİRİMLİ KURUMLAR VERGİSİ HESAPLAMA TABLOSU
C81: 1. TEŞVİK BELGESİ | D81: 2. TEŞVİK BELGESİ | E81: 3. TEŞVİK BELGESİ | F81: 4. TEŞVİK BELGESİ | G81: 5. TEŞVİK BELGESİ
B82: Vergi İndirim Oranı (VİO)
B83: KV MATRAHI (Safi Kurum Kazancı) | C83: =C78 -> 2000000
B84: 32/A Uygulanacak K.V. Matrahı (HER BİR TEŞVİK BELGESİ KAPSAMINDA YARARLANILABİLECEK YATIRIMA KATKI TUTARININ MATRAHI BU HÜCRELERE YAZILMALIDIR) | H84: =IF(SUM(C84:G84)>C78,"32/A İNDİRİMİ UYGULANACAK KAZANÇ, SAFİ KURUM KAZANCINDAN FAZLADIR",SUM(C84:G84)) -> 0
B85: 32/A UYGULANMAYACAK K.V. Matrahı | C85: =IF(C83-(C84+D84+E84+F84+G84)<0,0,C83-(C84+D84+E84+F84+G84)) -> 2000000
B86: MATRAH TOPLAMI | C86: =IF((C84+D84+E84+F84+G84+C85)>C78,C78,(C84+D84+E84+F84+G84+C85)) -> 2000000
B88: SAFİ KURUM KAZANCININ KV VERGİ ORANLARI İTİBARİYLE DAĞILIMI | C88: TOPLAM SAFİ KAZANÇ | D88: İhracat Kazancı Payı | E88: Üretim Kazancı Payı | F88: Diğer Faaliyet Kazancı Payı
C90: =C78 -> 2000000 | D90: =IF(AND(AND($D$59>0,($D$59+$E$59)>=$C$59,D59>=C66),$C$90>=MAX(D59,D73)), MIN(MAX(IF(D59<=C90,D59,IF(D73<=C90,D73)),$C$90*D74)), IF(OR(D59<=0,D73<=0),0, MIN( MAX( MAX( IF(D59<=C90,D59), IF(D73<=C90,D73) ), MIN($C$90*D74,D59,D73)),$C$90))) -> 1500000 | E90: =MIN( IF(AND(AND($E$59>0,($D$59+$E$59)>=$C$59,E59>=C67),$C$90>=MAX(E59,E73)), MIN(MAX(IF(E59<=C90,E59,IF(E73<=C90,E73)),$C$90*E74)), IF(OR(E59<=0,E73<=0),0, MIN( MAX( MAX( IF(E59<=C90,E59), IF(E73<=C90,E73) ), MIN($C$90*E74,E59,E73)),$C$90))),C90-D90) -> 500000 | F90: =C90-D90-E90 -> 0
B91: SAFİ KURUM KAZANCININ DAĞILIMI ORANSAL DAĞILIMI | C91: =C90 -> 2000000 | D91: =D90/C90 -> 0.75 | E91: =E90/C90 -> 0.25 | F91: =F90/C90 -> 0
B92: SAFİ KURUM KAZANCININ DAĞILIMI TUTARSAL | C92: =C91 -> 2000000 | D92: =D90 -> 1500000 | E92: =E90 -> 500000 | F92: =F90 -> 0
B93: SAFİ KURUM KAZANCI DAĞILIMI | C93: =C92 -> 2000000 | D93: =IFERROR(IF(D92/C92>=1,1,D92/C92),0) -> 0.75 | E93: =IFERROR(IF(E92/C92>=1,1,E92/C92),0) -> 0.25 | F93: =IFERROR(IF(F92/C92>=1,1,F92/C92),0) -> 0 | H93: KV ORANI
B94: 1 PUAN VE 32/A İNDİRİMİ OLMASAYDI HESAPLANAN KV TUTARI | C94: =C93*$H$94 -> 500000 | D94: =D92*$H$94 -> 375000 | E94: =E92*$H$94 -> 125000 | F94: =F92*$H$94 -> 0 | H94: 0.25
B95: 32/ A UYGULANAN MATRAH | C95: =C84+D84+E84+F84+G84 -> 0 | D95: =D107+D112+D117+D122+D127 -> 0 | E95: =D106+D111+D116+D121+D126 -> 0 | F95: =D105+D110+D115+D120+D125 -> 0
B96: 32/A UYGULANACAK MATRAH ÜZERİNDEN ÖDENECEK KV TUTARI | C96: =J108+J113+J118+J123+J128 -> 0 | D96: =J107+J112+J117+J122+J127 -> 0 | E96: =J106+J111+J116+J121+J126 -> 0 | F96: =J105+J110+J115+J120+J125 -> 0
B97: 32/A UYGULANMAYAN MATRAH | C97: =IF(C85<=0,0,C85) -> 2000000 | D97: =D132 -> 1500000 | E97: =D131 -> 500000 | F97: =D130 -> 0
B98: 32/A UYGULANMAYAN MATRAH ÜZERİNDEN ÖDENECEK KV TUTARI | C98: =L130 -> 420000 | D98: =J132 -> 300000 | E98: =J131 -> 120000 | F98: =J130 -> 0
B99: TOPLAM ÖDENECEK KV | C99: =C96+C98 -> 420000 | D99: =J132+J107 -> 300000 | E99: =J131+J106 -> 120000 | F99: =J130+J105 -> 0
B100: TOPLAM AVANTAJ (YARARLANILAN 1 PUAN İNDİRİMİ + 32/A İNDİRİMİ TUTARI ) | C100: =C94-C99 -> 80000 | D100: =D101+D102 -> 75000 | E100: =E101+E102 -> 5000 | F100: =F101+F102 -> 0
B101: YARARLANILAN 1 - 5 PUAN İNDİRİMİ TUTARI | C101: =F133+F128+F123+F118+F113+F108 -> 80000 | D101: =F132+F107+F112+F117+F122+F127 -> 75000 | E101: =F131+F106+F111+F116+F121+F126 -> 5000 | F101: =F130+F105+F110+F115+F120+F125 -> 0
B102: YARLANILAN 32/A İNDİRİMİ TUTARI | C102: =K108+K113+K118+K123+K128+K133 -> 0 | D102: =K107+K112+K122+K127+K132 -> 0 | E102: =K106+K111+K116+K121+K126+K131 -> 0 | F102: =K105++K110+K115+K120+K125+K130 -> 0
B104: 32/A UYGULANABİLECEK MATRAH (1.TEŞVİK BELGESİ) | C104: =C84 -> 0 | D104: KV MATRAHI | E104: 1 - 5 PUAN İNDİRİM OLMASAYDI HESAPLANAN KV TUTARI | F104: 1 -5 Puan İndirim Tutarı | G104: 1 - 5 Puan İndirim Sonrasında Hesaplanan KV Tutarı | H104: 32/A İndirimi Olmasaydı Ödenecek KV Tutarı | I104: 1 -5 Puan İndirim ve 32/A VİO Uygulandıktan Sonra Tatbik Edilecek KV Oranı | J104: 1 -5 Puan İndirim ve 32/A İndirimi Uygulandıktan Sonra Ödenecek KV Tutarı | K104: Yararlanılan Yatırıma Katkı Tutarı (32/A İnd. KV Nedeniyle Vazgeçilen Vergi Tutarı) | L104: Ödenecek KV Tutarı
B105: GENEL ORANA TABİ KISIM (DİĞER FAALİYETLER) | C105: =F93 -> 0 | D105: =C104*C105 -> 0 | E105: =D105*$H$94 -> 0 | F105: 0 | G105: =E105-F105 -> 0 | H105: =G105 -> 0 | I105: =($H$94)-(($H$94)*$C$82) -> 0.25 | J105: =I105*D105 -> 0 | K105: =G105-J105 -> 0 | L105: =J108 -> 0
B106: 1 PUAN İNDİRİMLİ ORANA TABİ KISIM (İMALAT) | C106: =E93 -> 0.25 | D106: =C104*C106 -> 0 | E106: =D106*$H$94 -> 0 | F106: =D106/100 -> 0 | G106: =E106-F106 -> 0 | H106: =G106 -> 0 | I106: =($H$94-0.01)-(($H$94-0.01)*$C$82) -> 0.24 | J106: =I106*D106 -> 0 | K106: =G106-J106 -> 0
B107: 5 PUAN İNDİRİMLİ ORANA TABİ KISIM ( İHRACAT) | C107: =D93 -> 0.75 | D107: =C104*C107 -> 0 | E107: =D107*$H$94 -> 0 | F107: =D107/20 -> 0 | G107: =E107-F107 -> 0 | H107: 0 | I107: =($H$94-0.05)-(($H$94-0.05)*C82) -> 0.2 | J107: 0 | K107: =G107-J107 -> 0
B108: TOPLAM | C108: =SUM(C105:C107) -> 1 | D108: =SUM(D105:D107) -> 0 | E108: 0 | F108: =SUM(F105:F107) -> 0 | G108: =SUM(G105:G107) -> 0 | H108: =SUM(H105:H107) -> 0 | J108: 0 | K108: 0
B109: 32/A UYGULANABİLECEK MATRAH (2.TEŞVİK BELGESİ) | C109: =D84 -> 0 | D109: KV MATRAHI | E109: 1 - 5 PUAN İNDİRİM OLMASAYDI HESAPLANAN KV TUTARI | F109: 1 -5 Puan İndirim Tutarı | G109: 1 -5 Puan İndirim Sonrasında Hesaplanan KV Tutarı | H109: 32/A İndirimi Olmasaydı Ödenecek KV Tutarı | I109: 1 - 5 Puan İndirim ve 32/A VİO Uygulandıktan Sonra Tatbik Edilecek KV Oranı | J109: 1-5 Puan İndirim ve 32/A İndirimi Uygulandıktan Sonra Ödenecek KV Tutarı | K109: Yararlanılan Yatırıma Katkı Tutarı (32/A İnd. KV Nedeniyle Vazgeçilen Vergi Tutarı) | L109: Ödenecek KV Tutarı
B110: GENEL ORANA TABİ KISIM (DİĞER FAALİYETLER) | C110: =F93 -> 0 | D110: =C109*C110 -> 0 | E110: =D110*$H$94 -> 0 | F110: 0 | G110: =E110-F110 -> 0 | H110: =G110 -> 0 | I110: =($H$94)-(($H$94)*D82) -> 0.25 | J110: =I110*D110 -> 0 | K110: =G110-J110 -> 0 | L110: =J113 -> 0
B111: 1 PUAN İNDİRİMLİ ORANA TABİ KISIM (İMALAT) | C111: =E93 -> 0.25 | D111: =C109*C111 -> 0 | E111: =D111*$H$94 -> 0 | F111: =D111/100 -> 0 | G111: =E111-F111 -> 0 | H111: =G111 -> 0 | I111: =($H$94-0.01)-(($H$94-0.01)*D82) -> 0.24 | J111: =I111*D111 -> 0 | K111: =G111-J111 -> 0
B112: 5 PUAN İNDİRİMLİ ORANA TABİ KISIM ( İHRACAT) | C112: =D93 -> 0.75 | D112: =C109*C112 -> 0 | E112: =D112*$H$94 -> 0 | F112: =D112/20 -> 0 | G112: =E112-F112 -> 0 | H112: 0 | I112: =($H$94-0.05)-(($H$94-0.05)*D82) -> 0.2 | J112: 0 | K112: =G112-J112 -> 0
B113: TOPLAM | C113: =SUM(C110:C112) -> 1 | D113: 0 | E113: 0 | F113: =SUM(F110:F112) -> 0 | G113: =SUM(G110:G112) -> 0 | H113: =SUM(H110:H112) -> 0 | J113: =SUM(J110:J112) -> 0 | K113: 0
B114: 32/A UYGULANABİLECEK MATRAH (3.TEŞVİK BELGESİ) | C114: =E84 -> 0 | D114: KV MATRAHI | E114: 1 - 5 PUAN İNDİRİM OLMASAYDI HESAPLANAN KV TUTARI | F114: 1-5 Puan İndirim Tutarı | G114: 1 - 5 Puan İndirim Sonrasında Hesaplanan KV Tutarı | H114: 32/A İndirimi Olmasaydı Ödenecek KV Tutarı | I114: 1 - 5 Puan İndirim ve 32/A VİO Uygulandıktan Sonra Tatbik Edilecek KV Oranı | J114: 1 -5 Puan İndirim ve 32/A İndirimi Uygulandıktan Sonra Ödenecek KV Tutarı | K114: Yararlanılan Yatırıma Katkı Tutarı (32/A İnd. KV Nedeniyle Vazgeçilen Vergi Tutarı) | L114: Ödenecek KV Tutarı
B115: GENEL ORANA TABİ KISIM (DİĞER FAALİYETLER) | C115: =F93 -> 0 | D115: =C114*C115 -> 0 | E115: =D115*$H$94 -> 0 | F115: 0 | G115: =E115-F115 -> 0 | H115: =G115 -> 0 | I115: =($H$94)-(($H$94)*E82) -> 0.25 | J115: =I115*D115 -> 0 | K115: =G115-J115 -> 0 | L115: =J118 -> 0
B116: 1 PUAN İNDİRİMLİ ORANA TABİ KISIM (İMALAT) | C116: =E93 -> 0.25 | D116: =C114*C116 -> 0 | E116: =D116*$H$94 -> 0 | F116: =D116/100 -> 0 | G116: =E116-F116 -> 0 | H116: =G116 -> 0 | I116: =($H$94-0.01)-(($H$94-0.01)*E82) -> 0.24 | J116: =I116*D116 -> 0 | K116: =G116-J116 -> 0
B117: 5 PUAN İNDİRİMLİ ORANA TABİ KISIM ( İHRACAT) | C117: =D93 -> 0.75 | D117: =C114*C117 -> 0 | E117: =D117*$H$94 -> 0 | F117: =D117/20 -> 0 | G117: =E117-F117 -> 0 | H117: 0 | I117: =($H$94-0.05)-(($H$94-0.05)*E82) -> 0.2 | J117: 0 | K117: =G117-J117 -> 0
B118: TOPLAM | C118: =SUM(C115:C117) -> 1 | D118: 0 | E118: 0 | F118: =SUM(F115:F117) -> 0 | G118: =SUM(G115:G117) -> 0 | H118: =SUM(H115:H117) -> 0 | J118: =SUM(J115:J117) -> 0 | K118: 0
B119: 32/A UYGULANABİLECEK MATRAH (4. TEŞVİK BELGESİ) | C119: =F84 -> 0 | D119: KV MATRAHI | E119: 1 - 5 PUAN İNDİRİM OLMASAYDI HESAPLANAN KV TUTARI | F119: 1-5 Puan İndirim Tutarı | G119: 1 -5 Puan İndirim Sonrasında Hesaplanan KV Tutarı | H119: 32/A İndirimi Olmasaydı Ödenecek KV Tutarı | I119: 1- 5 Puan İndirim ve 32/A VİO Uygulandıktan Sonra Tatbik Edilecek KV Oranı | J119: 1-5 Puan İndirim ve 32/A İndirimi Uygulandıktan Sonra Ödenecek KV Tutarı | K119: Yararlanılan Yatırıma Katkı Tutarı (32/A İnd. KV Nedeniyle Vazgeçilen Vergi Tutarı) | L119: Ödenecek KV Tutarı
B120: GENEL ORANA TABİ KISIM (DİĞER FAALİYETLER) | C120: =F93 -> 0 | D120: =C119*C120 -> 0 | E120: =D120*$H$94 -> 0 | F120: 0 | G120: =E120-F120 -> 0 | H120: =G120 -> 0 | I120: =($H$94)-(($H$94)*F82) -> 0.25 | J120: =I120*D120 -> 0 | K120: =G120-J120 -> 0 | L120: =J123 -> 0
B121: 1 PUAN İNDİRİMLİ ORANA TABİ KISIM (İMALAT) | C121: =E93 -> 0.25 | D121: =C119*C121 -> 0 | E121: =D121*$H$94 -> 0 | F121: =D121/100 -> 0 | G121: =E121-F121 -> 0 | H121: =G121 -> 0 | I121: =($H$94-0.01)-(($H$94-0.01)*F82) -> 0.24 | J121: =I121*D121 -> 0 | K121: =G121-J121 -> 0
B122: 5 PUAN İNDİRİMLİ ORANA TABİ KISIM ( İHRACAT) | C122: =D93 -> 0.75 | D122: =C119*C122 -> 0 | E122: =D122*$H$94 -> 0 | F122: =D122/20 -> 0 | G122: =E122-F122 -> 0 | H122: 0 | I122: =($H$94-0.05)-(($H$94-0.05)*F82) -> 0.2 | J122: 0 | K122: =G122-J122 -> 0
B123: TOPLAM | C123: =SUM(C120:C122) -> 1 | D123: 0 | E123: 0 | F123: =SUM(F120:F122) -> 0 | G123: =SUM(G120:G122) -> 0 | H123: =SUM(H120:H122) -> 0 | J123: =SUM(J120:J122) -> 0 | K123: 0
B124: 32/A UYGULANABİLECEK MATRAH (5.TEŞVİK BELGESİ) | C124: =G84 -> 0 | D124: KV MATRAHI | E124: 1 - 5 PUAN İNDİRİM OLMASAYDI HESAPLANAN KV TUTARI | F124: 1-5 Puan İndirim Tutarı | G124: 1 - 5 Puan İndirim Sonrasında Hesaplanan KV Tutarı | H124: 32/A İndirimi Olmasaydı Ödenecek KV Tutarı | I124: 1 -5 Puan İndirim ve 32/A VİO Uygulandıktan Sonra Tatbik Edilecek KV Oranı | J124: 1 - 5 Puan İndirim ve 32/A İndirimi Uygulandıktan Sonra Ödenecek KV Tutarı | K124: Yararlanılan Yatırıma Katkı Tutarı (32/A İnd. KV Nedeniyle Vazgeçilen Vergi Tutarı) | L124: Ödenecek KV Tutarı
B125: GENEL ORANA TABİ KISIM (DİĞER FAALİYETLER) | C125: =F93 -> 0 | D125: =C124*C125 -> 0 | E125: =D125*$H$94 -> 0 | F125: 0 | G125: =E125-F125 -> 0 | H125: =G125 -> 0 | I125: =($H$94)-(($H$94)*G82) -> 0.25 | J125: =I125*D125 -> 0 | K125: =G125-J125 -> 0 | L125: =J128 -> 0
B126: 1 PUAN İNDİRİMLİ ORANA TABİ KISIM (İMALAT) | C126: =E93 -> 0.25 | D126: =C124*C126 -> 0 | E126: =D126*$H$94 -> 0 | F126: =D126/100 -> 0 | G126: =E126-F126 -> 0 | H126: =G126 -> 0 | I126: =($H$94-0.01)-(($H$94-0.01)*G82) -> 0.24 | J126: =I126*D126 -> 0 | K126: =G126-J126 -> 0
B127: 5 PUAN İNDİRİMLİ ORANA TABİ KISIM ( İHRACAT) | C127: =D93 -> 0.75 | D127: =C124*C127 -> 0 | E127: =D127*$H$94 -> 0 | F127: =D127/20 -> 0 | G127: =E127-F127 -> 0 | H127: 0 | I127: =($H$94-0.05)-(($H$94-0.05)*G82) -> 0.2 | J127: 0 | K127: =G127-J127 -> 0
B128: TOPLAM | C128: =SUM(C125:C127) -> 1 | D128: 0 | E128: 0 | F128: =SUM(F125:F127) -> 0 | G128: =SUM(G125:G127) -> 0 | H128: =SUM(H125:H127) -> 0 | J128: =SUM(J125:J127) -> 0 | K128: 0
B129: 32/A UYGULANAMAYACAK MATRAH | C129: =IF(C85<=0,0,C85) -> 2000000 | D129: KV MATRAHI | E129: 1-5 PUAN İNDİRİM OLMASAYDI HESAPLANAN KV TUTARI | F129: 1-5 Puan İndirim Tutarı | G129: 1 -5 Puan İndirim Sonrasında Hesaplanan KV Tutarı | H129: 32/A İNDİRİMİ UYGULANMAZ | J129: 1 Puan İndirim ve 32/A İndirimi Uygulandıktan Sonra Ödenecek KV Tutarı | K129: Yararlanılan Yatırıma Katkı Tutarı (32/A İnd. KV Nedeniyle Vazgeçilen Vergi Tutarı) | L129: Ödenecek KV Tutarı
B130: GENEL ORANA TABİ KISIM (DİĞER FAALİYETLER) | C130: =F93 -> 0 | D130: =C129*C130 -> 0 | E130: =D130*$H$94 -> 0 | F130: 0 | G130: =E130-F130 -> 0 | J130: =G130 -> 0 | K130: =G130-J130 -> 0 | L130: =J133 -> 420000
B131: 1 PUAN İNDİRİMLİ ORANA TABİ KISIM (İMALAT) | C131: =E93 -> 0.25 | D131: =C131*C129 -> 500000 | E131: =D131*$H$94 -> 125000 | F131: =D131/100 -> 5000 | G131: =E131-F131 -> 120000 | J131: =G131 -> 120000 | K131: =G131-J131 -> 0
B132: 5 PUAN İNDİRİMLİ ORANA TABİ KISIM ( İHRACAT) | C132: =D93 -> 0.75 | D132: =C132*C129 -> 1500000 | E132: =D132*$H$94 -> 375000 | F132: =D132/20 -> 75000 | G132: =E132-F132 -> 300000 | J132: 300000 | K132: 0
B133: TOPLAM | C133: =SUM(C130:C132) -> 1 | D133: =SUM(D130:D132) -> 2000000 | E133: 500000 | F133: =SUM(F130:F132) -> 80000 | G133: =SUM(G130:G132) -> 420000 | J133: 420000 | K133: 0
B134: TOPLAM KV MATRAHI VE ÖDENMESİ GEREKEN KV | C134: =C104+C129+C109+C114+C119+C124 -> 2000000 | D134: =D108+D133+D113+D118+D123+D128 -> 2000000 | E134: =E108+E133+E113+E118+E123+E128 -> 500000 | F134: =F108+F133+F113+F118+F123+F128 -> 80000 | G134: =G108+G133+G113+G118+G123+G128 -> 420000 | J134: =J108+J133+J113+J118+J123+J128 -> 420000 | K134: =K133+K108+K113+K118+K123+K128 -> 0 | L134: =L105+L130+L110+L115+L120+L125 -> 420000
B136: GEÇİCİ VERGİ BEYANNMESİNDE MATRAH BİLDİRİMİ BÖLÜMÜNDE DOLDURULACAK KISIMLAR VE TUTARLARI
B137: 32 A Madde Kapsamında İndirimli Kurumlar Vergisine (Geçici Vergiye) Tabi Matrah | C137: =C104+C109+C114+C119+C124 -> 0 | D137: =E108+E113+E118+E123+E128 -> 0 | E137: 1-5 Puan Olmasaydı Hesaplan KV Tutarı
D138: =G108+G113+G118+G123++G128 -> 0 | E138: 1 -5 Puan İndirim Sonrasında Ödenecek KV Tutarı (32 A olmasaydı hesaplanacak Vergi)
D139: =K108+K113+K118+K123+K128 -> 0 | E139: 32/A İndirimi ile Vazgeçilen Vergi
B140: 32 A Madde Kapsamında İndirimli Kurumlar Vergisi(Geçici Vergi) Oranı | C140: =IFERROR(D140/C137,0) -> 0 | D140: =L105+L110+L115+L120+L125 -> 0 | E140: 32/A ya Tabi Matrah Üzerinden Ödenecek KV
B141: 32/7 Madde Kapsamında İndirimli Kurumlar Vergisine (Geçici Vergiye) Tabi Matrah (İhracat) | C141: =D132 -> 1500000 | D141: =E132 -> 375000 | E141: 5 Puan Olmasaydı Hesaplan KV Tutarı
D142: =F132 -> 75000 | E142: 5 Puan İndirimin Vergi Etkisi
B143: 32/7 Madde Kapsamında İndirimli Kurumlar Vergisi (Geçici Vergi) Oranı | C143: =IFERROR(D143/C141,0) -> 0.2 | D143: =G132 -> 300000 | E143: 5 Puan İndirim Sonrasında Ödenecek KV Tutarı (İhracat)
B144: 32/8 Madde Kapsamında İndirimli Kurumlar Vergisine (Geçici Vergiye) Tabi Matrah (Üretim) | C144: =D131 -> 500000 | D144: =E131 -> 125000 | E144: 1 Puan Olmasaydı Hesaplan KV Tutarı
D145: =F131 -> 5000 | E145: 1 Puan İndirimin Vergi Etkisi
B146: 32/8 Madde Kapsamında İndirimli Kurumlar Vergisi (Geçici Vergi) Oranı | C146: =IFERROR(D146/C144,0) -> 0.24 | D146: =G131 -> 120000 | E146: 1 Puan İndirim Sonrasında Ödenecek KV Tutarı (Üretim)
B147: Genel Orana Tabi Matrah (Diğer) | C147: =D130 -> 0 | D147: =J130 -> 0 | E147: Diğer Faalilyetlerden Elde Edilen Kazanç
C148: =IFERROR(D147/C147,0) -> 0
B149: MATRAHLAR TOPLAMI | C149: =C137+C144+C141+C147 -> 2000000 | D149: =D140+D146+D143+D147 -> 420000

Sheet İÜ Ö3 (hidden)
B2: FAALİYET TÜRLERİ İTİBARİYLE HASILATLAR VE TOPLAM İÇİNDEKİ ORANLARI | C2: =IFERROR(C4/C4,0) -> 1 | D2: =IFERROR(D4/C4,0) -> 0.2 | E2: =IFERROR(E4/C4,0) -> 0.3 | F2: =IFERROR(F4/C4,0) -> 0.5
C3: Toplam Hasılat | D3: İhracat faaliyeti | E3: İmalat faaliyeti | F3: Diğer faaliyetler
B4: A-BRÜT SATIŞLAR (60) | C4: =D4+E4+F4 -> 2000000 | D4: =SUM(D5:D7) -> 400000 | E4: =SUM(E5:E7) -> 600000 | F4: 1000000
B5: 1-Yurtiçi Satışlar (600) | C5: =D5+E5+F5 -> 1400000 | E5: 1400000
B6: 2-Yurtdışı Satışlar (601) | C6: =D6+E6+F6 -> 400000 | D6: 400000
B7: 3-Diğer Gelirler (602) | C7: =D7+E7+F7 -> 200000 | E7: -800000 | F7: 1000000
B8: B-SATIŞ İNDİRİMLERİ(-) (61) | C8: =SUM(C9:C11) -> 0 | D8: =SUM(D9:D11) -> 0 | E8: =SUM(E9:E11) -> 0 | F8: 0
B9: 1-Satıştan İadeler (-) (610) | C9: =SUM(D9:F9) -> 0
B10: 2- Satış İskontoları (-) (611) | C10: =SUM(D10:F10) -> 0
B11: 3-Diğer İndirimler (-) (612) | C11: 0
B12: C-NET SATIŞLAR | C12: =C4-C8 -> 2000000 | D12: =D4-D8 -> 400000 | E12: =E4-E8 -> 600000 | F12: 1000000
B13: D-SATIŞLARIN MALİYETİ (-) (62) | C13: =SUM(C14:C17) -> 0 | D13: =SUM(D14:D17) -> 0 | E13: =SUM(E14:E17) -> 0 | F13: =SUM(F14:F17) -> 0
B14: 1-Satılan Mamuller Maliyeti ( 620) | C14: =SUM(D14:F14) -> 0
B15: 2-Satılan Ticari Mal Maliyeti (621) | C15: =SUM(D15:F15) -> 0
B16: 3-Satılan Hizmet Maliyeti (622) | C16: 0
B17: 4-Diğer Satışların Maliyeti (623) | C17: 0
B18: BRÜT SATIŞ KARI / ZARARI | C18: =C12-C13 -> 2000000 | D18: =D12-D13 -> 400000 | E18: =E12-E13 -> 600000 | F18: 1000000
B19: E-FAALİYET GİDERLERİ (-) (63) | C19: =SUM(C20:C24) -> 0 | D19: =SUM(D20:D24) -> 0 | E19: =SUM(E20:E24) -> 0 | F19: 0
B20: 1-Araştırma ve Geliştirme Giderleri(-) (630) | C20: =SUM(D20:F20) -> 0
B21: 2-Pazarlama, Satış ve Dağıtım Giderleri(-) (631) | C21: =SUM(D21:F21) -> 0
B22: 3-Genel Yönetim Giderleri(-) (632) | C22: =SUM(D22:F22) -> 0
B23: MÜŞTEREK GENEL GİDERLER (DAĞITIM-HASILAT PAYINA GÖRE) | D23: =C23*D2 -> 0 | E23: =C23*E2 -> 0 | F23: =C23*F2 -> 0
B24: MÜŞTEREK GENEL GİDER GİBİ DAĞITIMA TABİ TUTULACAK AMORTİSMAN GİDERLERİ (DAĞITIM-HASILAT PAYINA GÖRE) | D24: =C24*D2 -> 0 | E24: =C24*E2 -> 0 | F24: =C24*F2 -> 0
B25: FAALİYET KARI / ZARARI | C25: =C18-C19 -> 2000000 | D25: =D18-D19 -> 400000 | E25: =E18-E19 -> 600000 | F25: 1000000
B26: F-DİĞER FAALİYETLERDEN OLAĞAN GELİR VE KARLAR (64) | C26: =SUM(C27:C35) -> 0 | D26: =SUM(D27:D35) -> 0 | E26: =SUM(E27:E35) -> 0 | F26: =SUM(F27:F35) -> 0
B27: 1- İŞTİRAKLERDEN TEMETTÜ GELİRLERİ (640) | C27: =SUM(D27:F27) -> 0
B28: 2- BAĞLI ORTAKLIKLARDAN TEMETTÜ GELİRLERİ (641) | C28: =SUM(D28:F28) -> 0
B29: 3- FAİZ GELİRLERİ (642) (ihracat ve imalat kaynaklı alacağın tahsiline kadar olan süreçte oluşan) | C29: 0
B30: 4- KOMİSYON GELİRLERİ (643) | C30: 0
B31: 5- KONUSU OLMAYAN KARŞILIKLAR (644) | C31: 0
B32: 6- MENKUL KIYMET SATIŞ KARLARI (645) | C32: 0
B33: 7- KAMBİYO KARLARI (646) (ihracat ve imalat kaynaklı alacağın tahsiline kadar olan süreçte oluşan) | C33: 0
B34: 8- REESKONT FAİZ GELİRLERİ (647) | C34: 0
B35: 9- FAALİYETLE İLGİLİ DİĞER GELİR VE KARLAR (649) | C35: 0
B36: ARA TOPLAM | C36: =C25+C26 -> 2000000 | D36: =D25+D26 -> 400000 | E36: =E25+E26 -> 600000 | F36: =F25+F26 -> 1000000
B37: G-DİĞER FAALİYETLERDEN OLAĞAN GİDER VE ZARARLAR(-) (65) | C37: =SUM(C38:C43) -> 0 | D37: =SUM(D38:D43) -> 0 | E37: =SUM(E38:E43) -> 0 | F37: 0
B38: 1- KOMİSYON GİDERLERİ (653) | C38: =SUM(D38:F38) -> 0
B39: 2- KARŞILIK GİDERLERİ (654) | C39: =SUM(D39:F39) -> 0
B40: 3- MENKUL KIYMET SATIŞ ZARARLARI (655) | C40: 0
B41: 4- KAMBİYO ZARARLARI (656) (ihracat ve imalat kaynaklı alacağın tahsiline kadar olan süreçte oluşan) | C41: 0
B42: 5- REESKONT FAİZ GİDERLERİ (657) | C42: 0
B43: 6- DİĞER OLAĞAN GİDER VE ZARARLAR (659) | C43: =SUM(D43:F43) -> 0
B44: ARA TOPLAM | C44: =C36-C37 -> 2000000 | D44: =D36-D37 -> 400000 | E44: =E36-E37 -> 600000 | F44: 1000000
B45: H-FİNANSMAN GİDERLERİ(-) (66) | C45: =SUM(C46:C49) -> 0 | D45: =SUM(D46:D49) -> 0 | E45: =SUM(E46:E49) -> 0 | F45: =SUM(F46:F49) -> 0
B46: 1- KISA VADELİ BORÇLANMA GİDERLERİ (-) | C46: =SUM(D46:F46) -> 0
B47: 2- UZUN VADELİ BORÇLANMA GİDERLERİ (-) | C47: =SUM(D47:F47) -> 0
B48: 1- KISA VADELİ BORÇLANMA GİDERLERİ (-) (DAĞITIM) | D48: =C48*D2 -> 0 | E48: =C48*E2 -> 0 | F48: =C48*F2 -> 0
B49: 2- UZUN VADELİ BORÇLANMA GİDERLERİ (-) (DAĞITIM) | D49: =C49*D2 -> 0 | E49: =C49*E2 -> 0 | F49: =C49*F2 -> 0
B50: ARA TOPLAM | C50: =C44-C45 -> 2000000 | D50: =D44-D45 -> 400000 | E50: =E44-E45 -> 600000 | F50: =F44-F45 -> 1000000
B51: I-OLAĞANDIŞI GELİR VE KÂRLAR (67) | C51: =SUM(D51:F51) -> 0 | D51: =SUM(D52:D53) -> 0 | E51: =SUM(E52:E53) -> 0 | F51: =SUM(F52:F53) -> 0
B52: 1- ÖNCEKİ DÖNEM GELİR VE KARLARI (671) | C52: =SUM(D52:F52) -> 0
B53: 2-DİĞER OLAĞAN DIŞI GELİR VE KARLAR (679) | C53: =SUM(D53:F53) -> 0
B54: ARA TOPLAM | C54: =SUM(D54:F54) -> 2000000 | D54: =D50+D51 -> 400000 | E54: =E50+E51 -> 600000 | F54: 1000000
B55: J-OLAĞANDIŞI GİDER VE ZARARLAR(-) (68) | C55: =SUM(C56:C58) -> 0 | D55: =SUM(D56:D58) -> 0 | E55: =SUM(E56:E58) -> 0 | F55: 0
B56: 1-Çalışmayan Kısım Gider ve Zararları(-) (680) | C56: =SUM(D56:F56) -> 0
B57: 2-Önceki Dönem Gider ve Zararları(-) (681) | C57: =SUM(D57:F57) -> 0
B58: 3-Diğer Olağan Dışı Gider ve Zararlar(-) (689) | C58: 0
B59: DÖNEM KÂRI VEYA ZARARI (TİCARİ BİLANÇO KARI ZARARI ) | C59: =C54-C55 -> 2000000 | D59: =D54-D55 -> 400000 | E59: =E54-E55 -> 600000 | F59: 1000000
B60: İHRACAT, İMALAT VE DİĞER FAALİYETLERDEN ELDE EDİLEN KAZANCIN TOPLAM TİCARİ KAZANÇ İÇİNDEKİ PAYLARI (Kazançlar arasında Öncelik İhracat Kazancına Verilmiştir. İhrcat Kazancından arta kalan Ticari Kazanç İmalat ve Diğer Faaliyetlere Sayılmıştır.) | D60: =IF(D59>=$C$59,1, IF(D59<=0,0, IF(AND(D59>0,D59<$C$59),D59/$C$59))) -> 0.2 | E60: =IF(E59>=$C$59,1, IF(E59<=0,0, IF(AND(E59>0,E59<$C$59),E59/$C$59))) -> 0.3 | F60: =IF(F59>=$C$59,1, IF(F59<=0,0, IF(AND(F59>0,F59<$C$59),F59/$C$59))) -> 0.5
D61: =D60/(D60+E60+F60) -> 0.2 | E61: =E60/(D60+E60+F60) -> 0.3 | F61: =F60/(D60+E60+F60) -> 0.5
B63: KKEG + | C63: 500000
B64: KABUL EDİLMEYEN GELİRLER -
B65: ZARAR OLSA DAHİ İNDİRİLECEK İSTİSNALAR - | C65: =C66+C67+C68 -> 0
B66: Hizmet İhracatı Faaliyetinden (KVK 10-1/ğ) Elde Edilen Kazançlardan İstisna Edilenlerin Toplamı
B67: İmalat Faaliyetinden Elde Edilen Kazançlardan İstisna Edilenlerin Toplamı
B68: Diğer Faaliyetlerden Elde Edilen Kazançlardan İstisna Edilenlerin Toplamı
B69: GEÇMİŞ YIL ZARARLARI - | C69: 1200000
B70: İNDİRİMLER - | D70: AZAMİ YAZILABİLECEK İNDİRİMLER TUTARI | E70: =C59+C63-C64-C65-C69 -> 1300000
B72: 1 PUAN İNDİRİM UYGULANACAK TUTARIN HESABINDA İSTİSNA KAZANÇLAR DÜŞÜLDÜKTEN SONRA BULUNAN TİCARİ KAZANÇ TUTARI İLE İHRACAT,İMALAT VE DİĞER KAZANÇLARIN TUTARI | C72: TİCARİ KAZANÇ TAN İhracat ve İmalat Kazancından İstisna Olan Tutarlar Düşüldükten Sonra Kalan Tutarı | D72: İhracat Faaliyetinden Elde Edilen Kazançtan İstisna Olan Kısım Düşüldükten Sonra Bulunan Tutarı | E72: Üretim Faaliyetinden Elde Edilen Kazançtan İstisna Olan Kısım Düşüldükten Sonra Bulunan Tutarı | F72: Diğer Faaliyetinden Elde Edilen Kazanç
C73: =IF(C59-C66-C67<=0,0,C59-C66-C67) -> 2000000 | D73: =IF($D$59-C66<=0,0,MIN($D$59-C66,$C$73*D61)) -> 400000 | E73: =IF($E$59-C67<=0,0,MIN($E$59-C67,$C$73*E61)) -> 600000 | F73: =IF(C73-D73-E73<=0,0,C73-D73-E73) -> 1000000
B74: MATRAH DAĞITIM PAYLARI | D74: =IFERROR(IF(D73/C73<=0,0,D73/C73),0) -> 0.2 | E74: =IFERROR(IF(E73/C73<=0,0,E73/C73),0) -> 0.3 | F74: =IFERROR(F73/C73,0) -> 0.5
B75: İHRACAT, İMALAT VE DİĞER FAALİYETLERDEN ELDE EDİLEN KAZANCIN TOPLAM TİCARİ KAZANÇ İÇİNDEKİ PAYLARI | D75: =IFERROR(IF(AND(D73+E73>C73, F73<=0),1,(D73+E73)/C73),0) -> 0.5 | F75: =IFERROR(IF(F73<=0,0,F73/C73),0) -> 0.5
B76: NEGATİF VE % 100 DEN BÜYÜKLÜK KONTROLÜ SONRASINDAKİ PAYLARI | D76: =IFERROR(IF(D75<=0,0,IF(D75>1,1,D75)),0) -> 0.5 | F76: =IFERROR(IF(F75<=0,0,IF(F75>1,1,F75)),0) -> 0.5
B78: SAFİ KURUM KAZANCI (KURUMLAR VERGİSİ MATRAHI) | C78: =C59+C63-C64-C65-C69-C70 -> 1300000 | D78: =IF(C78<0, "ZARAR","KAR") -> KAR
B80: 2022 YILI 3. DÖNEM İNDİRİMLİ KURUMLAR VERGİSİ HESAPLAMA TABLOSU
C81: 1. TEŞVİK BELGESİ | D81: 2. TEŞVİK BELGESİ | E81: 3. TEŞVİK BELGESİ | F81: 4. TEŞVİK BELGESİ | G81: 5. TEŞVİK BELGESİ
B82: Vergi İndirim Oranı (VİO)
B83: KV MATRAHI (Safi Kurum Kazancı) | C83: =C78 -> 1300000
B84: 32/A Uygulanacak K.V. Matrahı (HER BİR TEŞVİK BELGESİ KAPSAMINDA YARARLANILABİLECEK YATIRIMA KATKI TUTARININ MATRAHI BU HÜCRELERE YAZILMALIDIR) | H84: =IF(SUM(C84:G84)>C78,"32/A İNDİRİMİ UYGULANACAK KAZANÇ, SAFİ KURUM KAZANCINDAN FAZLADIR",SUM(C84:G84)) -> 0
B85: 32/A UYGULANMAYACAK K.V. Matrahı | C85: =IF(C83-(C84+D84+E84+F84+G84)<0,0,C83-(C84+D84+E84+F84+G84)) -> 1300000
B86: MATRAH TOPLAMI | C86: =IF((C84+D84+E84+F84+G84+C85)>C78,C78,(C84+D84+E84+F84+G84+C85)) -> 1300000
B88: SAFİ KURUM KAZANCININ KV VERGİ ORANLARI İTİBARİYLE DAĞILIMI | C88: TOPLAM SAFİ KAZANÇ | D88: İhracat Kazancı Payı | E88: Üretim Kazancı Payı | F88: Diğer Faaliyet Kazancı Payı
C90: =C78 -> 1300000 | D90: =IF(AND(AND($D$59>0,($D$59+$E$59)>=$C$59,D59>=C66),$C$90>=MAX(D59,D73)), MIN(MAX(IF(D59<=C90,D59,IF(D73<=C90,D73)),$C$90*D74)), IF(OR(D59<=0,D73<=0),0, MIN( MAX( MAX( IF(D59<=C90,D59), IF(D73<=C90,D73) ), MIN($C$90*D74,D59,D73)),$C$90))) -> 400000 | E90: =MIN( IF(AND(AND($E$59>0,($D$59+$E$59)>=$C$59,E59>=C67),$C$90>=MAX(E59,E73)), MIN(MAX(IF(E59<=C90,E59,IF(E73<=C90,E73)),$C$90*E74)), IF(OR(E59<=0,E73<=0),0, MIN( MAX( MAX( IF(E59<=C90,E59), IF(E73<=C90,E73) ), MIN($C$90*E74,E59,E73)),$C$90))),C90-D90) -> 600000 | F90: =C90-D90-E90 -> 300000
B91: SAFİ KURUM KAZANCININ DAĞILIMI ORANSAL DAĞILIMI | C91: =C90 -> 1300000 | D91: =D90/C90 -> 0.3076923077 | E91: =E90/C90 -> 0.4615384615 | F91: =F90/C90 -> 0.2307692308
B92: SAFİ KURUM KAZANCININ DAĞILIMI TUTARSAL | C92: =C91 -> 1300000 | D92: =D90 -> 400000 | E92: =E90 -> 600000 | F92: =F90 -> 300000
B93: SAFİ KURUM KAZANCI DAĞILIMI | C93: =C92 -> 1300000 | D93: =IFERROR(IF(D92/C92>=1,1,D92/C92),0) -> 0.3076923077 | E93: =IFERROR(IF(E92/C92>=1,1,E92/C92),0) -> 0.4615384615 | F93: =IFERROR(IF(F92/C92>=1,1,F92/C92),0) -> 0.2307692308 | H93: KV ORANI
B94: 1 PUAN VE 32/A İNDİRİMİ OLMASAYDI HESAPLANAN KV TUTARI | C94: =C93*$H$94 -> 325000 | D94: =D92*$H$94 -> 100000 | E94: =E92*$H$94 -> 150000 | F94: =F92*$H$94 -> 75000 | H94: 0.25
B95: 32/ A UYGULANAN MATRAH | C95: =C84+D84+E84+F84+G84 -> 0 | D95: =D107+D112+D117+D122+D127 -> 0 | E95: =D106+D111+D116+D121+D126 -> 0 | F95: =D105+D110+D115+D120+D125 -> 0
B96: 32/A UYGULANACAK MATRAH ÜZERİNDEN ÖDENECEK KV TUTARI | C96: =J108+J113+J118+J123+J128 -> 0 | D96: =J107+J112+J117+J122+J127 -> 0 | E96: =J106+J111+J116+J121+J126 -> 0 | F96: =J105+J110+J115+J120+J125 -> 0
B97: 32/A UYGULANMAYAN MATRAH | C97: =IF(C85<=0,0,C85) -> 1300000 | D97: =D132 -> 400000 | E97: =D131 -> 600000 | F97: =D130 -> 300000
B98: 32/A UYGULANMAYAN MATRAH ÜZERİNDEN ÖDENECEK KV TUTARI | C98: =L130 -> 299000 | D98: =J132 -> 80000 | E98: =J131 -> 144000 | F98: =J130 -> 75000
B99: TOPLAM ÖDENECEK KV | C99: =C96+C98 -> 299000 | D99: =J132+J107 -> 80000 | E99: =J131+J106 -> 144000 | F99: =J130+J105 -> 75000
B100: TOPLAM AVANTAJ (YARARLANILAN 1 PUAN İNDİRİMİ + 32/A İNDİRİMİ TUTARI ) | C100: =C94-C99 -> 26000 | D100: =D101+D102 -> 20000 | E100: =E101+E102 -> 6000 | F100: =F101+F102 -> 0
B101: YARARLANILAN 1 - 5 PUAN İNDİRİMİ TUTARI | C101: =F133+F128+F123+F118+F113+F108 -> 26000 | D101: =F132+F107+F112+F117+F122+F127 -> 20000 | E101: =F131+F106+F111+F116+F121+F126 -> 6000 | F101: =F130+F105+F110+F115+F120+F125 -> 0
B102: YARLANILAN 32/A İNDİRİMİ TUTARI | C102: =K108+K113+K118+K123+K128+K133 -> 0 | D102: =K107+K112+K122+K127+K132 -> 0 | E102: =K106+K111+K116+K121+K126+K131 -> 0 | F102: =K105++K110+K115+K120+K125+K130 -> 0
B104: 32/A UYGULANABİLECEK MATRAH (1.TEŞVİK BELGESİ) | C104: =C84 -> 0 | D104: KV MATRAHI | E104: 1 - 5 PUAN İNDİRİM OLMASAYDI HESAPLANAN KV TUTARI | F104: 1 -5 Puan İndirim Tutarı | G104: 1 - 5 Puan İndirim Sonrasında Hesaplanan KV Tutarı | H104: 32/A İndirimi Olmasaydı Ödenecek KV Tutarı | I104: 1 -5 Puan İndirim ve 32/A VİO Uygulandıktan Sonra Tatbik Edilecek KV Oranı | J104: 1 -5 Puan İndirim ve 32/A İndirimi Uygulandıktan Sonra Ödenecek KV Tutarı | K104: Yararlanılan Yatırıma Katkı Tutarı (32/A İnd. KV Nedeniyle Vazgeçilen Vergi Tutarı) | L104: Ödenecek KV Tutarı
B105: GENEL ORANA TABİ KISIM (DİĞER FAALİYETLER) | C105: =F93 -> 0.2307692308 | D105: =C104*C105 -> 0 | E105: =D105*$H$94 -> 0 | F105: 0 | G105: =E105-F105 -> 0 | H105: =G105 -> 0 | I105: =($H$94)-(($H$94)*$C$82) -> 0.25 | J105: =I105*D105 -> 0 | K105: =G105-J105 -> 0 | L105: =J108 -> 0
B106: 1 PUAN İNDİRİMLİ ORANA TABİ KISIM (İMALAT) | C106: =E93 -> 0.4615384615 | D106: =C104*C106 -> 0 | E106: =D106*$H$94 -> 0 | F106: =D106/100 -> 0 | G106: =E106-F106 -> 0 | H106: =G106 -> 0 | I106: =($H$94-0.01)-(($H$94-0.01)*$C$82) -> 0.24 | J106: =I106*D106 -> 0 | K106: =G106-J106 -> 0
B107: 5 PUAN İNDİRİMLİ ORANA TABİ KISIM ( İHRACAT) | C107: =D93 -> 0.3076923077 | D107: =C104*C107 -> 0 | E107: =D107*$H$94 -> 0 | F107: =D107/20 -> 0 | G107: =E107-F107 -> 0 | H107: 0 | I107: =($H$94-0.05)-(($H$94-0.05)*C82) -> 0.2 | J107: 0 | K107: =G107-J107 -> 0
B108: TOPLAM | C108: =SUM(C105:C107) -> 1 | D108: =SUM(D105:D107) -> 0 | E108: 0 | F108: =SUM(F105:F107) -> 0 | G108: =SUM(G105:G107) -> 0 | H108: =SUM(H105:H107) -> 0 | J108: 0 | K108: 0
B109: 32/A UYGULANABİLECEK MATRAH (2.TEŞVİK BELGESİ) | C109: =D84 -> 0 | D109: KV MATRAHI | E109: 1 - 5 PUAN İNDİRİM OLMASAYDI HESAPLANAN KV TUTARI | F109: 1 -5 Puan İndirim Tutarı | G109: 1 -5 Puan İndirim Sonrasında Hesaplanan KV Tutarı | H109: 32/A İndirimi Olmasaydı Ödenecek KV Tutarı | I109: 1 - 5 Puan İndirim ve 32/A VİO Uygulandıktan Sonra Tatbik Edilecek KV Oranı | J109: 1-5 Puan İndirim ve 32/A İndirimi Uygulandıktan Sonra Ödenecek KV Tutarı | K109: Yararlanılan Yatırıma Katkı Tutarı (32/A İnd. KV Nedeniyle Vazgeçilen Vergi Tutarı) | L109: Ödenecek KV Tutarı
B110: GENEL ORANA TABİ KISIM (DİĞER FAALİYETLER) | C110: =F93 -> 0.2307692308 | D110: =C109*C110 -> 0 | E110: =D110*$H$94 -> 0 | F110: 0 | G110: =E110-F110 -> 0 | H110: =G110 -> 0 | I110: =($H$94)-(($H$94)*D82) -> 0.25 | J110: =I110*D110 -> 0 | K110: =G110-J110 -> 0 | L110: =J113 -> 0
B111: 1 PUAN İNDİRİMLİ ORANA TABİ KISIM (İMALAT) | C111: =E93 -> 0.4615384615 | D111: =C109*C111 -> 0 | E111: =D111*$H$94 -> 0 | F111: =D111/100 -> 0 | G111: =E111-F111 -> 0 | H111: =G111 -> 0 | I111: =($H$94-0.01)-(($H$94-0.01)*D82) -> 0.24 | J111: =I111*D111 -> 0 | K111: =G111-J111 -> 0
B112: 5 PUAN İNDİRİMLİ ORANA TABİ KISIM ( İHRACAT) | C112: =D93 -> 0.3076923077 | D112: =C109*C112 -> 0 | E112: =D112*$H$94 -> 0 | F112: =D112/20 -> 0 | G112: =E112-F112 -> 0 | H112: 0 | I112: =($H$94-0.05)-(($H$94-0.05)*D82) -> 0.2 | J112: 0 | K112: =G112-J112 -> 0
B113: TOPLAM | C113: =SUM(C110:C112) -> 1 | D113: 0 | E113: 0 | F113: =SUM(F110:F112) -> 0 | G113: =SUM(G110:G112) -> 0 | H113: =SUM(H110:H112) -> 0 | J113: =SUM(J110:J112) -> 0 | K113: 0
B114: 32/A UYGULANABİLECEK MATRAH (3.TEŞVİK BELGESİ) | C114: =E84 -> 0 | D114: KV MATRAHI | E114: 1 - 5 PUAN İNDİRİM OLMASAYDI HESAPLANAN KV TUTARI | F114: 1-5 Puan İndirim Tutarı | G114: 1 - 5 Puan İndirim Sonrasında Hesaplanan KV Tutarı | H114: 32/A İndirimi Olmasaydı Ödenecek KV Tutarı | I114: 1 - 5 Puan İndirim ve 32/A VİO Uygulandıktan Sonra Tatbik Edilecek KV Oranı | J114: 1 -5 Puan İndirim ve 32/A İndirimi Uygulandıktan Sonra Ödenecek KV Tutarı | K114: Yararlanılan Yatırıma Katkı Tutarı (32/A İnd. KV Nedeniyle Vazgeçilen Vergi Tutarı) | L114: Ödenecek KV Tutarı
B115: GENEL ORANA TABİ KISIM (DİĞER FAALİYETLER) | C115: =F93 -> 0.2307692308 | D115: =C114*C115 -> 0 | E115: =D115*$H$94 -> 0 | F115: 0 | G115: =E115-F115 -> 0 | H115: =G115 -> 0 | I115: =($H$94)-(($H$94)*E82) -> 0.25 | J115: =I115*D115 -> 0 | K115: =G115-J115 -> 0 | L115: =J118 -> 0
B116: 1 PUAN İNDİRİMLİ ORANA TABİ KISIM (İMALAT) | C116: =E93 -> 0.4615384615 | D116: =C114*C116 -> 0 | E116: =D116*$H$94 -> 0 | F116: =D116/100 -> 0 | G116: =E116-F116 -> 0 | H116: =G116 -> 0 | I116: =($H$94-0.01)-(($H$94-0.01)*E82) -> 0.24 | J116: =I116*D116 -> 0 | K116: =G116-J116 -> 0
B117: 5 PUAN İNDİRİMLİ ORANA TABİ KISIM ( İHRACAT) | C117: =D93 -> 0.3076923077 | D117: =C114*C117 -> 0 | E117: =D117*$H$94 -> 0 | F117: =D117/20 -> 0 | G117: =E117-F117 -> 0 | H117: 0 | I117: =($H$94-0.05)-(($H$94-0.05)*E82) -> 0.2 | J117: 0 | K117: =G117-J117 -> 0
B118: TOPLAM | C118: =SUM(C115:C117) -> 1 | D118: 0 | E118: 0 | F118: =SUM(F115:F117) -> 0 | G118: =SUM(G115:G117) -> 0 | H118: =SUM(H115:H117) -> 0 | J118: =SUM(J115:J117) -> 0 | K118: 0
B119: 32/A UYGULANABİLECEK MATRAH (4. TEŞVİK BELGESİ) | C119: =F84 -> 0 | D119: KV MATRAHI | E119: 1 - 5 PUAN İNDİRİM OLMASAYDI HESAPLANAN KV TUTARI | F119: 1-5 Puan İndirim Tutarı | G119: 1 -5 Puan İndirim Sonrasında Hesaplanan KV Tutarı | H119: 32/A İndirimi Olmasaydı Ödenecek KV Tutarı | I119: 1- 5 Puan İndirim ve 32/A VİO Uygulandıktan Sonra Tatbik Edilecek KV Oranı | J119: 1-5 Puan İndirim ve 32/A İndirimi Uygulandıktan Sonra Ödenecek KV Tutarı | K119: Yararlanılan Yatırıma Katkı Tutarı (32/A İnd. KV Nedeniyle Vazgeçilen Vergi Tutarı) | L119: Ödenecek KV Tutarı
B120: GENEL ORANA TABİ KISIM (DİĞER FAALİYETLER) | C120: =F93 -> 0.2307692308 | D120: =C119*C120 -> 0 | E120: =D120*$H$94 -> 0 | F120: 0 | G120: =E120-F120 -> 0 | H120: =G120 -> 0 | I120: =($H$94)-(($H$94)*F82) -> 0.25 | J120: =I120*D120 -> 0 | K120: =G120-J120 -> 0 | L120: =J123 -> 0
B121: 1 PUAN İNDİRİMLİ ORANA TABİ KISIM (İMALAT) | C121: =E93 -> 0.4615384615 | D121: =C119*C121 -> 0 | E121: =D121*$H$94 -> 0 | F121: =D121/100 -> 0 | G121: =E121-F121 -> 0 | H121: =G121 -> 0 | I121: =($H$94-0.01)-(($H$94-0.01)*F82) -> 0.24 | J121: =I121*D121 -> 0 | K121: =G121-J121 -> 0
B122: 5 PUAN İNDİRİMLİ ORANA TABİ KISIM ( İHRACAT) | C122: =D93 -> 0.3076923077 | D122: =C119*C122 -> 0 | E122: =D122*$H$94 -> 0 | F122: =D122/20 -> 0 | G122: =E122-F122 -> 0 | H122: 0 | I122: =($H$94-0.05)-(($H$94-0.05)*F82) -> 0.2 | J122: 0 | K122: =G122-J122 -> 0
B123: TOPLAM | C123: =SUM(C120:C122) -> 1 | D123: 0 | E123: 0 | F123: =SUM(F120:F122) -> 0 | G123: =SUM(G120:G122) -> 0 | H123: =SUM(H120:H122) -> 0 | J123: =SUM(J120:J122) -> 0 | K123: 0
B124: 32/A UYGULANABİLECEK MATRAH (5.TEŞVİK BELGESİ) | C124: =G84 -> 0 | D124: KV MATRAHI | E124: 1 - 5 PUAN İNDİRİM OLMASAYDI HESAPLANAN KV TUTARI | F124: 1-5 Puan İndirim Tutarı | G124: 1 - 5 Puan İndirim Sonrasında Hesaplanan KV Tutarı | H124: 32/A İndirimi Olmasaydı Ödenecek KV Tutarı | I124: 1 -5 Puan İndirim ve 32/A VİO Uygulandıktan Sonra Tatbik Edilecek KV Oranı | J124: 1 - 5 Puan İndirim ve 32/A İndirimi Uygulandıktan Sonra Ödenecek KV Tutarı | K124: Yararlanılan Yatırıma Katkı Tutarı (32/A İnd. KV Nedeniyle Vazgeçilen Vergi Tutarı) | L124: Ödenecek KV Tutarı
B125: GENEL ORANA TABİ KISIM (DİĞER FAALİYETLER) | C125: =F93 -> 0.2307692308 | D125: =C124*C125 -> 0 | E125: =D125*$H$94 -> 0 | F125: 0 | G125: =E125-F125 -> 0 | H125: =G125 -> 0 | I125: =($H$94)-(($H$94)*G82) -> 0.25 | J125: =I125*D125 -> 0 | K125: =G125-J125 -> 0 | L125: =J128 -> 0
B126: 1 PUAN İNDİRİMLİ ORANA TABİ KISIM (İMALAT) | C126: =E93 -> 0.4615384615 | D126: =C124*C126 -> 0 | E126: =D126*$H$94 -> 0 | F126: =D126/100 -> 0 | G126: =E126-F126 -> 0 | H126: =G126 -> 0 | I126: =($H$94-0.01)-(($H$94-0.01)*G82) -> 0.24 | J126: =I126*D126 -> 0 | K126: =G126-J126 -> 0
B127: 5 PUAN İNDİRİMLİ ORANA TABİ KISIM ( İHRACAT) | C127: =D93 -> 0.3076923077 | D127: =C124*C127 -> 0 | E127: =D127*$H$94 -> 0 | F127: =D127/20 -> 0 | G127: =E127-F127 -> 0 | H127: 0 | I127: =($H$94-0.05)-(($H$94-0.05)*G82) -> 0.2 | J127: 0 | K127: =G127-J127 -> 0
B128: TOPLAM | C128: =SUM(C125:C127) -> 1 | D128: 0 | E128: 0 | F128: =SUM(F125:F127) -> 0 | G128: =SUM(G125:G127) -> 0 | H128: =SUM(H125:H127) -> 0 | J128: =SUM(J125:J127) -> 0 | K128: 0
B129: 32/A UYGULANAMAYACAK MATRAH | C129: =IF(C85<=0,0,C85) -> 1300000 | D129: KV MATRAHI | E129: 1-5 PUAN İNDİRİM OLMASAYDI HESAPLANAN KV TUTARI | F129: 1-5 Puan İndirim Tutarı | G129: 1 -5 Puan İndirim Sonrasında Hesaplanan KV Tutarı | H129: 32/A İNDİRİMİ UYGULANMAZ | J129: 1 Puan İndirim ve 32/A İndirimi Uygulandıktan Sonra Ödenecek KV Tutarı | K129: Yararlanılan Yatırıma Katkı Tutarı (32/A İnd. KV Nedeniyle Vazgeçilen Vergi Tutarı) | L129: Ödenecek KV Tutarı
B130: GENEL ORANA TABİ KISIM (DİĞER FAALİYETLER) | C130: =F93 -> 0.2307692308 | D130: =C129*C130 -> 300000 | E130: =D130*$H$94 -> 75000 | F130: 0 | G130: =E130-F130 -> 75000 | J130: =G130 -> 75000 | K130: =G130-J130 -> 0 | L130: =J133 -> 299000
B131: 1 PUAN İNDİRİMLİ ORANA TABİ KISIM (İMALAT) | C131: =E93 -> 0.4615384615 | D131: =C131*C129 -> 600000 | E131: =D131*$H$94 -> 150000 | F131: =D131/100 -> 6000 | G131: =E131-F131 -> 144000 | J131: =G131 -> 144000 | K131: =G131-J131 -> 0
B132: 5 PUAN İNDİRİMLİ ORANA TABİ KISIM ( İHRACAT) | C132: =D93 -> 0.3076923077 | D132: =C132*C129 -> 400000 | E132: =D132*$H$94 -> 100000 | F132: =D132/20 -> 20000 | G132: =E132-F132 -> 80000 | J132: 80000 | K132: 0
B133: TOPLAM | C133: =SUM(C130:C132) -> 1 | D133: =SUM(D130:D132) -> 1300000 | E133: 325000 | F133: =SUM(F130:F132) -> 26000 | G133: =SUM(G130:G132) -> 299000 | J133: 299000 | K133: 0
B134: TOPLAM KV MATRAHI VE ÖDENMESİ GEREKEN KV | C134: =C104+C129+C109+C114+C119+C124 -> 1300000 | D134: =D108+D133+D113+D118+D123+D128 -> 1300000 | E134: =E108+E133+E113+E118+E123+E128 -> 325000 | F134: =F108+F133+F113+F118+F123+F128 -> 26000 | G134: =G108+G133+G113+G118+G123+G128 -> 299000 | J134: =J108+J133+J113+J118+J123+J128 -> 299000 | K134: =K133+K108+K113+K118+K123+K128 -> 0 | L134: =L105+L130+L110+L115+L120+L125 -> 299000
B136: GEÇİCİ VERGİ BEYANNMESİNDE MATRAH BİLDİRİMİ BÖLÜMÜNDE DOLDURULACAK KISIMLAR VE TUTARLARI
B137: 32 A Madde Kapsamında İndirimli Kurumlar Vergisine (Geçici Vergiye) Tabi Matrah | C137: =C104+C109+C114+C119+C124 -> 0 | D137: =E108+E113+E118+E123+E128 -> 0 | E137: 1-5 Puan Olmasaydı Hesaplan KV Tutarı
D138: =G108+G113+G118+G123++G128 -> 0 | E138: 1 -5 Puan İndirim Sonrasında Ödenecek KV Tutarı (32 A olmasaydı hesaplanacak Vergi)
D139: =K108+K113+K118+K123+K128 -> 0 | E139: 32/A İndirimi ile Vazgeçilen Vergi
B140: 32 A Madde Kapsamında İndirimli Kurumlar Vergisi(Geçici Vergi) Oranı | C140: =IFERROR(D140/C137,0) -> 0 | D140: =L105+L110+L115+L120+L125 -> 0 | E140: 32/A ya Tabi Matrah Üzerinden Ödenecek KV
B141: 32/7 Madde Kapsamında İndirimli Kurumlar Vergisine (Geçici Vergiye) Tabi Matrah (İhracat) | C141: =D132 -> 400000 | D141: =E132 -> 100000 | E141: 5 Puan Olmasaydı Hesaplan KV Tutarı
D142: =F132 -> 20000 | E142: 5 Puan İndirimin Vergi Etkisi
B143: 32/7 Madde Kapsamında İndirimli Kurumlar Vergisi (Geçici Vergi) Oranı | C143: =IFERROR(D143/C141,0) -> 0.2 | D143: =G132 -> 80000 | E143: 5 Puan İndirim Sonrasında Ödenecek KV Tutarı (İhracat)
B144: 32/8 Madde Kapsamında İndirimli Kurumlar Vergisine (Geçici Vergiye) Tabi Matrah (Üretim) | C144: =D131 -> 600000 | D144: =E131 -> 150000 | E144: 1 Puan Olmasaydı Hesaplan KV Tutarı
D145: =F131 -> 6000 | E145: 1 Puan İndirimin Vergi Etkisi
B146: 32/8 Madde Kapsamında İndirimli Kurumlar Vergisi (Geçici Vergi) Oranı | C146: =IFERROR(D146/C144,0) -> 0.24 | D146: =G131 -> 144000 | E146: 1 Puan İndirim Sonrasında Ödenecek KV Tutarı (Üretim)
B147: Genel Orana Tabi Matrah (Diğer) | C147: =D130 -> 300000 | D147: =J130 -> 75000 | E147: Diğer Faalilyetlerden Elde Edilen Kazanç
C148: =IFERROR(D147/C147,0) -> 0.25
B149: MATRAHLAR TOPLAMI | C149: =C137+C144+C141+C147 -> 1300000 | D149: =D140+D146+D143+D147 -> 299000

Sheet İÜ Ö4 (hidden)
B2: FAALİYET TÜRLERİ İTİBARİYLE HASILATLAR VE TOPLAM İÇİNDEKİ ORANLARI | C2: =IFERROR(C4/C4,0) -> 1 | D2: =IFERROR(D4/C4,0) -> 0.8 | E2: =IFERROR(E4/C4,0) -> -0.1 | F2: =IFERROR(F4/C4,0) -> 0.3
C3: Toplam Hasılat | D3: İhracat faaliyeti | E3: İmalat faaliyeti | F3: Diğer faaliyetler
B4: A-BRÜT SATIŞLAR (60) | C4: =D4+E4+F4 -> 1000000 | D4: =SUM(D5:D7) -> 800000 | E4: =SUM(E5:E7) -> -100000 | F4: 300000
B5: 1-Yurtiçi Satışlar (600) | C5: =D5+E5+F5 -> -600000 | E5: -600000
B6: 2-Yurtdışı Satışlar (601) | C6: =D6+E6+F6 -> 0
B7: 3-Diğer Gelirler (602) | C7: =D7+E7+F7 -> 1600000 | D7: 800000 | E7: 500000 | F7: 300000
B8: B-SATIŞ İNDİRİMLERİ(-) (61) | C8: =SUM(C9:C11) -> 0 | D8: =SUM(D9:D11) -> 0 | E8: =SUM(E9:E11) -> 0 | F8: 0
B9: 1-Satıştan İadeler (-) (610) | C9: =SUM(D9:F9) -> 0
B10: 2- Satış İskontoları (-) (611) | C10: =SUM(D10:F10) -> 0
B11: 3-Diğer İndirimler (-) (612) | C11: 0
B12: C-NET SATIŞLAR | C12: =C4-C8 -> 1000000 | D12: =D4-D8 -> 800000 | E12: =E4-E8 -> -100000 | F12: 300000
B13: D-SATIŞLARIN MALİYETİ (-) (62) | C13: =SUM(C14:C17) -> 0 | D13: =SUM(D14:D17) -> 0 | E13: =SUM(E14:E17) -> 0 | F13: =SUM(F14:F17) -> 0
B14: 1-Satılan Mamuller Maliyeti ( 620) | C14: =SUM(D14:F14) -> 0
B15: 2-Satılan Ticari Mal Maliyeti (621) | C15: =SUM(D15:F15) -> 0
B16: 3-Satılan Hizmet Maliyeti (622) | C16: 0
B17: 4-Diğer Satışların Maliyeti (623) | C17: 0
B18: BRÜT SATIŞ KARI / ZARARI | C18: =C12-C13 -> 1000000 | D18: =D12-D13 -> 800000 | E18: =E12-E13 -> -100000 | F18: 300000
B19: E-FAALİYET GİDERLERİ (-) (63) | C19: =SUM(C20:C24) -> 0 | D19: =SUM(D20:D24) -> 0 | E19: =SUM(E20:E24) -> 0 | F19: 0
B20: 1-Araştırma ve Geliştirme Giderleri(-) (630) | C20: =SUM(D20:F20) -> 0
B21: 2-Pazarlama, Satış ve Dağıtım Giderleri(-) (631) | C21: =SUM(D21:F21) -> 0
B22: 3-Genel Yönetim Giderleri(-) (632) | C22: =SUM(D22:F22) -> 0
B23: MÜŞTEREK GENEL GİDERLER (DAĞITIM-HASILAT PAYINA GÖRE) | D23: =C23*D2 -> 0 | E23: =C23*E2 -> 0 | F23: =C23*F2 -> 0
B24: MÜŞTEREK GENEL GİDER GİBİ DAĞITIMA TABİ TUTULACAK AMORTİSMAN GİDERLERİ (DAĞITIM-HASILAT PAYINA GÖRE) | D24: =C24*D2 -> 0 | E24: =C24*E2 -> 0 | F24: =C24*F2 -> 0
B25: FAALİYET KARI / ZARARI | C25: =C18-C19 -> 1000000 | D25: =D18-D19 -> 800000 | E25: =E18-E19 -> -100000 | F25: 300000
B26: F-DİĞER FAALİYETLERDEN OLAĞAN GELİR VE KARLAR (64) | C26: =SUM(C27:C35) -> 0 | D26: =SUM(D27:D35) -> 0 | E26: =SUM(E27:E35) -> 0 | F26: =SUM(F27:F35) -> 0
B27: 1- İŞTİRAKLERDEN TEMETTÜ GELİRLERİ (640) | C27: =SUM(D27:F27) -> 0
B28: 2- BAĞLI ORTAKLIKLARDAN TEMETTÜ GELİRLERİ (641) | C28: =SUM(D28:F28) -> 0
B29: 3- FAİZ GELİRLERİ (642) (ihracat ve imalat kaynaklı alacağın tahsiline kadar olan süreçte oluşan) | C29: 0
B30: 4- KOMİSYON GELİRLERİ (643) | C30: 0
B31: 5- KONUSU OLMAYAN KARŞILIKLAR (644) | C31: 0
B32: 6- MENKUL KIYMET SATIŞ KARLARI (645) | C32: 0
B33: 7- KAMBİYO KARLARI (646) (ihracat ve imalat kaynaklı alacağın tahsiline kadar olan süreçte oluşan) | C33: 0
B34: 8- REESKONT FAİZ GELİRLERİ (647) | C34: 0
B35: 9- FAALİYETLE İLGİLİ DİĞER GELİR VE KARLAR (649) | C35: 0
B36: ARA TOPLAM | C36: =C25+C26 -> 1000000 | D36: =D25+D26 -> 800000 | E36: =E25+E26 -> -100000 | F36: =F25+F26 -> 300000
B37: G-DİĞER FAALİYETLERDEN OLAĞAN GİDER VE ZARARLAR(-) (65) | C37: =SUM(C38:C43) -> 0 | D37: =SUM(D38:D43) -> 0 | E37: =SUM(E38:E43) -> 0 | F37: 0
B38: 1- KOMİSYON GİDERLERİ (653) | C38: =SUM(D38:F38) -> 0
B39: 2- KARŞILIK GİDERLERİ (654) | C39: =SUM(D39:F39) -> 0
B40: 3- MENKUL KIYMET SATIŞ ZARARLARI (655) | C40: 0
B41: 4- KAMBİYO ZARARLARI (656) (ihracat ve imalat kaynaklı alacağın tahsiline kadar olan süreçte oluşan) | C41: 0
B42: 5- REESKONT FAİZ GİDERLERİ (657) | C42: 0
B43: 6- DİĞER OLAĞAN GİDER VE ZARARLAR (659) | C43: =SUM(D43:F43) -> 0
B44: ARA TOPLAM | C44: =C36-C37 -> 1000000 | D44: =D36-D37 -> 800000 | E44: =E36-E37 -> -100000 | F44: 300000
B45: H-FİNANSMAN GİDERLERİ(-) (66) | C45: =SUM(C46:C49) -> 0 | D45: =SUM(D46:D49) -> 0 | E45: =SUM(E46:E49) -> 0 | F45: =SUM(F46:F49) -> 0
B46: 1- KISA VADELİ BORÇLANMA GİDERLERİ (-) | C46: =SUM(D46:F46) -> 0
B47: 2- UZUN VADELİ BORÇLANMA GİDERLERİ (-) | C47: =SUM(D47:F47) -> 0
B48: 1- KISA VADELİ BORÇLANMA GİDERLERİ (-) (DAĞITIM) | D48: =C48*D2 -> 0 | E48: =C48*E2 -> 0 | F48: =C48*F2 -> 0
B49: 2- UZUN VADELİ BORÇLANMA GİDERLERİ (-) (DAĞITIM) | D49: =C49*D2 -> 0 | E49: =C49*E2 -> 0 | F49: =C49*F2 -> 0
B50: ARA TOPLAM | C50: =C44-C45 -> 1000000 | D50: =D44-D45 -> 800000 | E50: =E44-E45 -> -100000 | F50: =F44-F45 -> 300000
B51: I-OLAĞANDIŞI GELİR VE KÂRLAR (67) | C51: =SUM(D51:F51) -> 0 | D51: =SUM(D52:D53) -> 0 | E51: =SUM(E52:E53) -> 0 | F51: =SUM(F52:F53) -> 0
B52: 1- ÖNCEKİ DÖNEM GELİR VE KARLARI (671) | C52: =SUM(D52:F52) -> 0
B53: 2-DİĞER OLAĞAN DIŞI GELİR VE KARLAR (679) | C53: =SUM(D53:F53) -> 0
B54: ARA TOPLAM | C54: =SUM(D54:F54) -> 1000000 | D54: =D50+D51 -> 800000 | E54: =E50+E51 -> -100000 | F54: 300000
B55: J-OLAĞANDIŞI GİDER VE ZARARLAR(-) (68) | C55: =SUM(C56:C58) -> 0 | D55: =SUM(D56:D58) -> 0 | E55: =SUM(E56:E58) -> 0 | F55: 0
B56: 1-Çalışmayan Kısım Gider ve Zararları(-) (680) | C56: =SUM(D56:F56) -> 0
B57: 2-Önceki Dönem Gider ve Zararları(-) (681) | C57: =SUM(D57:F57) -> 0
B58: 3-Diğer Olağan Dışı Gider ve Zararlar(-) (689) | C58: 0
B59: DÖNEM KÂRI VEYA ZARARI (TİCARİ BİLANÇO KARI ZARARI ) | C59: =C54-C55 -> 1000000 | D59: =D54-D55 -> 800000 | E59: =E54-E55 -> -100000 | F59: 300000
B60: İHRACAT, İMALAT VE DİĞER FAALİYETLERDEN ELDE EDİLEN KAZANCIN TOPLAM TİCARİ KAZANÇ İÇİNDEKİ PAYLARI (Kazançlar arasında Öncelik İhracat Kazancına Verilmiştir. İhrcat Kazancından arta kalan Ticari Kazanç İmalat ve Diğer Faaliyetlere Sayılmıştır.) | D60: =IF(D59>=$C$59,1, IF(D59<=0,0, IF(AND(D59>0,D59<$C$59),D59/$C$59))) -> 0.8 | E60: =IF(E59>=$C$59,1, IF(E59<=0,0, IF(AND(E59>0,E59<$C$59),E59/$C$59))) -> 0 | F60: =IF(F59>=$C$59,1, IF(F59<=0,0, IF(AND(F59>0,F59<$C$59),F59/$C$59))) -> 0.3
D61: =D60/(D60+E60+F60) -> 0.7272727273 | E61: =E60/(D60+E60+F60) -> 0 | F61: =F60/(D60+E60+F60) -> 0.2727272727
B63: KKEG + | C63: 200000
B64: KABUL EDİLMEYEN GELİRLER -
B65: ZARAR OLSA DAHİ İNDİRİLECEK İSTİSNALAR - | C65: =C66+C67+C68 -> 0
B66: Hizmet İhracatı Faaliyetinden (KVK 10-1/ğ) Elde Edilen Kazançlardan İstisna Edilenlerin Toplamı
B67: İmalat Faaliyetinden Elde Edilen Kazançlardan İstisna Edilenlerin Toplamı
B68: Diğer Faaliyetlerden Elde Edilen Kazançlardan İstisna Edilenlerin Toplamı
B69: GEÇMİŞ YIL ZARARLARI -
B70: İNDİRİMLER - | D70: AZAMİ YAZILABİLECEK İNDİRİMLER TUTARI | E70: =C59+C63-C64-C65-C69 -> 1200000
B72: 1 PUAN İNDİRİM UYGULANACAK TUTARIN HESABINDA İSTİSNA KAZANÇLAR DÜŞÜLDÜKTEN SONRA BULUNAN TİCARİ KAZANÇ TUTARI İLE İHRACAT,İMALAT VE DİĞER KAZANÇLARIN TUTARI | C72: TİCARİ KAZANÇ TAN İhracat ve İmalat Kazancından İstisna Olan Tutarlar Düşüldükten Sonra Kalan Tutarı | D72: İhracat Faaliyetinden Elde Edilen Kazançtan İstisna Olan Kısım Düşüldükten Sonra Bulunan Tutarı | E72: Üretim Faaliyetinden Elde Edilen Kazançtan İstisna Olan Kısım Düşüldükten Sonra Bulunan Tutarı | F72: Diğer Faaliyetinden Elde Edilen Kazanç
C73: =IF(C59-C66-C67<=0,0,C59-C66-C67) -> 1000000 | D73: =IF($D$59-C66<=0,0,MIN($D$59-C66,$C$73*D61)) -> 727272.7273 | E73: =IF($E$59-C67<=0,0,MIN($E$59-C67,$C$73*E61)) -> 0 | F73: =IF(C73-D73-E73<=0,0,C73-D73-E73) -> 272727.2727
B74: MATRAH DAĞITIM PAYLARI | D74: =IFERROR(IF(D73/C73<=0,0,D73/C73),0) -> 0.7272727273 | E74: =IFERROR(IF(E73/C73<=0,0,E73/C73),0) -> 0 | F74: =IFERROR(F73/C73,0) -> 0.2727272727
B75: İHRACAT, İMALAT VE DİĞER FAALİYETLERDEN ELDE EDİLEN KAZANCIN TOPLAM TİCARİ KAZANÇ İÇİNDEKİ PAYLARI | D75: =IFERROR(IF(AND(D73+E73>C73, F73<=0),1,(D73+E73)/C73),0) -> 0.7272727273 | F75: =IFERROR(IF(F73<=0,0,F73/C73),0) -> 0.2727272727
B76: NEGATİF VE % 100 DEN BÜYÜKLÜK KONTROLÜ SONRASINDAKİ PAYLARI | D76: =IFERROR(IF(D75<=0,0,IF(D75>1,1,D75)),0) -> 0.7272727273 | F76: =IFERROR(IF(F75<=0,0,IF(F75>1,1,F75)),0) -> 0.2727272727
B78: SAFİ KURUM KAZANCI (KURUMLAR VERGİSİ MATRAHI) | C78: =C59+C63-C64-C65-C69-C70 -> 1200000 | D78: =IF(C78<0, "ZARAR","KAR") -> KAR
B80: 2022 YILI 3. DÖNEM İNDİRİMLİ KURUMLAR VERGİSİ HESAPLAMA TABLOSU
C81: 1. TEŞVİK BELGESİ | D81: 2. TEŞVİK BELGESİ | E81: 3. TEŞVİK BELGESİ | F81: 4. TEŞVİK BELGESİ | G81: 5. TEŞVİK BELGESİ
B82: Vergi İndirim Oranı (VİO)
B83: KV MATRAHI (Safi Kurum Kazancı) | C83: =C78 -> 1200000
B84: 32/A Uygulanacak K.V. Matrahı (HER BİR TEŞVİK BELGESİ KAPSAMINDA YARARLANILABİLECEK YATIRIMA KATKI TUTARININ MATRAHI BU HÜCRELERE YAZILMALIDIR) | H84: =IF(SUM(C84:G84)>C78,"32/A İNDİRİMİ UYGULANACAK KAZANÇ, SAFİ KURUM KAZANCINDAN FAZLADIR",SUM(C84:G84)) -> 0
B85: 32/A UYGULANMAYACAK K.V. Matrahı | C85: =IF(C83-(C84+D84+E84+F84+G84)<0,0,C83-(C84+D84+E84+F84+G84)) -> 1200000
B86: MATRAH TOPLAMI | C86: =IF((C84+D84+E84+F84+G84+C85)>C78,C78,(C84+D84+E84+F84+G84+C85)) -> 1200000
B88: SAFİ KURUM KAZANCININ KV VERGİ ORANLARI İTİBARİYLE DAĞILIMI | C88: TOPLAM SAFİ KAZANÇ | D88: İhracat Kazancı Payı | E88: Üretim Kazancı Payı | F88: Diğer Faaliyet Kazancı Payı
C90: =C78 -> 1200000 | D90: =IF(AND(AND($D$59>0,($D$59+$E$59)>=$C$59,D59>=C66),$C$90>=MAX(D59,D73)), MIN(MAX(IF(D59<=C90,D59,IF(D73<=C90,D73)),$C$90*D74)), IF(OR(D59<=0,D73<=0),0, MIN( MAX( MAX( IF(D59<=C90,D59), IF(D73<=C90,D73) ), MIN($C$90*D74,D59,D73)),$C$90))) -> 800000 | E90: =MIN( IF(AND(AND($E$59>0,($D$59+$E$59)>=$C$59,E59>=C67),$C$90>=MAX(E59,E73)), MIN(MAX(IF(E59<=C90,E59,IF(E73<=C90,E73)),$C$90*E74)), IF(OR(E59<=0,E73<=0),0, MIN( MAX( MAX( IF(E59<=C90,E59), IF(E73<=C90,E73) ), MIN($C$90*E74,E59,E73)),$C$90))),C90-D90) -> 0 | F90: =C90-D90-E90 -> 400000
B91: SAFİ KURUM KAZANCININ DAĞILIMI ORANSAL DAĞILIMI | C91: =C90 -> 1200000 | D91: =D90/C90 -> 0.6666666667 | E91: =E90/C90 -> 0 | F91: =F90/C90 -> 0.3333333333
B92: SAFİ KURUM KAZANCININ DAĞILIMI TUTARSAL | C92: =C91 -> 1200000 | D92: =D90 -> 800000 | E92: =E90 -> 0 | F92: =F90 -> 400000
B93: SAFİ KURUM KAZANCI DAĞILIMI | C93: =C92 -> 1200000 | D93: =IFERROR(IF(D92/C92>=1,1,D92/C92),0) -> 0.6666666667 | E93: =IFERROR(IF(E92/C92>=1,1,E92/C92),0) -> 0 | F93: =IFERROR(IF(F92/C92>=1,1,F92/C92),0) -> 0.3333333333 | H93: KV ORANI
B94: 1 PUAN VE 32/A İNDİRİMİ OLMASAYDI HESAPLANAN KV TUTARI | C94: =C93*$H$94 -> 300000 | D94: =D92*$H$94 -> 200000 | E94: =E92*$H$94 -> 0 | F94: =F92*$H$94 -> 100000 | H94: 0.25
B95: 32/ A UYGULANAN MATRAH | C95: =C84+D84+E84+F84+G84 -> 0 | D95: =D107+D112+D117+D122+D127 -> 0 | E95: =D106+D111+D116+D121+D126 -> 0 | F95: =D105+D110+D115+D120+D125 -> 0
B96: 32/A UYGULANACAK MATRAH ÜZERİNDEN ÖDENECEK KV TUTARI | C96: =J108+J113+J118+J123+J128 -> 0 | D96: =J107+J112+J117+J122+J127 -> 0 | E96: =J106+J111+J116+J121+J126 -> 0 | F96: =J105+J110+J115+J120+J125 -> 0
B97: 32/A UYGULANMAYAN MATRAH | C97: =IF(C85<=0,0,C85) -> 1200000 | D97: =D132 -> 800000 | E97: =D131 -> 0 | F97: =D130 -> 400000
B98: 32/A UYGULANMAYAN MATRAH ÜZERİNDEN ÖDENECEK KV TUTARI | C98: =L130 -> 260000 | D98: =J132 -> 160000 | E98: =J131 -> 0 | F98: =J130 -> 100000
B99: TOPLAM ÖDENECEK KV | C99: =C96+C98 -> 260000 | D99: =J132+J107 -> 160000 | E99: =J131+J106 -> 0 | F99: =J130+J105 -> 100000
B100: TOPLAM AVANTAJ (YARARLANILAN 1 PUAN İNDİRİMİ + 32/A İNDİRİMİ TUTARI ) | C100: =C94-C99 -> 40000 | D100: =D101+D102 -> 40000 | E100: =E101+E102 -> 0 | F100: =F101+F102 -> 0
B101: YARARLANILAN 1 - 5 PUAN İNDİRİMİ TUTARI | C101: =F133+F128+F123+F118+F113+F108 -> 40000 | D101: =F132+F107+F112+F117+F122+F127 -> 40000 | E101: =F131+F106+F111+F116+F121+F126 -> 0 | F101: =F130+F105+F110+F115+F120+F125 -> 0
B102: YARLANILAN 32/A İNDİRİMİ TUTARI | C102: =K108+K113+K118+K123+K128+K133 -> 0 | D102: =K107+K112+K122+K127+K132 -> 0 | E102: =K106+K111+K116+K121+K126+K131 -> 0 | F102: =K105++K110+K115+K120+K125+K130 -> 0
B104: 32/A UYGULANABİLECEK MATRAH (1.TEŞVİK BELGESİ) | C104: =C84 -> 0 | D104: KV MATRAHI | E104: 1 - 5 PUAN İNDİRİM OLMASAYDI HESAPLANAN KV TUTARI | F104: 1 -5 Puan İndirim Tutarı | G104: 1 - 5 Puan İndirim Sonrasında Hesaplanan KV Tutarı | H104: 32/A İndirimi Olmasaydı Ödenecek KV Tutarı | I104: 1 -5 Puan İndirim ve 32/A VİO Uygulandıktan Sonra Tatbik Edilecek KV Oranı | J104: 1 -5 Puan İndirim ve 32/A İndirimi Uygulandıktan Sonra Ödenecek KV Tutarı | K104: Yararlanılan Yatırıma Katkı Tutarı (32/A İnd. KV Nedeniyle Vazgeçilen Vergi Tutarı) | L104: Ödenecek KV Tutarı
B105: GENEL ORANA TABİ KISIM (DİĞER FAALİYETLER) | C105: =F93 -> 0.3333333333 | D105: =C104*C105 -> 0 | E105: =D105*$H$94 -> 0 | F105: 0 | G105: =E105-F105 -> 0 | H105: =G105 -> 0 | I105: =($H$94)-(($H$94)*$C$82) -> 0.25 | J105: =I105*D105 -> 0 | K105: =G105-J105 -> 0 | L105: =J108 -> 0
B106: 1 PUAN İNDİRİMLİ ORANA TABİ KISIM (İMALAT) | C106: =E93 -> 0 | D106: =C104*C106 -> 0 | E106: =D106*$H$94 -> 0 | F106: =D106/100 -> 0 | G106: =E106-F106 -> 0 | H106: =G106 -> 0 | I106: =($H$94-0.01)-(($H$94-0.01)*$C$82) -> 0.24 | J106: =I106*D106 -> 0 | K106: =G106-J106 -> 0
B107: 5 PUAN İNDİRİMLİ ORANA TABİ KISIM ( İHRACAT) | C107: =D93 -> 0.6666666667 | D107: =C104*C107 -> 0 | E107: =D107*$H$94 -> 0 | F107: =D107/20 -> 0 | G107: =E107-F107 -> 0 | H107: 0 | I107: =($H$94-0.05)-(($H$94-0.05)*C82) -> 0.2 | J107: 0 | K107: =G107-J107 -> 0
B108: TOPLAM | C108: =SUM(C105:C107) -> 1 | D108: =SUM(D105:D107) -> 0 | E108: 0 | F108: =SUM(F105:F107) -> 0 | G108: =SUM(G105:G107) -> 0 | H108: =SUM(H105:H107) -> 0 | J108: 0 | K108: 0
B109: 32/A UYGULANABİLECEK MATRAH (2.TEŞVİK BELGESİ) | C109: =D84 -> 0 | D109: KV MATRAHI | E109: 1 - 5 PUAN İNDİRİM OLMASAYDI HESAPLANAN KV TUTARI | F109: 1 -5 Puan İndirim Tutarı | G109: 1 -5 Puan İndirim Sonrasında Hesaplanan KV Tutarı | H109: 32/A İndirimi Olmasaydı Ödenecek KV Tutarı | I109: 1 - 5 Puan İndirim ve 32/A VİO Uygulandıktan Sonra Tatbik Edilecek KV Oranı | J109: 1-5 Puan İndirim ve 32/A İndirimi Uygulandıktan Sonra Ödenecek KV Tutarı | K109: Yararlanılan Yatırıma Katkı Tutarı (32/A İnd. KV Nedeniyle Vazgeçilen Vergi Tutarı) | L109: Ödenecek KV Tutarı
B110: GENEL ORANA TABİ KISIM (DİĞER FAALİYETLER) | C110: =F93 -> 0.3333333333 | D110: =C109*C110 -> 0 | E110: =D110*$H$94 -> 0 | F110: 0 | G110: =E110-F110 -> 0 | H110: =G110 -> 0 | I110: =($H$94)-(($H$94)*D82) -> 0.25 | J110: =I110*D110 -> 0 | K110: =G110-J110 -> 0 | L110: =J113 -> 0
B111: 1 PUAN İNDİRİMLİ ORANA TABİ KISIM (İMALAT) | C111: =E93 -> 0 | D111: =C109*C111 -> 0 | E111: =D111*$H$94 -> 0 | F111: =D111/100 -> 0 | G111: =E111-F111 -> 0 | H111: =G111 -> 0 | I111: =($H$94-0.01)-(($H$94-0.01)*D82) -> 0.24 | J111: =I111*D111 -> 0 | K111: =G111-J111 -> 0
B112: 5 PUAN İNDİRİMLİ ORANA TABİ KISIM ( İHRACAT) | C112: =D93 -> 0.6666666667 | D112: =C109*C112 -> 0 | E112: =D112*$H$94 -> 0 | F112: =D112/20 -> 0 | G112: =E112-F112 -> 0 | H112: 0 | I112: =($H$94-0.05)-(($H$94-0.05)*D82) -> 0.2 | J112: 0 | K112: =G112-J112 -> 0
B113: TOPLAM | C113: =SUM(C110:C112) -> 1 | D113: 0 | E113: 0 | F113: =SUM(F110:F112) -> 0 | G113: =SUM(G110:G112) -> 0 | H113: =SUM(H110:H112) -> 0 | J113: =SUM(J110:J112) -> 0 | K113: 0
B114: 32/A UYGULANABİLECEK MATRAH (3.TEŞVİK BELGESİ) | C114: =E84 -> 0 | D114: KV MATRAHI | E114: 1 - 5 PUAN İNDİRİM OLMASAYDI HESAPLANAN KV TUTARI | F114: 1-5 Puan İndirim Tutarı | G114: 1 - 5 Puan İndirim Sonrasında Hesaplanan KV Tutarı | H114: 32/A İndirimi Olmasaydı Ödenecek KV Tutarı | I114: 1 - 5 Puan İndirim ve 32/A VİO Uygulandıktan Sonra Tatbik Edilecek KV Oranı | J114: 1 -5 Puan İndirim ve 32/A İndirimi Uygulandıktan Sonra Ödenecek KV Tutarı | K114: Yararlanılan Yatırıma Katkı Tutarı (32/A İnd. KV Nedeniyle Vazgeçilen Vergi Tutarı) | L114: Ödenecek KV Tutarı
B115: GENEL ORANA TABİ KISIM (DİĞER FAALİYETLER) | C115: =F93 -> 0.3333333333 | D115: =C114*C115 -> 0 | E115: =D115*$H$94 -> 0 | F115: 0 | G115: =E115-F115 -> 0 | H115: =G115 -> 0 | I115: =($H$94)-(($H$94)*E82) -> 0.25 | J115: =I115*D115 -> 0 | K115: =G115-J115 -> 0 | L115: =J118 -> 0
B116: 1 PUAN İNDİRİMLİ ORANA TABİ KISIM (İMALAT) | C116: =E93 -> 0 | D116: =C114*C116 -> 0 | E116: =D116*$H$94 -> 0 | F116: =D116/100 -> 0 | G116: =E116-F116 -> 0 | H116: =G116 -> 0 | I116: =($H$94-0.01)-(($H$94-0.01)*E82) -> 0.24 | J116: =I116*D116 -> 0 | K116: =G116-J116 -> 0
B117: 5 PUAN İNDİRİMLİ ORANA TABİ KISIM ( İHRACAT) | C117: =D93 -> 0.6666666667 | D117: =C114*C117 -> 0 | E117: =D117*$H$94 -> 0 | F117: =D117/20 -> 0 | G117: =E117-F117 -> 0 | H117: 0 | I117: =($H$94-0.05)-(($H$94-0.05)*E82) -> 0.2 | J117: 0 | K117: =G117-J117 -> 0
B118: TOPLAM | C118: =SUM(C115:C117) -> 1 | D118: 0 | E118: 0 | F118: =SUM(F115:F117) -> 0 | G118: =SUM(G115:G117) -> 0 | H118: =SUM(H115:H117) -> 0 | J118: =SUM(J115:J117) -> 0 | K118: 0
B119: 32/A UYGULANABİLECEK MATRAH (4. TEŞVİK BELGESİ) | C119: =F84 -> 0 | D119: KV MATRAHI | E119: 1 - 5 PUAN İNDİRİM OLMASAYDI HESAPLANAN KV TUTARI | F119: 1-5 Puan İndirim Tutarı | G119: 1 -5 Puan İndirim Sonrasında Hesaplanan KV Tutarı | H119: 32/A İndirimi Olmasaydı Ödenecek KV Tutarı | I119: 1- 5 Puan İndirim ve 32/A VİO Uygulandıktan Sonra Tatbik Edilecek KV Oranı | J119: 1-5 Puan İndirim ve 32/A İndirimi Uygulandıktan Sonra Ödenecek KV Tutarı | K119: Yararlanılan Yatırıma Katkı Tutarı (32/A İnd. KV Nedeniyle Vazgeçilen Vergi Tutarı) | L119: Ödenecek KV Tutarı
B120: GENEL ORANA TABİ KISIM (DİĞER FAALİYETLER) | C120: =F93 -> 0.3333333333 | D120: =C119*C120 -> 0 | E120: =D120*$H$94 -> 0 | F120: 0 | G120: =E120-F120 -> 0 | H120: =G120 -> 0 | I120: =($H$94)-(($H$94)*F82) -> 0.25 | J120: =I120*D120 -> 0 | K120: =G120-J120 -> 0 | L120: =J123 -> 0
B121: 1 PUAN İNDİRİMLİ ORANA TABİ KISIM (İMALAT) | C121: =E93 -> 0 | D121: =C119*C121 -> 0 | E121: =D121*$H$94 -> 0 | F121: =D121/100 -> 0 | G121: =E121-F121 -> 0 | H121: =G121 -> 0 | I121: =($H$94-0.01)-(($H$94-0.01)*F82) -> 0.24 | J121: =I121*D121 -> 0 | K121: =G121-J121 -> 0
B122: 5 PUAN İNDİRİMLİ ORANA TABİ KISIM ( İHRACAT) | C122: =D93 -> 0.6666666667 | D122: =C119*C122 -> 0 | E122: =D122*$H$94 -> 0 | F122: =D122/20 -> 0 | G122: =E122-F122 -> 0 | H122: 0 | I122: =($H$94-0.05)-(($H$94-0.05)*F82) -> 0.2 | J122: 0 | K122: =G122-J122 -> 0
B123: TOPLAM | C123: =SUM(C120:C122) -> 1 | D123: 0 | E123: 0 | F123: =SUM(F120:F122) -> 0 | G123: =SUM(G120:G122) -> 0 | H123: =SUM(H120:H122) -> 0 | J123: =SUM(J120:J122) -> 0 | K123: 0
B124: 32/A UYGULANABİLECEK MATRAH (5.TEŞVİK BELGESİ) | C124: =G84 -> 0 | D124: KV MATRAHI | E124: 1 - 5 PUAN İNDİRİM OLMASAYDI HESAPLANAN KV TUTARI | F124: 1-5 Puan İndirim Tutarı | G124: 1 - 5 Puan İndirim Sonrasında Hesaplanan KV Tutarı | H124: 32/A İndirimi Olmasaydı Ödenecek KV Tutarı | I124: 1 -5 Puan İndirim ve 32/A VİO Uygulandıktan Sonra Tatbik Edilecek KV Oranı | J124: 1 - 5 Puan İndirim ve 32/A İndirimi Uygulandıktan Sonra Ödenecek KV Tutarı | K124: Yararlanılan Yatırıma Katkı Tutarı (32/A İnd. KV Nedeniyle Vazgeçilen Vergi Tutarı) | L124: Ödenecek KV Tutarı
B125: GENEL ORANA TABİ KISIM (DİĞER FAALİYETLER) | C125: =F93 -> 0.3333333333 | D125: =C124*C125 -> 0 | E125: =D125*$H$94 -> 0 | F125: 0 | G125: =E125-F125 -> 0 | H125: =G125 -> 0 | I125: =($H$94)-(($H$94)*G82) -> 0.25 | J125: =I125*D125 -> 0 | K125: =G125-J125 -> 0 | L125: =J128 -> 0
B126: 1 PUAN İNDİRİMLİ ORANA TABİ KISIM (İMALAT) | C126: =E93 -> 0 | D126: =C124*C126 -> 0 | E126: =D126*$H$94 -> 0 | F126: =D126/100 -> 0 | G126: =E126-F126 -> 0 | H126: =G126 -> 0 | I126: =($H$94-0.01)-(($H$94-0.01)*G82) -> 0.24 | J126: =I126*D126 -> 0 | K126: =G126-J126 -> 0
B127: 5 PUAN İNDİRİMLİ ORANA TABİ KISIM ( İHRACAT) | C127: =D93 -> 0.6666666667 | D127: =C124*C127 -> 0 | E127: =D127*$H$94 -> 0 | F127: =D127/20 -> 0 | G127: =E127-F127 -> 0 | H127: 0 | I127: =($H$94-0.05)-(($H$94-0.05)*G82) -> 0.2 | J127: 0 | K127: =G127-J127 -> 0
B128: TOPLAM | C128: =SUM(C125:C127) -> 1 | D128: 0 | E128: 0 | F128: =SUM(F125:F127) -> 0 | G128: =SUM(G125:G127) -> 0 | H128: =SUM(H125:H127) -> 0 | J128: =SUM(J125:J127) -> 0 | K128: 0
B129: 32/A UYGULANAMAYACAK MATRAH | C129: =IF(C85<=0,0,C85) -> 1200000 | D129: KV MATRAHI | E129: 1-5 PUAN İNDİRİM OLMASAYDI HESAPLANAN KV TUTARI | F129: 1-5 Puan İndirim Tutarı | G129: 1 -5 Puan İndirim Sonrasında Hesaplanan KV Tutarı | H129: 32/A İNDİRİMİ UYGULANMAZ | J129: 1 Puan İndirim ve 32/A İndirimi Uygulandıktan Sonra Ödenecek KV Tutarı | K129: Yararlanılan Yatırıma Katkı Tutarı (32/A İnd. KV Nedeniyle Vazgeçilen Vergi Tutarı) | L129: Ödenecek KV Tutarı
B130: GENEL ORANA TABİ KISIM (DİĞER FAALİYETLER) | C130: =F93 -> 0.3333333333 | D130: =C129*C130 -> 400000 | E130: =D130*$H$94 -> 100000 | F130: 0 | G130: =E130-F130 -> 100000 | J130: =G130 -> 100000 | K130: =G130-J130 -> 0 | L130: =J133 -> 260000
B131: 1 PUAN İNDİRİMLİ ORANA TABİ KISIM (İMALAT) | C131: =E93 -> 0 | D131: =C131*C129 -> 0 | E131: =D131*$H$94 -> 0 | F131: =D131/100 -> 0 | G131: =E131-F131 -> 0 | J131: =G131 -> 0 | K131: =G131-J131 -> 0
B132: 5 PUAN İNDİRİMLİ ORANA TABİ KISIM ( İHRACAT) | C132: =D93 -> 0.6666666667 | D132: =C132*C129 -> 800000 | E132: =D132*$H$94 -> 200000 | F132: =D132/20 -> 40000 | G132: =E132-F132 -> 160000 | J132: 160000 | K132: 0
B133: TOPLAM | C133: =SUM(C130:C132) -> 1 | D133: =SUM(D130:D132) -> 1200000 | E133: 300000 | F133: =SUM(F130:F132) -> 40000 | G133: =SUM(G130:G132) -> 260000 | J133: 260000 | K133: 0
B134: TOPLAM KV MATRAHI VE ÖDENMESİ GEREKEN KV | C134: =C104+C129+C109+C114+C119+C124 -> 1200000 | D134: =D108+D133+D113+D118+D123+D128 -> 1200000 | E134: =E108+E133+E113+E118+E123+E128 -> 300000 | F134: =F108+F133+F113+F118+F123+F128 -> 40000 | G134: =G108+G133+G113+G118+G123+G128 -> 260000 | J134: =J108+J133+J113+J118+J123+J128 -> 260000 | K134: =K133+K108+K113+K118+K123+K128 -> 0 | L134: =L105+L130+L110+L115+L120+L125 -> 260000
B136: GEÇİCİ VERGİ BEYANNMESİNDE MATRAH BİLDİRİMİ BÖLÜMÜNDE DOLDURULACAK KISIMLAR VE TUTARLARI
B137: 32 A Madde Kapsamında İndirimli Kurumlar Vergisine (Geçici Vergiye) Tabi Matrah | C137: =C104+C109+C114+C119+C124 -> 0 | D137: =E108+E113+E118+E123+E128 -> 0 | E137: 1-5 Puan Olmasaydı Hesaplan KV Tutarı
D138: =G108+G113+G118+G123++G128 -> 0 | E138: 1 -5 Puan İndirim Sonrasında Ödenecek KV Tutarı (32 A olmasaydı hesaplanacak Vergi)
D139: =K108+K113+K118+K123+K128 -> 0 | E139: 32/A İndirimi ile Vazgeçilen Vergi
B140: 32 A Madde Kapsamında İndirimli Kurumlar Vergisi(Geçici Vergi) Oranı | C140: =IFERROR(D140/C137,0) -> 0 | D140: =L105+L110+L115+L120+L125 -> 0 | E140: 32/A ya Tabi Matrah Üzerinden Ödenecek KV
B141: 32/7 Madde Kapsamında İndirimli Kurumlar Vergisine (Geçici Vergiye) Tabi Matrah (İhracat) | C141: =D132 -> 800000 | D141: =E132 -> 200000 | E141: 5 Puan Olmasaydı Hesaplan KV Tutarı
D142: =F132 -> 40000 | E142: 5 Puan İndirimin Vergi Etkisi
B143: 32/7 Madde Kapsamında İndirimli Kurumlar Vergisi (Geçici Vergi) Oranı | C143: =IFERROR(D143/C141,0) -> 0.2 | D143: =G132 -> 160000 | E143: 5 Puan İndirim Sonrasında Ödenecek KV Tutarı (İhracat)
B144: 32/8 Madde Kapsamında İndirimli Kurumlar Vergisine (Geçici Vergiye) Tabi Matrah (Üretim) | C144: =D131 -> 0 | D144: =E131 -> 0 | E144: 1 Puan Olmasaydı Hesaplan KV Tutarı
D145: =F131 -> 0 | E145: 1 Puan İndirimin Vergi Etkisi
B146: 32/8 Madde Kapsamında İndirimli Kurumlar Vergisi (Geçici Vergi) Oranı | C146: =IFERROR(D146/C144,0) -> 0 | D146: =G131 -> 0 | E146: 1 Puan İndirim Sonrasında Ödenecek KV Tutarı (Üretim)
B147: Genel Orana Tabi Matrah (Diğer) | C147: =D130 -> 400000 | D147: =J130 -> 100000 | E147: Diğer Faalilyetlerden Elde Edilen Kazanç
C148: =IFERROR(D147/C147,0) -> 0.25
